Workbook

Sheet Portada

Sheet Índice
E3: Consejo Monetario Centroamericano
E4: Secretaría Ejecutiva
E5: www.secmca.org
B15: REPORTE MENSUAL DE INDICADORES DE COYUNTURA DE LA ECONOMÍA INTERNACIONAL
J18: Al mes de:
B23: CONTENIDO
B25: Principales Indicadores macroeconómicos de países seleccionados
D27: PIB trimestral
D28: Inflación mensual | J28: ='Cuadro Comparativo AL'!I3 -> DICIEMBRE
D29: Inflación América Latina
D30: Cuadro Comparativo América Latina
D31: Tasas de interés de referencia y M3
D32: Indices de confianza | J32: 2021
D33: Tasas de desempleo
D34: Precios de commodities
D35: Tipos de Cambio nominales
D36: Indices Bursátiles
D37: Series Mensuales
D38: Series Trimestrales
D39: Notas Técnicas
B43: ADVERTENCIA El Consejo Monetario Centroamericano y su Secretaría Ejecutiva autorizan la reproducción total, gráficos y cifras de esta publicación, siempre que se mencione la fuente. No obstante, no asumen responsabilidad legal alguna o de cualquier otra índole, por la manipulación, interpretación personal y uso de dicha información. Derechos Reservados © 2019

Sheet Datos mensuales
A1: Datos | C1: Inflación Interanual medida por el Indice de Precios al Consumidor | P1: Aceleración | AC1: Gráfico Dinámico | AE1: Commodities | AQ1: Indice de tipo de cambio nominal, enero 2007=100 | BB1: Tipos de Cambio | BN1: Depósitos 6 Meses | BP1: Depósitos 3 meses | BS1: Bonos Gobierno 10 años | BV1: Agregado Monetario (M3) | CE1: Variación interanual medida por el Índice de Agregados Monetarios (M3) | CN1: Indices de Confianza del Consumidor | CZ1: Indices de Confianza del Productor | DK1: Índices bursátiles | DN1: Tasa de Desempleo Abierto | DX1: Variación mensual del desempleo en puntos porcentuales (pp.)
A2: Mensuales | C2: 1 | D2: 2 | E2: 3 | F2: 4 | G2: 5 | H2: 6 | I2: 7 | J2: 8 | K2: 9 | L2: 10 | M2: 11 | N2: 12 | O2: 13 | P2: 1 | Q2: 2 | R2: 3 | S2: 4 | T2: 5 | U2: 6 | V2: 7 | W2: 8 | X2: 9 | Y2: 10 | Z2: 11 | AA2: 12 | AB2: 13 | AE2: a | AF2: b | AG2: a-b | BB2: 1 | BC2: 2 | BD2: 3 | BE2: 4 | BF2: 5 | BG2: 6 | BH2: 7 | BI2: 8 | BJ2: 9 | BK2: 10 | BL2: 11 | BM2: 12 | CN2: Países miembros del G-7 | CS2: Países de mercados emergentes | CZ2: Países miembros del G-7 | DE2: Países de mercados emergentes
A3: Año | B3: Mes | C3: Estados Unidos | D3: EuroZona | E3: Alemania | F3: Francia | G3: Reino Unido | H3: Japón | I3: Rusia | J3: Brasil | K3: China | L3: India | M3: Sudáfrica | N3: México | O3: Colombia | P3: Estados Unidos | Q3: EuroZona | R3: Alemania | S3: Francia | T3: Reino Unido | U3: Japón | V3: Rusia | W3: Brasil | X3: China | Y3: India | Z3: Sudáfrica | AA3: México | AB3: Colombia | AC3: =IF(Inflación!$L$7="Estados Unidos",LOOKUP(1,C2:O2,C3:O3),IF(Inflación!$L$7="EuroZona",LOOKUP(2,C2:N2,C3:O3),IF(Inflación!$L$7="Alemania",LOOKUP(3,C2:N2,C3:O3),IF(Inflación!$L$7="Francia",LOOKUP(4,C2:N2,C3:O3),IF(Inflación!$L$7="Reino Unido",LOOKUP(5,C2:N2,C3:O3),IF(Inflación!$L$7="Japón",LOOKUP(6,C2:N2,C3:O3),IF(Inflación!$L$7="Rusia",LOOKUP(7,C2:N2,C3:O3),IF(Inflación!$L$7="Brasil",LOOKUP(8,C2:N2,C3:O3),IF(Inflación!$L$7="China",LOOKUP(9,C2:N2,C3:O3),IF(Inflación!$L$7="India",LOOKUP(10,C2:N2,C3:O3),IF(Inflación!$L$7="Sudáfrica",LOOKUP(11,C2:N2,C3:N3),IF(Inflación!$L$7="México",LOOKUP(12,C2:N2,C3:N3),IF(Inflación!$L$7="Colombia",LOOKUP(13,C2:O2,C3:O3)))))))))))))) -> Alemania | AE3: WTI-NY | AF3: Brent | AG3: Diferen-cial | AH3: Oro | AI3: Azúcar | AJ3: Algodón | AK3: Café | AL3: Trigo | AM3: Aceite de Palma | AN3: Maíz | AO3: Arroz | AP3: Banano | AQ3: EuroZona | AR3: Reino Unido | AS3: Japón | AT3: Canadá | AU3: Rusia | AV3: Brasil | AW3: China | AX3: India | AY3: Sudáfrica | AZ3: México | BA3: Colombia | BB3: EuroZona | BC3: Reino Unido | BD3: Japón | BE3: Canadá | BF3: Rusia | BG3: Brasil | BH3: China | BI3: India | BJ3: Sudáfrica | BK3: México | BL3: Colombia | BM3: =IF('Tipos de Cambio'!$M$9="EuroZona",LOOKUP(1,BB2:BL2,BB3:BL3),IF('Tipos de Cambio'!$M$9="Reino Unido",LOOKUP(2,BB2:BL2,BB3:BL3),IF('Tipos de Cambio'!$M$9="Japón",LOOKUP(3,BB2:BL2,BB3:BL3),IF('Tipos de Cambio'!$M$9="Canadá",LOOKUP(4,BB2:BL2,BB3:BL3),IF('Tipos de Cambio'!$M$9="Rusia",LOOKUP(5,BB2:BL2,BB3:BL3),IF('Tipos de Cambio'!$M$9="Brasil",LOOKUP(6,BB2:BL2,BB3:BL3),IF('Tipos de Cambio'!$M$9="China",LOOKUP(7,BB2:BL2,BB3:BL3),IF('Tipos de Cambio'!$M$9="India",LOOKUP(8,BB2:BL2,BB3:BL3),IF('Tipos de Cambio'!$M$9="Sudáfrica",LOOKUP(9,BB2:BL2,BB3:BL3),IF('Tipos de Cambio'!$M$9="México",LOOKUP(10,BB2:BL2,BB3:BL3),IF('Tipos de Cambio'!$M$9="Colombia",LOOKUP(11,BB2:BL2,BB3:BL3)))))))))))) -> Rusia | BN3: LIBOR | BO3: Letras Tesoro US | BP3: Estados Unidos | BQ3: EuroZona | BR3: Japón | BS3: Estados Unidos | BT3: EuroZona | BU3: Japón | BV3: Estados Unidos | BW3: Japón | BX3: Reino Unido | BY3: Rusia | BZ3: Brasil | CA3: México | CB3: China | CC3: India | CD3: Sudáfrica | CE3: Estados Unidos | CF3: Japón | CG3: Reino Unido | CH3: Rusia | CI3: Brasil | CJ3: México | CK3: China | CL3: India | CM3: Sudáfrica | CN3: Estados Unidos | CO3: Alemania | CP3: Francia | CQ3: Japón | CR3: Reino Unido | CS3: Brasil | CT3: México | CU3: Rusia | CV3: India | CW3: China | CX3: Sudáfrica | CZ3: Estados Unidos | DA3: Alemania | DB3: Francia | DC3: Japón | DD3: Reino Unido | DE3: Brasil | DF3: México | DG3: Rusia | DH3: India | DI3: China | DJ3: Sudáfrica | DK3: Dow Jones | DL3: Nasdaq Composite | DM3: Standard & Poor's 500 | DN3: Estados Unidos | DO3: Reino Unido | DP3: Japón | DQ3: Euro Zona | DR3: Alemania | DS3: Francia | DT3: Brasil | DU3: Rusia | DV3: Sudáfrica | DW3: México | DX3: Estados Unidos | DY3: Reino Unido | DZ3: Japón | EA3: Zona Euro | EB3: Alemania | EC3: Francia | ED3: México | EE3: Rusia
A4: Fecha \ Unidad | C4: % | D4: % | E4: % | F4: % | G4: % | H4: % | I4: % | J4: % | K4: % | L4: % | M4: % | N4: % | O4: % | P4: % | Q4: % | R4: % | S4: % | T4: % | U4: % | V4: % | W4: % | X4: % | Y4: % | Z4: % | AA4: % | AB4: % | AC4: Var. Interanual | AD4: Aceleración | AE4: US$ por barril | AF4: US$ por barril | AG4: de los barriles | AH4: $/toz | AI4: US centavos/Kilo | AJ4: US centavos/libra | AK4: US centavos/libra | AL4: (US$/tm) | AM4: (US$/tm) | AN4: (US$/tm) | AO4: (US$/tm) | AP4: (US$/tm) | BB4: ME/MN | BC4: ME/MN | BD4: MN/ME | BE4: MN/ME | BF4: MN/ME | BG4: MN/ME | BH4: MN/ME | BI4: MN/ME | BJ4: MN/ME | BK4: MN/ME | BL4: MN/ME | BM4: MN/ME | BN4: % | BO4: % | BP4: % | BQ4: % | BR4: % | BS4: % | BT4: % | BU4: % | BV4: Índice | BW4: Índice | BX4: Índice | BY4: Índice | BZ4: Índice | CA4: Índice | CB4: Índice | CC4: Índice | CD4: Índice | CE4: % | CF4: % | CG4: % | CH4: % | CI4: % | CJ4: % | CK4: % | CL4: % | CM4: % | CN4: Índice | CO4: Índice | CP4: Índice | CQ4: Índice | CR4: Índice | CS4: Índice | CT4: Índice | CU4: Índice | CV4: Índice | CW4: Índice | CX4: Índice | CZ4: % | DA4: % | DB4: % | DC4: % | DD4: % | DE4: % | DF4: % | DG4: % | DH4: % | DI4: % | DJ4: % | DK4: Índice | DL4: Índice | DM4: Índice | DN4: % | DO4: % | DP4: % | DQ4: % | DR4: % | DS4: % | DT4: % | DU4: % | DV4: % | DW4: % | DX4: pp. | DY4: pp. | DZ4: pp. | EA4: pp. | EB4: pp. | EC4: pp. | ED4: pp. | EE4: pp.
A5: 1990 | B5: enero | C5: n.d. | D5: n.d. | E5: n.d. | F5: n.d. | G5: n.d. | H5: n.d. | I5: n.d. | J5: n.d. | K5: n.d. | L5: n.d. | M5: n.d. | N5: n.d. | O5: n.d. | P5: n.d | Q5: n.d | R5: n.d | S5: n.d | T5: n.d | U5: n.d | V5: n.d | W5: n.d | X5: n.d | Y5: n.d | Z5: n.d | AA5: n.d | AB5: n.d | AE5: 22.86 | AF5: 21.25 | AG5: =IF(OR(AE5="",AF5="n.d."),"",AF5-AE5) -> -1.61 | AH5: 410.11 | AI5: 50.81648932 | AJ5: 75.07416244 | AK5: 76.02670755 | AL5: 167.92 | AM5: 279 | AN5: 105.6 | AO5: 276.2 | AP5: n.d. | AQ5: n.d. | AR5: n.d. | AS5: n.d. | AT5: n.d. | AU5: n.d. | AV5: n.d. | AW5: n.d. | AX5: n.d. | AY5: n.d. | AZ5: n.d. | BA5: n.d. | BB5: n.d. | BC5: 1.6512 | BD5: 144.9819 | BE5: 1.172 | BF5: n.d. | BG5: n.d. | BH5: 4.7339 | BI5: 16.9633 | BJ5: n.d. | BK5: n.d. | BL5: n.d. | BM5: =IF('Tipos de Cambio'!$M$9="EuroZona",LOOKUP(1,$BB$2:$BL$2,BB5:BL5),IF('Tipos de Cambio'!$M$9="Reino Unido",LOOKUP(2,$BB$2:$BL$2,BB5:BL5),IF('Tipos de Cambio'!$M$9="Japón",LOOKUP(3,$BB$2:$BL$2,BB5:BL5),IF('Tipos de Cambio'!$M$9="Canadá",LOOKUP(4,$BB$2:$BL$2,BB5:BL5),IF('Tipos de Cambio'!$M$9="Rusia",LOOKUP(5,$BB$2:$BL$2,BB5:BL5),IF('Tipos de Cambio'!$M$9="Brasil",LOOKUP(6,$BB$2:$BL$2,BB5:BL5),IF('Tipos de Cambio'!$M$9="China",LOOKUP(7,$BB$2:$BL$2,BB5:BL5),IF('Tipos de Cambio'!$M$9="India",LOOKUP(8,$BB$2:$BL$2,BB5:BL5),IF('Tipos de Cambio'!$M$9="Sudáfrica",LOOKUP(9,$BB$2:$BL$2,BB5:BL5),IF('Tipos de Cambio'!$M$9="México",LOOKUP(10,$BB$2:$BL$2,BB5:BL5),IF('Tipos de Cambio'!$M$9="Colombia",LOOKUP(11,$BB$2:$BL$2,BB5:BL5)))))))))))) -> n.d. | BN5: 8.36648 | BO5: 7.96 | BP5: 8.34943 | BQ5: n.d. | BR5: 7.04617 | BS5: 8.21 | BT5: n.d. | BU5: n.d. | BV5: 26.31495 | BW5: 57.97181 | BX5: 17.93566 | BY5: n.d. | BZ5: n.d. | CA5: 1.409262 | CB5: n.d. | CC5: 2.062484 | CD5: 5.114146 | CN5: 100.5485 | CO5: 100.7343 | CP5: 100.2505 | CQ5: 102.0571 | CR5: 98.78609 | CS5: n.d. | CT5: n.d. | CU5: n.d. | CV5: n.d. | CW5: 99.05367 | CX5: 100.3051 | CY5: 100 | CZ5: 98.88835 | DA5: 101.7102 | DB5: 100.9409 | DC5: 102.6115 | DD5: 99.69357 | DE5: n.d. | DF5: n.d. | DG5: n.d. | DH5: n.d. | DI5: n.d. | DJ5: n.d. | DK5: 2590.54 | DL5: 415.81 | DM5: 329.08 | DN5: 5.4 | DO5: n.d. | DP5: n.d. | DQ5: n.d. | DR5: n.d. | DS5: n.d. | DT5: n.d. | DU5: n.d. | DV5: n.d. | DW5: n.d.
B6: febrero | C6: n.d. | D6: n.d. | E6: n.d. | F6: n.d. | G6: n.d. | H6: n.d. | I6: n.d. | J6: n.d. | K6: n.d. | L6: n.d. | M6: n.d. | N6: n.d. | O6: n.d. | P6: n.d | Q6: n.d | R6: n.d | S6: n.d | T6: n.d | U6: n.d | V6: n.d | W6: n.d | X6: n.d | Y6: n.d | Z6: n.d | AA6: n.d | AB6: n.d | AE6: 22.11 | AF6: 19.81 | AG6: =IF(OR(AE6="",AF6="n.d."),"",AF6-AE6) -> -2.3 | AH6: 416.81 | AI6: 50.44170795 | AJ6: 76.21268064 | AK6: 83.95097568 | AL6: 160.94 | AM6: 271 | AN6: 106.07 | AO6: 300 | AP6: n.d. | AQ6: n.d. | AR6: n.d. | AS6: n.d. | AT6: n.d. | AU6: n.d. | AV6: n.d. | AW6: n.d. | AX6: n.d. | AY6: n.d. | AZ6: n.d. | BA6: n.d. | BB6: n.d. | BC6: 1.6961 | BD6: 145.6932 | BE6: 1.1965 | BF6: n.d. | BG6: n.d. | BH6: 4.7339 | BI6: 16.9895 | BJ6: n.d. | BK6: n.d. | BL6: n.d. | BM6: =IF('Tipos de Cambio'!$M$9="EuroZona",LOOKUP(1,$BB$2:$BL$2,BB6:BL6),IF('Tipos de Cambio'!$M$9="Reino Unido",LOOKUP(2,$BB$2:$BL$2,BB6:BL6),IF('Tipos de Cambio'!$M$9="Japón",LOOKUP(3,$BB$2:$BL$2,BB6:BL6),IF('Tipos de Cambio'!$M$9="Canadá",LOOKUP(4,$BB$2:$BL$2,BB6:BL6),IF('Tipos de Cambio'!$M$9="Rusia",LOOKUP(5,$BB$2:$BL$2,BB6:BL6),IF('Tipos de Cambio'!$M$9="Brasil",LOOKUP(6,$BB$2:$BL$2,BB6:BL6),IF('Tipos de Cambio'!$M$9="China",LOOKUP(7,$BB$2:$BL$2,BB6:BL6),IF('Tipos de Cambio'!$M$9="India",LOOKUP(8,$BB$2:$BL$2,BB6:BL6),IF('Tipos de Cambio'!$M$9="Sudáfrica",LOOKUP(9,$BB$2:$BL$2,BB6:BL6),IF('Tipos de Cambio'!$M$9="México",LOOKUP(10,$BB$2:$BL$2,BB6:BL6),IF('Tipos de Cambio'!$M$9="Colombia",LOOKUP(11,$BB$2:$BL$2,BB6:BL6)))))))))))) -> n.d. | BN6: 8.42109 | BO6: 8.12 | BP6: 8.36563 | BQ6: n.d. | BR6: 7.23516 | BS6: 8.47 | BT6: n.d. | BU6: n.d. | BV6: 26.41799 | BW6: 59.08429 | BX6: 18.13403 | BY6: n.d. | BZ6: n.d. | CA6: 1.442739 | CB6: 0.936452 | CC6: 2.089263 | CD6: 5.183817 | CN6: 100.5307 | CO6: 100.5858 | CP6: 100.308 | CQ6: 102.0219 | CR6: 98.47297 | CS6: n.d. | CT6: n.d. | CU6: n.d. | CV6: n.d. | CW6: 99.11065 | CX6: 100.2905 | CY6: 100 | CZ6: 99.08907 | DA6: 101.7421 | DB6: 100.8588 | DC6: 102.6026 | DD6: 99.54855 | DE6: n.d. | DF6: n.d. | DG6: n.d. | DH6: n.d. | DI6: n.d. | DJ6: n.d. | DK6: 2627.25 | DL6: 425.83 | DM6: 331.89 | DN6: 5.3 | DO6: n.d. | DP6: n.d. | DQ6: n.d. | DR6: n.d. | DS6: n.d. | DT6: n.d. | DU6: n.d. | DV6: n.d. | DW6: n.d. | DX6: =IFERROR(DN6-DN5, "n.d.") -> -0.1 | DY6: n.d. | DZ6: n.d. | EA6: n.d. | EB6: n.d. | EC6: n.d. | ED6: =IFERROR(DW6-DW5, "n.d.") -> n.d. | EE6: =IFERROR(DU6-DU5, "n.d.") -> n.d. | EJ6: Gráfico AL
B7: marzo | C7: n.d. | D7: n.d. | E7: n.d. | F7: n.d. | G7: n.d. | H7: n.d. | I7: n.d. | J7: n.d. | K7: n.d. | L7: n.d. | M7: n.d. | N7: n.d. | O7: n.d. | P7: n.d | Q7: n.d | R7: n.d | S7: n.d | T7: n.d | U7: n.d | V7: n.d | W7: n.d | X7: n.d | Y7: n.d | Z7: n.d | AA7: n.d | AB7: n.d | AE7: 20.39 | AF7: 18.39 | AG7: -2 | AH7: 393.06 | AI7: 51.98494364 | AJ7: 78.88887881 | AK7: 94.73287914 | AL7: 156.53 | AM7: 286 | AN7: 109.7 | AO7: 289.25 | AP7: n.d. | AQ7: n.d. | AR7: n.d. | AS7: n.d. | AT7: n.d. | AU7: n.d. | AV7: n.d. | AW7: n.d. | AX7: n.d. | AY7: n.d. | AZ7: n.d. | BA7: n.d. | BB7: n.d. | BC7: 1.6245 | BD7: 153.3082 | BE7: 1.18 | BF7: n.d. | BG7: n.d. | BH7: 4.7339 | BI7: 17.1164 | BJ7: n.d. | BK7: n.d. | BL7: n.d. | BM7: =IF('Tipos de Cambio'!$M$9="EuroZona",LOOKUP(1,$BB$2:$BL$2,BB7:BL7),IF('Tipos de Cambio'!$M$9="Reino Unido",LOOKUP(2,$BB$2:$BL$2,BB7:BL7),IF('Tipos de Cambio'!$M$9="Japón",LOOKUP(3,$BB$2:$BL$2,BB7:BL7),IF('Tipos de Cambio'!$M$9="Canadá",LOOKUP(4,$BB$2:$BL$2,BB7:BL7),IF('Tipos de Cambio'!$M$9="Rusia",LOOKUP(5,$BB$2:$BL$2,BB7:BL7),IF('Tipos de Cambio'!$M$9="Brasil",LOOKUP(6,$BB$2:$BL$2,BB7:BL7),IF('Tipos de Cambio'!$M$9="China",LOOKUP(7,$BB$2:$BL$2,BB7:BL7),IF('Tipos de Cambio'!$M$9="India",LOOKUP(8,$BB$2:$BL$2,BB7:BL7),IF('Tipos de Cambio'!$M$9="Sudáfrica",LOOKUP(9,$BB$2:$BL$2,BB7:BL7),IF('Tipos de Cambio'!$M$9="México",LOOKUP(10,$BB$2:$BL$2,BB7:BL7),IF('Tipos de Cambio'!$M$9="Colombia",LOOKUP(11,$BB$2:$BL$2,BB7:BL7)))))))))))) -> n.d. | BN7: 8.64489 | BO7: 8.28 | BP7: 8.49148 | BQ7: n.d. | BR7: 7.57884 | BS7: 8.59 | BT7: n.d. | BU7: n.d. | BV7: 26.50856 | BW7: 59.46875 | BX7: 18.36141 | BY7: n.d. | BZ7: n.d. | CA7: 1.489469 | CB7: 0.9548662 | CC7: 2.118918 | CD7: 5.207583 | CN7: 100.5985 | CO7: 100.6185 | CP7: 100.3278 | CQ7: 102.0024 | CR7: 98.14893 | CS7: n.d. | CT7: n.d. | CU7: n.d. | CV7: n.d. | CW7: 99.19584 | CX7: 100.1592 | CY7: 100 | CZ7: 99.2477 | DA7: 101.7955 | DB7: 100.7419 | DC7: 102.5793 | DD7: 99.44804 | DE7: n.d. | DF7: n.d. | DG7: n.d. | DH7: n.d. | DI7: n.d. | DJ7: n.d. | DK7: 2707.21 | DL7: 435.54 | DM7: 339.94 | DN7: 5.2 | DO7: n.d. | DP7: n.d. | DQ7: n.d. | DR7: n.d. | DS7: n.d. | DT7: n.d. | DU7: n.d. | DV7: n.d. | DW7: n.d. | DX7: -0.1 | DY7: n.d. | DZ7: n.d. | EA7: n.d. | EB7: n.d. | EC7: n.d. | ED7: n.d. | EE7: n.d. | EJ7: PAIS | EK7: INFLACIÓN | EM7: PAIS | EN7: INFLACIÓN
B8: abril | C8: n.d. | D8: n.d. | E8: n.d. | F8: n.d. | G8: n.d. | H8: n.d. | I8: n.d. | J8: n.d. | K8: n.d. | L8: n.d. | M8: n.d. | N8: n.d. | O8: n.d. | P8: n.d | Q8: n.d | R8: n.d | S8: n.d | T8: n.d | U8: n.d | V8: n.d | W8: n.d | X8: n.d | Y8: n.d | Z8: n.d | AA8: n.d | AB8: n.d | AE8: 18.43 | AF8: 16.61 | AG8: -1.82 | AH8: 374.24 | AI8: 52.44791182 | AJ8: 82.83967305 | AK8: 94.71019949 | AL8: 159.47 | AM8: 267 | AN8: 118.82 | AO8: 275.75 | AP8: n.d. | AQ8: n.d. | AR8: n.d. | AS8: n.d. | AT8: n.d. | AU8: n.d. | AV8: n.d. | AW8: n.d. | AX8: n.d. | AY8: n.d. | AZ8: n.d. | BA8: n.d. | BB8: n.d. | BC8: 1.6372 | BD8: 158.4586 | BE8: 1.1641 | BF8: n.d. | BG8: n.d. | BH8: 4.7339 | BI8: 17.2943 | BJ8: n.d. | BK8: n.d. | BL8: n.d. | BM8: =IF('Tipos de Cambio'!$M$9="EuroZona",LOOKUP(1,$BB$2:$BL$2,BB8:BL8),IF('Tipos de Cambio'!$M$9="Reino Unido",LOOKUP(2,$BB$2:$BL$2,BB8:BL8),IF('Tipos de Cambio'!$M$9="Japón",LOOKUP(3,$BB$2:$BL$2,BB8:BL8),IF('Tipos de Cambio'!$M$9="Canadá",LOOKUP(4,$BB$2:$BL$2,BB8:BL8),IF('Tipos de Cambio'!$M$9="Rusia",LOOKUP(5,$BB$2:$BL$2,BB8:BL8),IF('Tipos de Cambio'!$M$9="Brasil",LOOKUP(6,$BB$2:$BL$2,BB8:BL8),IF('Tipos de Cambio'!$M$9="China",LOOKUP(7,$BB$2:$BL$2,BB8:BL8),IF('Tipos de Cambio'!$M$9="India",LOOKUP(8,$BB$2:$BL$2,BB8:BL8),IF('Tipos de Cambio'!$M$9="Sudáfrica",LOOKUP(9,$BB$2:$BL$2,BB8:BL8),IF('Tipos de Cambio'!$M$9="México",LOOKUP(10,$BB$2:$BL$2,BB8:BL8),IF('Tipos de Cambio'!$M$9="Colombia",LOOKUP(11,$BB$2:$BL$2,BB8:BL8)))))))))))) -> n.d. | BN8: 8.74342 | BO8: 8.27 | BP8: 8.5699 | BQ8: n.d. | BR8: 7.44737 | BS8: 8.79 | BT8: n.d. | BU8: n.d. | BV8: 26.60412 | BW8: 60.5158 | BX8: 18.58086 | BY8: n.d. | BZ8: n.d. | CA8: 1.535127 | CB8: 0.9743054 | CC8: 2.155439 | CD8: 5.269875 | CN8: 100.6501 | CO8: 100.8799 | CP8: 100.2679 | CQ8: 101.9711 | CR8: 98.07335 | CS8: n.d. | CT8: n.d. | CU8: n.d. | CV8: n.d. | CW8: 99.30869 | CX8: 99.85641 | CY8: 100 | CZ8: 99.29762 | DA8: 101.8167 | DB8: 100.6121 | DC8: 102.5289 | DD8: 99.49274 | DE8: n.d. | DF8: n.d. | DG8: n.d. | DH8: n.d. | DI8: n.d. | DJ8: n.d. | DK8: 2656.76 | DL8: 420.07 | DM8: 330.8 | DN8: 5.4 | DO8: n.d. | DP8: n.d. | DQ8: n.d. | DR8: n.d. | DS8: n.d. | DT8: n.d. | DU8: n.d. | DV8: n.d. | DW8: n.d. | DX8: 0.2 | DY8: n.d. | DZ8: n.d. | EA8: n.d. | EB8: n.d. | EC8: n.d. | ED8: n.d. | EE8: n.d. | EJ8: Argentina | EK8: ='Cuadro Comparativo AL'!G32 -> 51.43801616 | EM8: Uruguay | EN8: 7.959303111
B9: mayo | C9: n.d. | D9: n.d. | E9: n.d. | F9: n.d. | G9: n.d. | H9: n.d. | I9: n.d. | J9: n.d. | K9: n.d. | L9: n.d. | M9: n.d. | N9: n.d. | O9: n.d. | P9: n.d | Q9: n.d | R9: n.d | S9: n.d | T9: n.d | U9: n.d | V9: n.d | W9: n.d | X9: n.d | Y9: n.d | Z9: n.d | AA9: n.d | AB9: n.d | AE9: 18.2 | AF9: 16.35 | AG9: -1.85 | AH9: 369.05 | AI9: 52.00698614 | AJ9: 85.57483829 | AK9: 92.96840272 | AL9: 149.18 | AM9: 281 | AN9: 121.04 | AO9: 260 | AP9: n.d. | AQ9: n.d. | AR9: n.d. | AS9: n.d. | AT9: n.d. | AU9: n.d. | AV9: n.d. | AW9: n.d. | AX9: n.d. | AY9: n.d. | AZ9: n.d. | BA9: n.d. | BB9: n.d. | BC9: 1.6774 | BD9: 154.0441 | BE9: 1.1747 | BF9: n.d. | BG9: n.d. | BH9: 4.7339 | BI9: 17.3245 | BJ9: n.d. | BK9: n.d. | BL9: n.d. | BM9: =IF('Tipos de Cambio'!$M$9="EuroZona",LOOKUP(1,$BB$2:$BL$2,BB9:BL9),IF('Tipos de Cambio'!$M$9="Reino Unido",LOOKUP(2,$BB$2:$BL$2,BB9:BL9),IF('Tipos de Cambio'!$M$9="Japón",LOOKUP(3,$BB$2:$BL$2,BB9:BL9),IF('Tipos de Cambio'!$M$9="Canadá",LOOKUP(4,$BB$2:$BL$2,BB9:BL9),IF('Tipos de Cambio'!$M$9="Rusia",LOOKUP(5,$BB$2:$BL$2,BB9:BL9),IF('Tipos de Cambio'!$M$9="Brasil",LOOKUP(6,$BB$2:$BL$2,BB9:BL9),IF('Tipos de Cambio'!$M$9="China",LOOKUP(7,$BB$2:$BL$2,BB9:BL9),IF('Tipos de Cambio'!$M$9="India",LOOKUP(8,$BB$2:$BL$2,BB9:BL9),IF('Tipos de Cambio'!$M$9="Sudáfrica",LOOKUP(9,$BB$2:$BL$2,BB9:BL9),IF('Tipos de Cambio'!$M$9="México",LOOKUP(10,$BB$2:$BL$2,BB9:BL9),IF('Tipos de Cambio'!$M$9="Colombia",LOOKUP(11,$BB$2:$BL$2,BB9:BL9)))))))))))) -> n.d. | BN9: 8.63616 | BO9: 8.19 | BP9: 8.47545 | BQ9: n.d. | BR9: 7.37723 | BS9: 8.76 | BT9: n.d. | BU9: n.d. | BV9: 26.59581 | BW9: 60.81846 | BX9: 18.71334 | BY9: n.d. | BZ9: n.d. | CA9: 1.582058 | CB9: 0.99508 | CC9: 2.18222 | CD9: 5.336678 | CN9: 100.5225 | CO9: 101.0878 | CP9: 100.1986 | CQ9: 101.9072 | CR9: 98.15033 | CS9: n.d. | CT9: n.d. | CU9: n.d. | CV9: n.d. | CW9: 99.41486 | CX9: 99.52554 | CY9: 100 | CZ9: 99.22557 | DA9: 101.8045 | DB9: 100.5675 | DC9: 102.4683 | DD9: 99.46323 | DE9: n.d. | DF9: n.d. | DG9: n.d. | DH9: n.d. | DI9: n.d. | DJ9: n.d. | DK9: 2876.66 | DL9: 458.97 | DM9: 361.23 | DN9: 5.4 | DO9: n.d. | DP9: n.d. | DQ9: n.d. | DR9: n.d. | DS9: n.d. | DT9: n.d. | DU9: n.d. | DV9: n.d. | DW9: n.d. | DX9: 0 | DY9: n.d. | DZ9: n.d. | EA9: n.d. | EB9: n.d. | EC9: n.d. | ED9: n.d. | EE9: n.d. | EJ9: Bolivia | EK9: ='Cuadro Comparativo AL'!G33 -> 0.9017203016 | EM9: República Dominicana | EN9: =+'[1]REAL IPC(M)'!$AI$393 -> 8.495698987
B10: junio | C10: n.d. | D10: n.d. | E10: n.d. | F10: n.d. | G10: n.d. | H10: n.d. | I10: n.d. | J10: n.d. | K10: n.d. | L10: n.d. | M10: n.d. | N10: n.d. | O10: n.d. | P10: n.d | Q10: n.d | R10: n.d | S10: n.d | T10: n.d | U10: n.d | V10: n.d | W10: n.d | X10: n.d | Y10: n.d | Z10: n.d | AA10: n.d | AB10: n.d | AE10: 16.7 | AF10: 15.1 | AG10: -1.6 | AH10: 352.33 | AI10: 51.38969523 | AJ10: 90.08808774 | AK10: 89.14915042 | AL10: 135.58 | AM10: 272 | AN10: 120.86 | AO10: 255 | AP10: n.d. | AQ10: n.d. | AR10: n.d. | AS10: n.d. | AT10: n.d. | AU10: n.d. | AV10: n.d. | AW10: n.d. | AX10: n.d. | AY10: n.d. | AZ10: n.d. | BA10: n.d. | BB10: n.d. | BC10: 1.7103 | BD10: 153.6957 | BE10: 1.173 | BF10: n.d. | BG10: n.d. | BH10: 4.7339 | BI10: 17.421 | BJ10: n.d. | BK10: n.d. | BL10: n.d. | BM10: =IF('Tipos de Cambio'!$M$9="EuroZona",LOOKUP(1,$BB$2:$BL$2,BB10:BL10),IF('Tipos de Cambio'!$M$9="Reino Unido",LOOKUP(2,$BB$2:$BL$2,BB10:BL10),IF('Tipos de Cambio'!$M$9="Japón",LOOKUP(3,$BB$2:$BL$2,BB10:BL10),IF('Tipos de Cambio'!$M$9="Canadá",LOOKUP(4,$BB$2:$BL$2,BB10:BL10),IF('Tipos de Cambio'!$M$9="Rusia",LOOKUP(5,$BB$2:$BL$2,BB10:BL10),IF('Tipos de Cambio'!$M$9="Brasil",LOOKUP(6,$BB$2:$BL$2,BB10:BL10),IF('Tipos de Cambio'!$M$9="China",LOOKUP(7,$BB$2:$BL$2,BB10:BL10),IF('Tipos de Cambio'!$M$9="India",LOOKUP(8,$BB$2:$BL$2,BB10:BL10),IF('Tipos de Cambio'!$M$9="Sudáfrica",LOOKUP(9,$BB$2:$BL$2,BB10:BL10),IF('Tipos de Cambio'!$M$9="México",LOOKUP(10,$BB$2:$BL$2,BB10:BL10),IF('Tipos de Cambio'!$M$9="Colombia",LOOKUP(11,$BB$2:$BL$2,BB10:BL10)))))))))))) -> n.d. | BN10: 8.41443 | BO10: 8.05 | BP10: 8.35193 | BQ10: n.d. | BR10: 7.43676 | BS10: 8.48 | BT10: n.d. | BU10: n.d. | BV10: 26.70467 | BW10: 60.99024 | BX10: 18.87579 | BY10: n.d. | BZ10: n.d. | CA10: 1.638569 | CB10: 1.016636 | CC10: 2.198584 | CD10: 5.361125 | CN10: 100.2417 | CO10: 101.1903 | CP10: 100.1808 | CQ10: 101.828 | CR10: 98.19038 | CS10: n.d. | CT10: n.d. | CU10: n.d. | CV10: n.d. | CW10: 99.45371 | CX10: 99.36889 | CY10: 100 | CZ10: 99.04279 | DA10: 101.8212 | DB10: 100.5163 | DC10: 102.4221 | DD10: 99.39211 | DE10: n.d. | DF10: n.d. | DG10: n.d. | DH10: n.d. | DI10: n.d. | DJ10: n.d. | DK10: 2880.69 | DL10: 462.29 | DM10: 358.02 | DN10: 5.2 | DO10: n.d. | DP10: n.d. | DQ10: n.d. | DR10: n.d. | DS10: n.d. | DT10: n.d. | DU10: n.d. | DV10: n.d. | DW10: n.d. | DX10: -0.2 | DY10: n.d. | DZ10: n.d. | EA10: n.d. | EB10: n.d. | EC10: n.d. | ED10: n.d. | EE10: n.d. | EJ10: Brasil | EK10: ='Cuadro Comparativo AL'!G23 -> 10.06098274 | EM10: Guatemala | EN10: =+'[1]REAL IPC(M)'!$AF$393 -> 3.067814855
B11: julio | C11: n.d. | D11: n.d. | E11: n.d. | F11: n.d. | G11: n.d. | H11: n.d. | I11: n.d. | J11: n.d. | K11: n.d. | L11: n.d. | M11: n.d. | N11: n.d. | O11: n.d. | P11: n.d | Q11: n.d | R11: n.d | S11: n.d | T11: n.d | U11: n.d | V11: n.d | W11: n.d | X11: n.d | Y11: n.d | Z11: n.d | AA11: n.d | AB11: n.d | AE11: 18.45 | AF11: 17.17 | AG11: -1.28 | AH11: 362.53 | AI11: 51.63219636 | AJ11: 91.28557302 | AK11: 86.64985349 | AL11: 124.93 | AM11: 279 | AN11: 114.91 | AO11: 256.4 | AP11: n.d. | AQ11: n.d. | AR11: n.d. | AS11: n.d. | AT11: n.d. | AU11: n.d. | AV11: n.d. | AW11: n.d. | AX11: n.d. | AY11: n.d. | AZ11: n.d. | BA11: n.d. | BB11: n.d. | BC11: 1.8098 | BD11: 149.0395 | BE11: 1.157 | BF11: n.d. | BG11: n.d. | BH11: 4.7339 | BI11: 17.4119 | BJ11: n.d. | BK11: n.d. | BL11: n.d. | BM11: =IF('Tipos de Cambio'!$M$9="EuroZona",LOOKUP(1,$BB$2:$BL$2,BB11:BL11),IF('Tipos de Cambio'!$M$9="Reino Unido",LOOKUP(2,$BB$2:$BL$2,BB11:BL11),IF('Tipos de Cambio'!$M$9="Japón",LOOKUP(3,$BB$2:$BL$2,BB11:BL11),IF('Tipos de Cambio'!$M$9="Canadá",LOOKUP(4,$BB$2:$BL$2,BB11:BL11),IF('Tipos de Cambio'!$M$9="Rusia",LOOKUP(5,$BB$2:$BL$2,BB11:BL11),IF('Tipos de Cambio'!$M$9="Brasil",LOOKUP(6,$BB$2:$BL$2,BB11:BL11),IF('Tipos de Cambio'!$M$9="China",LOOKUP(7,$BB$2:$BL$2,BB11:BL11),IF('Tipos de Cambio'!$M$9="India",LOOKUP(8,$BB$2:$BL$2,BB11:BL11),IF('Tipos de Cambio'!$M$9="Sudáfrica",LOOKUP(9,$BB$2:$BL$2,BB11:BL11),IF('Tipos de Cambio'!$M$9="México",LOOKUP(10,$BB$2:$BL$2,BB11:BL11),IF('Tipos de Cambio'!$M$9="Colombia",LOOKUP(11,$BB$2:$BL$2,BB11:BL11)))))))))))) -> n.d. | BN11: 8.2571 | BO11: 7.92 | BP11: 8.22088 | BQ11: n.d. | BR11: 7.71591 | BS11: 8.47 | BT11: n.d. | BU11: n.d. | BV11: 26.79441 | BW11: 61.3338 | BX11: 18.9834 | BY11: n.d. | BZ11: n.d. | CA11: 1.696805 | CB11: 1.042472 | CC11: 2.222058 | CD11: 5.373787 | CN11: 99.76752 | CO11: 101.187 | CP11: 100.106 | CQ11: 101.7607 | CR11: 98.159 | CS11: n.d. | CT11: n.d. | CU11: n.d. | CV11: n.d. | CW11: 99.39243 | CX11: 99.53718 | CY11: 100 | CZ11: 98.75236 | DA11: 101.9081 | DB11: 100.3674 | DC11: 102.4089 | DD11: 99.19261 | DE11: n.d. | DF11: n.d. | DG11: n.d. | DH11: n.d. | DI11: n.d. | DJ11: n.d. | DK11: 2905.2 | DL11: 438.24 | DM11: 356.15 | DN11: 5.5 | DO11: n.d. | DP11: n.d. | DQ11: n.d. | DR11: n.d. | DS11: n.d. | DT11: n.d. | DU11: n.d. | DV11: n.d. | DW11: n.d. | DX11: 0.3 | DY11: n.d. | DZ11: n.d. | EA11: n.d. | EB11: n.d. | EC11: n.d. | ED11: n.d. | EE11: n.d. | EJ11: Chile | EK11: ='Cuadro Comparativo AL'!G25 -> 7.166947723 | EM11: México | EN11: 7.355107943
B12: agosto | C12: n.d. | D12: n.d. | E12: n.d. | F12: n.d. | G12: n.d. | H12: n.d. | I12: n.d. | J12: n.d. | K12: n.d. | L12: n.d. | M12: n.d. | N12: n.d. | O12: n.d. | P12: n.d | Q12: n.d | R12: n.d | S12: n.d | T12: n.d | U12: n.d | V12: n.d | W12: n.d | X12: n.d | Y12: n.d | Z12: n.d | AA12: n.d | AB12: n.d | AE12: 27.31 | AF12: 27.17 | AG12: -0.14 | AH12: 394.73 | AI12: 51.2794575 | AJ12: 81.27931344 | AK12: 94.42897189 | AL12: 116.84 | AM12: 291 | AN12: 110.05 | AO12: 259.5 | AP12: n.d. | AQ12: n.d. | AR12: n.d. | AS12: n.d. | AT12: n.d. | AU12: n.d. | AV12: n.d. | AW12: n.d. | AX12: n.d. | AY12: n.d. | AZ12: n.d. | BA12: n.d. | BB12: n.d. | BC12: 1.9013 | BD12: 147.4609 | BE12: 1.1448 | BF12: n.d. | BG12: n.d. | BH12: 4.7339 | BI12: 17.3465 | BJ12: n.d. | BK12: n.d. | BL12: n.d. | BM12: =IF('Tipos de Cambio'!$M$9="EuroZona",LOOKUP(1,$BB$2:$BL$2,BB12:BL12),IF('Tipos de Cambio'!$M$9="Reino Unido",LOOKUP(2,$BB$2:$BL$2,BB12:BL12),IF('Tipos de Cambio'!$M$9="Japón",LOOKUP(3,$BB$2:$BL$2,BB12:BL12),IF('Tipos de Cambio'!$M$9="Canadá",LOOKUP(4,$BB$2:$BL$2,BB12:BL12),IF('Tipos de Cambio'!$M$9="Rusia",LOOKUP(5,$BB$2:$BL$2,BB12:BL12),IF('Tipos de Cambio'!$M$9="Brasil",LOOKUP(6,$BB$2:$BL$2,BB12:BL12),IF('Tipos de Cambio'!$M$9="China",LOOKUP(7,$BB$2:$BL$2,BB12:BL12),IF('Tipos de Cambio'!$M$9="India",LOOKUP(8,$BB$2:$BL$2,BB12:BL12),IF('Tipos de Cambio'!$M$9="Sudáfrica",LOOKUP(9,$BB$2:$BL$2,BB12:BL12),IF('Tipos de Cambio'!$M$9="México",LOOKUP(10,$BB$2:$BL$2,BB12:BL12),IF('Tipos de Cambio'!$M$9="Colombia",LOOKUP(11,$BB$2:$BL$2,BB12:BL12)))))))))))) -> n.d. | BN12: 8.11364 | BO12: 7.77 | BP12: 8.09091 | BQ12: n.d. | BR12: 8.02202 | BS12: 8.75 | BT12: n.d. | BU12: n.d. | BV12: 26.93983 | BW12: 61.661 | BX12: 19.07141 | BY12: n.d. | BZ12: n.d. | CA12: 1.753631 | CB12: 1.0689 | CC12: 2.241195 | CD12: 5.404513 | CN12: 99.00665 | CO12: 100.9386 | CP12: 99.94353 | CQ12: 101.7296 | CR12: 97.9815 | CS12: n.d. | CT12: n.d. | CU12: n.d. | CV12: n.d. | CW12: 99.26743 | CX12: 99.8446 | CY12: 100 | CZ12: 98.46922 | DA12: 101.9936 | DB12: 100.0906 | DC12: 102.4147 | DD12: 98.91467 | DE12: n.d. | DF12: n.d. | DG12: n.d. | DH12: n.d. | DI12: n.d. | DJ12: n.d. | DK12: 2614.36 | DL12: 381.21 | DM12: 322.56 | DN12: 5.7 | DO12: n.d. | DP12: n.d. | DQ12: n.d. | DR12: n.d. | DS12: n.d. | DT12: n.d. | DU12: n.d. | DV12: n.d. | DW12: n.d. | DX12: 0.2 | DY12: n.d. | DZ12: n.d. | EA12: n.d. | EB12: n.d. | EC12: n.d. | ED12: n.d. | EE12: n.d. | EJ12: Colombia | EK12: ='Cuadro Comparativo AL'!G24 -> 5.621918847 | EM12: Región CARD | EN12: =+'[1]REAL IPC(M)'!$AL$393 -> 5.554220857
B13: septiembre | C13: n.d. | D13: n.d. | E13: n.d. | F13: n.d. | G13: n.d. | H13: n.d. | I13: n.d. | J13: n.d. | K13: n.d. | L13: n.d. | M13: n.d. | N13: n.d. | O13: n.d. | P13: n.d | Q13: n.d | R13: n.d | S13: n.d | T13: n.d | U13: n.d | V13: n.d | W13: n.d | X13: n.d | Y13: n.d | Z13: n.d | AA13: n.d | AB13: n.d | AE13: 33.51 | AF13: 34.9 | AG13: 1.39 | AH13: 389.32 | AI13: 51.21332159 | AJ13: 81.27477751 | AK13: 95.39058885 | AL13: 114.27 | AM13: 284 | AN13: 101.52 | AO13: 260.75 | AP13: n.d. | AQ13: n.d. | AR13: n.d. | AS13: n.d. | AT13: n.d. | AU13: n.d. | AV13: n.d. | AW13: n.d. | AX13: n.d. | AY13: n.d. | AZ13: n.d. | BA13: n.d. | BB13: n.d. | BC13: 1.8794 | BD13: 138.4405 | BE13: 1.1583 | BF13: n.d. | BG13: n.d. | BH13: 4.7342 | BI13: 17.8595 | BJ13: n.d. | BK13: n.d. | BL13: n.d. | BM13: =IF('Tipos de Cambio'!$M$9="EuroZona",LOOKUP(1,$BB$2:$BL$2,BB13:BL13),IF('Tipos de Cambio'!$M$9="Reino Unido",LOOKUP(2,$BB$2:$BL$2,BB13:BL13),IF('Tipos de Cambio'!$M$9="Japón",LOOKUP(3,$BB$2:$BL$2,BB13:BL13),IF('Tipos de Cambio'!$M$9="Canadá",LOOKUP(4,$BB$2:$BL$2,BB13:BL13),IF('Tipos de Cambio'!$M$9="Rusia",LOOKUP(5,$BB$2:$BL$2,BB13:BL13),IF('Tipos de Cambio'!$M$9="Brasil",LOOKUP(6,$BB$2:$BL$2,BB13:BL13),IF('Tipos de Cambio'!$M$9="China",LOOKUP(7,$BB$2:$BL$2,BB13:BL13),IF('Tipos de Cambio'!$M$9="India",LOOKUP(8,$BB$2:$BL$2,BB13:BL13),IF('Tipos de Cambio'!$M$9="Sudáfrica",LOOKUP(9,$BB$2:$BL$2,BB13:BL13),IF('Tipos de Cambio'!$M$9="México",LOOKUP(10,$BB$2:$BL$2,BB13:BL13),IF('Tipos de Cambio'!$M$9="Colombia",LOOKUP(11,$BB$2:$BL$2,BB13:BL13)))))))))))) -> n.d. | BN13: 8.20391 | BO13: 7.7 | BP13: 8.1875 | BQ13: n.d. | BR13: 8.40469 | BS13: 8.89 | BT13: n.d. | BU13: n.d. | BV13: 27.04453 | BW13: 62.05364 | BX13: 19.2516 | BY13: n.d. | BZ13: n.d. | CA13: 1.80315 | CB13: 1.092539 | CC13: 2.266864 | CD13: 5.403096 | CN13: 98.2757 | CO13: 100.5809 | CP13: 99.67207 | CQ13: 101.7312 | CR13: 97.86905 | CS13: n.d. | CT13: n.d. | CU13: n.d. | CV13: n.d. | CW13: 99.16537 | CX13: 100.0421 | CY13: 100 | CZ13: 98.16657 | DA13: 102.075 | DB13: 99.75309 | DC13: 102.4217 | DD13: 98.59493 | DE13: n.d. | DF13: n.d. | DG13: n.d. | DH13: n.d. | DI13: n.d. | DJ13: n.d. | DK13: 2452.48 | DL13: 344.51 | DM13: 306.05 | DN13: 5.9 | DO13: n.d. | DP13: n.d. | DQ13: n.d. | DR13: n.d. | DS13: n.d. | DT13: n.d. | DU13: n.d. | DV13: n.d. | DW13: n.d. | DX13: 0.2 | DY13: n.d. | DZ13: n.d. | EA13: n.d. | EB13: n.d. | EC13: n.d. | ED13: n.d. | EE13: n.d. | EJ13: Costa Rica | EK13: ='Cuadro Comparativo AL'!G13 -> 3.29890791 | EM13: Honduras | EN13: =+'[1]REAL IPC(M)'!$AG$393 -> 5.315804516
B14: octubre | C14: n.d. | D14: n.d. | E14: n.d. | F14: n.d. | G14: n.d. | H14: n.d. | I14: n.d. | J14: n.d. | K14: n.d. | L14: n.d. | M14: n.d. | N14: n.d. | O14: n.d. | P14: n.d | Q14: n.d | R14: n.d | S14: n.d | T14: n.d | U14: n.d | V14: n.d | W14: n.d | X14: n.d | Y14: n.d | Z14: n.d | AA14: n.d | AB14: n.d | AE14: 36.04 | AF14: 36.02 | AG14: -0.02 | AH14: 380.74 | AI14: 51.34560182 | AJ14: 81.36096017 | AK14: 91.58040842 | AL14: 114.64 | AM14: 290 | AN14: 100.34 | AO14: 281.4 | AP14: n.d. | AQ14: n.d. | AR14: n.d. | AS14: n.d. | AT14: n.d. | AU14: n.d. | AV14: n.d. | AW14: n.d. | AX14: n.d. | AY14: n.d. | AZ14: n.d. | BA14: n.d. | BB14: n.d. | BC14: 1.9456 | BD14: 129.5909 | BE14: 1.16 | BF14: n.d. | BG14: n.d. | BH14: 4.7339 | BI14: 18.0736 | BJ14: n.d. | BK14: n.d. | BL14: n.d. | BM14: =IF('Tipos de Cambio'!$M$9="EuroZona",LOOKUP(1,$BB$2:$BL$2,BB14:BL14),IF('Tipos de Cambio'!$M$9="Reino Unido",LOOKUP(2,$BB$2:$BL$2,BB14:BL14),IF('Tipos de Cambio'!$M$9="Japón",LOOKUP(3,$BB$2:$BL$2,BB14:BL14),IF('Tipos de Cambio'!$M$9="Canadá",LOOKUP(4,$BB$2:$BL$2,BB14:BL14),IF('Tipos de Cambio'!$M$9="Rusia",LOOKUP(5,$BB$2:$BL$2,BB14:BL14),IF('Tipos de Cambio'!$M$9="Brasil",LOOKUP(6,$BB$2:$BL$2,BB14:BL14),IF('Tipos de Cambio'!$M$9="China",LOOKUP(7,$BB$2:$BL$2,BB14:BL14),IF('Tipos de Cambio'!$M$9="India",LOOKUP(8,$BB$2:$BL$2,BB14:BL14),IF('Tipos de Cambio'!$M$9="Sudáfrica",LOOKUP(9,$BB$2:$BL$2,BB14:BL14),IF('Tipos de Cambio'!$M$9="México",LOOKUP(10,$BB$2:$BL$2,BB14:BL14),IF('Tipos de Cambio'!$M$9="Colombia",LOOKUP(11,$BB$2:$BL$2,BB14:BL14)))))))))))) -> n.d. | BN14: 8.1678 | BO14: 7.53 | BP14: 8.16916 | BQ14: n.d. | BR14: 8.29348 | BS14: 8.72 | BT14: n.d. | BU14: n.d. | BV14: 27.08359 | BW14: 62.34812 | BX14: 19.38035 | BY14: n.d. | BZ14: n.d. | CA14: 1.860183 | CB14: 1.118628 | CC14: 2.295778 | CD14: 5.410931 | CN14: 97.6915 | CO14: 100.3918 | CP14: 99.46104 | CQ14: 101.7658 | CR14: 97.98453 | CS14: n.d. | CT14: n.d. | CU14: n.d. | CV14: n.d. | CW14: 99.1879 | CX14: 99.95144 | CY14: 100 | CZ14: 97.85431 | DA14: 102.0683 | DB14: 99.45119 | DC14: 102.4179 | DD14: 98.22617 | DE14: n.d. | DF14: n.d. | DG14: n.d. | DH14: n.d. | DI14: n.d. | DJ14: n.d. | DK14: 2442.33 | DL14: 329.84 | DM14: 304 | DN14: 5.9 | DO14: n.d. | DP14: n.d. | DQ14: n.d. | DR14: n.d. | DS14: n.d. | DT14: n.d. | DU14: n.d. | DV14: n.d. | DW14: n.d. | DX14: 0 | DY14: n.d. | DZ14: n.d. | EA14: n.d. | EB14: n.d. | EC14: n.d. | ED14: n.d. | EE14: n.d. | EJ14: Ecuador | EK14: ='Cuadro Comparativo AL'!G37 -> 1.94067847 | EM14: Brasil | EN14: 10.06098274
B15: noviembre | C15: n.d. | D15: n.d. | E15: n.d. | F15: n.d. | G15: n.d. | H15: n.d. | I15: n.d. | J15: n.d. | K15: n.d. | L15: n.d. | M15: n.d. | N15: n.d. | O15: n.d. | P15: n.d | Q15: n.d | R15: n.d | S15: n.d | T15: n.d | U15: n.d | V15: n.d | W15: n.d | X15: n.d | Y15: n.d | Z15: n.d | AA15: n.d | AB15: n.d | AE15: 32.33 | AF15: 33.07 | AG15: 0.74 | AH15: 381.73 | AI15: 51.03695636 | AJ15: 82.54937359 | AK15: 84.72208362 | AL15: 112.8 | AM15: 331 | AN15: 100.39 | AO15: 272.25 | AP15: n.d. | AQ15: n.d. | AR15: n.d. | AS15: n.d. | AT15: n.d. | AU15: n.d. | AV15: n.d. | AW15: n.d. | AX15: n.d. | AY15: n.d. | AZ15: n.d. | BA15: n.d. | BB15: n.d. | BC15: 1.9642 | BD15: 129.2155 | BE15: 1.1635 | BF15: n.d. | BG15: n.d. | BH15: 4.9714 | BI15: 18.0975 | BJ15: n.d. | BK15: n.d. | BL15: n.d. | BM15: =IF('Tipos de Cambio'!$M$9="EuroZona",LOOKUP(1,$BB$2:$BL$2,BB15:BL15),IF('Tipos de Cambio'!$M$9="Reino Unido",LOOKUP(2,$BB$2:$BL$2,BB15:BL15),IF('Tipos de Cambio'!$M$9="Japón",LOOKUP(3,$BB$2:$BL$2,BB15:BL15),IF('Tipos de Cambio'!$M$9="Canadá",LOOKUP(4,$BB$2:$BL$2,BB15:BL15),IF('Tipos de Cambio'!$M$9="Rusia",LOOKUP(5,$BB$2:$BL$2,BB15:BL15),IF('Tipos de Cambio'!$M$9="Brasil",LOOKUP(6,$BB$2:$BL$2,BB15:BL15),IF('Tipos de Cambio'!$M$9="China",LOOKUP(7,$BB$2:$BL$2,BB15:BL15),IF('Tipos de Cambio'!$M$9="India",LOOKUP(8,$BB$2:$BL$2,BB15:BL15),IF('Tipos de Cambio'!$M$9="Sudáfrica",LOOKUP(9,$BB$2:$BL$2,BB15:BL15),IF('Tipos de Cambio'!$M$9="México",LOOKUP(10,$BB$2:$BL$2,BB15:BL15),IF('Tipos de Cambio'!$M$9="Colombia",LOOKUP(11,$BB$2:$BL$2,BB15:BL15)))))))))))) -> n.d. | BN15: 8.07102 | BO15: 7.39 | BP15: 8.16477 | BQ15: n.d. | BR15: 8.3956 | BS15: 8.39 | BT15: n.d. | BU15: n.d. | BV15: 27.11101 | BW15: 62.02092 | BX15: 19.50296 | BY15: n.d. | BZ15: n.d. | CA15: 1.932785 | CB15: 1.144827 | CC15: 2.324341 | CD15: 5.52308 | CN15: 97.48404 | CO15: 100.3571 | CP15: 99.27354 | CQ15: 101.8356 | CR15: 98.08994 | CS15: n.d. | CT15: n.d. | CU15: n.d. | CV15: n.d. | CW15: 99.39323 | CX15: 99.7094 | CY15: 100 | CZ15: 97.54692 | DA15: 101.9635 | DB15: 99.28542 | DC15: 102.4062 | DD15: 97.8612 | DE15: n.d. | DF15: n.d. | DG15: n.d. | DH15: n.d. | DI15: n.d. | DJ15: n.d. | DK15: 2559.65 | DL15: 359.06 | DM15: 322.22 | DN15: 6.2 | DO15: n.d. | DP15: n.d. | DQ15: n.d. | DR15: n.d. | DS15: n.d. | DT15: n.d. | DU15: n.d. | DV15: n.d. | DW15: n.d. | DX15: 0.3 | DY15: n.d. | DZ15: n.d. | EA15: n.d. | EB15: n.d. | EC15: n.d. | ED15: n.d. | EE15: n.d. | EJ15: El Salvador | EK15: ='Cuadro Comparativo AL'!G17 -> 6.114806269 | EM15: Chile | EN15: 7.166947723
B16: diciembre | C16: n.d. | D16: n.d. | E16: n.d. | F16: n.d. | G16: n.d. | H16: n.d. | I16: n.d. | J16: n.d. | K16: n.d. | L16: n.d. | M16: n.d. | N16: n.d. | O16: n.d. | P16: n.d | Q16: n.d | R16: n.d | S16: n.d | T16: n.d | U16: n.d | V16: n.d | W16: n.d | X16: n.d | Y16: n.d | Z16: n.d | AA16: n.d | AB16: n.d | AE16: 27.28 | AF16: 28.27 | AG16: 0.99 | AH16: 376.95 | AI16: 49.55985659 | AJ16: 83.7513948 | AK16: 89.18090192 | AL16: 113.17 | AM16: 346 | AN16: 102.01 | AO16: 263.75 | AP16: n.d. | AQ16: n.d. | AR16: n.d. | AS16: n.d. | AT16: n.d. | AU16: n.d. | AV16: n.d. | AW16: n.d. | AX16: n.d. | AY16: n.d. | AZ16: n.d. | BA16: n.d. | BB16: n.d. | BC16: 1.9219 | BD16: 133.889 | BE16: 1.1603 | BF16: n.d. | BG16: n.d. | BH16: 5.2352 | BI16: 18.1272 | BJ16: n.d. | BK16: 2.9409 | BL16: n.d. | BM16: =IF('Tipos de Cambio'!$M$9="EuroZona",LOOKUP(1,$BB$2:$BL$2,BB16:BL16),IF('Tipos de Cambio'!$M$9="Reino Unido",LOOKUP(2,$BB$2:$BL$2,BB16:BL16),IF('Tipos de Cambio'!$M$9="Japón",LOOKUP(3,$BB$2:$BL$2,BB16:BL16),IF('Tipos de Cambio'!$M$9="Canadá",LOOKUP(4,$BB$2:$BL$2,BB16:BL16),IF('Tipos de Cambio'!$M$9="Rusia",LOOKUP(5,$BB$2:$BL$2,BB16:BL16),IF('Tipos de Cambio'!$M$9="Brasil",LOOKUP(6,$BB$2:$BL$2,BB16:BL16),IF('Tipos de Cambio'!$M$9="China",LOOKUP(7,$BB$2:$BL$2,BB16:BL16),IF('Tipos de Cambio'!$M$9="India",LOOKUP(8,$BB$2:$BL$2,BB16:BL16),IF('Tipos de Cambio'!$M$9="Sudáfrica",LOOKUP(9,$BB$2:$BL$2,BB16:BL16),IF('Tipos de Cambio'!$M$9="México",LOOKUP(10,$BB$2:$BL$2,BB16:BL16),IF('Tipos de Cambio'!$M$9="Colombia",LOOKUP(11,$BB$2:$BL$2,BB16:BL16)))))))))))) -> n.d. | BN16: 7.75658 | BO16: 7.03 | BP16: 7.92188 | BQ16: n.d. | BR16: 8.27878 | BS16: 8.08 | BT16: n.d. | BU16: n.d. | BV16: 27.18746 | BW16: 62.2336 | BX16: 19.59921 | BY16: n.d. | BZ16: n.d. | CA16: 1.992631 | CB16: 1.169261 | CC16: 2.354901 | CD16: 5.629301 | CN16: 97.54711 | CO16: 100.3012 | CP16: 99.07738 | CQ16: 101.9102 | CR16: 98.22155 | CS16: n.d. | CT16: n.d. | CU16: n.d. | CV16: n.d. | CW16: 99.77367 | CX16: 99.50504 | CY16: 100 | CZ16: 97.30368 | DA16: 101.7023 | DB16: 99.23084 | DC16: 102.3911 | DD16: 97.54967 | DE16: n.d. | DF16: n.d. | DG16: n.d. | DH16: n.d. | DI16: n.d. | DJ16: n.d. | DK16: 2633.66 | DL16: 373.84 | DM16: 330.22 | DN16: 6.3 | DO16: n.d. | DP16: n.d. | DQ16: n.d. | DR16: n.d. | DS16: n.d. | DT16: n.d. | DU16: n.d. | DV16: n.d. | DW16: n.d. | DX16: 0.1 | DY16: n.d. | DZ16: n.d. | EA16: n.d. | EB16: n.d. | EC16: n.d. | ED16: n.d. | EE16: n.d. | EJ16: Guatemala | EK16: ='Cuadro Comparativo AL'!G14 -> 3.067814855 | EM16: Nicaragua | EN16: =+'[1]REAL IPC(M)'!$AH$393 -> 7.210067535
A17: 1991 | B17: enero | C17: 5.651491366 | D17: 3.897685749 | E17: 2.830183447 | F17: 3.342366757 | G17: 7.089540875 | H17: 3.901895206 | I17: n.d. | J17: 1140.266745 | K17: n.d. | L17: 16.09193482 | M17: 14.24998119 | N17: 27.10690548 | O17: 31.98505202 | P17: n.d | Q17: n.d | R17: n.d | S17: n.d | T17: n.d | U17: n.d | V17: n.d | W17: n.d | X17: n.d | Y17: n.d | Z17: n.d | AA17: n.d | AB17: n.d | AE17: 25.23 | AF17: 23.57 | AG17: -1.66 | AH17: 383.64 | AI17: 48.06071432 | AJ17: 83.76046666 | AK17: 85.93317669 | AL17: 111.33 | AM17: 349 | AN17: 105.67 | AO17: 303.4 | AP17: n.d. | AQ17: n.d. | AR17: n.d. | AS17: n.d. | AT17: n.d. | AU17: n.d. | AV17: n.d. | AW17: n.d. | AX17: n.d. | AY17: n.d. | AZ17: n.d. | BA17: n.d. | BB17: n.d. | BC17: 1.9346 | BD17: 133.6986 | BE17: 1.156 | BF17: n.d. | BG17: n.d. | BH17: 5.2352 | BI17: 18.339 | BJ17: n.d. | BK17: 2.9532 | BL17: n.d. | BM17: =IF('Tipos de Cambio'!$M$9="EuroZona",LOOKUP(1,$BB$2:$BL$2,BB17:BL17),IF('Tipos de Cambio'!$M$9="Reino Unido",LOOKUP(2,$BB$2:$BL$2,BB17:BL17),IF('Tipos de Cambio'!$M$9="Japón",LOOKUP(3,$BB$2:$BL$2,BB17:BL17),IF('Tipos de Cambio'!$M$9="Canadá",LOOKUP(4,$BB$2:$BL$2,BB17:BL17),IF('Tipos de Cambio'!$M$9="Rusia",LOOKUP(5,$BB$2:$BL$2,BB17:BL17),IF('Tipos de Cambio'!$M$9="Brasil",LOOKUP(6,$BB$2:$BL$2,BB17:BL17),IF('Tipos de Cambio'!$M$9="China",LOOKUP(7,$BB$2:$BL$2,BB17:BL17),IF('Tipos de Cambio'!$M$9="India",LOOKUP(8,$BB$2:$BL$2,BB17:BL17),IF('Tipos de Cambio'!$M$9="Sudáfrica",LOOKUP(9,$BB$2:$BL$2,BB17:BL17),IF('Tipos de Cambio'!$M$9="México",LOOKUP(10,$BB$2:$BL$2,BB17:BL17),IF('Tipos de Cambio'!$M$9="Colombia",LOOKUP(11,$BB$2:$BL$2,BB17:BL17)))))))))))) -> n.d. | BN17: 7.34801 | BO17: 6.58 | BP17: 7.33736 | BQ17: n.d. | BR17: 8.21733 | BS17: 8.09 | BT17: n.d. | BU17: n.d. | BV17: 27.31958 | BW17: 62.36448 | BX17: 19.65665 | BY17: n.d. | BZ17: n.d. | CA17: 2.030442 | CB17: 1.194355 | CC17: 2.378565 | CD17: 5.667232 | CE17: =IFERROR((BV17/BV5-1)*100,"n.d.") -> 3.817715785 | CF17: 7.577251771 | CG17: 9.595353614 | CH17: n.d. | CI17: n.d. | CJ17: 44.07838997 | CK17: n.d. | CL17: 15.32525828 | CM17: 10.81482617 | CN17: 97.88962 | CO17: 100.0681 | CP17: 98.92748 | CQ17: 101.9485 | CR17: 97.99533 | CS17: n.d. | CT17: n.d. | CU17: n.d. | CV17: n.d. | CW17: 100.2508 | CX17: 99.46857 | CY17: 100 | CZ17: 97.13847 | DA17: 101.2718 | DB17: 99.19939 | DC17: 102.3735 | DD17: 97.29193 | DE17: n.d. | DF17: n.d. | DG17: n.d. | DH17: n.d. | DI17: 101.9485 | DJ17: 97.99533 | DK17: 2736.39 | DL17: 414.2 | DM17: 343.93 | DN17: 6.4 | DO17: n.d. | DP17: n.d. | DQ17: n.d. | DR17: n.d. | DS17: n.d. | DT17: n.d. | DU17: n.d. | DV17: n.d. | DW17: n.d. | DX17: 0.1 | DY17: n.d. | DZ17: n.d. | EA17: n.d. | EB17: n.d. | EC17: n.d. | ED17: n.d. | EE17: n.d. | EJ17: Honduras | EK17: ='Cuadro Comparativo AL'!G18 -> 5.315804516 | EM17: Colombia | EN17: 5.621918847
B18: febrero | C18: 5.3125 | D18: 4.126213592 | E18: 2.848653951 | F18: 3.395432692 | G18: 7.050100347 | H18: 3.563474388 | I18: n.d. | J18: 752.0208975 | K18: n.d. | L18: 15.42854552 | M18: 14.88836096 | N18: 26.46225158 | O18: 31.658237 | P18: n.d | Q18: n.d | R18: n.d | S18: n.d | T18: n.d | U18: n.d | V18: n.d | W18: n.d | X18: n.d | Y18: n.d | Z18: n.d | AA18: n.d | AB18: n.d | AE18: 20.48 | AF18: 19.54 | AG18: -0.94 | AH18: 363.83 | AI18: 47.22295636 | AJ18: 84.87630521 | AK18: 89.2081175 | AL18: 113.91 | AM18: 338 | AN18: 106.1 | AO18: 327.25 | AP18: n.d. | AQ18: n.d. | AR18: n.d. | AS18: n.d. | AT18: n.d. | AU18: n.d. | AV18: n.d. | AW18: n.d. | AX18: n.d. | AY18: n.d. | AZ18: n.d. | BA18: n.d. | BB18: n.d. | BC18: 1.9641 | BD18: 130.5358 | BE18: 1.1549 | BF18: n.d. | BG18: n.d. | BH18: 5.2352 | BI18: 18.86 | BJ18: n.d. | BK18: 2.965 | BL18: n.d. | BM18: =IF('Tipos de Cambio'!$M$9="EuroZona",LOOKUP(1,$BB$2:$BL$2,BB18:BL18),IF('Tipos de Cambio'!$M$9="Reino Unido",LOOKUP(2,$BB$2:$BL$2,BB18:BL18),IF('Tipos de Cambio'!$M$9="Japón",LOOKUP(3,$BB$2:$BL$2,BB18:BL18),IF('Tipos de Cambio'!$M$9="Canadá",LOOKUP(4,$BB$2:$BL$2,BB18:BL18),IF('Tipos de Cambio'!$M$9="Rusia",LOOKUP(5,$BB$2:$BL$2,BB18:BL18),IF('Tipos de Cambio'!$M$9="Brasil",LOOKUP(6,$BB$2:$BL$2,BB18:BL18),IF('Tipos de Cambio'!$M$9="China",LOOKUP(7,$BB$2:$BL$2,BB18:BL18),IF('Tipos de Cambio'!$M$9="India",LOOKUP(8,$BB$2:$BL$2,BB18:BL18),IF('Tipos de Cambio'!$M$9="Sudáfrica",LOOKUP(9,$BB$2:$BL$2,BB18:BL18),IF('Tipos de Cambio'!$M$9="México",LOOKUP(10,$BB$2:$BL$2,BB18:BL18),IF('Tipos de Cambio'!$M$9="Colombia",LOOKUP(11,$BB$2:$BL$2,BB18:BL18)))))))))))) -> n.d. | BN18: 6.71172 | BO18: 6.19 | BP18: 6.7125 | BQ18: n.d. | BR18: 8.06953 | BS18: 7.85 | BT18: n.d. | BU18: n.d. | BV18: 27.45918 | BW18: 62.51172 | BX18: 19.72193 | BY18: n.d. | BZ18: n.d. | CA18: 2.07708 | CB18: 1.219399 | CC18: 2.411737 | CD18: 5.836951 | CE18: 3.941215815 | CF18: 5.800915946 | CG18: 8.756465055 | CH18: n.d. | CI18: n.d. | CJ18: 43.96782786 | CK18: 30.21478944 | CL18: 15.4348208 | CM18: 12.59948027 | CN18: 98.51446 | CO18: 99.75346 | CP18: 98.99966 | CQ18: 101.9163 | CR18: 98.04117 | CS18: n.d. | CT18: n.d. | CU18: n.d. | CV18: n.d. | CW18: 100.6957 | CX18: 99.52247 | CY18: 100 | CZ18: 97.15837 | DA18: 100.8694 | DB18: 99.07712 | DC18: 102.3491 | DD18: 97.02139 | DE18: n.d. | DF18: n.d. | DG18: n.d. | DH18: n.d. | DI18: 101.9163 | DJ18: 98.04117 | DK18: 2882.18 | DL18: 453.05 | DM18: 367.07 | DN18: 6.6 | DO18: n.d. | DP18: n.d. | DQ18: n.d. | DR18: n.d. | DS18: n.d. | DT18: n.d. | DU18: n.d. | DV18: n.d. | DW18: n.d. | DX18: 0.2 | DY18: n.d. | DZ18: n.d. | EA18: n.d. | EB18: n.d. | EC18: n.d. | ED18: n.d. | EE18: n.d. | EJ18: México | EK18: ='Cuadro Comparativo AL'!G28 -> 7.355107943 | EM18: Perú | EN18: 6.429204848
B19: marzo | C19: 4.895104895 | D19: 3.87409201 | E19: 2.848653951 | F19: 3.342326139 | G19: 6.826553972 | H19: 3.662597114 | I19: n.d. | J19: 422.8392018 | K19: n.d. | L19: 13.55933308 | M19: 14.18092357 | N19: 26.04361425 | O19: 31.18499332 | P19: n.d | Q19: n.d | R19: n.d | S19: n.d | T19: n.d | U19: n.d | V19: n.d | W19: n.d | X19: n.d | Y19: n.d | Z19: n.d | AA19: n.d | AB19: n.d | AE19: 19.9 | AF19: 19.08 | AG19: -0.82 | AH19: 363.34 | AI19: 47.24500727 | AJ19: 84.23220328 | AK19: 93.56714536 | AL19: 119.42 | AM19: 348 | AN19: 109.54 | AO19: 311.5 | AP19: n.d. | AQ19: n.d. | AR19: n.d. | AS19: n.d. | AT19: n.d. | AU19: n.d. | AV19: n.d. | AW19: n.d. | AX19: n.d. | AY19: n.d. | AZ19: n.d. | BA19: n.d. | BB19: n.d. | BC19: 1.8214 | BD19: 137.3867 | BE19: 1.1572 | BF19: n.d. | BG19: n.d. | BH19: 5.2352 | BI19: 19.2429 | BJ19: n.d. | BK19: 2.9769 | BL19: n.d. | BM19: =IF('Tipos de Cambio'!$M$9="EuroZona",LOOKUP(1,$BB$2:$BL$2,BB19:BL19),IF('Tipos de Cambio'!$M$9="Reino Unido",LOOKUP(2,$BB$2:$BL$2,BB19:BL19),IF('Tipos de Cambio'!$M$9="Japón",LOOKUP(3,$BB$2:$BL$2,BB19:BL19),IF('Tipos de Cambio'!$M$9="Canadá",LOOKUP(4,$BB$2:$BL$2,BB19:BL19),IF('Tipos de Cambio'!$M$9="Rusia",LOOKUP(5,$BB$2:$BL$2,BB19:BL19),IF('Tipos de Cambio'!$M$9="Brasil",LOOKUP(6,$BB$2:$BL$2,BB19:BL19),IF('Tipos de Cambio'!$M$9="China",LOOKUP(7,$BB$2:$BL$2,BB19:BL19),IF('Tipos de Cambio'!$M$9="India",LOOKUP(8,$BB$2:$BL$2,BB19:BL19),IF('Tipos de Cambio'!$M$9="Sudáfrica",LOOKUP(9,$BB$2:$BL$2,BB19:BL19),IF('Tipos de Cambio'!$M$9="México",LOOKUP(10,$BB$2:$BL$2,BB19:BL19),IF('Tipos de Cambio'!$M$9="Colombia",LOOKUP(11,$BB$2:$BL$2,BB19:BL19)))))))))))) -> n.d. | BN19: 6.65703 | BO19: 6.2 | BP19: 6.56875 | BQ19: n.d. | BR19: 8.17188 | BS19: 8.11 | BT19: n.d. | BU19: n.d. | BV19: 27.60377 | BW19: 62.62624 | BX19: 19.79656 | BY19: n.d. | BZ19: n.d. | CA19: 2.140498 | CB19: 1.243399 | CC19: 2.445956 | CD19: 5.975489 | CE19: 4.131533361 | CF19: 5.309494482 | CG19: 7.816120875 | CH19: n.d. | CI19: n.d. | CJ19: 43.70879824 | CK19: 30.2170922 | CL19: 15.43419802 | CM19: 14.74591956 | CN19: 99.22699 | CO19: 99.49772 | CP19: 99.16743 | CQ19: 101.8404 | CR19: 98.46175 | CS19: n.d. | CT19: n.d. | CU19: n.d. | CV19: n.d. | CW19: 100.9737 | CX19: 99.55038 | CY19: 100 | CZ19: 97.39404 | DA19: 100.5162 | DB19: 99.02316 | DC19: 102.3066 | DD19: 96.9857 | DE19: n.d. | DF19: n.d. | DG19: n.d. | DH19: n.d. | DI19: 101.8404 | DJ19: 98.46175 | DK19: 2913.86 | DL19: 482.3 | DM19: 375.22 | DN19: 6.8 | DO19: n.d. | DP19: n.d. | DQ19: n.d. | DR19: n.d. | DS19: n.d. | DT19: n.d. | DU19: n.d. | DV19: n.d. | DW19: n.d. | DX19: 0.2 | DY19: n.d. | DZ19: n.d. | EA19: n.d. | EB19: n.d. | EC19: n.d. | ED19: n.d. | EE19: n.d. | EJ19: Nicaragua | EK19: ='Cuadro Comparativo AL'!G19 -> 7.210067535 | EM19: Paraguay | EN19: 6.826568266
B20: abril | C20: 4.887509697 | D20: 3.860072376 | E20: 3.081265874 | F20: 3.085407661 | G20: 8.514491301 | H20: 3.410341034 | I20: n.d. | J20: 375.1775846 | K20: n.d. | L20: 12.22222251 | M20: 14.77000955 | N20: 25.45464527 | O20: 31.16828453 | P20: n.d | Q20: n.d | R20: n.d | S20: n.d | T20: n.d | U20: n.d | V20: n.d | W20: n.d | X20: n.d | Y20: n.d | Z20: n.d | AA20: n.d | AB20: n.d | AE20: 20.83 | AF20: 19.18 | AG20: -1.65 | AH20: 358.38 | AI20: 46.78203909 | AJ20: 82.83513712 | AK20: 91.95689053 | AL20: 120.89 | AM20: 319 | AN20: 110.33 | AO20: 285.8 | AP20: n.d. | AQ20: n.d. | AR20: n.d. | AS20: n.d. | AT20: n.d. | AU20: n.d. | AV20: n.d. | AW20: n.d. | AX20: n.d. | AY20: n.d. | AZ20: n.d. | BA20: n.d. | BB20: n.d. | BC20: 1.7497 | BD20: 137.1127 | BE20: 1.1535 | BF20: n.d. | BG20: n.d. | BH20: 5.2767 | BI20: 19.9064 | BJ20: n.d. | BK20: 2.989 | BL20: n.d. | BM20: =IF('Tipos de Cambio'!$M$9="EuroZona",LOOKUP(1,$BB$2:$BL$2,BB20:BL20),IF('Tipos de Cambio'!$M$9="Reino Unido",LOOKUP(2,$BB$2:$BL$2,BB20:BL20),IF('Tipos de Cambio'!$M$9="Japón",LOOKUP(3,$BB$2:$BL$2,BB20:BL20),IF('Tipos de Cambio'!$M$9="Canadá",LOOKUP(4,$BB$2:$BL$2,BB20:BL20),IF('Tipos de Cambio'!$M$9="Rusia",LOOKUP(5,$BB$2:$BL$2,BB20:BL20),IF('Tipos de Cambio'!$M$9="Brasil",LOOKUP(6,$BB$2:$BL$2,BB20:BL20),IF('Tipos de Cambio'!$M$9="China",LOOKUP(7,$BB$2:$BL$2,BB20:BL20),IF('Tipos de Cambio'!$M$9="India",LOOKUP(8,$BB$2:$BL$2,BB20:BL20),IF('Tipos de Cambio'!$M$9="Sudáfrica",LOOKUP(9,$BB$2:$BL$2,BB20:BL20),IF('Tipos de Cambio'!$M$9="México",LOOKUP(10,$BB$2:$BL$2,BB20:BL20),IF('Tipos de Cambio'!$M$9="Colombia",LOOKUP(11,$BB$2:$BL$2,BB20:BL20)))))))))))) -> n.d. | BN20: 6.38095 | BO20: 5.98 | BP20: 6.22321 | BQ20: n.d. | BR20: 7.9814 | BS20: 8.04 | BT20: n.d. | BU20: n.d. | BV20: 27.69102 | BW20: 62.82256 | BX20: 19.90861 | BY20: n.d. | BZ20: n.d. | CA20: 2.202519 | CB20: 1.264193 | CC20: 2.474186 | CD20: 6.003644 | CE20: 4.08545744 | CF20: 3.81183096 | CG20: 7.145794113 | CH20: n.d. | CI20: n.d. | CJ20: 43.47470926 | CK20: 29.75325806 | CL20: 14.78803158 | CM20: 13.9238407 | CN20: 99.42825 | CO20: 99.44877 | CP20: 99.12078 | CQ20: 101.7482 | CR20: 98.74026 | CS20: n.d. | CT20: n.d. | CU20: n.d. | CV20: n.d. | CW20: 101.0198 | CX20: 99.47572 | CY20: 100 | CZ20: 97.82169 | DA20: 100.2771 | DB20: 99.05705 | DC20: 102.2334 | DD20: 97.05086 | DE20: n.d. | DF20: n.d. | DG20: n.d. | DH20: n.d. | DI20: 101.7482 | DJ20: 98.74026 | DK20: 2887.87 | DL20: 484.72 | DM20: 375.35 | DN20: 6.7 | DO20: n.d. | DP20: n.d. | DQ20: n.d. | DR20: n.d. | DS20: n.d. | DT20: n.d. | DU20: n.d. | DV20: n.d. | DW20: n.d. | DX20: -0.1 | DY20: n.d. | DZ20: n.d. | EA20: n.d. | EB20: n.d. | EC20: n.d. | ED20: n.d. | EE20: n.d. | EJ20: Panamá | EK20: ='Cuadro Comparativo AL'!G20 -> 2.624350178 | EM20: Región CAPARD | EN20: =+'[1]REAL IPC(M)'!$AM$393 -> 5.178170099
B21: mayo | C21: 4.953560372 | D21: 4.091456077 | E21: 3.164274242 | F21: 3.259413603 | G21: 8.258523644 | H21: 3.395399781 | I21: n.d. | J21: 374.478884 | K21: n.d. | L21: 12.08791097 | M21: 15.34773736 | N21: 24.50821514 | O21: 31.49010873 | P21: n.d | Q21: n.d | R21: n.d | S21: n.d | T21: n.d | U21: n.d | V21: n.d | W21: n.d | X21: n.d | Y21: n.d | Z21: n.d | AA21: n.d | AB21: n.d | AE21: 21.23 | AF21: 19.19 | AG21: -2.04 | AH21: 356.95 | AI21: 46.91431091 | AJ21: 82.34072085 | AK21: 87.8836262 | AL21: 121.99 | AM21: 318 | AN21: 105.7 | AO21: 288.25 | AP21: n.d. | AQ21: n.d. | AR21: n.d. | AS21: n.d. | AT21: n.d. | AU21: n.d. | AV21: n.d. | AW21: n.d. | AX21: n.d. | AY21: n.d. | AZ21: n.d. | BA21: n.d. | BB21: n.d. | BC21: 1.7238 | BD21: 138.2218 | BE21: 1.1499 | BF21: n.d. | BG21: n.d. | BH21: 5.3257 | BI21: 20.5186 | BJ21: n.d. | BK21: 3.0012 | BL21: n.d. | BM21: =IF('Tipos de Cambio'!$M$9="EuroZona",LOOKUP(1,$BB$2:$BL$2,BB21:BL21),IF('Tipos de Cambio'!$M$9="Reino Unido",LOOKUP(2,$BB$2:$BL$2,BB21:BL21),IF('Tipos de Cambio'!$M$9="Japón",LOOKUP(3,$BB$2:$BL$2,BB21:BL21),IF('Tipos de Cambio'!$M$9="Canadá",LOOKUP(4,$BB$2:$BL$2,BB21:BL21),IF('Tipos de Cambio'!$M$9="Rusia",LOOKUP(5,$BB$2:$BL$2,BB21:BL21),IF('Tipos de Cambio'!$M$9="Brasil",LOOKUP(6,$BB$2:$BL$2,BB21:BL21),IF('Tipos de Cambio'!$M$9="China",LOOKUP(7,$BB$2:$BL$2,BB21:BL21),IF('Tipos de Cambio'!$M$9="India",LOOKUP(8,$BB$2:$BL$2,BB21:BL21),IF('Tipos de Cambio'!$M$9="Sudáfrica",LOOKUP(9,$BB$2:$BL$2,BB21:BL21),IF('Tipos de Cambio'!$M$9="México",LOOKUP(10,$BB$2:$BL$2,BB21:BL21),IF('Tipos de Cambio'!$M$9="Colombia",LOOKUP(11,$BB$2:$BL$2,BB21:BL21)))))))))))) -> n.d. | BN21: 6.1875 | BO21: 5.87 | BP21: 6.05952 | BQ21: n.d. | BR21: 7.83333 | BS21: 8.07 | BT21: n.d. | BU21: n.d. | BV21: 27.7791 | BW21: 62.9698 | BX21: 19.98274 | BY21: n.d. | BZ21: n.d. | CA21: 2.268076 | CB21: 1.286682 | CC21: 2.513268 | CD21: 6.117157 | CE21: 4.449159473 | CF21: 3.537314164 | CG21: 6.78339623 | CH21: n.d. | CI21: n.d. | CJ21: 43.36237989 | CK21: 29.30437754 | CL21: 15.17023948 | CM21: 14.62480967 | CN21: 99.41148 | CO21: 99.46044 | CP21: 98.99136 | CQ21: 101.6518 | CR21: 98.74602 | CS21: n.d. | CT21: n.d. | CU21: n.d. | CV21: n.d. | CW21: 100.842 | CX21: 99.3662 | CY21: 100 | CZ21: 98.39948 | DA21: 100.1193 | DB21: 99.11259 | DC21: 102.1387 | DD21: 97.01443 | DE21: n.d. | DF21: n.d. | DG21: n.d. | DH21: n.d. | DI21: 101.6518 | DJ21: 98.74602 | DK21: 3027.5 | DL21: 506.11 | DM21: 389.83 | DN21: 6.9 | DO21: n.d. | DP21: n.d. | DQ21: n.d. | DR21: n.d. | DS21: n.d. | DT21: n.d. | DU21: n.d. | DV21: n.d. | DW21: n.d. | DX21: 0.2 | DY21: n.d. | DZ21: n.d. | EA21: n.d. | EB21: n.d. | EC21: n.d. | ED21: n.d. | EE21: n.d. | EJ21: Paraguay | EK21: ='Cuadro Comparativo AL'!G26 -> 6.826568266 | EM21: Bolivia | EN21: 0.9017203016
B22: junio | C22: 4.695919938 | D22: 4.326923077 | E22: 3.651118058 | F22: 3.527835665 | G22: 8.407869499 | H22: 3.406593407 | I22: n.d. | J22: 372.0970068 | K22: n.d. | L22: 12.97298416 | M22: 15.23804849 | N22: 23.1034335 | O22: 31.00912088 | P22: n.d | Q22: n.d | R22: n.d | S22: n.d | T22: n.d | U22: n.d | V22: n.d | W22: n.d | X22: n.d | Y22: n.d | Z22: n.d | AA22: n.d | AB22: n.d | AE22: 20.19 | AF22: 18.17 | AG22: -2.02 | AH22: 366.72 | AI22: 47.17887136 | AJ22: 80.96179841 | AK22: 85.77441917 | AL22: 120.15 | AM22: 311 | AN22: 104.21 | AO22: 293.25 | AP22: n.d. | AQ22: n.d. | AR22: n.d. | AS22: n.d. | AT22: n.d. | AU22: n.d. | AV22: n.d. | AW22: n.d. | AX22: n.d. | AY22: n.d. | AZ22: n.d. | BA22: n.d. | BB22: n.d. | BC22: 1.6497 | BD22: 139.7475 | BE22: 1.1439 | BF22: n.d. | BG22: n.d. | BH22: 5.3667 | BI22: 21.062 | BJ22: n.d. | BK22: 3.0134 | BL22: n.d. | BM22: =IF('Tipos de Cambio'!$M$9="EuroZona",LOOKUP(1,$BB$2:$BL$2,BB22:BL22),IF('Tipos de Cambio'!$M$9="Reino Unido",LOOKUP(2,$BB$2:$BL$2,BB22:BL22),IF('Tipos de Cambio'!$M$9="Japón",LOOKUP(3,$BB$2:$BL$2,BB22:BL22),IF('Tipos de Cambio'!$M$9="Canadá",LOOKUP(4,$BB$2:$BL$2,BB22:BL22),IF('Tipos de Cambio'!$M$9="Rusia",LOOKUP(5,$BB$2:$BL$2,BB22:BL22),IF('Tipos de Cambio'!$M$9="Brasil",LOOKUP(6,$BB$2:$BL$2,BB22:BL22),IF('Tipos de Cambio'!$M$9="China",LOOKUP(7,$BB$2:$BL$2,BB22:BL22),IF('Tipos de Cambio'!$M$9="India",LOOKUP(8,$BB$2:$BL$2,BB22:BL22),IF('Tipos de Cambio'!$M$9="Sudáfrica",LOOKUP(9,$BB$2:$BL$2,BB22:BL22),IF('Tipos de Cambio'!$M$9="México",LOOKUP(10,$BB$2:$BL$2,BB22:BL22),IF('Tipos de Cambio'!$M$9="Colombia",LOOKUP(11,$BB$2:$BL$2,BB22:BL22)))))))))))) -> n.d. | BN22: 6.4375 | BO22: 6.02 | BP22: 6.20625 | BQ22: n.d. | BR22: 7.82656 | BS22: 8.28 | BT22: n.d. | BU22: n.d. | BV22: 27.85306 | BW22: 63.10886 | BX22: 20.02257 | BY22: n.d. | BZ22: n.d. | CA22: 2.31821 | CB22: 1.314026 | CC22: 2.543087 | CD22: 6.19587 | CE22: 4.300333987 | CF22: 3.473703334 | CG22: 6.075401347 | CH22: n.d. | CI22: n.d. | CJ22: 41.47771623 | CK22: 29.25235778 | CL22: 15.66931261 | CM22: 15.57033272 | CN22: 99.47573 | CO22: 99.3614 | CP22: 98.7972 | CQ22: 101.5483 | CR22: 98.67294 | CS22: n.d. | CT22: n.d. | CU22: n.d. | CV22: n.d. | CW22: 100.5151 | CX22: 99.33194 | CY22: 100 | CZ22: 99.07922 | DA22: 99.97987 | DB22: 99.15074 | DC22: 102.028 | DD22: 97.07507 | DE22: n.d. | DF22: n.d. | DG22: n.d. | DH22: n.d. | DI22: 101.5483 | DJ22: 98.67294 | DK22: 2906.75 | DL22: 475.92 | DM22: 371.16 | DN22: 6.9 | DO22: n.d. | DP22: n.d. | DQ22: n.d. | DR22: n.d. | DS22: n.d. | DT22: n.d. | DU22: n.d. | DV22: n.d. | DW22: n.d. | DX22: =IFERROR(DN22-DN21, "n.d.") -> 0 | DY22: n.d. | DZ22: n.d. | EA22: n.d. | EB22: n.d. | EC22: n.d. | ED22: n.d. | EE22: n.d. | EJ22: Perú | EK22: ='Cuadro Comparativo AL'!G27 -> 6.429204848 | EM22: Costa Rica | EN22: =+'[1]REAL IPC(M)'!$AD$393 -> 3.29890791
B23: julio | C23: 4.447852761 | D23: 5.048076923 | E23: 4.839096489 | F23: 3.764880952 | G23: 8.243723177 | H23: 3.524229075 | I23: n.d. | J23: 369.9606279 | K23: n.d. | L23: 13.22753002 | M23: 15.83923727 | N23: 21.96692967 | O23: 31.60493452 | P23: n.d | Q23: n.d | R23: n.d | S23: n.d | T23: n.d | U23: n.d | V23: n.d | W23: n.d | X23: n.d | Y23: n.d | Z23: n.d | AA23: n.d | AB23: n.d | AE23: 21.4 | AF23: 19.4 | AG23: -2 | AH23: 367.69 | AI23: 46.84053035 | AJ23: 77.07450717 | AK23: 83.23883481 | AL23: 118.31 | AM23: 341 | AN23: 105.11 | AO23: 303.4 | AP23: n.d. | AQ23: n.d. | AR23: n.d. | AS23: n.d. | AT23: n.d. | AU23: n.d. | AV23: n.d. | AW23: n.d. | AX23: n.d. | AY23: n.d. | AZ23: n.d. | BA23: n.d. | BB23: n.d. | BC23: 1.6513 | BD23: 137.83 | BE23: 1.1493 | BF23: n.d. | BG23: n.d. | BH23: 5.3693 | BI23: 25.6127 | BJ23: n.d. | BK23: 3.0322 | BL23: n.d. | BM23: =IF('Tipos de Cambio'!$M$9="EuroZona",LOOKUP(1,$BB$2:$BL$2,BB23:BL23),IF('Tipos de Cambio'!$M$9="Reino Unido",LOOKUP(2,$BB$2:$BL$2,BB23:BL23),IF('Tipos de Cambio'!$M$9="Japón",LOOKUP(3,$BB$2:$BL$2,BB23:BL23),IF('Tipos de Cambio'!$M$9="Canadá",LOOKUP(4,$BB$2:$BL$2,BB23:BL23),IF('Tipos de Cambio'!$M$9="Rusia",LOOKUP(5,$BB$2:$BL$2,BB23:BL23),IF('Tipos de Cambio'!$M$9="Brasil",LOOKUP(6,$BB$2:$BL$2,BB23:BL23),IF('Tipos de Cambio'!$M$9="China",LOOKUP(7,$BB$2:$BL$2,BB23:BL23),IF('Tipos de Cambio'!$M$9="India",LOOKUP(8,$BB$2:$BL$2,BB23:BL23),IF('Tipos de Cambio'!$M$9="Sudáfrica",LOOKUP(9,$BB$2:$BL$2,BB23:BL23),IF('Tipos de Cambio'!$M$9="México",LOOKUP(10,$BB$2:$BL$2,BB23:BL23),IF('Tipos de Cambio'!$M$9="Colombia",LOOKUP(11,$BB$2:$BL$2,BB23:BL23)))))))))))) -> n.d. | BN23: 6.42663 | BO23: 5.97 | BP23: 6.13859 | BQ23: n.d. | BR23: 7.55639 | BS23: 8.27 | BT23: n.d. | BU23: n.d. | BV23: 27.88796 | BW23: 63.3379 | BX23: 20.03314 | BY23: n.d. | BZ23: n.d. | CA23: 2.360758 | CB23: 1.342134 | CC23: 2.562158 | CD23: 6.173241 | CE23: 4.081261726 | CF23: 3.267529486 | CG23: 5.529778649 | CH23: n.d. | CI23: n.d. | CJ23: 39.12959945 | CK23: 28.74532841 | CL23: 15.30563109 | CM23: 14.87692013 | CN23: 99.53615 | CO23: 99.11951 | CP23: 98.63912 | CQ23: 101.424 | CR23: 98.69274 | CS23: n.d. | CT23: n.d. | CU23: n.d. | CV23: n.d. | CW23: 100.1578 | CX23: 99.45826 | CY23: 100 | CZ23: 99.58441 | DA23: 99.80478 | DB23: 99.1299 | DC23: 101.9 | DD23: 97.22121 | DE23: n.d. | DF23: n.d. | DG23: n.d. | DH23: n.d. | DI23: 101.424 | DJ23: 98.69274 | DK23: 3024.82 | DL23: 502.04 | DM23: 387.81 | DN23: 6.8 | DO23: n.d. | DP23: n.d. | DQ23: n.d. | DR23: n.d. | DS23: n.d. | DT23: n.d. | DU23: n.d. | DV23: n.d. | DW23: n.d. | DX23: -0.1 | DY23: n.d. | DZ23: n.d. | EA23: n.d. | EB23: n.d. | EC23: n.d. | ED23: n.d. | EE23: n.d. | EJ23: Región CARD | EK23: =+'Cuadro Comparativo AL'!G10 -> 5.554220857 | EM23: El Salvador | EN23: =+'[1]REAL IPC(M)'!$AE$393 -> 6.114806269
B24: agosto | C24: 3.799392097 | D24: 4.540023895 | E24: 4.513518439 | F24: 3.208160852 | G24: 7.624100274 | H24: 3.289473684 | I24: n.d. | J24: 381.4117688 | K24: n.d. | L24: 14.210529 | M24: 15.58144815 | N24: 20.75821376 | O24: 31.20026259 | P24: n.d | Q24: n.d | R24: n.d | S24: n.d | T24: n.d | U24: n.d | V24: n.d | W24: n.d | X24: n.d | Y24: n.d | Z24: n.d | AA24: n.d | AB24: n.d | AE24: 21.69 | AF24: 19.77 | AG24: -1.92 | AH24: 356.31 | AI24: 47.99369536 | AJ24: 73.46844354 | AK24: 81.76919378 | AL24: 125.3 | AM24: 338 | AN24: 110.43 | AO24: 298.25 | AP24: n.d. | AQ24: n.d. | AR24: n.d. | AS24: n.d. | AT24: n.d. | AU24: n.d. | AV24: n.d. | AW24: n.d. | AX24: n.d. | AY24: n.d. | AZ24: n.d. | BA24: n.d. | BB24: n.d. | BC24: 1.6841 | BD24: 136.8164 | BE24: 1.1452 | BF24: n.d. | BG24: n.d. | BH24: 5.3725 | BI24: 25.8457 | BJ24: n.d. | BK24: 3.038 | BL24: n.d. | BM24: =IF('Tipos de Cambio'!$M$9="EuroZona",LOOKUP(1,$BB$2:$BL$2,BB24:BL24),IF('Tipos de Cambio'!$M$9="Reino Unido",LOOKUP(2,$BB$2:$BL$2,BB24:BL24),IF('Tipos de Cambio'!$M$9="Japón",LOOKUP(3,$BB$2:$BL$2,BB24:BL24),IF('Tipos de Cambio'!$M$9="Canadá",LOOKUP(4,$BB$2:$BL$2,BB24:BL24),IF('Tipos de Cambio'!$M$9="Rusia",LOOKUP(5,$BB$2:$BL$2,BB24:BL24),IF('Tipos de Cambio'!$M$9="Brasil",LOOKUP(6,$BB$2:$BL$2,BB24:BL24),IF('Tipos de Cambio'!$M$9="China",LOOKUP(7,$BB$2:$BL$2,BB24:BL24),IF('Tipos de Cambio'!$M$9="India",LOOKUP(8,$BB$2:$BL$2,BB24:BL24),IF('Tipos de Cambio'!$M$9="Sudáfrica",LOOKUP(9,$BB$2:$BL$2,BB24:BL24),IF('Tipos de Cambio'!$M$9="México",LOOKUP(10,$BB$2:$BL$2,BB24:BL24),IF('Tipos de Cambio'!$M$9="Colombia",LOOKUP(11,$BB$2:$BL$2,BB24:BL24)))))))))))) -> n.d. | BN24: 5.94048 | BO24: 5.63 | BP24: 5.77083 | BQ24: n.d. | BR24: 7.34896 | BS24: 7.9 | BT24: n.d. | BU24: n.d. | BV24: 27.87882 | BW24: 63.32972 | BX24: 20.04519 | BY24: n.d. | BZ24: n.d. | CA24: 2.417424 | CB24: 1.371477 | CC24: 2.593009 | CD24: 6.173661 | CE24: 3.48550826 | CF24: 2.706281118 | CG24: 5.105967519 | CH24: n.d. | CI24: n.d. | CJ24: 37.85249006 | CK24: 28.30732529 | CL24: 15.69760775 | CM24: 14.23158756 | CN24: 99.501 | CO24: 99.08741 | CP24: 98.57964 | CQ24: 101.2661 | CR24: 98.93509 | CS24: n.d. | CT24: n.d. | CU24: n.d. | CV24: n.d. | CW24: 99.85905 | CX24: 99.66337 | CY24: 100 | CZ24: 99.94421 | DA24: 99.61349 | DB24: 99.13174 | DC24: 101.7584 | DD24: 97.47884 | DE24: n.d. | DF24: n.d. | DG24: n.d. | DH24: n.d. | DI24: 101.2661 | DJ24: 98.93509 | DK24: 3043.6 | DL24: 525.68 | DM24: 395.43 | DN24: 6.9 | DO24: n.d. | DP24: n.d. | DQ24: n.d. | DR24: n.d. | DS24: n.d. | DT24: n.d. | DU24: n.d. | DV24: n.d. | DW24: n.d. | DX24: 0.1 | DY24: n.d. | DZ24: n.d. | EA24: n.d. | EB24: n.d. | EC24: n.d. | ED24: n.d. | EE24: n.d. | EJ24: Región CAPARD | EK24: =+'Cuadro Comparativo AL'!G11 -> 5.178170099 | EM24: Ecuador | EN24: 1.94067847
B25: septiembre | C25: 3.391107762 | D25: 3.914590747 | E25: 4.189940919 | F25: 2.642395772 | G25: 7.017539319 | H25: 2.611534276 | I25: n.d. | J25: 386.5483931 | K25: n.d. | L25: 15.70680034 | M25: 15.33180083 | N25: 20.24713526 | O25: 30.01393331 | P25: n.d | Q25: n.d | R25: n.d | S25: n.d | T25: n.d | U25: n.d | V25: n.d | W25: n.d | X25: n.d | Y25: n.d | Z25: n.d | AA25: n.d | AB25: n.d | AE25: 21.89 | AF25: 20.5 | AG25: -1.39 | AH25: 348.74 | AI25: 48.62027087 | AJ25: 70.24793388 | AK25: 87.05808711 | AL25: 135.22 | AM25: 323 | AN25: 108.85 | AO25: 291.5 | AP25: n.d. | AQ25: n.d. | AR25: n.d. | AS25: n.d. | AT25: n.d. | AU25: n.d. | AV25: n.d. | AW25: n.d. | AX25: n.d. | AY25: n.d. | AZ25: n.d. | BA25: n.d. | BB25: n.d. | BC25: 1.7265 | BD25: 134.2995 | BE25: 1.137 | BF25: n.d. | BG25: n.d. | BH25: 5.3869 | BI25: 25.8335 | BJ25: n.d. | BK25: 3.0502 | BL25: n.d. | BM25: =IF('Tipos de Cambio'!$M$9="EuroZona",LOOKUP(1,$BB$2:$BL$2,BB25:BL25),IF('Tipos de Cambio'!$M$9="Reino Unido",LOOKUP(2,$BB$2:$BL$2,BB25:BL25),IF('Tipos de Cambio'!$M$9="Japón",LOOKUP(3,$BB$2:$BL$2,BB25:BL25),IF('Tipos de Cambio'!$M$9="Canadá",LOOKUP(4,$BB$2:$BL$2,BB25:BL25),IF('Tipos de Cambio'!$M$9="Rusia",LOOKUP(5,$BB$2:$BL$2,BB25:BL25),IF('Tipos de Cambio'!$M$9="Brasil",LOOKUP(6,$BB$2:$BL$2,BB25:BL25),IF('Tipos de Cambio'!$M$9="China",LOOKUP(7,$BB$2:$BL$2,BB25:BL25),IF('Tipos de Cambio'!$M$9="India",LOOKUP(8,$BB$2:$BL$2,BB25:BL25),IF('Tipos de Cambio'!$M$9="Sudáfrica",LOOKUP(9,$BB$2:$BL$2,BB25:BL25),IF('Tipos de Cambio'!$M$9="México",LOOKUP(10,$BB$2:$BL$2,BB25:BL25),IF('Tipos de Cambio'!$M$9="Colombia",LOOKUP(11,$BB$2:$BL$2,BB25:BL25)))))))))))) -> n.d. | BN25: 5.7619 | BO25: 5.48 | BP25: 5.61905 | BQ25: n.d. | BR25: 6.75 | BS25: 7.65 | BT25: n.d. | BU25: n.d. | BV25: 27.87799 | BW25: 63.5015 | BX25: 20.08333 | BY25: n.d. | BZ25: n.d. | CA25: 2.440242 | CB25: 1.40165 | CC25: 2.631315 | CD25: 6.224445 | CE25: 3.081806191 | CF25: 2.333239436 | CG25: 4.320316233 | CH25: n.d. | CI25: n.d. | CJ25: 35.3321687 | CK25: 28.29290305 | CL25: 16.07732092 | CM25: 15.20145117 | CN25: 99.3042 | CO25: 99.32066 | CP25: 98.59084 | CQ25: 101.0949 | CR25: 99.32818 | CS25: n.d. | CT25: n.d. | CU25: n.d. | CV25: n.d. | CW25: 99.67441 | CX25: 99.83701 | CY25: 100 | CZ25: 100.0509 | DA25: 99.44821 | DB25: 99.13181 | DC25: 101.5998 | DD25: 97.85793 | DE25: n.d. | DF25: n.d. | DG25: n.d. | DH25: n.d. | DI25: 101.0949 | DJ25: 99.32818 | DK25: 3016.77 | DL25: 526.88 | DM25: 387.86 | DN25: 6.9 | DO25: n.d. | DP25: n.d. | DQ25: n.d. | DR25: n.d. | DS25: n.d. | DT25: n.d. | DU25: n.d. | DV25: n.d. | DW25: n.d. | DX25: 0 | DY25: n.d. | DZ25: n.d. | EA25: n.d. | EB25: n.d. | EC25: n.d. | ED25: n.d. | EE25: n.d. | EJ25: República Dominicana | EK25: ='Cuadro Comparativo AL'!G15 -> 8.495698987 | EM25: Panamá | EN25: 2.624350178
B26: octubre | C26: 2.921348315 | D26: 3.655660377 | E26: 5.054390922 | F26: 2.718503362 | G26: 6.794418073 | H26: 2.583423036 | I26: n.d. | J26: 411.5205469 | K26: n.d. | L26: 14.35898188 | M26: 16.59092305 | N26: 19.92164411 | O26: 29.25088229 | P26: n.d | Q26: n.d | R26: n.d | S26: n.d | T26: n.d | U26: n.d | V26: n.d | W26: n.d | X26: n.d | Y26: n.d | Z26: n.d | AA26: n.d | AB26: n.d | AE26: 23.23 | AF26: 22.21 | AG26: -1.02 | AH26: 358.69 | AI26: 48.01161698 | AJ26: 67.93914598 | AK26: 79.76884905 | AL26: 146.97 | AM26: 345 | AN26: 109.7 | AO26: 276.6 | AP26: n.d. | AQ26: n.d. | AR26: n.d. | AS26: n.d. | AT26: n.d. | AU26: n.d. | AV26: n.d. | AW26: n.d. | AX26: n.d. | AY26: n.d. | AZ26: n.d. | BA26: n.d. | BB26: n.d. | BC26: 1.7231 | BD26: 130.7723 | BE26: 1.1279 | BF26: n.d. | BG26: n.d. | BH26: 5.3917 | BI26: 25.7973 | BJ26: n.d. | BK26: 3.0624 | BL26: n.d. | BM26: =IF('Tipos de Cambio'!$M$9="EuroZona",LOOKUP(1,$BB$2:$BL$2,BB26:BL26),IF('Tipos de Cambio'!$M$9="Reino Unido",LOOKUP(2,$BB$2:$BL$2,BB26:BL26),IF('Tipos de Cambio'!$M$9="Japón",LOOKUP(3,$BB$2:$BL$2,BB26:BL26),IF('Tipos de Cambio'!$M$9="Canadá",LOOKUP(4,$BB$2:$BL$2,BB26:BL26),IF('Tipos de Cambio'!$M$9="Rusia",LOOKUP(5,$BB$2:$BL$2,BB26:BL26),IF('Tipos de Cambio'!$M$9="Brasil",LOOKUP(6,$BB$2:$BL$2,BB26:BL26),IF('Tipos de Cambio'!$M$9="China",LOOKUP(7,$BB$2:$BL$2,BB26:BL26),IF('Tipos de Cambio'!$M$9="India",LOOKUP(8,$BB$2:$BL$2,BB26:BL26),IF('Tipos de Cambio'!$M$9="Sudáfrica",LOOKUP(9,$BB$2:$BL$2,BB26:BL26),IF('Tipos de Cambio'!$M$9="México",LOOKUP(10,$BB$2:$BL$2,BB26:BL26),IF('Tipos de Cambio'!$M$9="Colombia",LOOKUP(11,$BB$2:$BL$2,BB26:BL26)))))))))))) -> n.d. | BN26: 5.46739 | BO26: 5.26 | BP26: 5.47011 | BQ26: n.d. | BR26: 6.45652 | BS26: 7.53 | BT26: n.d. | BU26: n.d. | BV26: 27.9212 | BW26: 63.64056 | BX26: 20.11261 | BY26: n.d. | BZ26: n.d. | CA26: 2.480585 | CB26: 1.424415 | CC26: 2.680513 | CD26: 6.251044 | CE26: 3.092684537 | CF26: 2.072941413 | CG26: 3.778363136 | CH26: n.d. | CI26: n.d. | CJ26: 33.35166486 | CK26: 27.33589719 | CL26: 16.75837124 | CM26: 15.52621906 | CN26: 98.83592 | CO26: 99.52175 | CP26: 98.6044 | CQ26: 100.9376 | CR26: 99.55795 | CS26: n.d. | CT26: n.d. | CU26: n.d. | CV26: n.d. | CW26: 99.60385 | CX26: 99.90021 | CY26: 100 | CZ26: 99.78163 | DA26: 99.3503 | DB26: 99.10126 | DC26: 101.4159 | DD26: 98.12565 | DE26: n.d. | DF26: n.d. | DG26: n.d. | DH26: n.d. | DI26: 100.9376 | DJ26: 99.55795 | DK26: 3069.1 | DL26: 542.98 | DM26: 392.46 | DN26: 7 | DO26: n.d. | DP26: n.d. | DQ26: n.d. | DR26: n.d. | DS26: n.d. | DT26: n.d. | DU26: n.d. | DV26: n.d. | DW26: n.d. | DX26: 0.1 | DY26: n.d. | DZ26: n.d. | EA26: n.d. | EB26: n.d. | EC26: n.d. | ED26: n.d. | EE26: n.d. | EJ26: Uruguay | EK26: ='Cuadro Comparativo AL'!G29 -> 7.959303111
B27: noviembre | C27: 2.989536622 | D27: 4.127358491 | E27: 5.71057326 | F27: 3.279168497 | G27: 6.956517426 | H27: 3.020496224 | I27: n.d. | J27: 448.3061355 | K27: n.d. | L27: 13.63636681 | M27: 15.36750269 | N27: 19.72069377 | O27: 28.22331756 | P27: n.d | Q27: n.d | R27: n.d | S27: n.d | T27: n.d | U27: n.d | V27: n.d | W27: n.d | X27: n.d | Y27: n.d | Z27: n.d | AA27: n.d | AB27: n.d | AE27: 22.46 | AF27: 21.11 | AG27: -1.35 | AH27: 360.17 | AI27: 47.96209074 | AJ27: 63.46218396 | AK27: 78.19941759 | AL27: 149.55 | AM27: 362 | AN27: 106.49 | AO27: 271.75 | AP27: n.d. | AQ27: n.d. | AR27: n.d. | AS27: n.d. | AT27: n.d. | AU27: n.d. | AV27: n.d. | AW27: n.d. | AX27: n.d. | AY27: n.d. | AZ27: n.d. | BA27: n.d. | BB27: n.d. | BC27: 1.7796 | BD27: 129.6321 | BE27: 1.1302 | BF27: n.d. | BG27: n.d. | BH27: 5.3994 | BI27: 25.8021 | BJ27: n.d. | BK27: 3.0698 | BL27: n.d. | BM27: =IF('Tipos de Cambio'!$M$9="EuroZona",LOOKUP(1,$BB$2:$BL$2,BB27:BL27),IF('Tipos de Cambio'!$M$9="Reino Unido",LOOKUP(2,$BB$2:$BL$2,BB27:BL27),IF('Tipos de Cambio'!$M$9="Japón",LOOKUP(3,$BB$2:$BL$2,BB27:BL27),IF('Tipos de Cambio'!$M$9="Canadá",LOOKUP(4,$BB$2:$BL$2,BB27:BL27),IF('Tipos de Cambio'!$M$9="Rusia",LOOKUP(5,$BB$2:$BL$2,BB27:BL27),IF('Tipos de Cambio'!$M$9="Brasil",LOOKUP(6,$BB$2:$BL$2,BB27:BL27),IF('Tipos de Cambio'!$M$9="China",LOOKUP(7,$BB$2:$BL$2,BB27:BL27),IF('Tipos de Cambio'!$M$9="India",LOOKUP(8,$BB$2:$BL$2,BB27:BL27),IF('Tipos de Cambio'!$M$9="Sudáfrica",LOOKUP(9,$BB$2:$BL$2,BB27:BL27),IF('Tipos de Cambio'!$M$9="México",LOOKUP(10,$BB$2:$BL$2,BB27:BL27),IF('Tipos de Cambio'!$M$9="Colombia",LOOKUP(11,$BB$2:$BL$2,BB27:BL27)))))))))))) -> n.d. | BN27: 5.05357 | BO27: 4.8 | BP27: 5.07143 | BQ27: n.d. | BR27: 6.22693 | BS27: 7.42 | BT27: n.d. | BU27: n.d. | BV27: 27.96607 | BW27: 63.61602 | BX27: 20.13335 | BY27: n.d. | BZ27: n.d. | CA27: 2.55865 | CB27: 1.447612 | CC27: 2.743272 | CD27: 6.326346 | CE27: 3.153921599 | CF27: 2.571874135 | CG27: 3.232278587 | CH27: n.d. | CI27: n.d. | CJ27: 32.38151165 | CK27: 26.44810089 | CL27: 18.02364627 | CM27: 14.54380527 | CN27: 98.25553 | CO27: 99.5988 | CP27: 98.5863 | CQ27: 100.8154 | CR27: 99.49663 | CS27: n.d. | CT27: n.d. | CU27: n.d. | CV27: n.d. | CW27: 99.61617 | CX27: 99.89663 | CY27: 100 | CZ27: 99.30984 | DA27: 99.29983 | DB27: 99.11889 | DC27: 101.2115 | DD27: 98.23953 | DE27: n.d. | DF27: n.d. | DG27: n.d. | DH27: n.d. | DI27: 100.8154 | DJ27: 99.49663 | DK27: 2894.68 | DL27: 523.9 | DM27: 375.22 | DN27: 7 | DO27: n.d. | DP27: n.d. | DQ27: n.d. | DR27: n.d. | DS27: n.d. | DT27: n.d. | DU27: n.d. | DV27: n.d. | DW27: n.d. | DX27: 0 | DY27: n.d. | DZ27: n.d. | EA27: n.d. | EB27: n.d. | EC27: n.d. | ED27: n.d. | EE27: n.d.
B28: diciembre | C28: 3.064275037 | D28: 4.127358491 | E28: 5.748819713 | F28: 3.017872839 | G28: 7.317074842 | H28: 2.699784017 | I28: n.d. | J28: 472.700041 | K28: n.d. | L28: 13.06532384 | M28: 16.37170949 | N28: 18.79462315 | O28: 26.8237652 | P28: n.d | Q28: n.d | R28: n.d | S28: n.d | T28: n.d | U28: n.d | V28: n.d | W28: n.d | X28: n.d | Y28: n.d | Z28: n.d | AA28: n.d | AB28: n.d | AE28: 19.5 | AF28: 18.41 | AG28: -1.09 | AH28: 361.73 | AI28: 47.34893753 | AJ28: 61.83378541 | AK28: 75.35085412 | AL28: 160.94 | AM28: 376 | AN28: 106.91 | AO28: 268.4 | AP28: n.d. | AQ28: n.d. | AR28: n.d. | AS28: n.d. | AT28: n.d. | AU28: n.d. | AV28: n.d. | AW28: n.d. | AX28: n.d. | AY28: n.d. | AZ28: n.d. | BA28: n.d. | BB28: n.d. | BC28: 1.8272 | BD28: 128.0395 | BE28: 1.1467 | BF28: n.d. | BG28: n.d. | BH28: 5.4232 | BI28: 25.818 | BJ28: n.d. | BK28: 3.07 | BL28: n.d. | BM28: =IF('Tipos de Cambio'!$M$9="EuroZona",LOOKUP(1,$BB$2:$BL$2,BB28:BL28),IF('Tipos de Cambio'!$M$9="Reino Unido",LOOKUP(2,$BB$2:$BL$2,BB28:BL28),IF('Tipos de Cambio'!$M$9="Japón",LOOKUP(3,$BB$2:$BL$2,BB28:BL28),IF('Tipos de Cambio'!$M$9="Canadá",LOOKUP(4,$BB$2:$BL$2,BB28:BL28),IF('Tipos de Cambio'!$M$9="Rusia",LOOKUP(5,$BB$2:$BL$2,BB28:BL28),IF('Tipos de Cambio'!$M$9="Brasil",LOOKUP(6,$BB$2:$BL$2,BB28:BL28),IF('Tipos de Cambio'!$M$9="China",LOOKUP(7,$BB$2:$BL$2,BB28:BL28),IF('Tipos de Cambio'!$M$9="India",LOOKUP(8,$BB$2:$BL$2,BB28:BL28),IF('Tipos de Cambio'!$M$9="Sudáfrica",LOOKUP(9,$BB$2:$BL$2,BB28:BL28),IF('Tipos de Cambio'!$M$9="México",LOOKUP(10,$BB$2:$BL$2,BB28:BL28),IF('Tipos de Cambio'!$M$9="Colombia",LOOKUP(11,$BB$2:$BL$2,BB28:BL28)))))))))))) -> n.d. | BN28: 4.55469 | BO28: 4.26 | BP28: 4.60625 | BQ28: n.d. | BR28: 6.0625 | BS28: 7.09 | BT28: n.d. | BU28: n.d. | BV28: 28.02175 | BW28: 63.61602 | BX28: 20.18172 | BY28: n.d. | BZ28: n.d. | CA28: 2.59061 | CB28: 1.478785 | CC28: 2.792468 | CD28: 6.3644 | CE28: 3.068657388 | CF28: 2.221340241 | CG28: 2.97210959 | CH28: n.d. | CI28: n.d. | CJ28: 30.00952008 | CK28: 26.47176293 | CL28: 18.58112082 | CM28: 13.05844189 | CN28: 97.91405 | CO28: 99.58175 | CP28: 98.57104 | CQ28: 100.717 | CR28: 99.28298 | CS28: n.d. | CT28: n.d. | CU28: n.d. | CV28: n.d. | CW28: 99.6794 | CX28: 99.88521 | CY28: 100 | CZ28: 98.99823 | DA28: 99.31349 | DB28: 99.16875 | DC28: 100.9853 | DD28: 98.162 | DE28: n.d. | DF28: n.d. | DG28: n.d. | DH28: n.d. | DI28: 100.717 | DJ28: 99.28298 | DK28: 3168.83 | DL28: 586.34 | DM28: 417.09 | DN28: 7.3 | DO28: n.d. | DP28: n.d. | DQ28: n.d. | DR28: n.d. | DS28: n.d. | DT28: n.d. | DU28: n.d. | DV28: n.d. | DW28: n.d. | DX28: 0.3 | DY28: n.d. | DZ28: n.d. | EA28: n.d. | EB28: n.d. | EC28: n.d. | ED28: n.d. | EE28: n.d.
A29: 1992 | B29: enero | C29: 2.600297177 | D29: 3.86869871 | E29: 5.625 | F29: 2.622377622 | G29: 6.968636996 | H29: 1.824034335 | I29: n.d. | J29: 497.3168153 | K29: n.d. | L29: 12.87128532 | M29: 16.19258695 | N29: 17.94740527 | O29: 27.43365434 | P29: n.d | Q29: n.d | R29: n.d | S29: n.d | T29: n.d | U29: n.d | V29: n.d | W29: n.d | X29: n.d | Y29: n.d | Z29: n.d | AA29: n.d | AB29: n.d | AE29: 18.79 | AF29: 18.16 | AG29: -0.63 | AH29: 354.45 | AI29: 47.12475328 | AJ29: 59.62025202 | AK29: 73.40947646 | AL29: 170.12 | AM29: 383 | AN29: 109.31 | AO29: 277.25 | AP29: n.d. | AQ29: n.d. | AR29: n.d. | AS29: n.d. | AT29: n.d. | AU29: n.d. | AV29: n.d. | AW29: n.d. | AX29: n.d. | AY29: n.d. | AZ29: n.d. | BA29: n.d. | BB29: n.d. | BC29: 1.809 | BD29: 125.4614 | BE29: 1.1571 | BF29: n.d. | BG29: n.d. | BH29: 5.4618 | BI29: 25.8629 | BJ29: n.d. | BK29: 3.0685 | BL29: n.d. | BM29: =IF('Tipos de Cambio'!$M$9="EuroZona",LOOKUP(1,$BB$2:$BL$2,BB29:BL29),IF('Tipos de Cambio'!$M$9="Reino Unido",LOOKUP(2,$BB$2:$BL$2,BB29:BL29),IF('Tipos de Cambio'!$M$9="Japón",LOOKUP(3,$BB$2:$BL$2,BB29:BL29),IF('Tipos de Cambio'!$M$9="Canadá",LOOKUP(4,$BB$2:$BL$2,BB29:BL29),IF('Tipos de Cambio'!$M$9="Rusia",LOOKUP(5,$BB$2:$BL$2,BB29:BL29),IF('Tipos de Cambio'!$M$9="Brasil",LOOKUP(6,$BB$2:$BL$2,BB29:BL29),IF('Tipos de Cambio'!$M$9="China",LOOKUP(7,$BB$2:$BL$2,BB29:BL29),IF('Tipos de Cambio'!$M$9="India",LOOKUP(8,$BB$2:$BL$2,BB29:BL29),IF('Tipos de Cambio'!$M$9="Sudáfrica",LOOKUP(9,$BB$2:$BL$2,BB29:BL29),IF('Tipos de Cambio'!$M$9="México",LOOKUP(10,$BB$2:$BL$2,BB29:BL29),IF('Tipos de Cambio'!$M$9="Colombia",LOOKUP(11,$BB$2:$BL$2,BB29:BL29)))))))))))) -> n.d. | BN29: 4.20739 | BO29: 4.01 | BP29: 4.18146 | BQ29: n.d. | BR29: 5.25639 | BS29: 7.03 | BT29: n.d. | BU29: n.d. | BV29: 28.09653 | BW29: 63.6242 | BX29: 20.2929 | BY29: n.d. | BZ29: n.d. | CA29: 2.59747 | CB29: 1.512678 | CC29: 2.831384 | CD29: 6.395913 | CE29: 2.843930983 | CF29: 2.019931859 | CG29: 3.236818074 | CH29: n.d. | CI29: n.d. | CJ29: 27.92633328 | CK29: 26.6522935 | CL29: 19.03748689 | CM29: 12.85779372 | CN29: 97.86613 | CO29: 99.51601 | CP29: 98.66062 | CQ29: 100.6289 | CR29: 99.24412 | CS29: n.d. | CT29: n.d. | CU29: n.d. | CV29: n.d. | CW29: 99.78863 | CX29: 99.89952 | CY29: 100 | CZ29: 99.11706 | DA29: 99.35541 | DB29: 99.26062 | DC29: 100.7313 | DD29: 98.13721 | DE29: n.d. | DF29: n.d. | DG29: n.d. | DH29: n.d. | DI29: 100.6289 | DJ29: 99.24412 | DK29: 3223.39 | DL29: 620.21 | DM29: 408.79 | DN29: 7.3 | DO29: n.d. | DP29: n.d. | DQ29: n.d. | DR29: n.d. | DS29: n.d. | DT29: n.d. | DU29: n.d. | DV29: n.d. | DW29: n.d. | DX29: 0 | DY29: n.d. | DZ29: n.d. | EA29: n.d. | EB29: n.d. | EC29: n.d. | ED29: n.d. | EE29: n.d.
B30: febrero | C30: 2.818991098 | D30: 3.846153846 | E30: 5.754276827 | F30: 2.789886661 | G30: 6.932404316 | H30: 1.935483871 | I30: n.d. | J30: 515.1265226 | K30: n.d. | L30: 13.36634003 | M30: 15.76675093 | N30: 17.29709251 | O30: 27.35062888 | P30: n.d | Q30: n.d | R30: n.d | S30: n.d | T30: n.d | U30: n.d | V30: n.d | W30: n.d | X30: n.d | Y30: n.d | Z30: n.d | AA30: n.d | AB30: n.d | AE30: 19.01 | AF30: 18.05 | AG30: -0.96 | AH30: 353.91 | AI30: 47.57680534 | AJ30: 56.29995192 | AK30: 68.45170596 | AL30: 177.1 | AM30: 382 | AN30: 113.62 | AO30: 278.25 | AP30: n.d. | AQ30: n.d. | AR30: n.d. | AS30: n.d. | AT30: n.d. | AU30: n.d. | AV30: n.d. | AW30: n.d. | AX30: n.d. | AY30: n.d. | AZ30: n.d. | BA30: n.d. | BB30: n.d. | BC30: 1.7778 | BD30: 127.6989 | BE30: 1.1825 | BF30: n.d. | BG30: n.d. | BH30: 5.4776 | BI30: 25.9921 | BJ30: n.d. | BK30: 3.0636 | BL30: n.d. | BM30: =IF('Tipos de Cambio'!$M$9="EuroZona",LOOKUP(1,$BB$2:$BL$2,BB30:BL30),IF('Tipos de Cambio'!$M$9="Reino Unido",LOOKUP(2,$BB$2:$BL$2,BB30:BL30),IF('Tipos de Cambio'!$M$9="Japón",LOOKUP(3,$BB$2:$BL$2,BB30:BL30),IF('Tipos de Cambio'!$M$9="Canadá",LOOKUP(4,$BB$2:$BL$2,BB30:BL30),IF('Tipos de Cambio'!$M$9="Rusia",LOOKUP(5,$BB$2:$BL$2,BB30:BL30),IF('Tipos de Cambio'!$M$9="Brasil",LOOKUP(6,$BB$2:$BL$2,BB30:BL30),IF('Tipos de Cambio'!$M$9="China",LOOKUP(7,$BB$2:$BL$2,BB30:BL30),IF('Tipos de Cambio'!$M$9="India",LOOKUP(8,$BB$2:$BL$2,BB30:BL30),IF('Tipos de Cambio'!$M$9="Sudáfrica",LOOKUP(9,$BB$2:$BL$2,BB30:BL30),IF('Tipos de Cambio'!$M$9="México",LOOKUP(10,$BB$2:$BL$2,BB30:BL30),IF('Tipos de Cambio'!$M$9="Colombia",LOOKUP(11,$BB$2:$BL$2,BB30:BL30)))))))))))) -> n.d. | BN30: 4.27734 | BO30: 4.08 | BP30: 4.175 | BQ30: n.d. | BR30: 5.24922 | BS30: 7.34 | BT30: n.d. | BU30: n.d. | BV30: 28.25275 | BW30: 63.5424 | BX30: 20.41343 | BY30: n.d. | BZ30: n.d. | CA30: 2.633098 | CB30: 1.547107 | CC30: 2.877242 | CD30: 6.525148 | CE30: 2.8899989 | CF30: 1.648778821 | CG30: 3.506249135 | CH30: n.d. | CI30: n.d. | CJ30: 26.76921447 | CK30: 26.8745505 | CL30: 19.30164856 | CM30: 11.79035082 | CN30: 98.10704 | CO30: 99.40621 | CP30: 98.81056 | CQ30: 100.5413 | CR30: 99.48907 | CS30: n.d. | CT30: n.d. | CU30: n.d. | CV30: n.d. | CW30: 99.98291 | CX30: 99.91512 | CY30: 100 | CZ30: 99.5908 | DA30: 99.31265 | DB30: 99.38006 | DC30: 100.4616 | DD30: 98.2956 | DE30: n.d. | DF30: n.d. | DG30: n.d. | DH30: n.d. | DI30: 100.5413 | DJ30: 99.48907 | DK30: 3267.67 | DL30: 633.47 | DM30: 412.7 | DN30: 7.4 | DO30: n.d. | DP30: n.d. | DQ30: n.d. | DR30: n.d. | DS30: n.d. | DT30: n.d. | DU30: n.d. | DV30: n.d. | DW30: n.d. | DX30: 0.1 | DY30: n.d. | DZ30: n.d. | EA30: n.d. | EB30: n.d. | EC30: n.d. | ED30: n.d. | EE30: n.d.
B31: marzo | C31: 3.185185185 | D31: 4.312354312 | E31: 6.220839813 | F31: 2.929659173 | G31: 7.081173412 | H31: 2.034261242 | I31: n.d. | J31: 567.2141245 | K31: n.d. | L31: 13.93033147 | M31: 15.63170469 | N31: 16.82487176 | O31: 27.08531696 | P31: n.d | Q31: n.d | R31: n.d | S31: n.d | T31: n.d | U31: n.d | V31: n.d | W31: n.d | X31: n.d | Y31: n.d | Z31: n.d | AA31: n.d | AB31: n.d | AE31: 18.92 | AF31: 17.63 | AG31: -1.29 | AH31: 344.34 | AI31: 47.08367064 | AJ31: 55.32472716 | AK31: 70.37040397 | AL31: 169.39 | AM31: 396 | AN31: 117 | AO31: 277.2 | AP31: n.d. | AQ31: n.d. | AR31: n.d. | AS31: n.d. | AT31: n.d. | AU31: n.d. | AV31: n.d. | AW31: n.d. | AX31: n.d. | AY31: n.d. | AZ31: n.d. | BA31: n.d. | BB31: n.d. | BC31: 1.7238 | BD31: 132.8627 | BE31: 1.1928 | BF31: n.d. | BG31: n.d. | BH31: 5.4871 | BI31: 28.3777 | BJ31: n.d. | BK31: 3.0672 | BL31: n.d. | BM31: =IF('Tipos de Cambio'!$M$9="EuroZona",LOOKUP(1,$BB$2:$BL$2,BB31:BL31),IF('Tipos de Cambio'!$M$9="Reino Unido",LOOKUP(2,$BB$2:$BL$2,BB31:BL31),IF('Tipos de Cambio'!$M$9="Japón",LOOKUP(3,$BB$2:$BL$2,BB31:BL31),IF('Tipos de Cambio'!$M$9="Canadá",LOOKUP(4,$BB$2:$BL$2,BB31:BL31),IF('Tipos de Cambio'!$M$9="Rusia",LOOKUP(5,$BB$2:$BL$2,BB31:BL31),IF('Tipos de Cambio'!$M$9="Brasil",LOOKUP(6,$BB$2:$BL$2,BB31:BL31),IF('Tipos de Cambio'!$M$9="China",LOOKUP(7,$BB$2:$BL$2,BB31:BL31),IF('Tipos de Cambio'!$M$9="India",LOOKUP(8,$BB$2:$BL$2,BB31:BL31),IF('Tipos de Cambio'!$M$9="Sudáfrica",LOOKUP(9,$BB$2:$BL$2,BB31:BL31),IF('Tipos de Cambio'!$M$9="México",LOOKUP(10,$BB$2:$BL$2,BB31:BL31),IF('Tipos de Cambio'!$M$9="Colombia",LOOKUP(11,$BB$2:$BL$2,BB31:BL31)))))))))))) -> n.d. | BN31: 4.56818 | BO31: 4.33 | BP31: 4.38601 | BQ31: n.d. | BR31: 5.00781 | BS31: 7.54 | BT31: n.d. | BU31: n.d. | BV31: 28.28516 | BW31: 63.73055 | BX31: 20.48919 | BY31: n.d. | BZ31: n.d. | CA31: 2.668266 | CB31: 1.577881 | CC31: 2.916583 | CD31: 6.534084 | CE31: 2.46846717 | CF31: 1.763334347 | CG31: 3.498739175 | CH31: n.d. | CI31: n.d. | CJ31: 24.6563183 | CK31: 26.90061678 | CL31: 19.24102478 | CM31: 9.348105235 | CN31: 98.53928 | CO31: 99.16455 | CP31: 98.95049 | CQ31: 100.4449 | CR31: 99.91663 | CS31: n.d. | CT31: n.d. | CU31: n.d. | CV31: n.d. | CW31: 100.3163 | CX31: 99.87933 | CY31: 100 | CZ31: 99.98391 | DA31: 99.21133 | DB31: 99.41386 | DC31: 100.1878 | DD31: 98.55531 | DE31: n.d. | DF31: n.d. | DG31: n.d. | DH31: n.d. | DI31: 100.4449 | DJ31: 99.91663 | DK31: 3235.47 | DL31: 603.77 | DM31: 403.69 | DN31: 7.4 | DO31: n.d. | DP31: n.d. | DQ31: n.d. | DR31: n.d. | DS31: n.d. | DT31: n.d. | DU31: n.d. | DV31: n.d. | DW31: n.d. | DX31: 0 | DY31: n.d. | DZ31: n.d. | EA31: n.d. | EB31: n.d. | EC31: n.d. | ED31: n.d. | EE31: n.d.
B32: abril | C32: 3.180473373 | D32: 4.181184669 | E32: 6.201550388 | F32: 2.834008097 | G32: 4.674452852 | H32: 2.446808511 | I32: n.d. | J32: 662.1635419 | K32: n.d. | L32: 14.35644944 | M32: 15.40080243 | N32: 16.64433489 | O32: 27.15195307 | P32: n.d | Q32: n.d | R32: n.d | S32: n.d | T32: n.d | U32: n.d | V32: n.d | W32: n.d | X32: n.d | Y32: n.d | Z32: n.d | AA32: n.d | AB32: n.d | AE32: 20.23 | AF32: 18.92 | AG32: -1.31 | AH32: 338.62 | AI32: 47.09908609 | AJ32: 58.23225771 | AK32: 65.92065753 | AL32: 159.83 | AM32: 402 | AN32: 108.52 | AO32: 278 | AP32: n.d. | AQ32: n.d. | AR32: n.d. | AS32: n.d. | AT32: n.d. | AU32: n.d. | AV32: n.d. | AW32: n.d. | AX32: n.d. | AY32: n.d. | AZ32: n.d. | BA32: n.d. | BB32: n.d. | BC32: 1.7566 | BD32: 133.5395 | BE32: 1.1874 | BF32: n.d. | BG32: n.d. | BH32: 5.5098 | BI32: 28.8962 | BJ32: n.d. | BK32: 3.0675 | BL32: n.d. | BM32: =IF('Tipos de Cambio'!$M$9="EuroZona",LOOKUP(1,$BB$2:$BL$2,BB32:BL32),IF('Tipos de Cambio'!$M$9="Reino Unido",LOOKUP(2,$BB$2:$BL$2,BB32:BL32),IF('Tipos de Cambio'!$M$9="Japón",LOOKUP(3,$BB$2:$BL$2,BB32:BL32),IF('Tipos de Cambio'!$M$9="Canadá",LOOKUP(4,$BB$2:$BL$2,BB32:BL32),IF('Tipos de Cambio'!$M$9="Rusia",LOOKUP(5,$BB$2:$BL$2,BB32:BL32),IF('Tipos de Cambio'!$M$9="Brasil",LOOKUP(6,$BB$2:$BL$2,BB32:BL32),IF('Tipos de Cambio'!$M$9="China",LOOKUP(7,$BB$2:$BL$2,BB32:BL32),IF('Tipos de Cambio'!$M$9="India",LOOKUP(8,$BB$2:$BL$2,BB32:BL32),IF('Tipos de Cambio'!$M$9="Sudáfrica",LOOKUP(9,$BB$2:$BL$2,BB32:BL32),IF('Tipos de Cambio'!$M$9="México",LOOKUP(10,$BB$2:$BL$2,BB32:BL32),IF('Tipos de Cambio'!$M$9="Colombia",LOOKUP(11,$BB$2:$BL$2,BB32:BL32)))))))))))) -> n.d. | BN32: 4.3125 | BO32: 4 | BP32: 4.17031 | BQ32: n.d. | BR32: 4.74453 | BS32: 7.48 | BT32: n.d. | BU32: n.d. | BV32: 28.25026 | BW32: 63.61602 | BX32: 20.53766 | BY32: n.d. | BZ32: n.d. | CA32: 2.698979 | CB32: 1.622136 | CC32: 2.947616 | CD32: 6.57852 | CE32: 2.019571688 | CF32: 1.263017617 | CG32: 3.159688195 | CH32: n.d. | CI32: n.d. | CJ32: 22.5405547 | CK32: 28.31395206 | CL32: 19.13477806 | CM32: 9.575451176 | CN32: 98.88267 | CO32: 98.89662 | CP32: 99.07297 | CQ32: 100.3255 | CR32: 100.2184 | CS32: n.d. | CT32: n.d. | CU32: n.d. | CV32: n.d. | CW32: 100.8237 | CX32: 99.73983 | CY32: 100 | CZ32: 100.1571 | DA32: 99.08733 | DB32: 99.38441 | DC32: 99.91887 | DD32: 98.81337 | DE32: n.d. | DF32: n.d. | DG32: n.d. | DH32: n.d. | DI32: 100.3255 | DJ32: 100.2184 | DK32: 3359.12 | DL32: 578.68 | DM32: 414.95 | DN32: 7.4 | DO32: n.d. | DP32: n.d. | DQ32: n.d. | DR32: n.d. | DS32: n.d. | DT32: n.d. | DU32: n.d. | DV32: n.d. | DW32: n.d. | DX32: 0 | DY32: n.d. | DZ32: n.d. | EA32: n.d. | EB32: n.d. | EC32: n.d. | ED32: n.d. | EE32: n.d.
B33: mayo | C33: 3.02359882 | D33: 4.046242775 | E33: 6.182380216 | F33: 2.839434996 | G33: 4.311780952 | H33: 2.118644068 | I33: n.d. | J33: 785.8062529 | K33: n.d. | L33: 14.70587703 | M33: 14.55299345 | N33: 16.27681735 | O33: 27.30765421 | P33: n.d | Q33: n.d | R33: n.d | S33: n.d | T33: n.d | U33: n.d | V33: n.d | W33: n.d | X33: n.d | Y33: n.d | Z33: n.d | AA33: n.d | AB33: n.d | AE33: 20.98 | AF33: 19.89 | AG33: -1.09 | AH33: 337.24 | AI33: 46.35581402 | AJ33: 60.58640491 | AK33: 60.85856066 | AL33: 149.55 | AM33: 390 | AN33: 109.64 | AO33: 274 | AP33: n.d. | AQ33: n.d. | AR33: n.d. | AS33: n.d. | AT33: n.d. | AU33: n.d. | AV33: n.d. | AW33: n.d. | AX33: n.d. | AY33: n.d. | AZ33: n.d. | BA33: n.d. | BB33: n.d. | BC33: 1.8095 | BD33: 130.771 | BE33: 1.1991 | BF33: n.d. | BG33: n.d. | BH33: 5.5182 | BI33: 28.5415 | BJ33: n.d. | BK33: 3.0982 | BL33: n.d. | BM33: =IF('Tipos de Cambio'!$M$9="EuroZona",LOOKUP(1,$BB$2:$BL$2,BB33:BL33),IF('Tipos de Cambio'!$M$9="Reino Unido",LOOKUP(2,$BB$2:$BL$2,BB33:BL33),IF('Tipos de Cambio'!$M$9="Japón",LOOKUP(3,$BB$2:$BL$2,BB33:BL33),IF('Tipos de Cambio'!$M$9="Canadá",LOOKUP(4,$BB$2:$BL$2,BB33:BL33),IF('Tipos de Cambio'!$M$9="Rusia",LOOKUP(5,$BB$2:$BL$2,BB33:BL33),IF('Tipos de Cambio'!$M$9="Brasil",LOOKUP(6,$BB$2:$BL$2,BB33:BL33),IF('Tipos de Cambio'!$M$9="China",LOOKUP(7,$BB$2:$BL$2,BB33:BL33),IF('Tipos de Cambio'!$M$9="India",LOOKUP(8,$BB$2:$BL$2,BB33:BL33),IF('Tipos de Cambio'!$M$9="Sudáfrica",LOOKUP(9,$BB$2:$BL$2,BB33:BL33),IF('Tipos de Cambio'!$M$9="México",LOOKUP(10,$BB$2:$BL$2,BB33:BL33),IF('Tipos de Cambio'!$M$9="Colombia",LOOKUP(11,$BB$2:$BL$2,BB33:BL33)))))))))))) -> n.d. | BN33: 4.10896 | BO33: 3.88 | BP33: 3.96012 | BQ33: n.d. | BR33: 4.75 | BS33: 7.39 | BT33: n.d. | BU33: n.d. | BV33: 28.24112 | BW33: 63.45242 | BX33: 20.50066 | BY33: n.d. | BZ33: n.d. | CA33: 2.743234 | CB33: 1.669094 | CC33: 2.993605 | CD33: 6.6182 | CE33: =IFERROR((BV33/BV21-1)*100,"n.d.") -> 1.663192832 | CF33: 0.7664308923 | CG33: 2.591836755 | CH33: n.d. | CI33: n.d. | CJ33: 20.94982708 | CK33: 29.72078571 | CL33: 19.11204854 | CM33: 8.19078209 | CN33: 99.07816 | CO33: 98.79111 | CP33: 99.06489 | CQ33: 100.1694 | CR33: 100.1644 | CS33: n.d. | CT33: n.d. | CU33: n.d. | CV33: n.d. | CW33: 101.4687 | CX33: 99.5246 | CY33: 100 | CZ33: 100.2719 | DA33: 98.9695 | DB33: 99.35547 | DC33: 99.66264 | DD33: 99.00475 | DE33: n.d. | DF33: n.d. | DG33: n.d. | DH33: n.d. | DI33: 100.1694 | DJ33: 100.1644 | DK33: 3396.88 | DL33: 585.31 | DM33: 415.35 | DN33: 7.6 | DO33: n.d. | DP33: n.d. | DQ33: n.d. | DR33: n.d. | DS33: n.d. | DT33: n.d. | DU33: n.d. | DV33: n.d. | DW33: n.d. | DX33: 0.2 | DY33: n.d. | DZ33: n.d. | EA33: n.d. | EB33: n.d. | EC33: n.d. | ED33: n.d. | EE33: n.d.
B34: junio | C34: 3.088235294 | D34: 3.917050691 | E34: 5.837173579 | F34: 2.530553559 | G34: 3.795377449 | H34: 2.337938363 | I34: n.d. | J34: 857.6760661 | K34: n.d. | L34: 12.91866187 | M34: 15.08265879 | N34: 15.84810752 | O34: 28.13725202 | P34: n.d | Q34: n.d | R34: n.d | S34: n.d | T34: n.d | U34: n.d | V34: n.d | W34: n.d | X34: n.d | Y34: n.d | Z34: n.d | AA34: n.d | AB34: n.d | AE34: 22.38 | AF34: 21.16 | AG34: -1.22 | AH34: 340.81 | AI34: 46.04849733 | AJ34: 63.88856129 | AK34: 59.08954831 | AL34: 148.81 | AM34: 404 | AN34: 110.9 | AO34: 268.8 | AP34: n.d. | AQ34: n.d. | AR34: n.d. | AS34: n.d. | AT34: n.d. | AU34: n.d. | AV34: n.d. | AW34: n.d. | AX34: n.d. | AY34: n.d. | AZ34: n.d. | BA34: n.d. | BB34: n.d. | BC34: 1.8551 | BD34: 126.8355 | BE34: 1.196 | BF34: n.d. | BG34: n.d. | BH34: 5.4893 | BI34: 28.5186 | BJ34: n.d. | BK34: 3.1185 | BL34: n.d. | BM34: =IF('Tipos de Cambio'!$M$9="EuroZona",LOOKUP(1,$BB$2:$BL$2,BB34:BL34),IF('Tipos de Cambio'!$M$9="Reino Unido",LOOKUP(2,$BB$2:$BL$2,BB34:BL34),IF('Tipos de Cambio'!$M$9="Japón",LOOKUP(3,$BB$2:$BL$2,BB34:BL34),IF('Tipos de Cambio'!$M$9="Canadá",LOOKUP(4,$BB$2:$BL$2,BB34:BL34),IF('Tipos de Cambio'!$M$9="Rusia",LOOKUP(5,$BB$2:$BL$2,BB34:BL34),IF('Tipos de Cambio'!$M$9="Brasil",LOOKUP(6,$BB$2:$BL$2,BB34:BL34),IF('Tipos de Cambio'!$M$9="China",LOOKUP(7,$BB$2:$BL$2,BB34:BL34),IF('Tipos de Cambio'!$M$9="India",LOOKUP(8,$BB$2:$BL$2,BB34:BL34),IF('Tipos de Cambio'!$M$9="Sudáfrica",LOOKUP(9,$BB$2:$BL$2,BB34:BL34),IF('Tipos de Cambio'!$M$9="México",LOOKUP(10,$BB$2:$BL$2,BB34:BL34),IF('Tipos de Cambio'!$M$9="Colombia",LOOKUP(11,$BB$2:$BL$2,BB34:BL34)))))))))))) -> n.d. | BN34: 4.13033 | BO34: 3.9 | BP34: 3.99432 | BQ34: n.d. | BR34: 4.62216 | BS34: 7.26 | BT34: n.d. | BU34: n.d. | BV34: 28.19791 | BW34: 63.52604 | BX34: 20.50475 | BY34: n.d. | BZ34: n.d. | CA34: 2.772554 | CB34: 1.703734 | CC34: 3.044239 | CD34: 6.589136 | CE34: 1.238104539 | CF34: 0.6610482268 | CG34: 2.408182366 | CH34: n.d. | CI34: n.d. | CJ34: 19.59891468 | CK34: 29.65755624 | CL34: 19.70644339 | CM34: 6.347228073 | CN34: 99.08393 | CO34: 98.90379 | CP34: 98.88119 | CQ34: 99.99033 | CR34: 99.67335 | CS34: n.d. | CT34: n.d. | CU34: n.d. | CV34: n.d. | CW34: 102.1567 | CX34: 99.2606 | CY34: 100 | CZ34: 100.1988 | DA34: 98.8316 | DB34: 99.24587 | DC34: 99.43356 | DD34: 98.91625 | DE34: n.d. | DF34: n.d. | DG34: n.d. | DH34: n.d. | DI34: 99.99033 | DJ34: 99.67335 | DK34: 3318.52 | DL34: 563.6 | DM34: 408.14 | DN34: 7.8 | DO34: n.d. | DP34: n.d. | DQ34: n.d. | DR34: n.d. | DS34: n.d. | DT34: n.d. | DU34: n.d. | DV34: n.d. | DW34: n.d. | DX34: 0.2 | DY34: n.d. | DZ34: n.d. | EA34: n.d. | EB34: n.d. | EC34: n.d. | ED34: n.d. | EE34: n.d.
B35: julio | C35: 3.15712188 | D35: 3.318077803 | E35: 5.015197568 | F35: 2.208518572 | G35: 3.64237947 | H35: 1.595744681 | I35: n.d. | J35: 937.938836 | K35: n.d. | L35: 13.08409664 | M35: 14.69387834 | N35: 15.55848582 | O35: 28.36647302 | P35: n.d | Q35: n.d | R35: n.d | S35: n.d | T35: n.d | U35: n.d | V35: n.d | W35: n.d | X35: n.d | Y35: n.d | Z35: n.d | AA35: n.d | AB35: n.d | AE35: 21.78 | AF35: 20.24 | AG35: -1.54 | AH35: 352.72 | AI35: 46.49268608 | AJ35: 65.29016338 | AK35: 58.20050621 | AL35: 136.32 | AM35: 382 | AN35: 102.75 | AO35: 278.5 | AP35: n.d. | AQ35: n.d. | AR35: n.d. | AS35: n.d. | AT35: n.d. | AU35: n.d. | AV35: n.d. | AW35: n.d. | AX35: n.d. | AY35: n.d. | AZ35: n.d. | BA35: n.d. | BB35: n.d. | BC35: 1.9177 | BD35: 125.8817 | BE35: 1.1924 | BF35: n.d. | BG35: n.d. | BH35: 5.4564 | BI35: 28.5639 | BJ35: n.d. | BK35: 3.1165 | BL35: n.d. | BM35: =IF('Tipos de Cambio'!$M$9="EuroZona",LOOKUP(1,$BB$2:$BL$2,BB35:BL35),IF('Tipos de Cambio'!$M$9="Reino Unido",LOOKUP(2,$BB$2:$BL$2,BB35:BL35),IF('Tipos de Cambio'!$M$9="Japón",LOOKUP(3,$BB$2:$BL$2,BB35:BL35),IF('Tipos de Cambio'!$M$9="Canadá",LOOKUP(4,$BB$2:$BL$2,BB35:BL35),IF('Tipos de Cambio'!$M$9="Rusia",LOOKUP(5,$BB$2:$BL$2,BB35:BL35),IF('Tipos de Cambio'!$M$9="Brasil",LOOKUP(6,$BB$2:$BL$2,BB35:BL35),IF('Tipos de Cambio'!$M$9="China",LOOKUP(7,$BB$2:$BL$2,BB35:BL35),IF('Tipos de Cambio'!$M$9="India",LOOKUP(8,$BB$2:$BL$2,BB35:BL35),IF('Tipos de Cambio'!$M$9="Sudáfrica",LOOKUP(9,$BB$2:$BL$2,BB35:BL35),IF('Tipos de Cambio'!$M$9="México",LOOKUP(10,$BB$2:$BL$2,BB35:BL35),IF('Tipos de Cambio'!$M$9="Colombia",LOOKUP(11,$BB$2:$BL$2,BB35:BL35)))))))))))) -> n.d. | BN35: 3.66304 | BO35: 3.38 | BP35: 3.51698 | BQ35: n.d. | BR35: 4.3784 | BS35: 6.84 | BT35: n.d. | BU35: n.d. | BV35: 28.20206 | BW35: 63.40334 | BX35: 20.58536 | BY35: n.d. | BZ35: n.d. | CA35: 2.83155 | CB35: 1.736459 | CC35: 3.087719 | CD35: 6.68287 | CE35: 1.126292493 | CF35: 0.103318866 | CG35: 2.756532426 | CH35: n.d. | CI35: n.d. | CJ35: 19.94240833 | CK35: 29.38044934 | CL35: 20.51243522 | CM35: 8.255452849 | CN35: 98.91203 | CO35: 99.0137 | CP35: 98.72477 | CQ35: 99.80123 | CR35: 98.9596 | CS35: n.d. | CT35: n.d. | CU35: n.d. | CV35: n.d. | CW35: 102.772 | CX35: 98.96831 | CY35: 100 | CZ35: 100.0512 | DA35: 98.60275 | DB35: 99.11738 | DC35: 99.24815 | DD35: 98.60174 | DE35: n.d. | DF35: n.d. | DG35: n.d. | DH35: n.d. | DI35: 99.80123 | DJ35: 98.9596 | DK35: 3393.78 | DL35: 580.83 | DM35: 424.21 | DN35: 7.7 | DO35: n.d. | DP35: n.d. | DQ35: n.d. | DR35: n.d. | DS35: n.d. | DT35: n.d. | DU35: n.d. | DV35: n.d. | DW35: n.d. | DX35: -0.1 | DY35: n.d. | DZ35: n.d. | EA35: n.d. | EB35: n.d. | EC35: n.d. | ED35: n.d. | EE35: n.d.
B36: agosto | C36: 3.147877013 | D36: 3.314285714 | E36: 5.015197568 | F36: 2.034092537 | G36: 3.1301519 | H36: 1.6985138 | I36: n.d. | J36: 996.3711388 | K36: n.d. | L36: 11.52072978 | M36: 14.28570066 | N36: 15.46480434 | O36: 27.7060624 | P36: n.d | Q36: n.d | R36: n.d | S36: n.d | T36: n.d | U36: n.d | V36: n.d | W36: n.d | X36: n.d | Y36: n.d | Z36: n.d | AA36: n.d | AB36: n.d | AE36: 21.34 | AF36: 19.74 | AG36: -1.6 | AH36: 343.06 | AI36: 46.92586619 | AJ36: 59.75179396 | AK36: 52.9297566 | AL36: 128.24 | AM36: 382 | AN36: 96.96 | AO36: 270.8 | AP36: n.d. | AQ36: n.d. | AR36: n.d. | AS36: n.d. | AT36: n.d. | AU36: n.d. | AV36: n.d. | AW36: n.d. | AX36: n.d. | AY36: n.d. | AZ36: n.d. | BA36: n.d. | BB36: n.d. | BC36: 1.9434 | BD36: 126.231 | BE36: 1.1907 | BF36: n.d. | BG36: n.d. | BH36: 5.4417 | BI36: 28.4635 | BJ36: n.d. | BK36: 3.0913 | BL36: n.d. | BM36: =IF('Tipos de Cambio'!$M$9="EuroZona",LOOKUP(1,$BB$2:$BL$2,BB36:BL36),IF('Tipos de Cambio'!$M$9="Reino Unido",LOOKUP(2,$BB$2:$BL$2,BB36:BL36),IF('Tipos de Cambio'!$M$9="Japón",LOOKUP(3,$BB$2:$BL$2,BB36:BL36),IF('Tipos de Cambio'!$M$9="Canadá",LOOKUP(4,$BB$2:$BL$2,BB36:BL36),IF('Tipos de Cambio'!$M$9="Rusia",LOOKUP(5,$BB$2:$BL$2,BB36:BL36),IF('Tipos de Cambio'!$M$9="Brasil",LOOKUP(6,$BB$2:$BL$2,BB36:BL36),IF('Tipos de Cambio'!$M$9="China",LOOKUP(7,$BB$2:$BL$2,BB36:BL36),IF('Tipos de Cambio'!$M$9="India",LOOKUP(8,$BB$2:$BL$2,BB36:BL36),IF('Tipos de Cambio'!$M$9="Sudáfrica",LOOKUP(9,$BB$2:$BL$2,BB36:BL36),IF('Tipos de Cambio'!$M$9="México",LOOKUP(10,$BB$2:$BL$2,BB36:BL36),IF('Tipos de Cambio'!$M$9="Colombia",LOOKUP(11,$BB$2:$BL$2,BB36:BL36)))))))))))) -> n.d. | BN36: 3.55 | BO36: 3.31 | BP36: 3.45 | BQ36: n.d. | BR36: 3.97266 | BS36: 6.59 | BT36: n.d. | BU36: n.d. | BV36: 28.24278 | BW36: 63.42788 | BX36: 20.61138 | BY36: n.d. | BZ36: n.d. | CA36: 2.874539 | CB36: 1.771986 | CC36: 3.125258 | CD36: 6.740597 | CE36: 1.305507191 | CF36: 0.1549983167 | CG36: 2.824567889 | CH36: n.d. | CI36: n.d. | CJ36: 18.9091777 | CK36: 29.20275003 | CL36: 20.52630747 | CM36: 9.183141089 | CN36: 98.76205 | CO36: 98.95046 | CP36: 98.72403 | CQ36: 99.60979 | CR36: 98.21815 | CS36: n.d. | CT36: n.d. | CU36: n.d. | CV36: n.d. | CW36: 103.2512 | CX36: 98.70484 | CY36: 100 | CZ36: 99.81895 | DA36: 98.21932 | DB36: 99.01672 | DC36: 99.09297 | DD36: 98.24448 | DE36: n.d. | DF36: n.d. | DG36: n.d. | DH36: n.d. | DI36: 99.60979 | DJ36: 98.21815 | DK36: 3257.35 | DL36: 563.12 | DM36: 414.03 | DN36: 7.6 | DO36: n.d. | DP36: n.d. | DQ36: n.d. | DR36: n.d. | DS36: n.d. | DT36: n.d. | DU36: n.d. | DV36: n.d. | DW36: n.d. | DX36: -0.1 | DY36: n.d. | DZ36: n.d. | EA36: n.d. | EB36: n.d. | EC36: n.d. | ED36: n.d. | EE36: n.d.
B37: septiembre | C37: 2.988338192 | D37: 3.310502283 | E37: 5.015197568 | F37: 2.159610984 | G37: 3.114757455 | H37: 2.120890774 | I37: n.d. | J37: 1081.698555 | K37: n.d. | L37: 9.954750659 | M37: 13.49206872 | N37: 15.32041687 | O37: 26.92124132 | P37: n.d | Q37: n.d | R37: n.d | S37: n.d | T37: n.d | U37: n.d | V37: n.d | W37: n.d | X37: n.d | Y37: n.d | Z37: n.d | AA37: n.d | AB37: n.d | AE37: 21.88 | AF37: 20.27 | AG37: -1.61 | AH37: 345.43 | AI37: 47.51166181 | AJ37: 56.64921846 | AK37: 53.22912792 | AL37: 138.89 | AM37: 391 | AN37: 98.05 | AO37: 257 | AP37: n.d. | AQ37: n.d. | AR37: n.d. | AS37: n.d. | AT37: n.d. | AU37: n.d. | AV37: n.d. | AW37: n.d. | AX37: n.d. | AY37: n.d. | AZ37: n.d. | BA37: n.d. | BB37: n.d. | BC37: 1.8465 | BD37: 122.5967 | BE37: 1.2225 | BF37: n.d. | BG37: n.d. | BH37: 5.5048 | BI37: 28.4757 | BJ37: n.d. | BK37: 3.0857 | BL37: n.d. | BM37: =IF('Tipos de Cambio'!$M$9="EuroZona",LOOKUP(1,$BB$2:$BL$2,BB37:BL37),IF('Tipos de Cambio'!$M$9="Reino Unido",LOOKUP(2,$BB$2:$BL$2,BB37:BL37),IF('Tipos de Cambio'!$M$9="Japón",LOOKUP(3,$BB$2:$BL$2,BB37:BL37),IF('Tipos de Cambio'!$M$9="Canadá",LOOKUP(4,$BB$2:$BL$2,BB37:BL37),IF('Tipos de Cambio'!$M$9="Rusia",LOOKUP(5,$BB$2:$BL$2,BB37:BL37),IF('Tipos de Cambio'!$M$9="Brasil",LOOKUP(6,$BB$2:$BL$2,BB37:BL37),IF('Tipos de Cambio'!$M$9="China",LOOKUP(7,$BB$2:$BL$2,BB37:BL37),IF('Tipos de Cambio'!$M$9="India",LOOKUP(8,$BB$2:$BL$2,BB37:BL37),IF('Tipos de Cambio'!$M$9="Sudáfrica",LOOKUP(9,$BB$2:$BL$2,BB37:BL37),IF('Tipos de Cambio'!$M$9="México",LOOKUP(10,$BB$2:$BL$2,BB37:BL37),IF('Tipos de Cambio'!$M$9="Colombia",LOOKUP(11,$BB$2:$BL$2,BB37:BL37)))))))))))) -> n.d. | BN37: 3.35014 | BO37: 3.04 | BP37: 3.28374 | BQ37: n.d. | BR37: 4.01989 | BS37: 6.42 | BT37: n.d. | BU37: n.d. | BV37: 28.33834 | BW37: 63.32154 | BX37: 20.69646 | BY37: n.d. | BZ37: n.d. | CA37: 2.896598 | CB37: 1.811641 | CC37: 3.144758 | CD37: 6.778983 | CE37: 1.651302694 | CF37: -0.2833948804 | CG37: 3.052929967 | CH37: n.d. | CI37: n.d. | CJ37: 18.70125996 | CK37: 29.25059751 | CL37: 19.51279113 | CM37: 8.909035263 | CN37: 98.75175 | CO37: 98.66029 | CP37: 98.84086 | CQ37: 99.42329 | CR37: 97.56325 | CS37: n.d. | CT37: n.d. | CU37: n.d. | CV37: n.d. | CW37: 103.5698 | CX37: 98.54726 | CY37: 100 | CZ37: 99.57903 | DA37: 97.74629 | DB37: 98.88843 | DC37: 98.95822 | DD37: 98.07061 | DE37: n.d. | DF37: n.d. | DG37: 93.97153 | DH37: n.d. | DI37: 99.42329 | DJ37: 97.56325 | DK37: 3271.66 | DL37: 583.27 | DM37: 417.8 | DN37: 7.6 | DO37: n.d. | DP37: n.d. | DQ37: n.d. | DR37: n.d. | DS37: n.d. | DT37: n.d. | DU37: n.d. | DV37: n.d. | DW37: n.d. | DX37: 0 | DY37: n.d. | DZ37: n.d. | EA37: n.d. | EB37: n.d. | EC37: n.d. | ED37: n.d. | EE37: n.d.
B38: octubre | C38: 3.202328967 | D38: 3.185437998 | E38: 3.288490284 | F38: 1.920887877 | G38: 2.93637933 | H38: 1.154249738 | I38: n.d. | J38: 1130.944165 | K38: n.d. | L38: 9.417034329 | M38: 11.69592183 | N38: 14.81538825 | O38: 26.32210635 | P38: n.d | Q38: n.d | R38: n.d | S38: n.d | T38: n.d | U38: n.d | V38: n.d | W38: n.d | X38: n.d | Y38: n.d | Z38: n.d | AA38: n.d | AB38: n.d | AE38: 21.69 | AF38: 20.26 | AG38: -1.43 | AH38: 344.38 | AI38: 47.67991983 | AJ38: 53.25180757 | AK38: 61.57070153 | AL38: 140.73 | AM38: 396 | AN38: 95.11 | AO38: 250 | AP38: n.d. | AQ38: n.d. | AR38: n.d. | AS38: n.d. | AT38: n.d. | AU38: n.d. | AV38: n.d. | AW38: n.d. | AX38: n.d. | AY38: n.d. | AZ38: n.d. | BA38: n.d. | BB38: n.d. | BC38: 1.6529 | BD38: 121.1652 | BE38: 1.2453 | BF38: n.d. | BG38: n.d. | BH38: 5.5486 | BI38: 28.4767 | BJ38: n.d. | BK38: 3.1238 | BL38: n.d. | BM38: =IF('Tipos de Cambio'!$M$9="EuroZona",LOOKUP(1,$BB$2:$BL$2,BB38:BL38),IF('Tipos de Cambio'!$M$9="Reino Unido",LOOKUP(2,$BB$2:$BL$2,BB38:BL38),IF('Tipos de Cambio'!$M$9="Japón",LOOKUP(3,$BB$2:$BL$2,BB38:BL38),IF('Tipos de Cambio'!$M$9="Canadá",LOOKUP(4,$BB$2:$BL$2,BB38:BL38),IF('Tipos de Cambio'!$M$9="Rusia",LOOKUP(5,$BB$2:$BL$2,BB38:BL38),IF('Tipos de Cambio'!$M$9="Brasil",LOOKUP(6,$BB$2:$BL$2,BB38:BL38),IF('Tipos de Cambio'!$M$9="China",LOOKUP(7,$BB$2:$BL$2,BB38:BL38),IF('Tipos de Cambio'!$M$9="India",LOOKUP(8,$BB$2:$BL$2,BB38:BL38),IF('Tipos de Cambio'!$M$9="Sudáfrica",LOOKUP(9,$BB$2:$BL$2,BB38:BL38),IF('Tipos de Cambio'!$M$9="México",LOOKUP(10,$BB$2:$BL$2,BB38:BL38),IF('Tipos de Cambio'!$M$9="Colombia",LOOKUP(11,$BB$2:$BL$2,BB38:BL38)))))))))))) -> n.d. | BN38: 3.45242 | BO38: 3.13 | BP38: 3.43715 | BQ38: n.d. | BR38: 3.90199 | BS38: 6.59 | BT38: n.d. | BU38: n.d. | BV38: 28.45052 | BW38: 63.37062 | BX38: 20.90991 | BY38: n.d. | BZ38: n.d. | CA38: 2.95761 | CB38: 1.854434 | CC38: 3.181611 | CD38: 6.825378 | CE38: 1.895763792 | CF38: -0.424163458 | CG38: 3.964179686 | CH38: n.d. | CI38: n.d. | CJ38: 19.23034284 | CK38: 30.18916538 | CL38: 18.69410818 | CM38: 9.187809268 | CN38: 99.00884 | CO38: 98.22527 | CP38: 98.86187 | CQ38: 99.25603 | CR38: 97.13426 | CS38: n.d. | CT38: n.d. | CU38: n.d. | CV38: n.d. | CW38: 103.7435 | CX38: 98.54689 | CY38: 100 | CZ38: 99.62293 | DA38: 97.27711 | DB38: 98.67542 | DC38: 98.84103 | DD38: 98.06898 | DE38: n.d. | DF38: n.d. | DG38: 96.21261 | DH38: n.d. | DI38: 99.25603 | DJ38: 97.13426 | DK38: 3226.28 | DL38: 605.17 | DM38: 418.68 | DN38: 7.3 | DO38: n.d. | DP38: n.d. | DQ38: n.d. | DR38: n.d. | DS38: n.d. | DT38: n.d. | DU38: n.d. | DV38: n.d. | DW38: n.d. | DX38: -0.3 | DY38: n.d. | DZ38: n.d. | EA38: n.d. | EB38: n.d. | EC38: n.d. | ED38: n.d. | EE38: n.d.
B39: noviembre | C39: 3.047895501 | D39: 3.057757644 | E39: 3.427719821 | F39: 1.63004961 | G39: 2.60162131 | H39: 0.7329842932 | I39: n.d. | J39: 1104.201526 | K39: n.d. | L39: 8.444450732 | M39: 11.19690554 | N39: 12.96443797 | O39: 25.7075199 | P39: n.d | Q39: n.d | R39: n.d | S39: n.d | T39: n.d | U39: n.d | V39: n.d | W39: n.d | X39: n.d | Y39: n.d | Z39: n.d | AA39: n.d | AB39: n.d | AE39: 20.34 | AF39: 19.21 | AG39: -1.13 | AH39: 335.02 | AI39: 47.1370991 | AJ39: 52.68935236 | AK39: 67.30865183 | AL39: 147.71 | AM39: 413 | AN39: 94.48 | AO39: 252.6 | AP39: n.d. | AQ39: n.d. | AR39: n.d. | AS39: n.d. | AT39: n.d. | AU39: n.d. | AV39: n.d. | AW39: n.d. | AX39: n.d. | AY39: n.d. | AZ39: n.d. | BA39: n.d. | BB39: n.d. | BC39: 1.5268 | BD39: 123.88 | BE39: 1.2674 | BF39: n.d. | BG39: n.d. | BH39: 5.6134 | BI39: 28.4737 | BJ39: n.d. | BK39: 3.1198 | BL39: n.d. | BM39: =IF('Tipos de Cambio'!$M$9="EuroZona",LOOKUP(1,$BB$2:$BL$2,BB39:BL39),IF('Tipos de Cambio'!$M$9="Reino Unido",LOOKUP(2,$BB$2:$BL$2,BB39:BL39),IF('Tipos de Cambio'!$M$9="Japón",LOOKUP(3,$BB$2:$BL$2,BB39:BL39),IF('Tipos de Cambio'!$M$9="Canadá",LOOKUP(4,$BB$2:$BL$2,BB39:BL39),IF('Tipos de Cambio'!$M$9="Rusia",LOOKUP(5,$BB$2:$BL$2,BB39:BL39),IF('Tipos de Cambio'!$M$9="Brasil",LOOKUP(6,$BB$2:$BL$2,BB39:BL39),IF('Tipos de Cambio'!$M$9="China",LOOKUP(7,$BB$2:$BL$2,BB39:BL39),IF('Tipos de Cambio'!$M$9="India",LOOKUP(8,$BB$2:$BL$2,BB39:BL39),IF('Tipos de Cambio'!$M$9="Sudáfrica",LOOKUP(9,$BB$2:$BL$2,BB39:BL39),IF('Tipos de Cambio'!$M$9="México",LOOKUP(10,$BB$2:$BL$2,BB39:BL39),IF('Tipos de Cambio'!$M$9="Colombia",LOOKUP(11,$BB$2:$BL$2,BB39:BL39)))))))))))) -> n.d. | BN39: 3.82143 | BO39: 3.44 | BP39: 3.79613 | BQ39: n.d. | BR39: 3.8192 | BS39: 6.87 | BT39: n.d. | BU39: n.d. | BV39: 28.47296 | BW39: 63.41153 | BX39: 21.0235 | BY39: n.d. | BZ39: n.d. | CA39: 3.018725 | CB39: 1.898727 | CC39: 3.22471 | CD39: 6.887897 | CE39: 1.812517812 | CF39: -0.3214441897 | CG39: 4.421271174 | CH39: n.d. | CI39: n.d. | CJ39: 17.98116194 | CK39: 31.16270106 | CL39: 17.54977268 | CM39: 8.876387728 | CN39: 99.62337 | CO39: 97.7283 | CP39: 98.73051 | CQ39: 99.13187 | CR39: 97.11502 | CS39: n.d. | CT39: n.d. | CU39: n.d. | CV39: n.d. | CW39: 103.831 | CX39: 98.57787 | CY39: 100 | CZ39: 99.92241 | DA39: 96.9876 | DB39: 98.44733 | DC39: 98.72831 | DD39: 98.14444 | DE39: n.d. | DF39: n.d. | DG39: 97.802 | DH39: n.d. | DI39: 99.13187 | DJ39: 97.11502 | DK39: 3305.16 | DL39: 652.73 | DM39: 431.35 | DN39: 7.4 | DO39: n.d. | DP39: n.d. | DQ39: n.d. | DR39: n.d. | DS39: n.d. | DT39: n.d. | DU39: n.d. | DV39: n.d. | DW39: n.d. | DX39: 0.1 | DY39: n.d. | DZ39: n.d. | EA39: n.d. | EB39: n.d. | EC39: n.d. | ED39: n.d. | EE39: n.d.
B40: diciembre | C40: 2.900652647 | D40: 3.171007928 | E40: 3.422619048 | F40: 1.905574516 | G40: 2.597397829 | H40: 1.156677182 | I40: n.d. | J40: 1119.100772 | K40: n.d. | L40: 8.00000164 | M40: 9.505708904 | N40: 11.9380629 | O40: 25.13379982 | P40: n.d | Q40: n.d | R40: n.d | S40: n.d | T40: n.d | U40: n.d | V40: n.d | W40: n.d | X40: n.d | Y40: n.d | Z40: n.d | AA40: n.d | AB40: n.d | AE40: 19.41 | AF40: 18.14 | AG40: -1.27 | AH40: 334.82 | AI40: 46.47138366 | AJ40: 54.20888861 | AK40: 77.18336947 | AL40: 147.71 | AM40: 401 | AN40: 94.61 | AO40: 256.25 | AP40: n.d. | AQ40: n.d. | AR40: n.d. | AS40: n.d. | AT40: n.d. | AU40: n.d. | AV40: n.d. | AW40: n.d. | AX40: n.d. | AY40: n.d. | AZ40: n.d. | BA40: n.d. | BB40: n.d. | BC40: 1.551 | BD40: 124.0409 | BE40: 1.2725 | BF40: n.d. | BG40: n.d. | BH40: 5.8106 | BI40: 28.9786 | BJ40: n.d. | BK40: 3.1182 | BL40: n.d. | BM40: =IF('Tipos de Cambio'!$M$9="EuroZona",LOOKUP(1,$BB$2:$BL$2,BB40:BL40),IF('Tipos de Cambio'!$M$9="Reino Unido",LOOKUP(2,$BB$2:$BL$2,BB40:BL40),IF('Tipos de Cambio'!$M$9="Japón",LOOKUP(3,$BB$2:$BL$2,BB40:BL40),IF('Tipos de Cambio'!$M$9="Canadá",LOOKUP(4,$BB$2:$BL$2,BB40:BL40),IF('Tipos de Cambio'!$M$9="Rusia",LOOKUP(5,$BB$2:$BL$2,BB40:BL40),IF('Tipos de Cambio'!$M$9="Brasil",LOOKUP(6,$BB$2:$BL$2,BB40:BL40),IF('Tipos de Cambio'!$M$9="China",LOOKUP(7,$BB$2:$BL$2,BB40:BL40),IF('Tipos de Cambio'!$M$9="India",LOOKUP(8,$BB$2:$BL$2,BB40:BL40),IF('Tipos de Cambio'!$M$9="Sudáfrica",LOOKUP(9,$BB$2:$BL$2,BB40:BL40),IF('Tipos de Cambio'!$M$9="México",LOOKUP(10,$BB$2:$BL$2,BB40:BL40),IF('Tipos de Cambio'!$M$9="Colombia",LOOKUP(11,$BB$2:$BL$2,BB40:BL40)))))))))))) -> n.d. | BN40: 3.73772 | BO40: 3.47 | BP40: 3.6369 | BQ40: n.d. | BR40: 3.7939 | BS40: 6.77 | BT40: n.d. | BU40: n.d. | BV40: 28.458 | BW40: 63.5424 | BX40: 20.98025 | BY40: n.d. | BZ40: n.d. | CA40: 3.066977 | CB40: 1.940652 | CC40: 3.246403 | CD40: 6.916996 | CE40: 1.556826394 | CF40: -0.1157255672 | CG40: 3.956699429 | CH40: n.d. | CI40: n.d. | CJ40: 18.38821745 | CK40: 31.23287023 | CL40: 16.2556921 | CM40: 8.682609515 | CN40: 100.1235 | CO40: 97.35072 | CP40: 98.57378 | CQ40: 99.06739 | CR40: 97.40316 | CS40: n.d. | CT40: n.d. | CU40: n.d. | CV40: n.d. | CW40: 103.8801 | CX40: 98.46994 | CY40: 100 | CZ40: 100.2111 | DA40: 96.9388 | DB40: 98.25107 | DC40: 98.60832 | DD40: 98.39703 | DE40: n.d. | DF40: n.d. | DG40: 98.80456 | DH40: n.d. | DI40: 99.06739 | DJ40: 97.40316 | DK40: 3301.11 | DL40: 676.95 | DM40: 435.71 | DN40: 7.4 | DO40: n.d. | DP40: n.d. | DQ40: n.d. | DR40: n.d. | DS40: n.d. | DT40: n.d. | DU40: n.d. | DV40: n.d. | DW40: n.d. | DX40: 0 | DY40: n.d. | DZ40: n.d. | EA40: n.d. | EB40: n.d. | EC40: n.d. | ED40: n.d. | EE40: n.d.
A41: 1993 | B41: enero | C41: 3.258508327 | D41: 3.386004515 | E41: 4.585798817 | F41: 2.129471891 | G41: 2.280136241 | H41: 1.264488936 | I41: 850.4568981 | J41: 1161.786283 | K41: n.d. | L41: 5.70177391 | M41: 9.60453465 | N41: 11.31896467 | O41: 24.82109589 | P41: n.d | Q41: n.d | R41: n.d | S41: n.d | T41: n.d | U41: n.d | V41: n.d | W41: n.d | X41: n.d | Y41: n.d | Z41: n.d | AA41: n.d | AB41: n.d | AE41: 19.03 | AF41: 17.39 | AG41: -1.64 | AH41: 329.01 | AI41: 45.76 | AJ41: 57.19806588 | AK41: 69.39064329 | AL41: 155.79 | AM41: 410 | AN41: 94.21 | AO41: 259.75 | AP41: n.d. | AQ41: n.d. | AR41: n.d. | AS41: n.d. | AT41: n.d. | AU41: n.d. | AV41: n.d. | AW41: n.d. | AX41: n.d. | AY41: n.d. | AZ41: n.d. | BA41: n.d. | BB41: n.d. | BC41: 1.5325 | BD41: 124.9932 | BE41: 1.2779 | BF41: n.d. | BG41: n.d. | BH41: 5.7796 | BI41: 29.0432 | BJ41: n.d. | BK41: 3.1146 | BL41: n.d. | BM41: =IF('Tipos de Cambio'!$M$9="EuroZona",LOOKUP(1,$BB$2:$BL$2,BB41:BL41),IF('Tipos de Cambio'!$M$9="Reino Unido",LOOKUP(2,$BB$2:$BL$2,BB41:BL41),IF('Tipos de Cambio'!$M$9="Japón",LOOKUP(3,$BB$2:$BL$2,BB41:BL41),IF('Tipos de Cambio'!$M$9="Canadá",LOOKUP(4,$BB$2:$BL$2,BB41:BL41),IF('Tipos de Cambio'!$M$9="Rusia",LOOKUP(5,$BB$2:$BL$2,BB41:BL41),IF('Tipos de Cambio'!$M$9="Brasil",LOOKUP(6,$BB$2:$BL$2,BB41:BL41),IF('Tipos de Cambio'!$M$9="China",LOOKUP(7,$BB$2:$BL$2,BB41:BL41),IF('Tipos de Cambio'!$M$9="India",LOOKUP(8,$BB$2:$BL$2,BB41:BL41),IF('Tipos de Cambio'!$M$9="Sudáfrica",LOOKUP(9,$BB$2:$BL$2,BB41:BL41),IF('Tipos de Cambio'!$M$9="México",LOOKUP(10,$BB$2:$BL$2,BB41:BL41),IF('Tipos de Cambio'!$M$9="Colombia",LOOKUP(11,$BB$2:$BL$2,BB41:BL41)))))))))))) -> n.d. | BN41: 3.48906 | BO41: 3.24 | BP41: 3.34688 | BQ41: n.d. | BR41: 3.71563 | BS41: 6.6 | BT41: n.d. | BU41: n.d. | BV41: 28.41147 | BW41: 63.58331 | BX41: 20.95474 | BY41: n.d. | BZ41: n.d. | CA41: 3.140966 | CB41: 2.074899 | CC41: 3.275181 | CD41: 6.841939 | CE41: 1.120921338 | CF41: -0.06426799865 | CG41: 3.261436266 | CH41: n.d. | CI41: n.d. | CJ41: 20.92405302 | CK41: 37.1672623 | CL41: 15.67420738 | CM41: 6.973609553 | CN41: 100.2543 | CO41: 97.20943 | CP41: 98.52798 | CQ41: 99.1041 | CR41: 97.76891 | CS41: n.d. | CT41: n.d. | CU41: n.d. | CV41: n.d. | CW41: 103.9209 | CX41: 98.10995 | CY41: 100 | CZ41: 100.3758 | DA41: 96.99037 | DB41: 98.08006 | DC41: 98.47759 | DD41: 98.78955 | DE41: n.d. | DF41: n.d. | DG41: 99.40481 | DH41: n.d. | DI41: 99.1041 | DJ41: 97.76891 | DK41: 3310.03 | DL41: 696.34 | DM41: 438.78 | DN41: 7.3 | DO41: n.d. | DP41: n.d. | DQ41: n.d. | DR41: n.d. | DS41: n.d. | DT41: n.d. | DU41: n.d. | DV41: n.d. | DW41: n.d. | DX41: -0.1 | DY41: n.d. | DZ41: n.d. | EA41: n.d. | EB41: n.d. | EC41: n.d. | ED41: n.d. | EE41: n.d.
B42: febrero | C42: 3.246753247 | D42: 3.367003367 | E42: 4.705882353 | F42: 2.049759683 | G42: 2.431110797 | H42: 1.476793249 | I42: 758.8545135 | J42: 1168.485635 | K42: n.d. | L42: 5.240189276 | M42: 8.955208703 | N42: 10.91438551 | O42: 24.7152111 | P42: n.d | Q42: n.d | R42: n.d | S42: n.d | T42: n.d | U42: n.d | V42: n.d | W42: n.d | X42: n.d | Y42: n.d | Z42: n.d | AA42: n.d | AB42: n.d | AE42: 20.09 | AF42: 18.47 | AG42: -1.62 | AH42: 329.31 | AI42: 46.41 | AJ42: 60.43671925 | AK42: 67.64884651 | AL42: 148.81 | AM42: 425 | AN42: 94.38 | AO42: 254.25 | AP42: n.d. | AQ42: n.d. | AR42: n.d. | AS42: n.d. | AT42: n.d. | AU42: n.d. | AV42: n.d. | AW42: n.d. | AX42: n.d. | AY42: n.d. | AZ42: n.d. | BA42: n.d. | BB42: n.d. | BC42: 1.4395 | BD42: 120.7595 | BE42: 1.2602 | BF42: n.d. | BG42: n.d. | BH42: 5.7874 | BI42: 30.0421 | BJ42: n.d. | BK42: 3.1049 | BL42: n.d. | BM42: =IF('Tipos de Cambio'!$M$9="EuroZona",LOOKUP(1,$BB$2:$BL$2,BB42:BL42),IF('Tipos de Cambio'!$M$9="Reino Unido",LOOKUP(2,$BB$2:$BL$2,BB42:BL42),IF('Tipos de Cambio'!$M$9="Japón",LOOKUP(3,$BB$2:$BL$2,BB42:BL42),IF('Tipos de Cambio'!$M$9="Canadá",LOOKUP(4,$BB$2:$BL$2,BB42:BL42),IF('Tipos de Cambio'!$M$9="Rusia",LOOKUP(5,$BB$2:$BL$2,BB42:BL42),IF('Tipos de Cambio'!$M$9="Brasil",LOOKUP(6,$BB$2:$BL$2,BB42:BL42),IF('Tipos de Cambio'!$M$9="China",LOOKUP(7,$BB$2:$BL$2,BB42:BL42),IF('Tipos de Cambio'!$M$9="India",LOOKUP(8,$BB$2:$BL$2,BB42:BL42),IF('Tipos de Cambio'!$M$9="Sudáfrica",LOOKUP(9,$BB$2:$BL$2,BB42:BL42),IF('Tipos de Cambio'!$M$9="México",LOOKUP(10,$BB$2:$BL$2,BB42:BL42),IF('Tipos de Cambio'!$M$9="Colombia",LOOKUP(11,$BB$2:$BL$2,BB42:BL42)))))))))))) -> n.d. | BN42: 3.36563 | BO42: 3.16 | BP42: 3.23867 | BQ42: n.d. | BR42: 3.33438 | BS42: 6.26 | BT42: n.d. | BU42: n.d. | BV42: 28.37324 | BW42: 63.72237 | BX42: 21.02559 | BY42: n.d. | BZ42: n.d. | CA42: 3.222708 | CB42: 2.211827 | CC42: 3.306375 | CD42: 6.843863 | CE42: 0.4264717594 | CF42: 0.2832282067 | CG42: 2.998810097 | CH42: n.d. | CI42: n.d. | CJ42: 22.3922543 | CK42: 42.96535404 | CL42: 14.91473432 | CM42: 4.884410285 | CN42: 100.1401 | CO42: 97.20654 | CP42: 98.64701 | CQ42: 99.28091 | CR42: 97.90799 | CS42: n.d. | CT42: n.d. | CU42: n.d. | CV42: n.d. | CW42: 103.9559 | CX42: 97.68226 | CY42: 100 | CZ42: 100.2928 | DA42: 96.98913 | DB42: 97.94968 | DC42: 98.35529 | DD42: 99.17253 | DE42: n.d. | DF42: n.d. | DG42: 99.40272 | DH42: n.d. | DI42: 99.28091 | DJ42: 97.90799 | DK42: 3370.81 | DL42: 670.77 | DM42: 443.38 | DN42: 7.1 | DO42: n.d. | DP42: n.d. | DQ42: n.d. | DR42: n.d. | DS42: n.d. | DT42: n.d. | DU42: n.d. | DV42: n.d. | DW42: n.d. | DX42: -0.2 | DY42: n.d. | DZ42: n.d. | EA42: n.d. | EB42: n.d. | EC42: n.d. | ED42: n.d. | EE42: n.d.
B43: marzo | C43: 3.086862886 | D43: 3.240223464 | E43: 4.538799414 | F43: 2.240383261 | G43: 2.419347548 | H43: 1.154249738 | I43: 694.0605693 | J43: 1229.712817 | K43: n.d. | L43: 6.113540725 | M43: 9.629610125 | N43: 10.43676753 | O43: 24.18225689 | P43: n.d | Q43: n.d | R43: n.d | S43: n.d | T43: n.d | U43: n.d | V43: n.d | W43: n.d | X43: n.d | Y43: n.d | Z43: n.d | AA43: n.d | AB43: n.d | AE43: 20.32 | AF43: 18.79 | AG43: -1.53 | AH43: 330.08 | AI43: 47.55 | AJ43: 61.57523746 | AK43: 63.62094148 | AL43: 148.08 | AM43: 408 | AN43: 97.14 | AO43: 230.2 | AP43: n.d. | AQ43: n.d. | AR43: n.d. | AS43: n.d. | AT43: n.d. | AU43: n.d. | AV43: n.d. | AW43: n.d. | AX43: n.d. | AY43: n.d. | AZ43: n.d. | BA43: n.d. | BB43: n.d. | BC43: 1.4617 | BD43: 117.0174 | BE43: 1.2471 | BF43: n.d. | BG43: n.d. | BH43: 5.7455 | BI43: 31.9391 | BJ43: n.d. | BK43: 3.1083 | BL43: n.d. | BM43: =IF('Tipos de Cambio'!$M$9="EuroZona",LOOKUP(1,$BB$2:$BL$2,BB43:BL43),IF('Tipos de Cambio'!$M$9="Reino Unido",LOOKUP(2,$BB$2:$BL$2,BB43:BL43),IF('Tipos de Cambio'!$M$9="Japón",LOOKUP(3,$BB$2:$BL$2,BB43:BL43),IF('Tipos de Cambio'!$M$9="Canadá",LOOKUP(4,$BB$2:$BL$2,BB43:BL43),IF('Tipos de Cambio'!$M$9="Rusia",LOOKUP(5,$BB$2:$BL$2,BB43:BL43),IF('Tipos de Cambio'!$M$9="Brasil",LOOKUP(6,$BB$2:$BL$2,BB43:BL43),IF('Tipos de Cambio'!$M$9="China",LOOKUP(7,$BB$2:$BL$2,BB43:BL43),IF('Tipos de Cambio'!$M$9="India",LOOKUP(8,$BB$2:$BL$2,BB43:BL43),IF('Tipos de Cambio'!$M$9="Sudáfrica",LOOKUP(9,$BB$2:$BL$2,BB43:BL43),IF('Tipos de Cambio'!$M$9="México",LOOKUP(10,$BB$2:$BL$2,BB43:BL43),IF('Tipos de Cambio'!$M$9="Colombia",LOOKUP(11,$BB$2:$BL$2,BB43:BL43)))))))))))) -> n.d. | BN43: 3.33967 | BO43: 3.15 | BP43: 3.24015 | BQ43: n.d. | BR43: 3.32677 | BS43: 5.98 | BT43: n.d. | BU43: n.d. | BV43: 28.34998 | BW43: 63.61602 | BX43: 21.1009 | BY43: n.d. | BZ43: n.d. | CA43: 3.280056 | CB43: 2.256151 | CC43: 3.342468 | CD43: 6.8727 | CE43: 0.2291661069 | CF43: -0.179709731 | CG43: 2.985525538 | CH43: n.d. | CI43: n.d. | CJ43: 22.92837371 | CK43: 42.9861314 | CL43: 14.6021903 | CM43: 5.182302523 | CN43: 99.95589 | CO43: 97.24397 | CP43: 98.86228 | CQ43: 99.50533 | CR43: 98.09901 | CS43: n.d. | CT43: n.d. | CU43: n.d. | CV43: n.d. | CW43: 104.0005 | CX43: 97.45469 | CY43: 100 | CZ43: 99.99863 | DA43: 96.95384 | DB43: 97.84386 | DC43: 98.27392 | DD43: 99.46752 | DE43: n.d. | DF43: n.d. | DG43: 99.12701 | DH43: n.d. | DI43: 99.50533 | DJ43: 98.09901 | DK43: 3435.11 | DL43: 690.13 | DM43: 451.67 | DN43: 7 | DO43: n.d. | DP43: n.d. | DQ43: n.d. | DR43: n.d. | DS43: n.d. | DT43: n.d. | DU43: n.d. | DV43: n.d. | DW43: n.d. | DX43: -0.1 | DY43: n.d. | DZ43: n.d. | EA43: n.d. | EB43: n.d. | EC43: n.d. | ED43: n.d. | EE43: n.d.
B44: abril | C44: 3.225806452 | D44: 3.232998885 | E44: 4.525547445 | F44: 2.151293588 | G44: 2.392352903 | H44: 0.8307372793 | I44: 674.4865271 | J44: 1316.416309 | K44: n.d. | L44: 6.060609087 | M44: 11.15176296 | N44: 10.0922712 | O44: 23.08199442 | P44: n.d | Q44: n.d | R44: n.d | S44: n.d | T44: n.d | U44: n.d | V44: n.d | W44: n.d | X44: n.d | Y44: n.d | Z44: n.d | AA44: n.d | AB44: n.d | AE44: 20.25 | AF44: 18.67 | AG44: -1.58 | AH44: 342.15 | AI44: 47.83 | AJ44: 61.04906968 | AK44: 57.86938339 | AL44: 141.83 | AM44: 392 | AN44: 100.55 | AO44: 206.25 | AP44: n.d. | AQ44: n.d. | AR44: n.d. | AS44: n.d. | AT44: n.d. | AU44: n.d. | AV44: n.d. | AW44: n.d. | AX44: n.d. | AY44: n.d. | AZ44: n.d. | BA44: n.d. | BB44: n.d. | BC44: 1.5447 | BD44: 112.4114 | BE44: 1.2621 | BF44: n.d. | BG44: n.d. | BH44: 5.7202 | BI44: 31.6095 | BJ44: n.d. | BK44: 3.0955 | BL44: n.d. | BM44: =IF('Tipos de Cambio'!$M$9="EuroZona",LOOKUP(1,$BB$2:$BL$2,BB44:BL44),IF('Tipos de Cambio'!$M$9="Reino Unido",LOOKUP(2,$BB$2:$BL$2,BB44:BL44),IF('Tipos de Cambio'!$M$9="Japón",LOOKUP(3,$BB$2:$BL$2,BB44:BL44),IF('Tipos de Cambio'!$M$9="Canadá",LOOKUP(4,$BB$2:$BL$2,BB44:BL44),IF('Tipos de Cambio'!$M$9="Rusia",LOOKUP(5,$BB$2:$BL$2,BB44:BL44),IF('Tipos de Cambio'!$M$9="Brasil",LOOKUP(6,$BB$2:$BL$2,BB44:BL44),IF('Tipos de Cambio'!$M$9="China",LOOKUP(7,$BB$2:$BL$2,BB44:BL44),IF('Tipos de Cambio'!$M$9="India",LOOKUP(8,$BB$2:$BL$2,BB44:BL44),IF('Tipos de Cambio'!$M$9="Sudáfrica",LOOKUP(9,$BB$2:$BL$2,BB44:BL44),IF('Tipos de Cambio'!$M$9="México",LOOKUP(10,$BB$2:$BL$2,BB44:BL44),IF('Tipos de Cambio'!$M$9="Colombia",LOOKUP(11,$BB$2:$BL$2,BB44:BL44)))))))))))) -> n.d. | BN44: 3.33086 | BO44: 3.06 | BP44: 3.22656 | BQ44: n.d. | BR44: 3.25313 | BS44: 5.97 | BT44: n.d. | BU44: n.d. | BV44: 28.34665 | BW44: 63.86961 | BX44: 21.11518 | BY44: n.d. | BZ44: n.d. | CA44: 3.354697 | CB44: 2.291844 | CC44: 3.411236 | CD44: 6.872333 | CE44: 0.3412003996 | CF44: 0.3986260065 | CG44: 2.812004873 | CH44: n.d. | CI44: n.d. | CJ44: 24.29503898 | CK44: 41.28556422 | CL44: 15.72864308 | CM44: 4.466247727 | CN44: 99.72786 | CO44: 97.40228 | CP44: 98.95916 | CQ44: 99.65281 | CR44: 98.44427 | CS44: n.d. | CT44: n.d. | CU44: n.d. | CV44: n.d. | CW44: 104.0872 | CX44: 97.63223 | CY44: 100 | CZ44: 99.64709 | DA44: 96.90456 | DB44: 97.74199 | DC44: 98.26177 | DD44: 99.62339 | DE44: n.d. | DF44: n.d. | DG44: 98.85556 | DH44: n.d. | DI44: 99.65281 | DJ44: 98.44427 | DK44: 3427.55 | DL44: 661.42 | DM44: 440.19 | DN44: 7.1 | DO44: n.d. | DP44: n.d. | DQ44: n.d. | DR44: n.d. | DS44: n.d. | DT44: n.d. | DU44: n.d. | DV44: n.d. | DW44: n.d. | DX44: 0.1 | DY44: n.d. | DZ44: n.d. | EA44: n.d. | EB44: n.d. | EC44: n.d. | ED44: n.d. | EE44: n.d.
B45: mayo | C45: 3.221188261 | D45: 3.111111111 | E45: 4.366812227 | F45: 1.962158374 | G45: 2.543715443 | H45: 0.8298755187 | I45: 717.3979079 | J45: 1348.519222 | K45: n.d. | L45: 5.128199567 | M45: 10.70781133 | N45: 9.996331015 | O45: 22.21416578 | P45: n.d | Q45: n.d | R45: n.d | S45: n.d | T45: n.d | U45: n.d | V45: n.d | W45: n.d | X45: n.d | Y45: n.d | Z45: n.d | AA45: n.d | AB45: n.d | AE45: 19.95 | AF45: 18.51 | AG45: -1.44 | AH45: 367.18 | AI45: 47.09 | AJ45: 60.20085094 | AK45: 62.17851603 | AL45: 136.69 | AM45: 371 | AN45: 98.59 | AO45: 184.75 | AP45: n.d. | AQ45: n.d. | AR45: n.d. | AS45: n.d. | AT45: n.d. | AU45: n.d. | AV45: n.d. | AW45: n.d. | AX45: n.d. | AY45: n.d. | AZ45: n.d. | BA45: n.d. | BB45: n.d. | BC45: 1.5477 | BD45: 110.343 | BE45: 1.2698 | BF45: n.d. | BG45: n.d. | BH45: 5.7392 | BI45: 31.6125 | BJ45: n.d. | BK45: 3.1227 | BL45: n.d. | BM45: =IF('Tipos de Cambio'!$M$9="EuroZona",LOOKUP(1,$BB$2:$BL$2,BB45:BL45),IF('Tipos de Cambio'!$M$9="Reino Unido",LOOKUP(2,$BB$2:$BL$2,BB45:BL45),IF('Tipos de Cambio'!$M$9="Japón",LOOKUP(3,$BB$2:$BL$2,BB45:BL45),IF('Tipos de Cambio'!$M$9="Canadá",LOOKUP(4,$BB$2:$BL$2,BB45:BL45),IF('Tipos de Cambio'!$M$9="Rusia",LOOKUP(5,$BB$2:$BL$2,BB45:BL45),IF('Tipos de Cambio'!$M$9="Brasil",LOOKUP(6,$BB$2:$BL$2,BB45:BL45),IF('Tipos de Cambio'!$M$9="China",LOOKUP(7,$BB$2:$BL$2,BB45:BL45),IF('Tipos de Cambio'!$M$9="India",LOOKUP(8,$BB$2:$BL$2,BB45:BL45),IF('Tipos de Cambio'!$M$9="Sudáfrica",LOOKUP(9,$BB$2:$BL$2,BB45:BL45),IF('Tipos de Cambio'!$M$9="México",LOOKUP(10,$BB$2:$BL$2,BB45:BL45),IF('Tipos de Cambio'!$M$9="Colombia",LOOKUP(11,$BB$2:$BL$2,BB45:BL45)))))))))))) -> n.d. | BN45: 3.34169 | BO45: 3.17 | BP45: 3.24342 | BQ45: n.d. | BR45: 3.27303 | BS45: 6.04 | BT45: n.d. | BU45: n.d. | BV45: 28.55938 | BW45: 64.13955 | BX45: 21.12978 | BY45: n.d. | BZ45: n.d. | CA45: 3.433626 | CB45: 2.330029 | CC45: 3.466968 | CD45: 6.879258 | CE45: 1.126938308 | CF45: 1.0829059 | CG45: 3.068779249 | CH45: n.d. | CI45: n.d. | CJ45: 25.16708381 | CK45: 39.59842885 | CL45: 15.81247359 | CM45: 3.944546856 | CN45: 99.43656 | CO45: 97.46338 | CP45: 98.69602 | CQ45: 99.61826 | CR45: 98.86481 | CS45: n.d. | CT45: n.d. | CU45: n.d. | CV45: n.d. | CW45: 104.2615 | CX45: 98.01057 | CY45: 100 | CZ45: 99.44788 | DA45: 96.88716 | DB45: 97.61247 | DC45: 98.28429 | DD45: 99.67091 | DE45: n.d. | DF45: n.d. | DG45: 98.32438 | DH45: n.d. | DI45: 99.61826 | DJ45: 98.86481 | DK45: 3527.43 | DL45: 700.53 | DM45: 450.19 | DN45: 7.1 | DO45: n.d. | DP45: n.d. | DQ45: n.d. | DR45: n.d. | DS45: n.d. | DT45: n.d. | DU45: n.d. | DV45: n.d. | DW45: n.d. | DX45: 0 | DY45: n.d. | DZ45: n.d. | EA45: n.d. | EB45: n.d. | EC45: n.d. | ED45: n.d. | EE45: n.d.
B46: junio | C46: 2.995720399 | D46: 3.10421286 | E46: 4.35413643 | F46: 1.96325901 | G46: 2.384730297 | H46: 0.8307372793 | I46: 722.8884831 | J46: 1467.32649 | K46: n.d. | L46: 5.932186658 | M46: 10.05387982 | N46: 9.869707322 | O46: 21.38281877 | P46: n.d | Q46: n.d | R46: n.d | S46: n.d | T46: n.d | U46: n.d | V46: n.d | W46: n.d | X46: n.d | Y46: n.d | Z46: n.d | AA46: n.d | AB46: n.d | AE46: 19.09 | AF46: 17.65 | AG46: -1.44 | AH46: 371.89 | AI46: 47.17 | AJ46: 58.93532672 | AK46: 62.50056699 | AL46: 121.99 | AM46: 356 | AN46: 92.76 | AO46: 189 | AP46: n.d. | AQ46: n.d. | AR46: n.d. | AS46: n.d. | AT46: n.d. | AU46: n.d. | AV46: n.d. | AW46: n.d. | AX46: n.d. | AY46: n.d. | AZ46: n.d. | BA46: n.d. | BB46: n.d. | BC46: 1.5082 | BD46: 107.4118 | BE46: 1.2789 | BF46: n.d. | BG46: n.d. | BH46: 5.7504 | BI46: 31.6682 | BJ46: n.d. | BK46: 3.1213 | BL46: n.d. | BM46: =IF('Tipos de Cambio'!$M$9="EuroZona",LOOKUP(1,$BB$2:$BL$2,BB46:BL46),IF('Tipos de Cambio'!$M$9="Reino Unido",LOOKUP(2,$BB$2:$BL$2,BB46:BL46),IF('Tipos de Cambio'!$M$9="Japón",LOOKUP(3,$BB$2:$BL$2,BB46:BL46),IF('Tipos de Cambio'!$M$9="Canadá",LOOKUP(4,$BB$2:$BL$2,BB46:BL46),IF('Tipos de Cambio'!$M$9="Rusia",LOOKUP(5,$BB$2:$BL$2,BB46:BL46),IF('Tipos de Cambio'!$M$9="Brasil",LOOKUP(6,$BB$2:$BL$2,BB46:BL46),IF('Tipos de Cambio'!$M$9="China",LOOKUP(7,$BB$2:$BL$2,BB46:BL46),IF('Tipos de Cambio'!$M$9="India",LOOKUP(8,$BB$2:$BL$2,BB46:BL46),IF('Tipos de Cambio'!$M$9="Sudáfrica",LOOKUP(9,$BB$2:$BL$2,BB46:BL46),IF('Tipos de Cambio'!$M$9="México",LOOKUP(10,$BB$2:$BL$2,BB46:BL46),IF('Tipos de Cambio'!$M$9="Colombia",LOOKUP(11,$BB$2:$BL$2,BB46:BL46)))))))))))) -> n.d. | BN46: 3.50107 | BO46: 3.29 | BP46: 3.33771 | BQ46: n.d. | BR46: 3.26136 | BS46: 5.96 | BT46: n.d. | BU46: n.d. | BV46: 28.60508 | BW46: 64.2786 | BX46: 21.20123 | BY46: n.d. | BZ46: n.d. | CA46: 3.516788 | CB46: 2.376665 | CC46: 3.490485 | CD46: 6.853918 | CE46: 1.443972266 | CF46: 1.184648059 | CG46: 3.39667638 | CH46: n.d. | CI46: n.d. | CJ46: 26.84290369 | CK46: 39.49742155 | CL46: 14.65870452 | CM46: 4.018463119 | CN46: 99.21004 | CO46: 97.42673 | CP46: 98.40469 | CQ46: 99.44463 | CR46: 98.98769 | CS46: n.d. | CT46: n.d. | CU46: n.d. | CV46: n.d. | CW46: 104.5353 | CX46: 98.32845 | CY46: 100 | CZ46: 99.32748 | DA46: 96.91515 | DB46: 97.45424 | DC46: 98.29876 | DD46: 99.68002 | DE46: n.d. | DF46: n.d. | DG46: 97.87643 | DH46: n.d. | DI46: 99.44463 | DJ46: 98.98769 | DK46: 3516.08 | DL46: 703.95 | DM46: 450.53 | DN46: 7 | DO46: n.d. | DP46: n.d. | DQ46: n.d. | DR46: n.d. | DS46: n.d. | DT46: n.d. | DU46: n.d. | DV46: n.d. | DW46: n.d. | DX46: -0.1 | DY46: n.d. | DZ46: n.d. | EA46: n.d. | EB46: n.d. | EC46: n.d. | ED46: n.d. | EE46: n.d.
B47: julio | C47: 2.775800712 | D47: 3.322259136 | E47: 4.630969609 | F47: 2.104672373 | G47: 2.555921685 | H47: 1.989528796 | I47: 810.6832358 | J47: 1581.695464 | K47: n.d. | L47: 4.545464077 | M47: 9.964432019 | N47: 9.704924932 | O47: 20.46901521 | P47: n.d | Q47: n.d | R47: n.d | S47: n.d | T47: n.d | U47: n.d | V47: n.d | W47: n.d | X47: n.d | Y47: n.d | Z47: n.d | AA47: n.d | AB47: n.d | AE47: 17.89 | AF47: 16.78 | AG47: -1.11 | AH47: 392.19 | AI47: 48.25 | AJ47: 57.82856002 | AK47: 71.80829349 | AL47: 127.5 | AM47: 362 | AN47: 101.25 | AO47: 200.75 | AP47: n.d. | AQ47: n.d. | AR47: n.d. | AS47: n.d. | AT47: n.d. | AU47: n.d. | AV47: n.d. | AW47: n.d. | AX47: n.d. | AY47: n.d. | AZ47: n.d. | BA47: n.d. | BB47: n.d. | BC47: 1.4955 | BD47: 107.6914 | BE47: 1.282 | BF47: n.d. | BG47: n.d. | BH47: 5.7756 | BI47: 31.6 | BJ47: n.d. | BK47: 3.1236 | BL47: n.d. | BM47: =IF('Tipos de Cambio'!$M$9="EuroZona",LOOKUP(1,$BB$2:$BL$2,BB47:BL47),IF('Tipos de Cambio'!$M$9="Reino Unido",LOOKUP(2,$BB$2:$BL$2,BB47:BL47),IF('Tipos de Cambio'!$M$9="Japón",LOOKUP(3,$BB$2:$BL$2,BB47:BL47),IF('Tipos de Cambio'!$M$9="Canadá",LOOKUP(4,$BB$2:$BL$2,BB47:BL47),IF('Tipos de Cambio'!$M$9="Rusia",LOOKUP(5,$BB$2:$BL$2,BB47:BL47),IF('Tipos de Cambio'!$M$9="Brasil",LOOKUP(6,$BB$2:$BL$2,BB47:BL47),IF('Tipos de Cambio'!$M$9="China",LOOKUP(7,$BB$2:$BL$2,BB47:BL47),IF('Tipos de Cambio'!$M$9="India",LOOKUP(8,$BB$2:$BL$2,BB47:BL47),IF('Tipos de Cambio'!$M$9="Sudáfrica",LOOKUP(9,$BB$2:$BL$2,BB47:BL47),IF('Tipos de Cambio'!$M$9="México",LOOKUP(10,$BB$2:$BL$2,BB47:BL47),IF('Tipos de Cambio'!$M$9="Colombia",LOOKUP(11,$BB$2:$BL$2,BB47:BL47)))))))))))) -> n.d. | BN47: 3.50284 | BO47: 3.26 | BP47: 3.29403 | BQ47: n.d. | BR47: 3.25568 | BS47: 5.81 | BT47: n.d. | BU47: n.d. | BV47: 28.60176 | BW47: 64.27042 | BX47: 21.34098 | BY47: n.d. | BZ47: n.d. | CA47: 3.595173 | CB47: 2.38158 | CC47: 3.526952 | CD47: 6.848654 | CE47: 1.417272355 | CF47: 1.367562024 | CG47: 3.670666921 | CH47: n.d. | CI47: n.d. | CJ47: 26.96837421 | CK47: 37.15152503 | CL47: 14.22516103 | CM47: 2.480730584 | CN47: 98.99957 | CO47: 97.33096 | CP47: 98.22194 | CQ47: 99.17352 | CR47: 99.10506 | CS47: n.d. | CT47: n.d. | CU47: n.d. | CV47: n.d. | CW47: 104.8329 | CX47: 98.41914 | CY47: 100 | CZ47: 99.33772 | DA47: 96.96555 | DB47: 97.41764 | DC47: 98.27424 | DD47: 99.76367 | DE47: n.d. | DF47: n.d. | DG47: 97.71671 | DH47: n.d. | DI47: 99.17352 | DJ47: 99.10506 | DK47: 3539.47 | DL47: 704.7 | DM47: 448.13 | DN47: 6.9 | DO47: n.d. | DP47: n.d. | DQ47: n.d. | DR47: n.d. | DS47: n.d. | DT47: n.d. | DU47: n.d. | DV47: n.d. | DW47: n.d. | DX47: -0.1 | DY47: n.d. | DZ47: n.d. | EA47: n.d. | EB47: n.d. | EC47: n.d. | ED47: n.d. | EE47: n.d.
B48: agosto | C48: 2.767920511 | D48: 3.318584071 | E48: 4.630969609 | F48: 2.162010389 | G48: 3.035147183 | H48: 1.878914405 | I48: 956.5937847 | J48: 1730.671208 | K48: n.d. | L48: 5.785127433 | M48: 9.330975779 | N48: 9.618672475 | O48: 21.07369225 | P48: n.d | Q48: n.d | R48: n.d | S48: n.d | T48: n.d | U48: n.d | V48: n.d | W48: n.d | X48: n.d | Y48: n.d | Z48: n.d | AA48: n.d | AB48: n.d | AE48: 18.01 | AF48: 16.7 | AG48: -1.31 | AH48: 378.84 | AI48: 48.38 | AJ48: 55.5016284 | AK48: 76.92028558 | AL48: 129.71 | AM48: 356 | AN48: 100.31 | AO48: 209 | AP48: n.d. | AQ48: n.d. | AR48: n.d. | AS48: n.d. | AT48: n.d. | AU48: n.d. | AV48: n.d. | AW48: n.d. | AX48: n.d. | AY48: n.d. | AZ48: n.d. | BA48: n.d. | BB48: n.d. | BC48: 1.4914 | BD48: 103.765 | BE48: 1.308 | BF48: n.d. | BG48: n.d. | BH48: 5.7906 | BI48: 31.6123 | BJ48: n.d. | BK48: 3.1126 | BL48: n.d. | BM48: =IF('Tipos de Cambio'!$M$9="EuroZona",LOOKUP(1,$BB$2:$BL$2,BB48:BL48),IF('Tipos de Cambio'!$M$9="Reino Unido",LOOKUP(2,$BB$2:$BL$2,BB48:BL48),IF('Tipos de Cambio'!$M$9="Japón",LOOKUP(3,$BB$2:$BL$2,BB48:BL48),IF('Tipos de Cambio'!$M$9="Canadá",LOOKUP(4,$BB$2:$BL$2,BB48:BL48),IF('Tipos de Cambio'!$M$9="Rusia",LOOKUP(5,$BB$2:$BL$2,BB48:BL48),IF('Tipos de Cambio'!$M$9="Brasil",LOOKUP(6,$BB$2:$BL$2,BB48:BL48),IF('Tipos de Cambio'!$M$9="China",LOOKUP(7,$BB$2:$BL$2,BB48:BL48),IF('Tipos de Cambio'!$M$9="India",LOOKUP(8,$BB$2:$BL$2,BB48:BL48),IF('Tipos de Cambio'!$M$9="Sudáfrica",LOOKUP(9,$BB$2:$BL$2,BB48:BL48),IF('Tipos de Cambio'!$M$9="México",LOOKUP(10,$BB$2:$BL$2,BB48:BL48),IF('Tipos de Cambio'!$M$9="Colombia",LOOKUP(11,$BB$2:$BL$2,BB48:BL48)))))))))))) -> n.d. | BN48: 3.46689 | BO48: 3.24 | BP48: 3.2619 | BQ48: n.d. | BR48: 3.06027 | BS48: 5.68 | BT48: n.d. | BU48: n.d. | BV48: 28.6325 | BW48: 64.40948 | BX48: 21.45538 | BY48: n.d. | BZ48: n.d. | CA48: 3.649335 | CB48: 2.391276 | CC48: 3.577121 | CD48: 6.949873 | CE48: 1.379892489 | CF48: 1.547584438 | CG48: 4.094825286 | CH48: n.d. | CI48: n.d. | CJ48: 26.95374806 | CK48: 34.94892172 | CL48: 14.45842231 | CM48: 3.104710161 | CN48: 98.94562 | CO48: 97.30515 | CP48: 98.228 | CQ48: 98.83466 | CR48: 99.22977 | CS48: n.d. | CT48: n.d. | CU48: n.d. | CV48: n.d. | CW48: 105.0378 | CX48: 98.42249 | CY48: 100 | CZ48: 99.44126 | DA48: 97.11217 | DB48: 97.53984 | DC48: 98.2197 | DD48: 99.97623 | DE48: n.d. | DF48: n.d. | DG48: 97.28041 | DH48: n.d. | DI48: 98.83466 | DJ48: 99.22977 | DK48: 3651.25 | DL48: 742.84 | DM48: 463.56 | DN48: 6.8 | DO48: n.d. | DP48: n.d. | DQ48: n.d. | DR48: n.d. | DS48: n.d. | DT48: n.d. | DU48: n.d. | DV48: n.d. | DW48: n.d. | DX48: -0.1 | DY48: n.d. | DZ48: n.d. | EA48: n.d. | EB48: n.d. | EC48: n.d. | ED48: n.d. | EE48: n.d.
B49: septiembre | C49: 2.689313517 | D49: 3.314917127 | E49: 4.486251809 | F49: 2.197956041 | G49: 3.020670883 | H49: 1.453790239 | I49: 1065.569822 | J49: 1893.130462 | K49: n.d. | L49: 6.584354952 | M49: 8.916097316 | N49: 9.478176309 | O49: 21.43039038 | P49: n.d | Q49: n.d | R49: n.d | S49: n.d | T49: n.d | U49: n.d | V49: n.d | W49: n.d | X49: n.d | Y49: n.d | Z49: n.d | AA49: n.d | AB49: n.d | AE49: 17.5 | AF49: 16.01 | AG49: -1.49 | AH49: 355.28 | AI49: 48.41 | AJ49: 55.18864929 | AK49: 80.77128938 | AL49: 131.17 | AM49: 352 | AN49: 100.9 | AO49: 206 | AP49: n.d. | AQ49: n.d. | AR49: n.d. | AS49: n.d. | AT49: n.d. | AU49: n.d. | AV49: n.d. | AW49: n.d. | AX49: n.d. | AY49: n.d. | AZ49: n.d. | BA49: n.d. | BB49: n.d. | BC49: 1.5248 | BD49: 105.5748 | BE49: 1.3215 | BF49: n.d. | BG49: n.d. | BH49: 5.8015 | BI49: 31.5776 | BJ49: n.d. | BK49: 3.1127 | BL49: n.d. | BM49: =IF('Tipos de Cambio'!$M$9="EuroZona",LOOKUP(1,$BB$2:$BL$2,BB49:BL49),IF('Tipos de Cambio'!$M$9="Reino Unido",LOOKUP(2,$BB$2:$BL$2,BB49:BL49),IF('Tipos de Cambio'!$M$9="Japón",LOOKUP(3,$BB$2:$BL$2,BB49:BL49),IF('Tipos de Cambio'!$M$9="Canadá",LOOKUP(4,$BB$2:$BL$2,BB49:BL49),IF('Tipos de Cambio'!$M$9="Rusia",LOOKUP(5,$BB$2:$BL$2,BB49:BL49),IF('Tipos de Cambio'!$M$9="Brasil",LOOKUP(6,$BB$2:$BL$2,BB49:BL49),IF('Tipos de Cambio'!$M$9="China",LOOKUP(7,$BB$2:$BL$2,BB49:BL49),IF('Tipos de Cambio'!$M$9="India",LOOKUP(8,$BB$2:$BL$2,BB49:BL49),IF('Tipos de Cambio'!$M$9="Sudáfrica",LOOKUP(9,$BB$2:$BL$2,BB49:BL49),IF('Tipos de Cambio'!$M$9="México",LOOKUP(10,$BB$2:$BL$2,BB49:BL49),IF('Tipos de Cambio'!$M$9="Colombia",LOOKUP(11,$BB$2:$BL$2,BB49:BL49)))))))))))) -> n.d. | BN49: 3.36932 | BO49: 3.15 | BP49: 3.21023 | BQ49: n.d. | BR49: 2.6669 | BS49: 5.36 | BT49: n.d. | BU49: n.d. | BV49: 28.68652 | BW49: 64.40948 | BX49: 21.50416 | BY49: n.d. | BZ49: n.d. | CA49: 3.71094 | CB49: 2.44537 | CC49: 3.615468 | CD49: 7.082903 | CE49: 1.228653478 | CF49: 1.718119932 | CG49: 3.902599768 | CH49: n.d. | CI49: n.d. | CJ49: 28.11373894 | CK49: 34.98093717 | CL49: 14.96808339 | CM49: 4.48326836 | CN49: 99.06565 | CO49: 97.28333 | CP49: 98.39053 | CQ49: 98.53304 | CR49: 99.14842 | CS49: n.d. | CT49: n.d. | CU49: n.d. | CV49: n.d. | CW49: 105.0161 | CX49: 98.56164 | CY49: 100 | CZ49: 99.62698 | DA49: 97.28168 | DB49: 97.73824 | DC49: 98.14642 | DD49: 100.0653 | DE49: n.d. | DF49: n.d. | DG49: 96.2576 | DH49: n.d. | DI49: 98.53304 | DJ49: 99.14842 | DK49: 3555.12 | DL49: 762.78 | DM49: 458.93 | DN49: 6.7 | DO49: n.d. | DP49: n.d. | DQ49: n.d. | DR49: n.d. | DS49: n.d. | DT49: n.d. | DU49: n.d. | DV49: n.d. | DW49: n.d. | DX49: -0.1 | DY49: n.d. | DZ49: n.d. | EA49: n.d. | EB49: n.d. | EC49: n.d. | ED49: n.d. | EE49: n.d.
B50: octubre | C50: 2.750352609 | D50: 3.307607497 | E50: 4.486251809 | F50: 2.094094653 | G50: 2.535668801 | H50: 1.244813278 | I50: 1033.324469 | J50: 2031.269231 | K50: n.d. | L50: 7.377050265 | M50: 9.598570349 | N50: 9.140083096 | O50: 21.69403903 | P50: n.d | Q50: n.d | R50: n.d | S50: n.d | T50: n.d | U50: n.d | V50: n.d | W50: n.d | X50: n.d | Y50: n.d | Z50: n.d | AA50: n.d | AB50: n.d | AE50: 18.15 | AF50: 16.61 | AG50: -1.54 | AH50: 364.18 | AI50: 48.22 | AJ50: 54.79855939 | AK50: 76.63905798 | AL50: 135.95 | AM50: 333 | AN50: 106.53 | AO50: 256.75 | AP50: n.d. | AQ50: n.d. | AR50: n.d. | AS50: n.d. | AT50: n.d. | AU50: n.d. | AV50: n.d. | AW50: n.d. | AX50: n.d. | AY50: n.d. | AZ50: n.d. | BA50: n.d. | BB50: n.d. | BC50: 1.5023 | BD50: 107.02 | BE50: 1.3263 | BF50: n.d. | BG50: n.d. | BH50: 5.8013 | BI50: 31.505 | BJ50: n.d. | BK50: 3.1142 | BL50: n.d. | BM50: =IF('Tipos de Cambio'!$M$9="EuroZona",LOOKUP(1,$BB$2:$BL$2,BB50:BL50),IF('Tipos de Cambio'!$M$9="Reino Unido",LOOKUP(2,$BB$2:$BL$2,BB50:BL50),IF('Tipos de Cambio'!$M$9="Japón",LOOKUP(3,$BB$2:$BL$2,BB50:BL50),IF('Tipos de Cambio'!$M$9="Canadá",LOOKUP(4,$BB$2:$BL$2,BB50:BL50),IF('Tipos de Cambio'!$M$9="Rusia",LOOKUP(5,$BB$2:$BL$2,BB50:BL50),IF('Tipos de Cambio'!$M$9="Brasil",LOOKUP(6,$BB$2:$BL$2,BB50:BL50),IF('Tipos de Cambio'!$M$9="China",LOOKUP(7,$BB$2:$BL$2,BB50:BL50),IF('Tipos de Cambio'!$M$9="India",LOOKUP(8,$BB$2:$BL$2,BB50:BL50),IF('Tipos de Cambio'!$M$9="Sudáfrica",LOOKUP(9,$BB$2:$BL$2,BB50:BL50),IF('Tipos de Cambio'!$M$9="México",LOOKUP(10,$BB$2:$BL$2,BB50:BL50),IF('Tipos de Cambio'!$M$9="Colombia",LOOKUP(11,$BB$2:$BL$2,BB50:BL50)))))))))))) -> n.d. | BN50: 3.39286 | BO50: 3.22 | BP50: 3.3869 | BQ50: n.d. | BR50: 2.47991 | BS50: 5.33 | BT50: n.d. | BU50: n.d. | BV50: 28.72391 | BW50: 64.52401 | BX50: 21.60515 | BY50: n.d. | BZ50: n.d. | CA50: 3.766057 | CB50: 2.523816 | CC50: 3.646096 | CD50: 7.156177 | CE50: 0.9609314698 | CF50: 1.820070563 | CG50: 3.324930619 | CH50: n.d. | CI50: n.d. | CJ50: 27.33446939 | CK50: 36.09629677 | CL50: 14.59905061 | CM50: 4.846603368 | CN50: 99.34297 | CO50: 97.16225 | CP50: 98.52029 | CQ50: 98.41975 | CR50: 98.90131 | CS50: n.d. | CT50: n.d. | CU50: n.d. | CV50: n.d. | CW50: 104.6919 | CX50: 99.00735 | CY50: 100 | CZ50: 99.91104 | DA50: 97.48321 | DB50: 97.94719 | DC50: 98.06056 | DD50: 100.0405 | DE50: n.d. | DF50: n.d. | DG50: 94.63017 | DH50: n.d. | DI50: 98.41975 | DJ50: 98.90131 | DK50: 3680.59 | DL50: 779.26 | DM50: 467.83 | DN50: 6.8 | DO50: n.d. | DP50: n.d. | DQ50: n.d. | DR50: n.d. | DS50: n.d. | DT50: n.d. | DU50: n.d. | DV50: n.d. | DW50: n.d. | DX50: 0.1 | DY50: n.d. | DZ50: n.d. | EA50: n.d. | EB50: n.d. | EC50: n.d. | ED50: n.d. | EE50: n.d.
B51: noviembre | C51: 2.676056338 | D51: 3.186813187 | E51: 4.178674352 | F51: 2.092050209 | G51: 2.218706304 | H51: 0.9355509356 | I51: 946.1457157 | J51: 2258.680356 | K51: n.d. | L51: 8.60655234 | M51: 9.201379746 | N51: 8.718154063 | O51: 22.37292563 | P51: n.d | Q51: n.d | R51: n.d | S51: n.d | T51: n.d | U51: n.d | V51: n.d | W51: n.d | X51: n.d | Y51: n.d | Z51: n.d | AA51: n.d | AB51: n.d | AE51: 16.61 | AF51: 15.2 | AG51: -1.41 | AH51: 373.83 | AI51: 48.21 | AJ51: 54.91195762 | AK51: 78.59857935 | AL51: 146.61 | AM51: 357 | AN51: 116.67 | AO51: 307.75 | AP51: n.d. | AQ51: n.d. | AR51: n.d. | AS51: n.d. | AT51: n.d. | AU51: n.d. | AV51: n.d. | AW51: n.d. | AX51: n.d. | AY51: n.d. | AZ51: n.d. | BA51: n.d. | BB51: n.d. | BC51: 1.4808 | BD51: 107.8765 | BE51: 1.3174 | BF51: n.d. | BG51: n.d. | BH51: 5.8086 | BI51: 31.4335 | BJ51: n.d. | BK51: 3.1498 | BL51: n.d. | BM51: =IF('Tipos de Cambio'!$M$9="EuroZona",LOOKUP(1,$BB$2:$BL$2,BB51:BL51),IF('Tipos de Cambio'!$M$9="Reino Unido",LOOKUP(2,$BB$2:$BL$2,BB51:BL51),IF('Tipos de Cambio'!$M$9="Japón",LOOKUP(3,$BB$2:$BL$2,BB51:BL51),IF('Tipos de Cambio'!$M$9="Canadá",LOOKUP(4,$BB$2:$BL$2,BB51:BL51),IF('Tipos de Cambio'!$M$9="Rusia",LOOKUP(5,$BB$2:$BL$2,BB51:BL51),IF('Tipos de Cambio'!$M$9="Brasil",LOOKUP(6,$BB$2:$BL$2,BB51:BL51),IF('Tipos de Cambio'!$M$9="China",LOOKUP(7,$BB$2:$BL$2,BB51:BL51),IF('Tipos de Cambio'!$M$9="India",LOOKUP(8,$BB$2:$BL$2,BB51:BL51),IF('Tipos de Cambio'!$M$9="Sudáfrica",LOOKUP(9,$BB$2:$BL$2,BB51:BL51),IF('Tipos de Cambio'!$M$9="México",LOOKUP(10,$BB$2:$BL$2,BB51:BL51),IF('Tipos de Cambio'!$M$9="Colombia",LOOKUP(11,$BB$2:$BL$2,BB51:BL51)))))))))))) -> n.d. | BN51: 3.52131 | BO51: 3.36 | BP51: 3.48864 | BQ51: n.d. | BR51: 2.35511 | BS51: 5.72 | BT51: n.d. | BU51: n.d. | BV51: 28.83526 | BW51: 64.46674 | BX51: 21.76924 | BY51: n.d. | BZ51: n.d. | CA51: 3.779825 | CB51: 2.605726 | CC51: 3.698002 | CD51: 7.254843 | CE51: 1.272435321 | CF51: 1.664066456 | CG51: 3.547173401 | CH51: n.d. | CI51: n.d. | CJ51: 25.21263116 | CK51: 37.23542142 | CL51: 14.67704073 | CM51: 5.327402544 | CN51: 99.67636 | CO51: 97.10194 | CP51: 98.59583 | CQ51: 98.62556 | CR51: 98.75525 | CS51: n.d. | CT51: n.d. | CU51: n.d. | CV51: n.d. | CW51: 104.0693 | CX51: 99.60631 | CY51: 100 | CZ51: 100.1721 | DA51: 97.68179 | DB51: 98.20432 | DC51: 97.97437 | DD51: 100.1257 | DE51: n.d. | DF51: n.d. | DG51: 93.17818 | DH51: n.d. | DI51: 98.62556 | DJ51: 98.75525 | DK51: 3683.95 | DL51: 754.4 | DM51: 461.79 | DN51: 6.6 | DO51: n.d. | DP51: n.d. | DQ51: n.d. | DR51: n.d. | DS51: n.d. | DT51: n.d. | DU51: n.d. | DV51: n.d. | DW51: n.d. | DX51: -0.2 | DY51: n.d. | DZ51: n.d. | EA51: n.d. | EB51: n.d. | EC51: n.d. | ED51: n.d. | EE51: n.d.
B52: diciembre | C52: 2.748414376 | D52: 3.183315038 | E52: 4.316546763 | F52: 2.10717276 | G52: 2.373426117 | H52: 1.03950104 | I52: 840.0268233 | J52: 2477.146892 | K52: n.d. | L52: 8.641970621 | M52: 9.548620254 | N52: 8.009175636 | O52: 22.60794451 | P52: n.d | Q52: n.d | R52: n.d | S52: n.d | T52: n.d | U52: n.d | V52: n.d | W52: n.d | X52: n.d | Y52: n.d | Z52: n.d | AA52: n.d | AB52: n.d | AE52: 14.51 | AF52: 13.73 | AG52: -0.78 | AH52: 383.3 | AI52: 48.49 | AJ52: 59.23923397 | AK52: 81.2883853 | AL52: 158.73 | AM52: 411 | AN52: 121.79 | AO52: 320.5 | AP52: n.d. | AQ52: n.d. | AR52: n.d. | AS52: n.d. | AT52: n.d. | AU52: n.d. | AV52: n.d. | AW52: n.d. | AX52: n.d. | AY52: n.d. | AZ52: n.d. | BA52: n.d. | BB52: n.d. | BC52: 1.4913 | BD52: 109.913 | BE52: 1.3308 | BF52: n.d. | BG52: n.d. | BH52: 5.821 | BI52: 31.44 | BJ52: n.d. | BK52: 3.1083 | BL52: n.d. | BM52: =IF('Tipos de Cambio'!$M$9="EuroZona",LOOKUP(1,$BB$2:$BL$2,BB52:BL52),IF('Tipos de Cambio'!$M$9="Reino Unido",LOOKUP(2,$BB$2:$BL$2,BB52:BL52),IF('Tipos de Cambio'!$M$9="Japón",LOOKUP(3,$BB$2:$BL$2,BB52:BL52),IF('Tipos de Cambio'!$M$9="Canadá",LOOKUP(4,$BB$2:$BL$2,BB52:BL52),IF('Tipos de Cambio'!$M$9="Rusia",LOOKUP(5,$BB$2:$BL$2,BB52:BL52),IF('Tipos de Cambio'!$M$9="Brasil",LOOKUP(6,$BB$2:$BL$2,BB52:BL52),IF('Tipos de Cambio'!$M$9="China",LOOKUP(7,$BB$2:$BL$2,BB52:BL52),IF('Tipos de Cambio'!$M$9="India",LOOKUP(8,$BB$2:$BL$2,BB52:BL52),IF('Tipos de Cambio'!$M$9="Sudáfrica",LOOKUP(9,$BB$2:$BL$2,BB52:BL52),IF('Tipos de Cambio'!$M$9="México",LOOKUP(10,$BB$2:$BL$2,BB52:BL52),IF('Tipos de Cambio'!$M$9="Colombia",LOOKUP(11,$BB$2:$BL$2,BB52:BL52)))))))))))) -> n.d. | BN52: 3.4881 | BO52: 3.34 | BP52: 3.37351 | BQ52: n.d. | BR52: 2.10194 | BS52: 5.77 | BT52: n.d. | BU52: n.d. | BV52: 28.87182 | BW52: 64.54037 | BX52: 21.93894 | BY52: n.d. | BZ52: n.d. | CA52: 3.84111 | CB52: 2.6642 | CC52: 3.765539 | CD52: 7.359367 | CE52: 1.454142948 | CF52: 1.570557612 | CG52: 4.569487971 | CH52: n.d. | CI52: n.d. | CJ52: 25.24091312 | CK52: 37.28375824 | CL52: 15.99111386 | CM52: 6.395420787 | CN52: 100.1602 | CO52: 97.16268 | CP52: 98.72917 | CQ52: 99.00611 | CR52: 98.76855 | CS52: n.d. | CT52: n.d. | CU52: n.d. | CV52: n.d. | CW52: 103.2354 | CX52: 100.1419 | CY52: 100 | CZ52: 100.4112 | DA52: 97.88698 | DB52: 98.51068 | DC52: 97.90343 | DD52: 100.2901 | DE52: n.d. | DF52: n.d. | DG52: 92.02686 | DH52: n.d. | DI52: 99.00611 | DJ52: 98.76855 | DK52: 3754.09 | DL52: 776.82 | DM52: 466.45 | DN52: 6.5 | DO52: n.d. | DP52: n.d. | DQ52: n.d. | DR52: n.d. | DS52: n.d. | DT52: n.d. | DU52: n.d. | DV52: n.d. | DW52: n.d. | DX52: -0.1 | DY52: n.d. | DZ52: n.d. | EA52: n.d. | EB52: n.d. | EC52: n.d. | ED52: n.d. | EE52: n.d.
A53: 1994 | B53: enero | C53: 2.52454418 | D53: 2.947598253 | E53: 2.97029703 | F53: 1.834862385 | G53: 2.547766013 | H53: 1.248699272 | I53: 780.995701 | J53: 2693.837859 | K53: 21.09999083 | L53: 9.128629355 | M53: 9.965629862 | N53: 7.498081268 | O53: 22.5048507 | P53: n.d | Q53: n.d | R53: n.d | S53: n.d | T53: n.d | U53: n.d | V53: n.d | W53: n.d | X53: n.d | Y53: n.d | Z53: n.d | AA53: n.d | AB53: n.d | AE53: 15.03 | AF53: 14.29 | AG53: -0.74 | AH53: 386.88 | AI53: 48.51 | AJ53: 69.20467019 | AK53: 78.94784589 | AL53: 153.22 | AM53: 404 | AN53: 127.23 | AO53: 356 | AP53: n.d. | AQ53: n.d. | AR53: n.d. | AS53: n.d. | AT53: n.d. | AU53: n.d. | AV53: n.d. | AW53: n.d. | AX53: n.d. | AY53: n.d. | AZ53: n.d. | BA53: n.d. | BB53: n.d. | BC53: 1.4923 | BD53: 111.4415 | BE53: 1.3173 | BF53: n.d. | BG53: n.d. | BH53: 8.7219 | BI53: 31.44 | BJ53: n.d. | BK53: 3.1078 | BL53: n.d. | BM53: =IF('Tipos de Cambio'!$M$9="EuroZona",LOOKUP(1,$BB$2:$BL$2,BB53:BL53),IF('Tipos de Cambio'!$M$9="Reino Unido",LOOKUP(2,$BB$2:$BL$2,BB53:BL53),IF('Tipos de Cambio'!$M$9="Japón",LOOKUP(3,$BB$2:$BL$2,BB53:BL53),IF('Tipos de Cambio'!$M$9="Canadá",LOOKUP(4,$BB$2:$BL$2,BB53:BL53),IF('Tipos de Cambio'!$M$9="Rusia",LOOKUP(5,$BB$2:$BL$2,BB53:BL53),IF('Tipos de Cambio'!$M$9="Brasil",LOOKUP(6,$BB$2:$BL$2,BB53:BL53),IF('Tipos de Cambio'!$M$9="China",LOOKUP(7,$BB$2:$BL$2,BB53:BL53),IF('Tipos de Cambio'!$M$9="India",LOOKUP(8,$BB$2:$BL$2,BB53:BL53),IF('Tipos de Cambio'!$M$9="Sudáfrica",LOOKUP(9,$BB$2:$BL$2,BB53:BL53),IF('Tipos de Cambio'!$M$9="México",LOOKUP(10,$BB$2:$BL$2,BB53:BL53),IF('Tipos de Cambio'!$M$9="Colombia",LOOKUP(11,$BB$2:$BL$2,BB53:BL53)))))))))))) -> n.d. | BN53: 3.43008 | BO53: 3.25 | BP53: 3.27188 | BQ53: n.d. | BR53: 2.19453 | BS53: 5.75 | BT53: n.d. | BU53: n.d. | BV53: 28.87514 | BW53: 64.61399 | BX53: 22.06098 | BY53: n.d. | BZ53: n.d. | CA53: 3.938088 | CB53: 2.720741 | CC53: 3.836406 | CD53: 7.424003 | CE53: 1.631981731 | CF53: 1.620991421 | CG53: 5.27918743 | CH53: n.d. | CI53: n.d. | CJ53: 25.37824351 | CK53: 31.12643073 | CL53: 17.13569418 | CM53: 8.507295958 | CN53: 100.5768 | CO53: 97.32146 | CP53: 98.90887 | CQ53: 99.39619 | CR53: 98.85963 | CS53: n.d. | CT53: n.d. | CU53: n.d. | CV53: n.d. | CW53: 102.3422 | CX53: 100.4418 | CY53: 100 | CZ53: 100.5747 | DA53: 98.16925 | DB53: 98.78929 | DC53: 97.8642 | DD53: 100.4613 | DE53: n.d. | DF53: n.d. | DG53: 91.03365 | DH53: n.d. | DI53: 99.39619 | DJ53: 98.85963 | DK53: 3978.36 | DL53: 800.47 | DM53: 481.61 | DN53: 6.6 | DO53: n.d. | DP53: n.d. | DQ53: n.d. | DR53: n.d. | DS53: n.d. | DT53: n.d. | DU53: n.d. | DV53: n.d. | DW53: n.d. | DX53: 0.1 | DY53: n.d. | DZ53: n.d. | EA53: n.d. | EB53: n.d. | EC53: n.d. | ED53: n.d. | EE53: n.d.
B54: febrero | C54: 2.51572327 | D54: 2.931596091 | E54: 3.08988764 | F54: 1.773098767 | G54: 2.373426117 | H54: 1.143451143 | I54: 682.9345128 | J54: 3035.705725 | K54: 23.19998749 | L54: 9.958494309 | M54: 9.931503236 | N54: 7.175302961 | O54: 23.01309495 | P54: n.d | Q54: n.d | R54: n.d | S54: n.d | T54: n.d | U54: n.d | V54: n.d | W54: n.d | X54: n.d | Y54: n.d | Z54: n.d | AA54: n.d | AB54: n.d | AE54: 14.78 | AF54: 13.8 | AG54: -0.98 | AH54: 381.91 | AI54: 48.35 | AJ54: 80.65335523 | AK54: 83.92829603 | AL54: 146.97 | AM54: 387 | AN54: 123.22 | AO54: 343.75 | AP54: n.d. | AQ54: n.d. | AR54: n.d. | AS54: n.d. | AT54: n.d. | AU54: n.d. | AV54: n.d. | AW54: n.d. | AX54: n.d. | AY54: n.d. | AZ54: n.d. | BA54: n.d. | BB54: n.d. | BC54: 1.4792 | BD54: 106.3011 | BE54: 1.3424 | BF54: n.d. | BG54: n.d. | BH54: 8.7249 | BI54: 31.4489 | BJ54: n.d. | BK54: 3.1218 | BL54: n.d. | BM54: =IF('Tipos de Cambio'!$M$9="EuroZona",LOOKUP(1,$BB$2:$BL$2,BB54:BL54),IF('Tipos de Cambio'!$M$9="Reino Unido",LOOKUP(2,$BB$2:$BL$2,BB54:BL54),IF('Tipos de Cambio'!$M$9="Japón",LOOKUP(3,$BB$2:$BL$2,BB54:BL54),IF('Tipos de Cambio'!$M$9="Canadá",LOOKUP(4,$BB$2:$BL$2,BB54:BL54),IF('Tipos de Cambio'!$M$9="Rusia",LOOKUP(5,$BB$2:$BL$2,BB54:BL54),IF('Tipos de Cambio'!$M$9="Brasil",LOOKUP(6,$BB$2:$BL$2,BB54:BL54),IF('Tipos de Cambio'!$M$9="China",LOOKUP(7,$BB$2:$BL$2,BB54:BL54),IF('Tipos de Cambio'!$M$9="India",LOOKUP(8,$BB$2:$BL$2,BB54:BL54),IF('Tipos de Cambio'!$M$9="Sudáfrica",LOOKUP(9,$BB$2:$BL$2,BB54:BL54),IF('Tipos de Cambio'!$M$9="México",LOOKUP(10,$BB$2:$BL$2,BB54:BL54),IF('Tipos de Cambio'!$M$9="Colombia",LOOKUP(11,$BB$2:$BL$2,BB54:BL54)))))))))))) -> n.d. | BN54: 3.75195 | BO54: 3.53 | BP54: 3.55313 | BQ54: n.d. | BR54: 2.26328 | BS54: 5.97 | BT54: n.d. | BU54: n.d. | BV54: 28.88179 | BW54: 64.70396 | BX54: 22.18015 | BY54: n.d. | BZ54: n.d. | CA54: 4.039876 | CB54: 2.778686 | CC54: 3.905887 | CD54: 7.548603 | CE54: 1.79235787 | CF54: 1.540416654 | CG54: 5.491213326 | CH54: n.d. | CI54: n.d. | CJ54: 25.35656349 | CK54: 25.62854147 | CL54: 18.13200257 | CM54: 10.29740075 | CN54: 100.7256 | CO54: 97.6165 | CP54: 99.04813 | CQ54: 99.68922 | CR54: 98.68517 | CS54: n.d. | CT54: n.d. | CU54: n.d. | CV54: n.d. | CW54: 101.5174 | CX54: 100.5487 | CY54: 100 | CZ54: 100.6917 | DA54: 98.47626 | DB54: 99.04481 | DC54: 97.85638 | DD54: 100.5563 | DE54: n.d. | DF54: n.d. | DG54: 90.51844 | DH54: n.d. | DI54: 99.68922 | DJ54: 98.68517 | DK54: 3832.02 | DL54: 792.5 | DM54: 467.14 | DN54: 6.6 | DO54: n.d. | DP54: n.d. | DQ54: n.d. | DR54: n.d. | DS54: n.d. | DT54: n.d. | DU54: n.d. | DV54: n.d. | DW54: n.d. | DX54: 0 | DY54: n.d. | DZ54: n.d. | EA54: n.d. | EB54: n.d. | EC54: n.d. | ED54: n.d. | EE54: n.d.
B55: marzo | C55: 2.506963788 | D55: 2.813852814 | E55: 2.941176471 | F55: 1.488423374 | G55: 2.204730311 | H55: 1.348547718 | I55: 600.2077358 | J55: 3417.392734 | K55: 22.40000227 | L55: 9.876551413 | M55: 9.121623244 | N55: 7.102272943 | O55: 23.4188874 | P55: n.d | Q55: n.d | R55: n.d | S55: n.d | T55: n.d | U55: n.d | V55: n.d | W55: n.d | X55: n.d | Y55: n.d | Z55: n.d | AA55: n.d | AB55: n.d | AE55: 14.68 | AF55: 13.82 | AG55: -0.86 | AH55: 384.13 | AI55: 48.39 | AJ55: 81.82362493 | AK55: 87.00365596 | AL55: 141.1 | AM55: 395 | AN55: 119.4 | AO55: 269.75 | AP55: n.d. | AQ55: n.d. | AR55: n.d. | AS55: n.d. | AT55: n.d. | AU55: n.d. | AV55: n.d. | AW55: n.d. | AX55: n.d. | AY55: n.d. | AZ55: n.d. | BA55: n.d. | BB55: n.d. | BC55: 1.4919 | BD55: 105.0974 | BE55: 1.3644 | BF55: n.d. | BG55: n.d. | BH55: 8.7241 | BI55: 31.4147 | BJ55: n.d. | BK55: 3.3026 | BL55: n.d. | BM55: =IF('Tipos de Cambio'!$M$9="EuroZona",LOOKUP(1,$BB$2:$BL$2,BB55:BL55),IF('Tipos de Cambio'!$M$9="Reino Unido",LOOKUP(2,$BB$2:$BL$2,BB55:BL55),IF('Tipos de Cambio'!$M$9="Japón",LOOKUP(3,$BB$2:$BL$2,BB55:BL55),IF('Tipos de Cambio'!$M$9="Canadá",LOOKUP(4,$BB$2:$BL$2,BB55:BL55),IF('Tipos de Cambio'!$M$9="Rusia",LOOKUP(5,$BB$2:$BL$2,BB55:BL55),IF('Tipos de Cambio'!$M$9="Brasil",LOOKUP(6,$BB$2:$BL$2,BB55:BL55),IF('Tipos de Cambio'!$M$9="China",LOOKUP(7,$BB$2:$BL$2,BB55:BL55),IF('Tipos de Cambio'!$M$9="India",LOOKUP(8,$BB$2:$BL$2,BB55:BL55),IF('Tipos de Cambio'!$M$9="Sudáfrica",LOOKUP(9,$BB$2:$BL$2,BB55:BL55),IF('Tipos de Cambio'!$M$9="México",LOOKUP(10,$BB$2:$BL$2,BB55:BL55),IF('Tipos de Cambio'!$M$9="Colombia",LOOKUP(11,$BB$2:$BL$2,BB55:BL55)))))))))))) -> n.d. | BN55: 4.14266 | BO55: 3.92 | BP55: 3.87738 | BQ55: n.d. | BR55: 2.34171 | BS55: 6.48 | BT55: n.d. | BU55: n.d. | BV55: 28.91836 | BW55: 64.86757 | BX55: 22.3257 | BY55: n.d. | BZ55: n.d. | CA55: 4.11984 | CB55: 2.835952 | CC55: 3.960797 | CD55: 7.690009 | CE55: 2.004869139 | CF55: 1.967350362 | CG55: 5.804491752 | CH55: n.d. | CI55: n.d. | CJ55: 25.60273361 | CK55: 25.69867886 | CL55: 18.49917486 | CM55: 11.89210936 | CN55: 100.7149 | CO55: 98.13506 | CP55: 99.19669 | CQ55: 99.90733 | CR55: 98.3241 | CS55: n.d. | CT55: n.d. | CU55: n.d. | CV55: n.d. | CW55: 100.8361 | CX55: 100.5089 | CY55: 100 | CZ55: 100.7941 | DA55: 98.75894 | DB55: 99.39552 | DC55: 97.89034 | DD55: 100.4643 | DE55: n.d. | DF55: n.d. | DG55: 90.44679 | DH55: n.d. | DI55: 99.90733 | DJ55: 98.3241 | DK55: 3635.96 | DL55: 743.46 | DM55: 445.77 | DN55: 6.5 | DO55: n.d. | DP55: n.d. | DQ55: n.d. | DR55: n.d. | DS55: n.d. | DT55: n.d. | DU55: n.d. | DV55: n.d. | DW55: n.d. | DX55: -0.1 | DY55: n.d. | DZ55: n.d. | EA55: n.d. | EB55: n.d. | EC55: n.d. | ED55: n.d. | EE55: n.d.
B56: abril | C56: 2.361111111 | D56: 2.699784017 | E56: 2.793296089 | F56: 1.637990365 | G56: 2.024909664 | H56: 0.8238928939 | I56: 539.9791861 | J56: 3828.492542 | K56: 21.69999396 | L56: 9.795906839 | M56: 6.907868453 | N56: 7.00971933 | O56: 23.94174974 | P56: n.d | Q56: n.d | R56: n.d | S56: n.d | T56: n.d | U56: n.d | V56: n.d | W56: n.d | X56: n.d | Y56: n.d | Z56: n.d | AA56: n.d | AB56: n.d | AE56: 16.42 | AF56: 15.23 | AG56: -1.19 | AH56: 377.27 | AI56: 48.59 | AJ56: 83.94643975 | AK56: 90.56889623 | AL56: 140.36 | AM56: 434 | AN56: 113.23 | AO56: 269.25 | AP56: n.d. | AQ56: n.d. | AR56: n.d. | AS56: n.d. | AT56: n.d. | AU56: n.d. | AV56: n.d. | AW56: n.d. | AX56: n.d. | AY56: n.d. | AZ56: n.d. | BA56: n.d. | BB56: n.d. | BC56: 1.4823 | BD56: 103.4843 | BE56: 1.383 | BF56: n.d. | BG56: n.d. | BH56: 8.7251 | BI56: 31.3914 | BJ56: n.d. | BK56: 3.3495 | BL56: n.d. | BM56: =IF('Tipos de Cambio'!$M$9="EuroZona",LOOKUP(1,$BB$2:$BL$2,BB56:BL56),IF('Tipos de Cambio'!$M$9="Reino Unido",LOOKUP(2,$BB$2:$BL$2,BB56:BL56),IF('Tipos de Cambio'!$M$9="Japón",LOOKUP(3,$BB$2:$BL$2,BB56:BL56),IF('Tipos de Cambio'!$M$9="Canadá",LOOKUP(4,$BB$2:$BL$2,BB56:BL56),IF('Tipos de Cambio'!$M$9="Rusia",LOOKUP(5,$BB$2:$BL$2,BB56:BL56),IF('Tipos de Cambio'!$M$9="Brasil",LOOKUP(6,$BB$2:$BL$2,BB56:BL56),IF('Tipos de Cambio'!$M$9="China",LOOKUP(7,$BB$2:$BL$2,BB56:BL56),IF('Tipos de Cambio'!$M$9="India",LOOKUP(8,$BB$2:$BL$2,BB56:BL56),IF('Tipos de Cambio'!$M$9="Sudáfrica",LOOKUP(9,$BB$2:$BL$2,BB56:BL56),IF('Tipos de Cambio'!$M$9="México",LOOKUP(10,$BB$2:$BL$2,BB56:BL56),IF('Tipos de Cambio'!$M$9="Colombia",LOOKUP(11,$BB$2:$BL$2,BB56:BL56)))))))))))) -> n.d. | BN56: 4.50576 | BO56: 4.25 | BP56: 4.13158 | BQ56: n.d. | BR56: 2.3125 | BS56: 6.97 | BT56: n.d. | BU56: n.d. | BV56: 28.92833 | BW56: 65.17023 | BX56: 22.36327 | BY56: n.d. | BZ56: n.d. | CA56: 4.069106 | CB56: 2.928112 | CC56: 4.026421 | CD56: 7.754941 | CE56: 2.052023784 | CF56: 2.036367531 | CG56: 5.910866022 | CH56: n.d. | CI56: n.d. | CJ56: 21.2957832 | CK56: 27.76227352 | CL56: 18.03407914 | CM56: 12.84291666 | CN56: 100.6855 | CO56: 98.73316 | CP56: 99.42075 | CQ56: 100.0922 | CR56: 98.12658 | CS56: n.d. | CT56: n.d. | CU56: n.d. | CV56: n.d. | CW56: 100.3035 | CX56: 100.3533 | CY56: 100 | CZ56: 100.9042 | DA56: 99.0192 | DB56: 99.76614 | DC56: 97.98312 | DD56: 100.3634 | DE56: n.d. | DF56: n.d. | DG56: 90.68198 | DH56: n.d. | DI56: 100.0922 | DJ56: 98.12658 | DK56: 3681.69 | DL56: 733.84 | DM56: 450.91 | DN56: 6.4 | DO56: n.d. | DP56: n.d. | DQ56: n.d. | DR56: n.d. | DS56: n.d. | DT56: n.d. | DU56: n.d. | DV56: n.d. | DW56: n.d. | DX56: -0.1 | DY56: n.d. | DZ56: n.d. | EA56: n.d. | EB56: n.d. | EC56: n.d. | ED56: n.d. | EE56: n.d.
B57: mayo | C57: 2.288488211 | D57: 2.801724138 | E57: 2.928870293 | F57: 1.718213058 | G57: 1.860465542 | H57: 0.8230452675 | I57: 479.3413387 | J57: 4331.190018 | K57: 21.29998729 | L57: 10.56912292 | M57: 7.213146215 | N57: 6.915560951 | O57: 23.86927586 | P57: n.d | Q57: n.d | R57: n.d | S57: n.d | T57: n.d | U57: n.d | V57: n.d | W57: n.d | X57: n.d | Y57: n.d | Z57: n.d | AA57: n.d | AB57: n.d | AE57: 17.89 | AF57: 16.19 | AG57: -1.7 | AH57: 381.43 | AI57: 48.9 | AJ57: 86.09647014 | AK57: 121.8804148 | AL57: 139.99 | AM57: 488 | AN57: 109.59 | AO57: 233 | AP57: n.d. | AQ57: n.d. | AR57: n.d. | AS57: n.d. | AT57: n.d. | AU57: n.d. | AV57: n.d. | AW57: n.d. | AX57: n.d. | AY57: n.d. | AZ57: n.d. | BA57: n.d. | BB57: n.d. | BC57: 1.5042 | BD57: 103.7533 | BE57: 1.3808 | BF57: n.d. | BG57: n.d. | BH57: 8.6859 | BI57: 31.3754 | BJ57: n.d. | BK57: 3.3167 | BL57: n.d. | BM57: =IF('Tipos de Cambio'!$M$9="EuroZona",LOOKUP(1,$BB$2:$BL$2,BB57:BL57),IF('Tipos de Cambio'!$M$9="Reino Unido",LOOKUP(2,$BB$2:$BL$2,BB57:BL57),IF('Tipos de Cambio'!$M$9="Japón",LOOKUP(3,$BB$2:$BL$2,BB57:BL57),IF('Tipos de Cambio'!$M$9="Canadá",LOOKUP(4,$BB$2:$BL$2,BB57:BL57),IF('Tipos de Cambio'!$M$9="Rusia",LOOKUP(5,$BB$2:$BL$2,BB57:BL57),IF('Tipos de Cambio'!$M$9="Brasil",LOOKUP(6,$BB$2:$BL$2,BB57:BL57),IF('Tipos de Cambio'!$M$9="China",LOOKUP(7,$BB$2:$BL$2,BB57:BL57),IF('Tipos de Cambio'!$M$9="India",LOOKUP(8,$BB$2:$BL$2,BB57:BL57),IF('Tipos de Cambio'!$M$9="Sudáfrica",LOOKUP(9,$BB$2:$BL$2,BB57:BL57),IF('Tipos de Cambio'!$M$9="México",LOOKUP(10,$BB$2:$BL$2,BB57:BL57),IF('Tipos de Cambio'!$M$9="Colombia",LOOKUP(11,$BB$2:$BL$2,BB57:BL57)))))))))))) -> n.d. | BN57: 5.03438 | BO57: 4.79 | BP57: 4.65 | BQ57: n.d. | BR57: 2.22813 | BS57: 7.18 | BT57: n.d. | BU57: n.d. | BV57: 29.00727 | BW57: 65.22749 | BX57: 22.43629 | BY57: n.d. | BZ57: n.d. | CA57: 4.050209 | CB57: 3.023266 | CC57: 4.093244 | CD57: 7.866181 | CE57: 1.568276342 | CF57: 1.696207722 | CG57: 6.183263621 | CH57: n.d. | CI57: n.d. | CJ57: 17.95719744 | CK57: 29.75229064 | CL57: 18.06408366 | CM57: 14.34635828 | CN57: 100.6237 | CO57: 99.33817 | CP57: 99.64477 | CQ57: 100.2711 | CR57: 98.25341 | CS57: n.d. | CT57: n.d. | CU57: n.d. | CV57: n.d. | CW57: 99.89455 | CX57: 100.2264 | CY57: 100 | CZ57: 101.0163 | DA57: 99.22063 | DB57: 100.0288 | DC57: 98.11274 | DD57: 100.4832 | DE57: n.d. | DF57: n.d. | DG57: 91.26605 | DH57: n.d. | DI57: 100.2711 | DJ57: 98.25341 | DK57: 3758.37 | DL57: 735.19 | DM57: 456.5 | DN57: 6.1 | DO57: n.d. | DP57: n.d. | DQ57: n.d. | DR57: n.d. | DS57: n.d. | DT57: n.d. | DU57: n.d. | DV57: n.d. | DW57: n.d. | DX57: -0.3 | DY57: n.d. | DZ57: n.d. | EA57: n.d. | EB57: n.d. | EC57: n.d. | ED57: n.d. | EE57: n.d.
B58: junio | C58: 2.493074792 | D58: 2.688172043 | E58: 2.781641168 | F58: 1.732911566 | G58: 2.018636599 | H58: 0.5149330587 | I58: 412.1782733 | J58: 4922.602855 | K58: 22.59999026 | L58: 10.80000288 | M58: 7.340945536 | N58: 6.851215467 | O58: 23.08597714 | P58: n.d | Q58: n.d | R58: n.d | S58: n.d | T58: n.d | U58: n.d | V58: n.d | W58: n.d | X58: n.d | Y58: n.d | Z58: n.d | AA58: n.d | AB58: n.d | AE58: 19.06 | AF58: 16.76 | AG58: -2.3 | AH58: 385.64 | AI58: 49.5 | AJ58: 85.51133529 | AK58: 143.4306139 | AL58: 139.26 | AM58: 508 | AN58: 112.16 | AO58: 213.75 | AP58: n.d. | AQ58: n.d. | AR58: n.d. | AS58: n.d. | AT58: n.d. | AU58: n.d. | AV58: n.d. | AW58: n.d. | AX58: n.d. | AY58: n.d. | AZ58: n.d. | BA58: n.d. | BB58: n.d. | BC58: 1.5262 | BD58: 102.5264 | BE58: 1.3836 | BF58: n.d. | BG58: n.d. | BH58: 8.6836 | BI58: 31.3845 | BJ58: n.d. | BK58: 3.3671 | BL58: n.d. | BM58: =IF('Tipos de Cambio'!$M$9="EuroZona",LOOKUP(1,$BB$2:$BL$2,BB58:BL58),IF('Tipos de Cambio'!$M$9="Reino Unido",LOOKUP(2,$BB$2:$BL$2,BB58:BL58),IF('Tipos de Cambio'!$M$9="Japón",LOOKUP(3,$BB$2:$BL$2,BB58:BL58),IF('Tipos de Cambio'!$M$9="Canadá",LOOKUP(4,$BB$2:$BL$2,BB58:BL58),IF('Tipos de Cambio'!$M$9="Rusia",LOOKUP(5,$BB$2:$BL$2,BB58:BL58),IF('Tipos de Cambio'!$M$9="Brasil",LOOKUP(6,$BB$2:$BL$2,BB58:BL58),IF('Tipos de Cambio'!$M$9="China",LOOKUP(7,$BB$2:$BL$2,BB58:BL58),IF('Tipos de Cambio'!$M$9="India",LOOKUP(8,$BB$2:$BL$2,BB58:BL58),IF('Tipos de Cambio'!$M$9="Sudáfrica",LOOKUP(9,$BB$2:$BL$2,BB58:BL58),IF('Tipos de Cambio'!$M$9="México",LOOKUP(10,$BB$2:$BL$2,BB58:BL58),IF('Tipos de Cambio'!$M$9="Colombia",LOOKUP(11,$BB$2:$BL$2,BB58:BL58)))))))))))) -> n.d. | BN58: 4.9684 | BO58: 4.72 | BP58: 4.63707 | BQ58: n.d. | BR58: 2.17188 | BS58: 7.1 | BT58: n.d. | BU58: n.d. | BV58: 28.91337 | BW58: 65.26839 | BX58: 22.5209 | BY58: n.d. | BZ58: n.d. | CA58: 4.133451 | CB58: 3.083249 | CC58: 4.142064 | CD58: 7.918225 | CE58: 1.077745631 | CF58: 1.539843743 | CG58: 6.224497352 | CH58: n.d. | CI58: n.d. | CJ58: 17.53483576 | CK58: 29.73006292 | CL58: 18.66729122 | CM58: 15.52844665 | CN58: 100.5186 | CO58: 99.82001 | CP58: 99.72361 | CQ58: 100.456 | CR58: 98.61005 | CS58: n.d. | CT58: n.d. | CU58: n.d. | CV58: n.d. | CW58: 99.60562 | CX58: 100.3199 | CY58: 100 | CZ58: 101.091 | DA58: 99.39367 | DB58: 100.2109 | DC58: 98.26163 | DD58: 100.7123 | DE58: n.d. | DF58: n.d. | DG58: 92.10113 | DH58: n.d. | DI58: 100.456 | DJ58: 98.61005 | DK58: 3624.96 | DL58: 705.93 | DM58: 444.27 | DN58: 6.1 | DO58: n.d. | DP58: n.d. | DQ58: n.d. | DR58: n.d. | DS58: n.d. | DT58: n.d. | DU58: n.d. | DV58: n.d. | DW58: n.d. | DX58: 0 | DY58: n.d. | DZ58: n.d. | EA58: n.d. | EB58: n.d. | EC58: n.d. | ED58: n.d. | EE58: n.d.
B59: julio | C59: 2.770083102 | D59: 2.572347267 | E59: 2.35131397 | F59: 1.635289268 | G59: 1.713393348 | H59: -0.205338809 | I59: 340.7493554 | J59: 4005.076476 | K59: 24.00000091 | L59: 11.06718106 | M59: 8.090579767 | N59: 6.811909485 | O59: 22.69979531 | P59: n.d | Q59: n.d | R59: n.d | S59: n.d | T59: n.d | U59: n.d | V59: n.d | W59: n.d | X59: n.d | Y59: n.d | Z59: n.d | AA59: n.d | AB59: n.d | AE59: 19.65 | AF59: 17.6 | AG59: -2.05 | AH59: 385.49 | AI59: 50.07 | AJ59: 81.69661892 | AK59: 218.8857944 | AL59: 137.42 | AM59: 494 | AN59: 97.83 | AO59: 226.25 | AP59: n.d. | AQ59: n.d. | AR59: n.d. | AS59: n.d. | AT59: n.d. | AU59: n.d. | AV59: n.d. | AW59: n.d. | AX59: n.d. | AY59: n.d. | AZ59: n.d. | BA59: n.d. | BB59: n.d. | BC59: 1.5467 | BD59: 98.445 | BE59: 1.3826 | BF59: n.d. | BG59: n.d. | BH59: 8.6605 | BI59: 31.3764 | BJ59: n.d. | BK59: 3.4031 | BL59: n.d. | BM59: =IF('Tipos de Cambio'!$M$9="EuroZona",LOOKUP(1,$BB$2:$BL$2,BB59:BL59),IF('Tipos de Cambio'!$M$9="Reino Unido",LOOKUP(2,$BB$2:$BL$2,BB59:BL59),IF('Tipos de Cambio'!$M$9="Japón",LOOKUP(3,$BB$2:$BL$2,BB59:BL59),IF('Tipos de Cambio'!$M$9="Canadá",LOOKUP(4,$BB$2:$BL$2,BB59:BL59),IF('Tipos de Cambio'!$M$9="Rusia",LOOKUP(5,$BB$2:$BL$2,BB59:BL59),IF('Tipos de Cambio'!$M$9="Brasil",LOOKUP(6,$BB$2:$BL$2,BB59:BL59),IF('Tipos de Cambio'!$M$9="China",LOOKUP(7,$BB$2:$BL$2,BB59:BL59),IF('Tipos de Cambio'!$M$9="India",LOOKUP(8,$BB$2:$BL$2,BB59:BL59),IF('Tipos de Cambio'!$M$9="Sudáfrica",LOOKUP(9,$BB$2:$BL$2,BB59:BL59),IF('Tipos de Cambio'!$M$9="México",LOOKUP(10,$BB$2:$BL$2,BB59:BL59),IF('Tipos de Cambio'!$M$9="Colombia",LOOKUP(11,$BB$2:$BL$2,BB59:BL59)))))))))))) -> n.d. | BN59: 5.27976 | BO59: 4.95 | BP59: 4.85826 | BQ59: n.d. | BR59: 2.19345 | BS59: 7.3 | BT59: n.d. | BU59: n.d. | BV59: 28.98566 | BW59: 65.59559 | BX59: 22.52719 | BY59: n.d. | BZ59: n.d. | CA59: 4.21948 | CB59: 3.174273 | CC59: 4.208702 | CD59: 7.954127 | CE59: 1.342225094 | CF59: 2.061866096 | CG59: 5.558367048 | CH59: n.d. | CI59: n.d. | CJ59: 17.36514488 | CK59: 33.28433225 | CL59: 19.32972153 | CM59: 16.14146371 | CN59: 100.4468 | CO59: 100.0901 | CP59: 99.72472 | CQ59: 100.6487 | CR59: 98.9833 | CS59: n.d. | CT59: n.d. | CU59: n.d. | CV59: n.d. | CW59: 99.46228 | CX59: 100.78 | CY59: 100 | CZ59: 101.1106 | DA59: 99.5953 | DB59: 100.3788 | DC59: 98.42349 | DD59: 100.9414 | DE59: n.d. | DF59: n.d. | DG59: 93.21676 | DH59: n.d. | DI59: 100.6487 | DJ59: 98.9833 | DK59: 3764.5 | DL59: 722.16 | DM59: 458.26 | DN59: 6.1 | DO59: n.d. | DP59: n.d. | DQ59: n.d. | DR59: n.d. | DS59: n.d. | DT59: n.d. | DU59: n.d. | DV59: n.d. | DW59: n.d. | DX59: 0 | DY59: n.d. | DZ59: n.d. | EA59: n.d. | EB59: n.d. | EC59: n.d. | ED59: n.d. | EE59: n.d.
B60: agosto | C60: 2.900552486 | D60: 2.676659529 | E60: 2.627939142 | F60: 1.621547341 | G60: 1.860465542 | H60: 0 | I60: 265.9618906 | J60: 3044.891107 | K60: 25.79999777 | L60: 10.93750619 | M60: 9.178731241 | N60: 6.738445405 | O60: 22.35968542 | P60: n.d | Q60: n.d | R60: n.d | S60: n.d | T60: n.d | U60: n.d | V60: n.d | W60: n.d | X60: n.d | Y60: n.d | Z60: n.d | AA60: n.d | AB60: n.d | AE60: 18.38 | AF60: 16.89 | AG60: -1.49 | AH60: 380.36 | AI60: 48.28 | AJ60: 76.67080948 | AK60: 200.4381708 | AL60: 145.87 | AM60: 575 | AN60: 95.99 | AO60: 252.6 | AP60: n.d. | AQ60: n.d. | AR60: n.d. | AS60: n.d. | AT60: n.d. | AU60: n.d. | AV60: n.d. | AW60: n.d. | AX60: n.d. | AY60: n.d. | AZ60: n.d. | BA60: n.d. | BB60: n.d. | BC60: 1.5422 | BD60: 99.9404 | BE60: 1.3783 | BF60: n.d. | BG60: n.d. | BH60: 8.6072 | BI60: 31.3727 | BJ60: n.d. | BK60: 3.3814 | BL60: n.d. | BM60: =IF('Tipos de Cambio'!$M$9="EuroZona",LOOKUP(1,$BB$2:$BL$2,BB60:BL60),IF('Tipos de Cambio'!$M$9="Reino Unido",LOOKUP(2,$BB$2:$BL$2,BB60:BL60),IF('Tipos de Cambio'!$M$9="Japón",LOOKUP(3,$BB$2:$BL$2,BB60:BL60),IF('Tipos de Cambio'!$M$9="Canadá",LOOKUP(4,$BB$2:$BL$2,BB60:BL60),IF('Tipos de Cambio'!$M$9="Rusia",LOOKUP(5,$BB$2:$BL$2,BB60:BL60),IF('Tipos de Cambio'!$M$9="Brasil",LOOKUP(6,$BB$2:$BL$2,BB60:BL60),IF('Tipos de Cambio'!$M$9="China",LOOKUP(7,$BB$2:$BL$2,BB60:BL60),IF('Tipos de Cambio'!$M$9="India",LOOKUP(8,$BB$2:$BL$2,BB60:BL60),IF('Tipos de Cambio'!$M$9="Sudáfrica",LOOKUP(9,$BB$2:$BL$2,BB60:BL60),IF('Tipos de Cambio'!$M$9="México",LOOKUP(10,$BB$2:$BL$2,BB60:BL60),IF('Tipos de Cambio'!$M$9="Colombia",LOOKUP(11,$BB$2:$BL$2,BB60:BL60)))))))))))) -> n.d. | BN60: 5.28161 | BO60: 5.08 | BP60: 4.91832 | BQ60: n.d. | BR60: 2.33097 | BS60: 7.24 | BT60: n.d. | BU60: n.d. | BV60: 28.96489 | BW60: 65.71011 | BX60: 22.58426 | BY60: n.d. | BZ60: 2.731764 | CA60: 4.323248 | CB60: 3.272449 | CC60: 4.264457 | CD60: 8.062306 | CE60: 1.160883611 | CF60: 2.019314548 | CG60: 5.261524149 | CH60: n.d. | CI60: n.d. | CJ60: 18.46673435 | CK60: 36.84948956 | CL60: 19.21478194 | CM60: 16.00652271 | CN60: 100.4923 | CO60: 100.25 | CP60: 99.82063 | CQ60: 100.8398 | CR60: 99.30476 | CS60: n.d. | CT60: n.d. | CU60: n.d. | CV60: n.d. | CW60: 99.48762 | CX60: 101.3924 | CY60: 100 | CZ60: 101.1298 | DA60: 99.86508 | DB60: 100.6025 | DC60: 98.59058 | DD60: 101.2141 | DE60: n.d. | DF60: n.d. | DG60: 94.9226 | DH60: n.d. | DI60: 100.8398 | DJ60: 99.30476 | DK60: 3913.42 | DL60: 765.62 | DM60: 475.49 | DN60: 6 | DO60: n.d. | DP60: n.d. | DQ60: n.d. | DR60: n.d. | DS60: n.d. | DT60: n.d. | DU60: n.d. | DV60: n.d. | DW60: n.d. | DX60: -0.1 | DY60: n.d. | DZ60: n.d. | EA60: n.d. | EB60: n.d. | EC60: n.d. | ED60: n.d. | EE60: n.d.
B61: septiembre | C61: 2.963473467 | D61: 2.673796791 | E61: 2.493074792 | F61: 1.616438356 | G61: 1.543205052 | H61: 0.2047082907 | I61: 221.2133426 | J61: 2253.152774 | K61: 27.30002443 | L61: 11.19692199 | M61: 10.11235784 | N61: 6.707257092 | O61: 22.31707025 | P61: n.d | Q61: n.d | R61: n.d | S61: n.d | T61: n.d | U61: n.d | V61: n.d | W61: n.d | X61: n.d | Y61: n.d | Z61: n.d | AA61: n.d | AB61: n.d | AE61: 17.45 | AF61: 15.9 | AG61: -1.55 | AH61: 391.58 | AI61: 48.02 | AJ61: 75.10591394 | AK61: 222.0019777 | AL61: 158.73 | AM61: 614 | AN61: 97.51 | AO61: 259.75 | AP61: n.d. | AQ61: n.d. | AR61: n.d. | AS61: n.d. | AT61: n.d. | AU61: n.d. | AV61: n.d. | AW61: n.d. | AX61: n.d. | AY61: n.d. | AZ61: n.d. | BA61: n.d. | BB61: n.d. | BC61: 1.5661 | BD61: 98.7743 | BE61: 1.354 | BF61: n.d. | BG61: n.d. | BH61: 8.5581 | BI61: 31.3723 | BJ61: n.d. | BK61: 3.4022 | BL61: n.d. | BM61: =IF('Tipos de Cambio'!$M$9="EuroZona",LOOKUP(1,$BB$2:$BL$2,BB61:BL61),IF('Tipos de Cambio'!$M$9="Reino Unido",LOOKUP(2,$BB$2:$BL$2,BB61:BL61),IF('Tipos de Cambio'!$M$9="Japón",LOOKUP(3,$BB$2:$BL$2,BB61:BL61),IF('Tipos de Cambio'!$M$9="Canadá",LOOKUP(4,$BB$2:$BL$2,BB61:BL61),IF('Tipos de Cambio'!$M$9="Rusia",LOOKUP(5,$BB$2:$BL$2,BB61:BL61),IF('Tipos de Cambio'!$M$9="Brasil",LOOKUP(6,$BB$2:$BL$2,BB61:BL61),IF('Tipos de Cambio'!$M$9="China",LOOKUP(7,$BB$2:$BL$2,BB61:BL61),IF('Tipos de Cambio'!$M$9="India",LOOKUP(8,$BB$2:$BL$2,BB61:BL61),IF('Tipos de Cambio'!$M$9="Sudáfrica",LOOKUP(9,$BB$2:$BL$2,BB61:BL61),IF('Tipos de Cambio'!$M$9="México",LOOKUP(10,$BB$2:$BL$2,BB61:BL61),IF('Tipos de Cambio'!$M$9="Colombia",LOOKUP(11,$BB$2:$BL$2,BB61:BL61)))))))))))) -> n.d. | BN61: 5.48828 | BO61: 5.24 | BP61: 5.12784 | BQ61: n.d. | BR61: 2.37571 | BS61: 7.46 | BT61: n.d. | BU61: n.d. | BV61: 28.96821 | BW61: 65.98005 | BX61: 22.69894 | BY61: n.d. | BZ61: 2.874224 | CA61: 4.433478 | CB61: 3.345148 | CC61: 4.337437 | CD61: 8.108702 | CE61: 0.9819594709 | CF61: 2.438414345 | CG61: 5.55604125 | CH61: =IFERROR((BY61/BY49-1)*100,"n.d.") -> n.d. | CI61: n.d. | CJ61: 19.47048457 | CK61: 36.79516801 | CL61: 19.96889476 | CM61: 14.4827481 | CN61: 100.5622 | CO61: 100.4681 | CP61: 100.0109 | CQ61: 101.0004 | CR61: 99.46362 | CS61: n.d. | CT61: n.d. | CU61: n.d. | CV61: n.d. | CW61: 99.68517 | CX61: 101.8732 | CY61: 100 | CZ61: 101.1937 | DA61: 100.1739 | DB61: 100.8482 | DC61: 98.75765 | DD61: 101.3133 | DE61: n.d. | DF61: n.d. | DG61: 96.63258 | DH61: n.d. | DI61: 101.0004 | DJ61: 99.46362 | DK61: 3843.18 | DL61: 764.42 | DM61: 462.69 | DN61: 5.9 | DO61: n.d. | DP61: n.d. | DQ61: n.d. | DR61: n.d. | DS61: n.d. | DT61: n.d. | DU61: n.d. | DV61: n.d. | DW61: n.d. | DX61: -0.1 | DY61: n.d. | DZ61: n.d. | EA61: n.d. | EB61: n.d. | EC61: n.d. | ED61: n.d. | EE61: n.d.
B62: octubre | C62: 2.608098833 | D62: 2.561366062 | E62: 2.354570637 | F62: 1.65458772 | G62: 1.391028196 | H62: 0.8196721311 | I62: 209.1174971 | J62: 1703.174504 | K62: 27.69998612 | L62: 10.30534492 | M62: 9.713398389 | N62: 6.830545761 | O62: 22.37556501 | P62: n.d | Q62: n.d | R62: n.d | S62: n.d | T62: n.d | U62: n.d | V62: n.d | W62: n.d | X62: n.d | Y62: n.d | Z62: n.d | AA62: n.d | AB62: n.d | AE62: 17.72 | AF62: 16.49 | AG62: -1.23 | AH62: 389.77 | AI62: 47.45 | AJ62: 74.06718618 | AK62: 201.8488447 | AL62: 167.18 | AM62: 616 | AN62: 96.48 | AO62: 262 | AP62: n.d. | AQ62: n.d. | AR62: n.d. | AS62: n.d. | AT62: n.d. | AU62: n.d. | AV62: n.d. | AW62: n.d. | AX62: n.d. | AY62: n.d. | AZ62: n.d. | BA62: n.d. | BB62: n.d. | BC62: 1.6064 | BD62: 98.353 | BE62: 1.3503 | BF62: n.d. | BG62: n.d. | BH62: 8.5492 | BI62: 31.3726 | BJ62: n.d. | BK62: 3.4212 | BL62: n.d. | BM62: =IF('Tipos de Cambio'!$M$9="EuroZona",LOOKUP(1,$BB$2:$BL$2,BB62:BL62),IF('Tipos de Cambio'!$M$9="Reino Unido",LOOKUP(2,$BB$2:$BL$2,BB62:BL62),IF('Tipos de Cambio'!$M$9="Japón",LOOKUP(3,$BB$2:$BL$2,BB62:BL62),IF('Tipos de Cambio'!$M$9="Canadá",LOOKUP(4,$BB$2:$BL$2,BB62:BL62),IF('Tipos de Cambio'!$M$9="Rusia",LOOKUP(5,$BB$2:$BL$2,BB62:BL62),IF('Tipos de Cambio'!$M$9="Brasil",LOOKUP(6,$BB$2:$BL$2,BB62:BL62),IF('Tipos de Cambio'!$M$9="China",LOOKUP(7,$BB$2:$BL$2,BB62:BL62),IF('Tipos de Cambio'!$M$9="India",LOOKUP(8,$BB$2:$BL$2,BB62:BL62),IF('Tipos de Cambio'!$M$9="Sudáfrica",LOOKUP(9,$BB$2:$BL$2,BB62:BL62),IF('Tipos de Cambio'!$M$9="México",LOOKUP(10,$BB$2:$BL$2,BB62:BL62),IF('Tipos de Cambio'!$M$9="Colombia",LOOKUP(11,$BB$2:$BL$2,BB62:BL62)))))))))))) -> n.d. | BN62: 5.89435 | BO62: 5.62 | BP62: 5.6224 | BQ62: n.d. | BR62: 2.38542 | BS62: 7.74 | BT62: n.d. | BU62: n.d. | BV62: 28.95326 | BW62: 66.10275 | BX62: 22.76894 | BY62: n.d. | BZ62: 3.011426 | CA62: 4.510748 | CB62: 3.424112 | CC62: 4.435031 | CD62: 8.192433 | CE62: =IFERROR((BV62/BV50-1)*100,"n.d.") -> 0.7984637189 | CF62: 2.446748117 | CG62: 5.386632354 | CH62: n.d. | CI62: n.d. | CJ62: 19.77375807 | CK62: 35.67201412 | CL62: 21.63780109 | CM62: 14.4805809 | CN62: 100.6553 | CO62: 100.6877 | CP62: 100.0356 | CQ62: 101.0747 | CR62: 99.54324 | CS62: n.d. | CT62: n.d. | CU62: n.d. | CV62: n.d. | CW62: 100.0536 | CX62: 102.0069 | CY62: 100 | CZ62: 101.2136 | DA62: 100.4659 | DB62: 101.0483 | DC62: 98.92054 | DD62: 101.3827 | DE62: n.d. | DF62: n.d. | DG62: 97.56711 | DH62: n.d. | DI62: 101.0747 | DJ62: 99.54324 | DK62: 3908.12 | DL62: 777.49 | DM62: 472.35 | DN62: 5.8 | DO62: n.d. | DP62: n.d. | DQ62: n.d. | DR62: n.d. | DS62: n.d. | DT62: n.d. | DU62: n.d. | DV62: n.d. | DW62: n.d. | DX62: -0.1 | DY62: n.d. | DZ62: n.d. | EA62: n.d. | EB62: n.d. | EC62: n.d. | ED62: n.d. | EE62: n.d.
B63: noviembre | C63: 2.674897119 | D63: 2.449414271 | E63: 2.35131397 | F63: 1.571038251 | G63: 1.860465542 | H63: 1.029866117 | I63: 204.3638916 | J63: 1267.537858 | K63: 27.50001659 | L63: 9.811318784 | M63: 9.856908192 | N63: 6.929969501 | O63: 22.16432937 | P63: n.d | Q63: n.d | R63: n.d | S63: n.d | T63: n.d | U63: n.d | V63: n.d | W63: n.d | X63: n.d | Y63: n.d | Z63: n.d | AA63: n.d | AB63: n.d | AE63: 18.07 | AF63: 17.19 | AG63: -0.88 | AH63: 384.39 | AI63: 47.56 | AJ63: 77.55077973 | AK63: 182.9113407 | AL63: 162.04 | AM63: 707 | AN63: 95.47 | AO63: 264.5 | AP63: n.d. | AQ63: n.d. | AR63: n.d. | AS63: n.d. | AT63: n.d. | AU63: n.d. | AV63: n.d. | AW63: n.d. | AX63: n.d. | AY63: n.d. | AZ63: n.d. | BA63: n.d. | BB63: n.d. | BC63: 1.5892 | BD63: 98.044 | BE63: 1.3647 | BF63: n.d. | BG63: n.d. | BH63: 8.537 | BI63: 31.394 | BJ63: n.d. | BK63: 3.4425 | BL63: n.d. | BM63: =IF('Tipos de Cambio'!$M$9="EuroZona",LOOKUP(1,$BB$2:$BL$2,BB63:BL63),IF('Tipos de Cambio'!$M$9="Reino Unido",LOOKUP(2,$BB$2:$BL$2,BB63:BL63),IF('Tipos de Cambio'!$M$9="Japón",LOOKUP(3,$BB$2:$BL$2,BB63:BL63),IF('Tipos de Cambio'!$M$9="Canadá",LOOKUP(4,$BB$2:$BL$2,BB63:BL63),IF('Tipos de Cambio'!$M$9="Rusia",LOOKUP(5,$BB$2:$BL$2,BB63:BL63),IF('Tipos de Cambio'!$M$9="Brasil",LOOKUP(6,$BB$2:$BL$2,BB63:BL63),IF('Tipos de Cambio'!$M$9="China",LOOKUP(7,$BB$2:$BL$2,BB63:BL63),IF('Tipos de Cambio'!$M$9="India",LOOKUP(8,$BB$2:$BL$2,BB63:BL63),IF('Tipos de Cambio'!$M$9="Sudáfrica",LOOKUP(9,$BB$2:$BL$2,BB63:BL63),IF('Tipos de Cambio'!$M$9="México",LOOKUP(10,$BB$2:$BL$2,BB63:BL63),IF('Tipos de Cambio'!$M$9="Colombia",LOOKUP(11,$BB$2:$BL$2,BB63:BL63)))))))))))) -> n.d. | BN63: 6.20916 | BO63: 5.98 | BP63: 5.88104 | BQ63: n.d. | BR63: 2.375 | BS63: 7.96 | BT63: n.d. | BU63: n.d. | BV63: 28.97735 | BW63: 66.19273 | BX63: 22.87007 | BY63: n.d. | BZ63: 3.132388 | CA63: 4.53524 | CB63: 3.506343 | CC63: 4.49903 | CD63: 8.306296 | CE63: 0.4927647609 | CF63: 2.67733408 | CG63: 5.05681411 | CH63: n.d. | CI63: n.d. | CJ63: 19.98544906 | CK63: 34.56299703 | CL63: 21.6611024 | CM63: 14.4931186 | CN63: 100.7684 | CO63: 100.6728 | CP63: 100.0259 | CQ63: 101.0035 | CR63: 99.47626 | CS63: n.d. | CT63: n.d. | CU63: n.d. | CV63: n.d. | CW63: 100.5498 | CX63: 101.9163 | CY63: 100 | CZ63: 101.1124 | DA63: 100.6826 | DB63: 101.1573 | DC63: 99.0748 | DD63: 101.5604 | DE63: n.d. | DF63: n.d. | DG63: 97.72526 | DH63: n.d. | DI63: 101.0035 | DJ63: 99.47626 | DK63: 3739.22 | DL63: 750.32 | DM63: 453.69 | DN63: 5.6 | DO63: n.d. | DP63: n.d. | DQ63: n.d. | DR63: n.d. | DS63: n.d. | DT63: n.d. | DU63: n.d. | DV63: n.d. | DW63: n.d. | DX63: -0.2 | DY63: n.d. | DZ63: n.d. | EA63: n.d. | EB63: n.d. | EC63: n.d. | ED63: n.d. | EE63: n.d.
B64: diciembre | C64: 2.674897119 | D64: 2.553191489 | E64: 2.344827586 | F64: 1.585349187 | G64: 2.00927646 | H64: 0.6172839506 | I64: 215.0233291 | J64: 916.46 | K64: 25.50000062 | L64: 9.469708885 | M64: 9.825664368 | N64: 7.051552945 | O64: 22.59584103 | P64: n.d | Q64: n.d | R64: n.d | S64: n.d | T64: n.d | U64: n.d | V64: n.d | W64: n.d | X64: n.d | Y64: n.d | Z64: n.d | AA64: n.d | AB64: n.d | AE64: 17.16 | AF64: 15.93 | AG64: -1.23 | AH64: 379.29 | AI64: 49.19 | AJ64: 87.17148534 | AK64: 168.5415174 | AL64: 164.61 | AM64: 719 | AN64: 102.49 | AO64: 260.5 | AP64: n.d. | AQ64: n.d. | AR64: n.d. | AS64: n.d. | AT64: n.d. | AU64: n.d. | AV64: n.d. | AW64: n.d. | AX64: n.d. | AY64: n.d. | AZ64: n.d. | BA64: n.d. | BB64: n.d. | BC64: 1.5587 | BD64: 100.1824 | BE64: 1.3893 | BF64: n.d. | BG64: n.d. | BH64: 8.5033 | BI64: 31.3894 | BJ64: n.d. | BK64: 3.9748 | BL64: n.d. | BM64: =IF('Tipos de Cambio'!$M$9="EuroZona",LOOKUP(1,$BB$2:$BL$2,BB64:BL64),IF('Tipos de Cambio'!$M$9="Reino Unido",LOOKUP(2,$BB$2:$BL$2,BB64:BL64),IF('Tipos de Cambio'!$M$9="Japón",LOOKUP(3,$BB$2:$BL$2,BB64:BL64),IF('Tipos de Cambio'!$M$9="Canadá",LOOKUP(4,$BB$2:$BL$2,BB64:BL64),IF('Tipos de Cambio'!$M$9="Rusia",LOOKUP(5,$BB$2:$BL$2,BB64:BL64),IF('Tipos de Cambio'!$M$9="Brasil",LOOKUP(6,$BB$2:$BL$2,BB64:BL64),IF('Tipos de Cambio'!$M$9="China",LOOKUP(7,$BB$2:$BL$2,BB64:BL64),IF('Tipos de Cambio'!$M$9="India",LOOKUP(8,$BB$2:$BL$2,BB64:BL64),IF('Tipos de Cambio'!$M$9="Sudáfrica",LOOKUP(9,$BB$2:$BL$2,BB64:BL64),IF('Tipos de Cambio'!$M$9="México",LOOKUP(10,$BB$2:$BL$2,BB64:BL64),IF('Tipos de Cambio'!$M$9="Colombia",LOOKUP(11,$BB$2:$BL$2,BB64:BL64)))))))))))) -> n.d. | BN64: 6.86289 | BO64: 6.5 | BP64: 6.38438 | BQ64: n.d. | BR64: 2.38125 | BS64: 7.81 | BT64: n.d. | BU64: n.d. | BV64: 28.97071 | BW64: 66.38087 | BX64: 23.00973 | BY64: n.d. | BZ64: 3.262094 | CA64: 4.638687 | CB64: 3.583316 | CC64: 4.548928 | CD64: 8.439641 | CE64: 0.3425139115 | CF64: 2.851703515 | CG64: 4.880773638 | CH64: n.d. | CI64: n.d. | CJ64: 20.76423221 | CK64: 34.49876135 | CL64: 20.80416642 | CM64: 14.67889833 | CN64: 100.943 | CO64: 100.5074 | CP64: 100.0492 | CQ64: 100.8338 | CR64: 99.30608 | CS64: n.d. | CT64: n.d. | CU64: n.d. | CV64: n.d. | CW64: 101.121 | CX64: 101.7523 | CY64: 100 | CZ64: 100.8885 | DA64: 100.826 | DB64: 101.202 | DC64: 99.21011 | DD64: 101.7344 | DE64: n.d. | DF64: n.d. | DG64: 97.53638 | DH64: n.d. | DI64: 100.8338 | DJ64: 99.30608 | DK64: 3834.44 | DL64: 751.96 | DM64: 459.27 | DN64: 5.5 | DO64: n.d. | DP64: n.d. | DQ64: n.d. | DR64: n.d. | DS64: n.d. | DT64: n.d. | DU64: n.d. | DV64: n.d. | DW64: n.d. | DX64: -0.1 | DY64: n.d. | DZ64: n.d. | EA64: =IFERROR(DQ64-DQ63, "n.d.") -> n.d. | EB64: n.d. | EC64: n.d. | ED64: n.d. | EE64: n.d.
A65: 1995 | B65: enero | C65: 2.804377565 | D65: 2.43902439 | E65: 2.335164835 | F65: 1.71990172 | G65: 2.484482862 | H65: 0.5138746146 | I65: 214.6759004 | J65: 631.5405845 | K65: 24.09999944 | L65: 9.885928624 | M65: 9.687490974 | N65: 10.22639543 | O65: 21.04548265 | P65: n.d | Q65: n.d | R65: n.d | S65: n.d | T65: n.d | U65: n.d | V65: n.d | W65: n.d | X65: n.d | Y65: n.d | Z65: n.d | AA65: n.d | AB65: n.d | AE65: 18.04 | AF65: 16.55 | AG65: -1.49 | AH65: 378.55 | AI65: 49.95 | AJ65: 95.61738531 | AK65: 172.6193176 | AL65: 156.16 | AM65: 655 | AN65: 106.96 | AO65: 276.8 | AP65: n.d. | AQ65: n.d. | AR65: n.d. | AS65: n.d. | AT65: n.d. | AU65: n.d. | AV65: n.d. | AW65: n.d. | AX65: n.d. | AY65: n.d. | AZ65: n.d. | BA65: n.d. | BB65: 1.240815 | BC65: 1.5746 | BD65: 99.766 | BE65: 1.4132 | BF65: n.d. | BG65: 0.8461 | BH65: 8.4608 | BI65: 31.3736 | BJ65: n.d. | BK65: 5.6405 | BL65: n.d. | BM65: =IF('Tipos de Cambio'!$M$9="EuroZona",LOOKUP(1,$BB$2:$BL$2,BB65:BL65),IF('Tipos de Cambio'!$M$9="Reino Unido",LOOKUP(2,$BB$2:$BL$2,BB65:BL65),IF('Tipos de Cambio'!$M$9="Japón",LOOKUP(3,$BB$2:$BL$2,BB65:BL65),IF('Tipos de Cambio'!$M$9="Canadá",LOOKUP(4,$BB$2:$BL$2,BB65:BL65),IF('Tipos de Cambio'!$M$9="Rusia",LOOKUP(5,$BB$2:$BL$2,BB65:BL65),IF('Tipos de Cambio'!$M$9="Brasil",LOOKUP(6,$BB$2:$BL$2,BB65:BL65),IF('Tipos de Cambio'!$M$9="China",LOOKUP(7,$BB$2:$BL$2,BB65:BL65),IF('Tipos de Cambio'!$M$9="India",LOOKUP(8,$BB$2:$BL$2,BB65:BL65),IF('Tipos de Cambio'!$M$9="Sudáfrica",LOOKUP(9,$BB$2:$BL$2,BB65:BL65),IF('Tipos de Cambio'!$M$9="México",LOOKUP(10,$BB$2:$BL$2,BB65:BL65),IF('Tipos de Cambio'!$M$9="Colombia",LOOKUP(11,$BB$2:$BL$2,BB65:BL65)))))))))))) -> n.d. | BN65: 6.79501 | BO65: 6.51 | BP65: 6.33743 | BQ65: n.d. | BR65: 2.36086 | BS65: 7.78 | BT65: n.d. | BU65: n.d. | BV65: 29.02057 | BW65: 66.57719 | BX65: 23.10576 | BY65: n.d. | BZ65: 3.400568 | CA65: 4.745953 | CB65: 3.678381 | CC65: 4.585485 | CD65: 8.473846 | CE65: 0.5036512377 | CF65: 3.038351292 | CG65: 4.735873021 | CH65: n.d. | CI65: n.d. | CJ65: 20.5141429 | CK65: 35.19776414 | CL65: 19.52554031 | CM65: 14.14119849 | CN65: 101.0242 | CO65: 100.4046 | CP65: 100.0426 | CQ65: 100.6062 | CR65: 99.3468 | CS65: n.d. | CT65: n.d. | CU65: n.d. | CV65: n.d. | CW65: 101.7299 | CX65: 101.6076 | CY65: 100 | CZ65: 100.6753 | DA65: 100.9028 | DB65: 101.1985 | DC65: 99.31329 | DD65: 101.8076 | DE65: n.d. | DF65: n.d. | DG65: 97.09608 | DH65: n.d. | DI65: 100.6062 | DJ65: 99.3468 | DK65: 3843.86 | DL65: 755.2 | DM65: 470.42 | DN65: 5.6 | DO65: n.d. | DP65: n.d. | DQ65: n.d. | DR65: n.d. | DS65: n.d. | DT65: n.d. | DU65: n.d. | DV65: n.d. | DW65: n.d. | DX65: =IFERROR(DN65-DN64, "n.d.") -> 0.1 | DY65: n.d. | DZ65: n.d. | EA65: n.d. | EB65: n.d. | EC65: n.d. | ED65: n.d. | EE65: n.d.
B66: febrero | C66: 2.862985685 | D66: 2.426160338 | E66: 2.04359673 | F66: 1.742207704 | G66: 2.472947459 | H66: 0.2055498458 | I66: 215.2438592 | J66: 426.8287761 | K66: 22.39999641 | L66: 9.811318784 | M66: 9.81308532 | N66: 14.31017564 | O66: 20.86055633 | P66: n.d | Q66: n.d | R66: n.d | S66: n.d | T66: n.d | U66: n.d | V66: n.d | W66: n.d | X66: n.d | Y66: n.d | Z66: n.d | AA66: n.d | AB66: n.d | AE66: 18.57 | AF66: 17.11 | AG66: -1.46 | AH66: 376.64 | AI66: 49.98 | AJ66: 100.9425661 | AK66: 169.7843619 | AL66: 154.32 | AM66: 661 | AN66: 106.69 | AO66: 280.5 | AP66: n.d. | AQ66: n.d. | AR66: n.d. | AS66: n.d. | AT66: n.d. | AU66: n.d. | AV66: n.d. | AW66: n.d. | AX66: n.d. | AY66: n.d. | AZ66: n.d. | BA66: n.d. | BB66: 1.258693999 | BC66: 1.572 | BD66: 98.2368 | BE66: 1.4005 | BF66: n.d. | BG66: 0.8412 | BH66: 8.4553 | BI66: 31.3795 | BJ66: n.d. | BK66: 5.6779 | BL66: n.d. | BM66: =IF('Tipos de Cambio'!$M$9="EuroZona",LOOKUP(1,$BB$2:$BL$2,BB66:BL66),IF('Tipos de Cambio'!$M$9="Reino Unido",LOOKUP(2,$BB$2:$BL$2,BB66:BL66),IF('Tipos de Cambio'!$M$9="Japón",LOOKUP(3,$BB$2:$BL$2,BB66:BL66),IF('Tipos de Cambio'!$M$9="Canadá",LOOKUP(4,$BB$2:$BL$2,BB66:BL66),IF('Tipos de Cambio'!$M$9="Rusia",LOOKUP(5,$BB$2:$BL$2,BB66:BL66),IF('Tipos de Cambio'!$M$9="Brasil",LOOKUP(6,$BB$2:$BL$2,BB66:BL66),IF('Tipos de Cambio'!$M$9="China",LOOKUP(7,$BB$2:$BL$2,BB66:BL66),IF('Tipos de Cambio'!$M$9="India",LOOKUP(8,$BB$2:$BL$2,BB66:BL66),IF('Tipos de Cambio'!$M$9="Sudáfrica",LOOKUP(9,$BB$2:$BL$2,BB66:BL66),IF('Tipos de Cambio'!$M$9="México",LOOKUP(10,$BB$2:$BL$2,BB66:BL66),IF('Tipos de Cambio'!$M$9="Colombia",LOOKUP(11,$BB$2:$BL$2,BB66:BL66)))))))))))) -> n.d. | BN66: 6.54531 | BO66: 6.31 | BP66: 6.26172 | BQ66: n.d. | BR66: 2.32155 | BS66: 7.47 | BT66: n.d. | BU66: n.d. | BV66: 28.99979 | BW66: 66.87985 | BX66: 23.25152 | BY66: n.d. | BZ66: 3.530016 | CA66: 4.760033 | CB66: 3.775278 | CC66: 4.628234 | CD66: 8.436336 | CE66: 0.4085619347 | CF66: 3.362838998 | CG66: 4.830309984 | CH66: n.d. | CI66: n.d. | CJ66: 17.82621546 | CK66: 35.86558539 | CL66: 18.49380179 | CM66: 11.76022901 | CN66: 100.8927 | CO66: 100.4174 | CP66: 100.0952 | CQ66: 100.3408 | CR66: 99.34582 | CS66: n.d. | CT66: n.d. | CU66: n.d. | CV66: n.d. | CW66: 102.3049 | CX66: 101.5046 | CY66: 100 | CZ66: 100.3162 | DA66: 100.9097 | DB66: 101.1163 | DC66: 99.39019 | DD66: 101.8212 | DE66: n.d. | DF66: n.d. | DG66: 96.64492 | DH66: n.d. | DI66: 100.3408 | DJ66: 99.34582 | DK66: 4011.05 | DL66: 793.74 | DM66: 487.39 | DN66: 5.4 | DO66: n.d. | DP66: n.d. | DQ66: n.d. | DR66: n.d. | DS66: n.d. | DT66: n.d. | DU66: n.d. | DV66: n.d. | DW66: n.d. | DX66: -0.2 | DY66: n.d. | DZ66: n.d. | EA66: n.d. | EB66: n.d. | EC66: n.d. | ED66: n.d. | EE66: n.d.
B67: marzo | C67: 2.85326087 | D67: 2.526315789 | E67: 1.904761905 | F67: 1.819663227 | G67: 2.619427839 | H67: -0.307062436 | I67: 219.734469 | J67: 274.7773537 | K67: 21.30000287 | L67: 9.737824997 | M67: 10.37155133 | N67: 20.4296513 | O67: 21.33822074 | P67: n.d | Q67: n.d | R67: n.d | S67: n.d | T67: n.d | U67: n.d | V67: n.d | W67: n.d | X67: n.d | Y67: n.d | Z67: n.d | AA67: n.d | AB67: n.d | AE67: 18.54 | AF67: 17.01 | AG67: -1.53 | AH67: 382.12 | AI67: 49.52 | AJ67: 110.5043046 | AK67: 179.4322831 | AL67: 150.28 | AM67: 687 | AN67: 109.7 | AO67: 286.25 | AP67: n.d. | AQ67: n.d. | AR67: n.d. | AS67: n.d. | AT67: n.d. | AU67: n.d. | AV67: n.d. | AW67: n.d. | AX67: n.d. | AY67: n.d. | AZ67: n.d. | BA67: n.d. | BB67: 1.317063001 | BC67: 1.6002 | BD67: 90.5196 | BE67: 1.4077 | BF67: n.d. | BG67: 0.8905 | BH67: 8.4483 | BI67: 31.5865 | BJ67: n.d. | BK67: 6.777 | BL67: n.d. | BM67: =IF('Tipos de Cambio'!$M$9="EuroZona",LOOKUP(1,$BB$2:$BL$2,BB67:BL67),IF('Tipos de Cambio'!$M$9="Reino Unido",LOOKUP(2,$BB$2:$BL$2,BB67:BL67),IF('Tipos de Cambio'!$M$9="Japón",LOOKUP(3,$BB$2:$BL$2,BB67:BL67),IF('Tipos de Cambio'!$M$9="Canadá",LOOKUP(4,$BB$2:$BL$2,BB67:BL67),IF('Tipos de Cambio'!$M$9="Rusia",LOOKUP(5,$BB$2:$BL$2,BB67:BL67),IF('Tipos de Cambio'!$M$9="Brasil",LOOKUP(6,$BB$2:$BL$2,BB67:BL67),IF('Tipos de Cambio'!$M$9="China",LOOKUP(7,$BB$2:$BL$2,BB67:BL67),IF('Tipos de Cambio'!$M$9="India",LOOKUP(8,$BB$2:$BL$2,BB67:BL67),IF('Tipos de Cambio'!$M$9="Sudáfrica",LOOKUP(9,$BB$2:$BL$2,BB67:BL67),IF('Tipos de Cambio'!$M$9="México",LOOKUP(10,$BB$2:$BL$2,BB67:BL67),IF('Tipos de Cambio'!$M$9="Colombia",LOOKUP(11,$BB$2:$BL$2,BB67:BL67)))))))))))) -> n.d. | BN67: 6.46399 | BO67: 6.17 | BP67: 6.26868 | BQ67: n.d. | BR67: 2.16338 | BS67: 7.2 | BT67: n.d. | BU67: n.d. | BV67: 29.00976 | BW67: 67.02709 | BX67: 23.5293 | BY67: n.d. | BZ67: 3.600063 | CA67: 4.845669 | CB67: 3.852797 | CC67: 4.764046 | CD67: 8.548607 | CE67: 0.3160621833 | CF67: 3.329121162 | CG67: 5.39109636 | CH67: n.d. | CI67: n.d. | CJ67: 17.61789293 | CK67: 35.85550813 | CL67: 20.27998405 | CM67: 11.16511047 | CN67: 100.674 | CO67: 100.5716 | CP67: 100.2063 | CQ67: 100.0802 | CR67: 99.31115 | CS67: n.d. | CT67: n.d. | CU67: n.d. | CV67: n.d. | CW67: 102.7726 | CX67: 101.4512 | CY67: 100 | CZ67: 99.84995 | DA67: 100.8109 | DB67: 101.0108 | DC67: 99.43919 | DD67: 101.7382 | DE67: n.d. | DF67: n.d. | DG67: 96.40108 | DH67: n.d. | DI67: 100.0802 | DJ67: 99.31115 | DK67: 4157.69 | DL67: 817.21 | DM67: 500.71 | DN67: 5.4 | DO67: n.d. | DP67: n.d. | DQ67: n.d. | DR67: n.d. | DS67: n.d. | DT67: n.d. | DU67: n.d. | DV67: n.d. | DW67: n.d. | DX67: 0 | DY67: n.d. | DZ67: n.d. | EA67: n.d. | EB67: n.d. | EC67: n.d. | ED67: n.d. | EE67: n.d.
B68: abril | C68: 3.052917232 | D68: 2.628811777 | E68: 1.902173913 | F68: 1.665763814 | G68: 2.290084473 | H68: -0.2042900919 | I68: 219.6755324 | J68: 169.0510985 | K68: 20.70000715 | L68: 9.665425724 | M68: 11.07692532 | N68: 29.39212398 | O68: 21.17492808 | P68: n.d | Q68: n.d | R68: n.d | S68: n.d | T68: n.d | U68: n.d | V68: n.d | W68: n.d | X68: n.d | Y68: n.d | Z68: n.d | AA68: n.d | AB68: n.d | AE68: 19.9 | AF68: 18.65 | AG68: -1.25 | AH68: 391.03 | AI68: 50.23 | AJ68: 113.7565658 | AK68: 174.4019377 | AL68: 148.81 | AM68: 625 | AN68: 109.3 | AO68: 281.5 | AP68: n.d. | AQ68: n.d. | AR68: n.d. | AS68: n.d. | AT68: n.d. | AU68: n.d. | AV68: n.d. | AW68: n.d. | AX68: n.d. | AY68: n.d. | AZ68: n.d. | BA68: n.d. | BB68: 1.341432 | BC68: 1.6073 | BD68: 83.6895 | BE68: 1.3762 | BF68: n.d. | BG68: 0.9074 | BH68: 8.4421 | BI68: 31.4073 | BJ68: n.d. | BK68: 6.2285 | BL68: n.d. | BM68: =IF('Tipos de Cambio'!$M$9="EuroZona",LOOKUP(1,$BB$2:$BL$2,BB68:BL68),IF('Tipos de Cambio'!$M$9="Reino Unido",LOOKUP(2,$BB$2:$BL$2,BB68:BL68),IF('Tipos de Cambio'!$M$9="Japón",LOOKUP(3,$BB$2:$BL$2,BB68:BL68),IF('Tipos de Cambio'!$M$9="Canadá",LOOKUP(4,$BB$2:$BL$2,BB68:BL68),IF('Tipos de Cambio'!$M$9="Rusia",LOOKUP(5,$BB$2:$BL$2,BB68:BL68),IF('Tipos de Cambio'!$M$9="Brasil",LOOKUP(6,$BB$2:$BL$2,BB68:BL68),IF('Tipos de Cambio'!$M$9="China",LOOKUP(7,$BB$2:$BL$2,BB68:BL68),IF('Tipos de Cambio'!$M$9="India",LOOKUP(8,$BB$2:$BL$2,BB68:BL68),IF('Tipos de Cambio'!$M$9="Sudáfrica",LOOKUP(9,$BB$2:$BL$2,BB68:BL68),IF('Tipos de Cambio'!$M$9="México",LOOKUP(10,$BB$2:$BL$2,BB68:BL68),IF('Tipos de Cambio'!$M$9="Colombia",LOOKUP(11,$BB$2:$BL$2,BB68:BL68)))))))))))) -> n.d. | BN68: 6.39583 | BO68: 6.05 | BP68: 6.23611 | BQ68: n.d. | BR68: 1.55208 | BS68: 7.06 | BT68: n.d. | BU68: n.d. | BV68: 29.07707 | BW68: 67.10889 | BX68: 23.72136 | BY68: n.d. | BZ68: 3.644683 | CA68: 4.8906 | CB68: 3.93343 | CC68: 4.822098 | CD68: 8.783345 | CE68: 0.514167254 | CF68: 2.97476317 | CG68: 6.072859649 | CH68: n.d. | CI68: n.d. | CJ68: 20.1885623 | CK68: 34.33331785 | CL68: 19.76139604 | CM68: 13.26127433 | CN68: 100.5792 | CO68: 100.5879 | CP68: 100.443 | CQ68: 99.87894 | CR68: 99.26446 | CS68: n.d. | CT68: n.d. | CU68: n.d. | CV68: n.d. | CW68: 103.084 | CX68: 101.4557 | CY68: 100 | CZ68: 99.38821 | DA68: 100.6383 | DB68: 100.9247 | DC68: 99.45077 | DD68: 101.5531 | DE68: 101.348 | DF68: n.d. | DG68: 96.28391 | DH68: n.d. | DI68: 99.87894 | DJ68: 99.26446 | DK68: 4321.27 | DL68: 843.98 | DM68: 514.71 | DN68: 5.8 | DO68: n.d. | DP68: n.d. | DQ68: n.d. | DR68: n.d. | DS68: n.d. | DT68: n.d. | DU68: n.d. | DV68: n.d. | DW68: n.d. | DX68: 0.4 | DY68: n.d. | DZ68: n.d. | EA68: n.d. | EB68: n.d. | EC68: n.d. | ED68: n.d. | EE68: n.d.
B69: mayo | C69: 3.186440678 | D69: 2.410901468 | E69: 1.62601626 | F69: 1.594594595 | G69: 2.58753208 | H69: -0.1020408163 | I69: 222.7253677 | J69: 91.79005658 | K69: 20.30000542 | L69: 10.29410543 | M69: 10.85625975 | N69: 34.1520467 | O69: 21.30434431 | P69: n.d | Q69: n.d | R69: n.d | S69: n.d | T69: n.d | U69: n.d | V69: n.d | W69: n.d | X69: n.d | Y69: n.d | Z69: n.d | AA69: n.d | AB69: n.d | AE69: 19.74 | AF69: 18.35 | AG69: -1.39 | AH69: 385.22 | AI69: 50.93 | AJ69: 114.9177636 | AK69: 171.0090628 | AL69: 158.73 | AM69: 611 | AN69: 111.97 | AO69: 291 | AP69: n.d. | AQ69: n.d. | AR69: n.d. | AS69: n.d. | AT69: n.d. | AU69: n.d. | AV69: n.d. | AW69: n.d. | AX69: n.d. | AY69: n.d. | AZ69: n.d. | BA69: n.d. | BB69: 1.321642999 | BC69: 1.5874 | BD69: 85.1127 | BE69: 1.3609 | BF69: n.d. | BG69: 0.8975 | BH69: 8.337 | BI69: 31.4179 | BJ69: n.d. | BK69: 5.9741 | BL69: n.d. | BM69: =IF('Tipos de Cambio'!$M$9="EuroZona",LOOKUP(1,$BB$2:$BL$2,BB69:BL69),IF('Tipos de Cambio'!$M$9="Reino Unido",LOOKUP(2,$BB$2:$BL$2,BB69:BL69),IF('Tipos de Cambio'!$M$9="Japón",LOOKUP(3,$BB$2:$BL$2,BB69:BL69),IF('Tipos de Cambio'!$M$9="Canadá",LOOKUP(4,$BB$2:$BL$2,BB69:BL69),IF('Tipos de Cambio'!$M$9="Rusia",LOOKUP(5,$BB$2:$BL$2,BB69:BL69),IF('Tipos de Cambio'!$M$9="Brasil",LOOKUP(6,$BB$2:$BL$2,BB69:BL69),IF('Tipos de Cambio'!$M$9="China",LOOKUP(7,$BB$2:$BL$2,BB69:BL69),IF('Tipos de Cambio'!$M$9="India",LOOKUP(8,$BB$2:$BL$2,BB69:BL69),IF('Tipos de Cambio'!$M$9="Sudáfrica",LOOKUP(9,$BB$2:$BL$2,BB69:BL69),IF('Tipos de Cambio'!$M$9="México",LOOKUP(10,$BB$2:$BL$2,BB69:BL69),IF('Tipos de Cambio'!$M$9="Colombia",LOOKUP(11,$BB$2:$BL$2,BB69:BL69)))))))))))) -> n.d. | BN69: 6.17541 | BO69: 5.93 | BP69: 6.125 | BQ69: n.d. | BR69: 1.35714 | BS69: 6.63 | BT69: n.d. | BU69: n.d. | BV69: 29.28481 | BW69: 67.20705 | BX69: 23.82062 | BY69: n.d. | BZ69: 3.732823 | CA69: 4.905668 | CB69: 4.014471 | CC69: 4.806061 | CD69: 9.045225 | CE69: 0.9567946242 | CF69: 3.034855396 | CG69: 6.170048613 | CH69: n.d. | CI69: n.d. | CJ69: 21.12135448 | CK69: 32.78590108 | CL69: 17.41447615 | CM69: 14.98877282 | CN69: 100.5666 | CO69: 100.5351 | CP69: 100.772 | CQ69: 99.78861 | CR69: 99.38417 | CS69: n.d. | CT69: n.d. | CU69: n.d. | CV69: n.d. | CW69: 103.1883 | CX69: 101.492 | CY69: 100 | CZ69: 98.95432 | DA69: 100.472 | DB69: 100.7863 | DC69: 99.43515 | DD69: 101.3437 | DE69: 100.0825 | DF69: n.d. | DG69: 96.24787 | DH69: n.d. | DI69: 99.78861 | DJ69: 99.38417 | DK69: 4465.14 | DL69: 864.58 | DM69: 533.4 | DN69: 5.6 | DO69: n.d. | DP69: n.d. | DQ69: n.d. | DR69: n.d. | DS69: n.d. | DT69: n.d. | DU69: n.d. | DV69: n.d. | DW69: n.d. | DX69: -0.2 | DY69: n.d. | DZ69: n.d. | EA69: n.d. | EB69: n.d. | EC69: n.d. | ED69: n.d. | EE69: n.d.
B70: junio | C70: 3.040540541 | D70: 2.617801047 | E70: 1.623815968 | F70: 1.635798297 | G70: 2.58753208 | H70: 0.2049180328 | I70: 224.7347943 | J70: 33.02849677 | K70: 18.20000606 | L70: 10.469324 | M70: 10.03038233 | N70: 37.72055857 | O70: 21.66790748 | P70: n.d | Q70: n.d | R70: n.d | S70: n.d | T70: n.d | U70: n.d | V70: n.d | W70: n.d | X70: n.d | Y70: n.d | Z70: n.d | AA70: n.d | AB70: n.d | AE70: 18.45 | AF70: 17.31 | AG70: =IF(OR(AE70="",AF70="n.d."),"",AF70-AE70) -> -1.14 | AH70: 387.56 | AI70: 51.87 | AJ70: 90.70043817 | AK70: 154.489209 | AL70: 170.12 | AM70: 631 | AN70: 119.86 | AO70: 326 | AP70: n.d. | AQ70: n.d. | AR70: n.d. | AS70: n.d. | AT70: n.d. | AU70: n.d. | AV70: n.d. | AW70: n.d. | AX70: n.d. | AY70: n.d. | AZ70: n.d. | BA70: n.d. | BB70: 1.331441001 | BC70: 1.5948 | BD70: 84.6355 | BE70: 1.3775 | BF70: n.d. | BG70: 0.9137 | BH70: 8.3206 | BI70: 31.4037 | BJ70: n.d. | BK70: 6.233 | BL70: n.d. | BM70: =IF('Tipos de Cambio'!$M$9="EuroZona",LOOKUP(1,$BB$2:$BL$2,BB70:BL70),IF('Tipos de Cambio'!$M$9="Reino Unido",LOOKUP(2,$BB$2:$BL$2,BB70:BL70),IF('Tipos de Cambio'!$M$9="Japón",LOOKUP(3,$BB$2:$BL$2,BB70:BL70),IF('Tipos de Cambio'!$M$9="Canadá",LOOKUP(4,$BB$2:$BL$2,BB70:BL70),IF('Tipos de Cambio'!$M$9="Rusia",LOOKUP(5,$BB$2:$BL$2,BB70:BL70),IF('Tipos de Cambio'!$M$9="Brasil",LOOKUP(6,$BB$2:$BL$2,BB70:BL70),IF('Tipos de Cambio'!$M$9="China",LOOKUP(7,$BB$2:$BL$2,BB70:BL70),IF('Tipos de Cambio'!$M$9="India",LOOKUP(8,$BB$2:$BL$2,BB70:BL70),IF('Tipos de Cambio'!$M$9="Sudáfrica",LOOKUP(9,$BB$2:$BL$2,BB70:BL70),IF('Tipos de Cambio'!$M$9="México",LOOKUP(10,$BB$2:$BL$2,BB70:BL70),IF('Tipos de Cambio'!$M$9="Colombia",LOOKUP(11,$BB$2:$BL$2,BB70:BL70)))))))))))) -> n.d. | BN70: 5.90234 | BO70: 5.66 | BP70: 6.00586 | BQ70: n.d. | BR70: 1.20171 | BS70: 6.17 | BT70: n.d. | BU70: n.d. | BV70: 29.49006 | BW70: 67.32157 | BX70: 23.99467 | BY70: n.d. | BZ70: 3.823047 | CA70: 4.98373 | CB70: 4.090871 | CC70: 4.858943 | CD70: 9.2211 | CE70: 1.994544392 | CF70: 3.14574942 | CG70: 6.54401023 | CH70: n.d. | CI70: n.d. | CJ70: 20.57068053 | CK70: 32.68052629 | CL70: 17.30728931 | CM70: 16.45412956 | CN70: 100.6923 | CO70: 100.4029 | CP70: 100.9468 | CQ70: 99.78255 | CR70: 99.77319 | CS70: n.d. | CT70: n.d. | CU70: n.d. | CV70: n.d. | CW70: 103.0819 | CX70: 101.5389 | CY70: 100 | CZ70: 98.81936 | DA70: 100.2801 | DB70: 100.5817 | DC70: 99.39629 | DD70: 101.0866 | DE70: 98.90019 | DF70: n.d. | DG70: 96.46146 | DH70: n.d. | DI70: 99.78255 | DJ70: 99.77319 | DK70: 4556.09 | DL70: 933.45 | DM70: 544.75 | DN70: 5.6 | DO70: n.d. | DP70: n.d. | DQ70: n.d. | DR70: n.d. | DS70: n.d. | DT70: n.d. | DU70: n.d. | DV70: n.d. | DW70: n.d. | DX70: 0 | DY70: n.d. | DZ70: n.d. | EA70: n.d. | EB70: n.d. | EC70: n.d. | ED70: =IFERROR(DW70-DW69, "n.d.") -> n.d. | EE70: =IFERROR(DU70-DU69, "n.d.") -> n.d.
B71: julio | C71: 2.762803235 | D71: 2.403343783 | E71: 1.756756757 | F71: 1.460248783 | G71: 2.603367013 | H71: 0.1028806584 | I71: 224.8889923 | J71: 27.44969594 | K71: 16.70001175 | L71: 11.38792151 | M71: 8.982049524 | N71: 39.90761732 | O71: 21.50510051 | P71: n.d | Q71: n.d | R71: n.d | S71: n.d | T71: n.d | U71: n.d | V71: n.d | W71: n.d | X71: n.d | Y71: n.d | Z71: n.d | AA71: n.d | AB71: n.d | AE71: 17.33 | AF71: 15.85 | AG71: -1.48 | AH71: 386.23 | AI71: 54.02 | AJ71: 87.3529225 | AK71: 145.6577551 | AL71: 190.7 | AM71: 655 | AN71: 126.99 | AO71: 345.6 | AP71: n.d. | AQ71: n.d. | AR71: n.d. | AS71: n.d. | AT71: n.d. | AU71: n.d. | AV71: n.d. | AW71: n.d. | AX71: n.d. | AY71: n.d. | AZ71: n.d. | BA71: n.d. | BB71: 1.344815 | BC71: 1.5952 | BD71: 87.397 | BE71: 1.3612 | BF71: n.d. | BG71: 0.9288 | BH71: 8.3207 | BI71: 31.3853 | BJ71: n.d. | BK71: 6.122 | BL71: n.d. | BM71: =IF('Tipos de Cambio'!$M$9="EuroZona",LOOKUP(1,$BB$2:$BL$2,BB71:BL71),IF('Tipos de Cambio'!$M$9="Reino Unido",LOOKUP(2,$BB$2:$BL$2,BB71:BL71),IF('Tipos de Cambio'!$M$9="Japón",LOOKUP(3,$BB$2:$BL$2,BB71:BL71),IF('Tipos de Cambio'!$M$9="Canadá",LOOKUP(4,$BB$2:$BL$2,BB71:BL71),IF('Tipos de Cambio'!$M$9="Rusia",LOOKUP(5,$BB$2:$BL$2,BB71:BL71),IF('Tipos de Cambio'!$M$9="Brasil",LOOKUP(6,$BB$2:$BL$2,BB71:BL71),IF('Tipos de Cambio'!$M$9="China",LOOKUP(7,$BB$2:$BL$2,BB71:BL71),IF('Tipos de Cambio'!$M$9="India",LOOKUP(8,$BB$2:$BL$2,BB71:BL71),IF('Tipos de Cambio'!$M$9="Sudáfrica",LOOKUP(9,$BB$2:$BL$2,BB71:BL71),IF('Tipos de Cambio'!$M$9="México",LOOKUP(10,$BB$2:$BL$2,BB71:BL71),IF('Tipos de Cambio'!$M$9="Colombia",LOOKUP(11,$BB$2:$BL$2,BB71:BL71)))))))))))) -> n.d. | BN71: 5.85733 | BO71: 5.62 | BP71: 5.89788 | BQ71: n.d. | BR71: 0.95759 | BS71: 6.28 | BT71: n.d. | BU71: n.d. | BV71: 29.64379 | BW71: 67.37884 | BX71: 24.23192 | BY71: 0.4755807 | BZ71: 3.966213 | CA71: 5.027586 | CB71: 4.18152 | CC71: 4.904411 | CD71: 9.308574 | CE71: 2.270536534 | CF71: 2.718551659 | CG71: 7.567432955 | CH71: n.d. | CI71: n.d. | CJ71: 19.15179122 | CK71: 31.73158074 | CL71: 16.53025089 | CM71: 17.0282295 | CN71: 100.8084 | CO71: 100.184 | CP71: 100.8664 | CQ71: 99.84638 | CR71: 100.1066 | CS71: n.d. | CT71: n.d. | CU71: n.d. | CV71: n.d. | CW71: 102.8248 | CX71: 101.5885 | CY71: 100 | CZ71: 98.93154 | DA71: 100.0956 | DB71: 100.3724 | DC71: 99.33308 | DD71: 100.938 | DE71: 97.98712 | DF71: n.d. | DG71: 96.91132 | DH71: n.d. | DI71: 99.84638 | DJ71: 100.1066 | DK71: 4708.47 | DL71: 1001.21 | DM71: 562.06 | DN71: 5.7 | DO71: n.d. | DP71: n.d. | DQ71: n.d. | DR71: n.d. | DS71: n.d. | DT71: n.d. | DU71: n.d. | DV71: n.d. | DW71: n.d. | DX71: 0.1 | DY71: n.d. | DZ71: n.d. | EA71: n.d. | EB71: n.d. | EC71: n.d. | ED71: n.d. | EE71: n.d.
B72: agosto | C72: 2.617449664 | D72: 2.294056309 | E72: 1.482479784 | F72: 1.960784314 | G72: 2.58753208 | H72: -0.2049180328 | I72: 224.7026796 | J72: 26.36097624 | K72: 14.50000594 | L72: 10.91549273 | M72: 7.669636831 | N72: 41.56841579 | O72: 21.09377 | P72: n.d | Q72: n.d | R72: n.d | S72: n.d | T72: n.d | U72: n.d | V72: n.d | W72: n.d | X72: n.d | Y72: n.d | Z72: n.d | AA72: n.d | AB72: n.d | AE72: 18.02 | AF72: 16.1 | AG72: -1.92 | AH72: 383.67 | AI72: 51.68 | AJ72: 85.06227831 | AK72: 153.210077 | AL72: 184.45 | AM72: 616 | AN72: 126.44 | AO72: 339.5 | AP72: n.d. | AQ72: n.d. | AR72: n.d. | AS72: n.d. | AT72: n.d. | AU72: n.d. | AV72: n.d. | AW72: n.d. | AX72: n.d. | AY72: n.d. | AZ72: n.d. | BA72: n.d. | BB72: 1.304411 | BC72: 1.5668 | BD72: 94.7383 | BE72: 1.3552 | BF72: n.d. | BG72: 0.9413 | BH72: 8.3253 | BI72: 31.5923 | BJ72: n.d. | BK72: 6.2047 | BL72: n.d. | BM72: =IF('Tipos de Cambio'!$M$9="EuroZona",LOOKUP(1,$BB$2:$BL$2,BB72:BL72),IF('Tipos de Cambio'!$M$9="Reino Unido",LOOKUP(2,$BB$2:$BL$2,BB72:BL72),IF('Tipos de Cambio'!$M$9="Japón",LOOKUP(3,$BB$2:$BL$2,BB72:BL72),IF('Tipos de Cambio'!$M$9="Canadá",LOOKUP(4,$BB$2:$BL$2,BB72:BL72),IF('Tipos de Cambio'!$M$9="Rusia",LOOKUP(5,$BB$2:$BL$2,BB72:BL72),IF('Tipos de Cambio'!$M$9="Brasil",LOOKUP(6,$BB$2:$BL$2,BB72:BL72),IF('Tipos de Cambio'!$M$9="China",LOOKUP(7,$BB$2:$BL$2,BB72:BL72),IF('Tipos de Cambio'!$M$9="India",LOOKUP(8,$BB$2:$BL$2,BB72:BL72),IF('Tipos de Cambio'!$M$9="Sudáfrica",LOOKUP(9,$BB$2:$BL$2,BB72:BL72),IF('Tipos de Cambio'!$M$9="México",LOOKUP(10,$BB$2:$BL$2,BB72:BL72),IF('Tipos de Cambio'!$M$9="Colombia",LOOKUP(11,$BB$2:$BL$2,BB72:BL72)))))))))))) -> n.d. | BN72: 5.93217 | BO72: 5.65 | BP72: 5.90217 | BQ72: n.d. | BR72: 0.86825 | BS72: 6.49 | BT72: n.d. | BU72: n.d. | BV72: 29.82327 | BW72: 67.55879 | BX72: 24.52442 | BY72: 0.5041786 | BZ72: 4.172592 | CA72: 5.090901 | CB72: 4.277171 | CC72: 4.962574 | CD72: 9.338862 | CE72: 2.963518936 | CF72: 2.813387468 | CG72: 8.590761885 | CH72: n.d. | CI72: 52.743502 | CJ72: 17.75639519 | CK72: 30.70244945 | CL72: 16.37059537 | CM72: 15.8336337 | CN72: 100.7748 | CO72: 99.88905 | CP72: 100.5631 | CQ72: 99.98404 | CR72: 100.2503 | CS72: n.d. | CT72: n.d. | CU72: n.d. | CV72: n.d. | CW72: 102.5263 | CX72: 101.643 | CY72: 100 | CZ72: 98.88387 | DA72: 99.93931 | DB72: 100.1464 | DC72: 99.26385 | DD72: 100.8743 | DE72: 97.70163 | DF72: n.d. | DG72: 97.1345 | DH72: n.d. | DI72: 99.98404 | DJ72: 100.2503 | DK72: 4610.56 | DL72: 1020.11 | DM72: 561.88 | DN72: 5.7 | DO72: n.d. | DP72: n.d. | DQ72: n.d. | DR72: n.d. | DS72: n.d. | DT72: n.d. | DU72: n.d. | DV72: n.d. | DW72: n.d. | DX72: 0 | DY72: n.d. | DZ72: n.d. | EA72: n.d. | EB72: n.d. | EC72: n.d. | ED72: n.d. | EE72: n.d.
B73: septiembre | C73: 2.543507363 | D73: 2.395833333 | E73: 1.756756757 | F73: 2.008627662 | G73: 2.88754106 | H73: 0.102145046 | I73: 214.1760382 | J73: 25.68937123 | K73: 13.19998476 | L73: 10.06943716 | M73: 6.559731212 | N73: 43.47637648 | O73: 20.79560198 | P73: n.d | Q73: n.d | R73: n.d | S73: n.d | T73: n.d | U73: n.d | V73: n.d | W73: n.d | X73: n.d | Y73: n.d | Z73: n.d | AA73: n.d | AB73: n.d | AE73: 18.23 | AF73: 16.7 | AG73: -1.53 | AH73: 383.06 | AI73: 51.17 | AJ73: 91.18124665 | AK73: 134.4585461 | AL73: 193.64 | AM73: 586 | AN73: 130.48 | AO73: 359.75 | AP73: n.d. | AQ73: n.d. | AR73: n.d. | AS73: n.d. | AT73: n.d. | AU73: n.d. | AV73: n.d. | AW73: n.d. | AX73: n.d. | AY73: n.d. | AZ73: n.d. | BA73: n.d. | BB73: 1.288802 | BC73: 1.559 | BD73: 100.5455 | BE73: 1.3509 | BF73: n.d. | BG73: 0.9519 | BH73: 8.3374 | BI73: 33.3098 | BJ73: n.d. | BK73: 6.3167 | BL73: n.d. | BM73: =IF('Tipos de Cambio'!$M$9="EuroZona",LOOKUP(1,$BB$2:$BL$2,BB73:BL73),IF('Tipos de Cambio'!$M$9="Reino Unido",LOOKUP(2,$BB$2:$BL$2,BB73:BL73),IF('Tipos de Cambio'!$M$9="Japón",LOOKUP(3,$BB$2:$BL$2,BB73:BL73),IF('Tipos de Cambio'!$M$9="Canadá",LOOKUP(4,$BB$2:$BL$2,BB73:BL73),IF('Tipos de Cambio'!$M$9="Rusia",LOOKUP(5,$BB$2:$BL$2,BB73:BL73),IF('Tipos de Cambio'!$M$9="Brasil",LOOKUP(6,$BB$2:$BL$2,BB73:BL73),IF('Tipos de Cambio'!$M$9="China",LOOKUP(7,$BB$2:$BL$2,BB73:BL73),IF('Tipos de Cambio'!$M$9="India",LOOKUP(8,$BB$2:$BL$2,BB73:BL73),IF('Tipos de Cambio'!$M$9="Sudáfrica",LOOKUP(9,$BB$2:$BL$2,BB73:BL73),IF('Tipos de Cambio'!$M$9="México",LOOKUP(10,$BB$2:$BL$2,BB73:BL73),IF('Tipos de Cambio'!$M$9="Colombia",LOOKUP(11,$BB$2:$BL$2,BB73:BL73)))))))))))) -> n.d. | BN73: 5.86793 | BO73: 5.54 | BP73: 5.86421 | BQ73: n.d. | BR73: 0.57292 | BS73: 6.2 | BT73: n.d. | BU73: n.d. | BV73: 29.93213 | BW73: 67.8042 | BX73: 24.7345 | BY73: 0.5289857 | BZ73: 4.321382 | CA73: 5.18108 | CB73: 4.363658 | CC73: 5.037403 | CD73: 9.387548 | CE73: 3.327509708 | CF73: 2.76469933 | CG73: 8.967643423 | CH73: n.d. | CI73: 50.34952043 | CJ73: 16.86265275 | CK73: 30.4473823 | CL73: 16.13777906 | CM73: 15.77127881 | CN73: 100.5403 | CO73: 99.64838 | CP73: 100.0156 | CQ73: 100.1539 | CR73: 100.2687 | CS73: n.d. | CT73: n.d. | CU73: n.d. | CV73: n.d. | CW73: 102.2816 | CX73: 101.7096 | CY73: 100 | CZ73: 98.80632 | DA73: 99.78989 | DB73: 99.93217 | DC73: 99.21188 | DD73: 100.7684 | DE73: 97.65173 | DF73: n.d. | DG73: 96.66229 | DH73: n.d. | DI73: 100.1539 | DJ73: 100.2687 | DK73: 4789.08 | DL73: 1043.54 | DM73: 584.41 | DN73: 5.6 | DO73: n.d. | DP73: n.d. | DQ73: n.d. | DR73: n.d. | DS73: n.d. | DT73: n.d. | DU73: n.d. | DV73: n.d. | DW73: n.d. | DX73: -0.1 | DY73: n.d. | DZ73: n.d. | EA73: n.d. | EB73: n.d. | EC73: n.d. | ED73: n.d. | EE73: n.d.
B74: octubre | C74: 2.809364548 | D74: 2.393340271 | E74: 1.623815968 | F74: 1.89669088 | G74: 3.048786246 | H74: -0.7113821138 | I74: 186.0914235 | J74: 24.20735346 | K74: 12.10000315 | L74: 10.38061881 | M74: 6.386058876 | N74: 45.66380947 | O74: 20.5216714 | P74: n.d | Q74: n.d | R74: n.d | S74: n.d | T74: n.d | U74: n.d | V74: n.d | W74: n.d | X74: n.d | Y74: n.d | Z74: n.d | AA74: n.d | AB74: n.d | AE74: 17.43 | AF74: 16.11 | AG74: -1.32 | AH74: 383.14 | AI74: 50.62 | AJ74: 91.14042329 | AK74: 127.2690985 | AL74: 203.73 | AM74: 615 | AN74: 140.86 | AO74: 382.6 | AP74: n.d. | AQ74: n.d. | AR74: n.d. | AS74: n.d. | AT74: n.d. | AU74: n.d. | AV74: n.d. | AW74: n.d. | AX74: n.d. | AY74: n.d. | AZ74: n.d. | BA74: n.d. | BB74: 1.322172 | BC74: 1.5779 | BD74: 100.839 | BE74: 1.3458 | BF74: n.d. | BG74: 0.9593 | BH74: 8.3353 | BI74: 34.6564 | BJ74: n.d. | BK74: 6.7452 | BL74: n.d. | BM74: =IF('Tipos de Cambio'!$M$9="EuroZona",LOOKUP(1,$BB$2:$BL$2,BB74:BL74),IF('Tipos de Cambio'!$M$9="Reino Unido",LOOKUP(2,$BB$2:$BL$2,BB74:BL74),IF('Tipos de Cambio'!$M$9="Japón",LOOKUP(3,$BB$2:$BL$2,BB74:BL74),IF('Tipos de Cambio'!$M$9="Canadá",LOOKUP(4,$BB$2:$BL$2,BB74:BL74),IF('Tipos de Cambio'!$M$9="Rusia",LOOKUP(5,$BB$2:$BL$2,BB74:BL74),IF('Tipos de Cambio'!$M$9="Brasil",LOOKUP(6,$BB$2:$BL$2,BB74:BL74),IF('Tipos de Cambio'!$M$9="China",LOOKUP(7,$BB$2:$BL$2,BB74:BL74),IF('Tipos de Cambio'!$M$9="India",LOOKUP(8,$BB$2:$BL$2,BB74:BL74),IF('Tipos de Cambio'!$M$9="Sudáfrica",LOOKUP(9,$BB$2:$BL$2,BB74:BL74),IF('Tipos de Cambio'!$M$9="México",LOOKUP(10,$BB$2:$BL$2,BB74:BL74),IF('Tipos de Cambio'!$M$9="Colombia",LOOKUP(11,$BB$2:$BL$2,BB74:BL74)))))))))))) -> n.d. | BN74: 5.89631 | BO74: 5.56 | BP74: 5.9375 | BQ74: n.d. | BR74: 0.43892 | BS74: 6.04 | BT74: n.d. | BU74: n.d. | BV74: 30.02603 | BW74: 67.88599 | BX74: 24.9366 | BY74: 0.5468814 | BZ74: 4.439803 | CA74: 5.289666 | CB74: 4.451643 | CC74: 5.1109 | CD74: 9.426302 | CE74: 3.705178622 | CF74: 2.697678992 | CG74: 9.520249955 | CH74: n.d. | CI74: 47.43191432 | CJ74: 17.26804512 | CK74: 30.00868546 | CL74: 15.23932978 | CM74: 15.06108137 | CN74: 100.3854 | CO74: 99.42007 | CP74: 99.45182 | CQ74: 100.3154 | CR74: 100.2964 | CS74: n.d. | CT74: n.d. | CU74: n.d. | CV74: n.d. | CW74: 102.1492 | CX74: 101.79 | CY74: 100 | CZ74: 98.66026 | DA74: 99.67536 | DB74: 99.74876 | DC74: 99.19693 | DD74: 100.6388 | DE74: 97.71767 | DF74: n.d. | DG74: 95.87742 | DH74: n.d. | DI74: 100.3154 | DJ74: 100.2964 | DK74: 4755.48 | DL74: 1036.06 | DM74: 581.5 | DN74: 5.5 | DO74: n.d. | DP74: n.d. | DQ74: n.d. | DR74: n.d. | DS74: n.d. | DT74: n.d. | DU74: n.d. | DV74: n.d. | DW74: n.d. | DX74: -0.1 | DY74: n.d. | DZ74: n.d. | EA74: n.d. | EB74: n.d. | EC74: n.d. | ED74: n.d. | EE74: n.d.
B75: noviembre | C75: 2.605210421 | D75: 2.390852391 | E75: 1.486486486 | F75: 1.963685272 | G75: 2.891936173 | H75: -0.7135575943 | I75: 161.0044262 | J75: 22.58923122 | K75: 11.1999996 | L75: 10.30927525 | M75: 6.367610857 | N75: 48.46205267 | O75: 20.13838992 | P75: n.d | Q75: n.d | R75: n.d | S75: n.d | T75: n.d | U75: n.d | V75: n.d | W75: n.d | X75: n.d | Y75: n.d | Z75: n.d | AA75: n.d | AB75: n.d | AE75: 17.99 | AF75: 16.86 | AG75: -1.13 | AH75: 385.31 | AI75: 49.82 | AJ75: 89.18997378 | AK75: 125.2506101 | AL75: 203.93 | AM75: 607 | AN75: 143.95 | AO75: 340.5 | AP75: n.d. | AQ75: n.d. | AR75: n.d. | AS75: n.d. | AT75: n.d. | AU75: n.d. | AV75: n.d. | AW75: n.d. | AX75: n.d. | AY75: n.d. | AZ75: n.d. | BA75: n.d. | BB75: 1.323805 | BC75: 1.5625 | BD75: 101.94 | BE75: 1.3534 | BF75: n.d. | BG75: 0.963 | BH75: 8.3334 | BI75: 34.71 | BJ75: n.d. | BK75: 7.6936 | BL75: n.d. | BM75: =IF('Tipos de Cambio'!$M$9="EuroZona",LOOKUP(1,$BB$2:$BL$2,BB75:BL75),IF('Tipos de Cambio'!$M$9="Reino Unido",LOOKUP(2,$BB$2:$BL$2,BB75:BL75),IF('Tipos de Cambio'!$M$9="Japón",LOOKUP(3,$BB$2:$BL$2,BB75:BL75),IF('Tipos de Cambio'!$M$9="Canadá",LOOKUP(4,$BB$2:$BL$2,BB75:BL75),IF('Tipos de Cambio'!$M$9="Rusia",LOOKUP(5,$BB$2:$BL$2,BB75:BL75),IF('Tipos de Cambio'!$M$9="Brasil",LOOKUP(6,$BB$2:$BL$2,BB75:BL75),IF('Tipos de Cambio'!$M$9="China",LOOKUP(7,$BB$2:$BL$2,BB75:BL75),IF('Tipos de Cambio'!$M$9="India",LOOKUP(8,$BB$2:$BL$2,BB75:BL75),IF('Tipos de Cambio'!$M$9="Sudáfrica",LOOKUP(9,$BB$2:$BL$2,BB75:BL75),IF('Tipos de Cambio'!$M$9="México",LOOKUP(10,$BB$2:$BL$2,BB75:BL75),IF('Tipos de Cambio'!$M$9="Colombia",LOOKUP(11,$BB$2:$BL$2,BB75:BL75)))))))))))) -> n.d. | BN75: 5.7342 | BO75: 5.51 | BP75: 5.87749 | BQ75: n.d. | BR75: 0.47657 | BS75: 5.93 | BT75: n.d. | BU75: n.d. | BV75: 30.08004 | BW75: 68.31136 | BX75: 25.1366 | BY75: 0.5632837 | BZ75: 4.601034 | CA75: 5.443674 | CB75: 4.541477 | CC75: 5.158834 | CD75: 9.440257 | CE75: 3.805351421 | CF75: 3.200698929 | CG75: 9.910463763 | CH75: n.d. | CI75: 46.8858264 | CJ75: 20.03056068 | CK75: 29.52175529 | CL75: 14.66547234 | CM75: 13.65182507 | CN75: 100.3084 | CO75: 99.18678 | CP75: 99.01787 | CQ75: 100.4425 | CR75: 100.3029 | CS75: n.d. | CT75: n.d. | CU75: n.d. | CV75: n.d. | CW75: 102.1556 | CX75: 101.8578 | CY75: 100 | CZ75: 98.52516 | DA75: 99.52174 | DB75: 99.53527 | DC75: 99.20958 | DD75: 100.4571 | DE75: 97.9275 | DF75: n.d. | DG75: 95.10056 | DH75: n.d. | DI75: 100.4425 | DJ75: 100.3029 | DK75: 5074.49 | DL75: 1059.22 | DM75: 605.37 | DN75: 5.6 | DO75: n.d. | DP75: n.d. | DQ75: n.d. | DR75: n.d. | DS75: n.d. | DT75: n.d. | DU75: n.d. | DV75: n.d. | DW75: n.d. | DX75: 0.1 | DY75: n.d. | DZ75: n.d. | EA75: n.d. | EB75: n.d. | EC75: n.d. | ED75: n.d. | EE75: n.d.
B76: diciembre | C76: 2.538410154 | D76: 2.385892116 | E76: 1.482479784 | F76: 2.085295305 | G76: 3.030293549 | H76: -0.408997955 | I76: 131.3265182 | J76: 22.40816166 | K76: 10.09999455 | L76: 9.688570102 | M76: 6.926395528 | N76: 51.96616552 | O76: 19.46757326 | P76: n.d | Q76: n.d | R76: n.d | S76: n.d | T76: n.d | U76: n.d | V76: n.d | W76: n.d | X76: n.d | Y76: n.d | Z76: n.d | AA76: n.d | AB76: n.d | AE76: 19.03 | AF76: 17.93 | AG76: -1.1 | AH76: 387.44 | AI76: 50.04 | AJ76: 87.87455434 | AK76: 106.2405312 | AL76: 208.92 | AM76: 590 | AN76: 148.65 | AO76: 341.5 | AP76: n.d. | AQ76: n.d. | AR76: n.d. | AS76: n.d. | AT76: n.d. | AU76: n.d. | AV76: n.d. | AW76: n.d. | AX76: n.d. | AY76: n.d. | AZ76: n.d. | BA76: n.d. | BB76: 1.304303999 | BC76: 1.5405 | BD76: 101.8495 | BE76: 1.3693 | BF76: n.d. | BG76: 0.9676 | BH76: 8.335 | BI76: 34.9663 | BJ76: n.d. | BK76: 7.687 | BL76: n.d. | BM76: =IF('Tipos de Cambio'!$M$9="EuroZona",LOOKUP(1,$BB$2:$BL$2,BB76:BL76),IF('Tipos de Cambio'!$M$9="Reino Unido",LOOKUP(2,$BB$2:$BL$2,BB76:BL76),IF('Tipos de Cambio'!$M$9="Japón",LOOKUP(3,$BB$2:$BL$2,BB76:BL76),IF('Tipos de Cambio'!$M$9="Canadá",LOOKUP(4,$BB$2:$BL$2,BB76:BL76),IF('Tipos de Cambio'!$M$9="Rusia",LOOKUP(5,$BB$2:$BL$2,BB76:BL76),IF('Tipos de Cambio'!$M$9="Brasil",LOOKUP(6,$BB$2:$BL$2,BB76:BL76),IF('Tipos de Cambio'!$M$9="China",LOOKUP(7,$BB$2:$BL$2,BB76:BL76),IF('Tipos de Cambio'!$M$9="India",LOOKUP(8,$BB$2:$BL$2,BB76:BL76),IF('Tipos de Cambio'!$M$9="Sudáfrica",LOOKUP(9,$BB$2:$BL$2,BB76:BL76),IF('Tipos de Cambio'!$M$9="México",LOOKUP(10,$BB$2:$BL$2,BB76:BL76),IF('Tipos de Cambio'!$M$9="Colombia",LOOKUP(11,$BB$2:$BL$2,BB76:BL76)))))))))))) -> n.d. | BN76: 5.6141 | BO76: 5.35 | BP76: 5.76521 | BQ76: n.d. | BR76: 0.46176 | BS76: 5.71 | BT76: n.d. | BU76: n.d. | BV76: 30.15981 | BW76: 68.48314 | BX76: 25.6203 | BY76: 0.580268 | BZ76: 4.775141 | CA76: 5.594176 | CB76: 4.630622 | CC76: 5.206399 | CD76: 9.638271 | CE76: 4.104490363 | CF76: 3.166981692 | CG76: 11.34550471 | CH76: n.d. | CI76: 46.38269161 | CJ76: 20.59826412 | CK76: 29.22728556 | CL76: 14.45331735 | CM76: 14.20238136 | CN76: 100.3322 | CO76: 98.89075 | CP76: 98.74007 | CQ76: 100.5473 | CR76: 100.3438 | CS76: n.d. | CT76: n.d. | CU76: n.d. | CV76: n.d. | CW76: 102.267 | CX76: 101.8668 | CY76: 100 | CZ76: 98.45179 | DA76: 99.28904 | DB76: 99.31692 | DC76: 99.24306 | DD76: 100.3188 | DE76: 98.20362 | DF76: n.d. | DG76: 94.66786 | DH76: n.d. | DI76: 100.5473 | DJ76: 100.3438 | DK76: 5117.12 | DL76: 1052.14 | DM76: 615.93 | DN76: 5.6 | DO76: n.d. | DP76: n.d. | DQ76: n.d. | DR76: n.d. | DS76: n.d. | DT76: n.d. | DU76: n.d. | DV76: n.d. | DW76: n.d. | DX76: 0 | DY76: n.d. | DZ76: n.d. | EA76: n.d. | EB76: n.d. | EC76: n.d. | ED76: n.d. | EE76: n.d.
A77: 1996 | B77: enero | C77: 2.727877578 | D77: 2.380952381 | E77: 1.342281879 | F77: 1.945786366 | G77: 2.727258234 | H77: -0.5112474438 | I77: 104.4952273 | J77: 21.97457775 | K77: 9.00000177 | L77: 8.996537362 | M77: 6.837595585 | N77: 51.71857431 | O77: 20.24758899 | P77: n.d | Q77: n.d | R77: n.d | S77: n.d | T77: n.d | U77: n.d | V77: n.d | W77: n.d | X77: n.d | Y77: n.d | Z77: n.d | AA77: n.d | AB77: n.d | AE77: 18.85 | AF77: 17.85 | AG77: -1 | AH77: 399.45 | AI77: 49.38 | AJ77: 86.19626058 | AK77: 110.6494543 | AL77: 206.88 | AM77: 535 | AN77: 156.13 | AO77: 369.2 | AP77: n.d. | AQ77: n.d. | AR77: n.d. | AS77: n.d. | AT77: n.d. | AU77: n.d. | AV77: n.d. | AW77: n.d. | AX77: n.d. | AY77: n.d. | AZ77: n.d. | BA77: n.d. | BB77: 1.291838 | BC77: 1.5288 | BD77: 105.7514 | BE77: 1.3669 | BF77: n.d. | BG77: 0.9745 | BH77: 8.3384 | BI77: 35.8117 | BJ77: n.d. | BK77: 7.4806 | BL77: n.d. | BM77: =IF('Tipos de Cambio'!$M$9="EuroZona",LOOKUP(1,$BB$2:$BL$2,BB77:BL77),IF('Tipos de Cambio'!$M$9="Reino Unido",LOOKUP(2,$BB$2:$BL$2,BB77:BL77),IF('Tipos de Cambio'!$M$9="Japón",LOOKUP(3,$BB$2:$BL$2,BB77:BL77),IF('Tipos de Cambio'!$M$9="Canadá",LOOKUP(4,$BB$2:$BL$2,BB77:BL77),IF('Tipos de Cambio'!$M$9="Rusia",LOOKUP(5,$BB$2:$BL$2,BB77:BL77),IF('Tipos de Cambio'!$M$9="Brasil",LOOKUP(6,$BB$2:$BL$2,BB77:BL77),IF('Tipos de Cambio'!$M$9="China",LOOKUP(7,$BB$2:$BL$2,BB77:BL77),IF('Tipos de Cambio'!$M$9="India",LOOKUP(8,$BB$2:$BL$2,BB77:BL77),IF('Tipos de Cambio'!$M$9="Sudáfrica",LOOKUP(9,$BB$2:$BL$2,BB77:BL77),IF('Tipos de Cambio'!$M$9="México",LOOKUP(10,$BB$2:$BL$2,BB77:BL77),IF('Tipos de Cambio'!$M$9="Colombia",LOOKUP(11,$BB$2:$BL$2,BB77:BL77)))))))))))) -> n.d. | BN77: 5.42472 | BO77: 5.13 | BP77: 5.54279 | BQ77: n.d. | BR77: 0.53125 | BS77: 5.65 | BT77: n.d. | BU77: n.d. | BV77: 30.31271 | BW77: 68.61402 | BX77: 26.42576 | BY77: 0.6038805 | BZ77: 4.901226 | CA77: 5.736578 | CB77: 4.738368 | CC77: 5.27354 | CD77: 9.861188 | CE77: 4.45249697 | CF77: 3.059351108 | CG77: 14.36871152 | CH77: n.d. | CI77: 44.12962776 | CJ77: 20.87304699 | CK77: 28.81667233 | CL77: 15.00506489 | CM77: 16.37204641 | CN77: 100.3483 | CO77: 98.5644 | CP77: 98.69144 | CQ77: 100.6438 | CR77: 100.4149 | CS77: n.d. | CT77: n.d. | CU77: n.d. | CV77: n.d. | CW77: 102.4228 | CX77: 101.7712 | CY77: 100 | CZ77: 98.42982 | DA77: 99.0066 | DB77: 99.19423 | DC77: 99.29761 | DD77: 100.2651 | DE77: 98.46116 | DF77: n.d. | DG77: 94.41512 | DH77: n.d. | DI77: 100.6438 | DJ77: 100.4149 | DK77: 5395.3 | DL77: 1059.79 | DM77: 636.02 | DN77: 5.6 | DO77: n.d. | DP77: n.d. | DQ77: n.d. | DR77: n.d. | DS77: n.d. | DT77: n.d. | DU77: n.d. | DV77: n.d. | DW77: n.d. | DX77: 0 | DY77: n.d. | DZ77: n.d. | EA77: n.d. | EB77: n.d. | EC77: n.d. | ED77: n.d. | EE77: n.d.
B78: febrero | C78: 2.650762094 | D78: 2.36869207 | E78: 1.468624833 | F78: 2.02006689 | G78: 2.714932731 | H78: -0.4102564103 | I78: 89.33582306 | J78: 21.98739802 | K78: 9.299991579 | L78: 8.591075916 | M78: 6.524830896 | N78: 48.94685848 | O78: 20.81056511 | P78: n.d | Q78: n.d | R78: n.d | S78: n.d | T78: n.d | U78: n.d | V78: n.d | W78: n.d | X78: n.d | Y78: n.d | Z78: n.d | AA78: n.d | AB78: n.d | AE78: 19.09 | AF78: 18 | AG78: -1.09 | AH78: 404.76 | AI78: 49.75 | AJ78: 85.04413459 | AK78: 124.0894122 | AL78: 218.89 | AM78: 518 | AN78: 164.81 | AO78: 368 | AP78: n.d. | AQ78: n.d. | AR78: n.d. | AS78: n.d. | AT78: n.d. | AU78: n.d. | AV78: n.d. | AW78: n.d. | AX78: n.d. | AY78: n.d. | AZ78: n.d. | BA78: n.d. | BB78: 1.288603001 | BC78: 1.536 | BD78: 105.788 | BE78: 1.3752 | BF78: n.d. | BG78: 0.981 | BH78: 8.3338 | BI78: 36.5945 | BJ78: n.d. | BK78: 7.5183 | BL78: n.d. | BM78: =IF('Tipos de Cambio'!$M$9="EuroZona",LOOKUP(1,$BB$2:$BL$2,BB78:BL78),IF('Tipos de Cambio'!$M$9="Reino Unido",LOOKUP(2,$BB$2:$BL$2,BB78:BL78),IF('Tipos de Cambio'!$M$9="Japón",LOOKUP(3,$BB$2:$BL$2,BB78:BL78),IF('Tipos de Cambio'!$M$9="Canadá",LOOKUP(4,$BB$2:$BL$2,BB78:BL78),IF('Tipos de Cambio'!$M$9="Rusia",LOOKUP(5,$BB$2:$BL$2,BB78:BL78),IF('Tipos de Cambio'!$M$9="Brasil",LOOKUP(6,$BB$2:$BL$2,BB78:BL78),IF('Tipos de Cambio'!$M$9="China",LOOKUP(7,$BB$2:$BL$2,BB78:BL78),IF('Tipos de Cambio'!$M$9="India",LOOKUP(8,$BB$2:$BL$2,BB78:BL78),IF('Tipos de Cambio'!$M$9="Sudáfrica",LOOKUP(9,$BB$2:$BL$2,BB78:BL78),IF('Tipos de Cambio'!$M$9="México",LOOKUP(10,$BB$2:$BL$2,BB78:BL78),IF('Tipos de Cambio'!$M$9="Colombia",LOOKUP(11,$BB$2:$BL$2,BB78:BL78)))))))))))) -> n.d. | BN78: 5.18043 | BO78: 4.97 | BP78: 5.27511 | BQ78: n.d. | BR78: 0.63579 | BS78: 5.81 | BT78: n.d. | BU78: n.d. | BV78: 30.42905 | BW78: 68.73672 | BX78: 26.92018 | BY78: 0.6259748 | BZ78: 4.997753 | CA78: 5.866319 | CB78: 4.847794 | CC78: 5.337564 | CD78: 10.03222 | CE78: 4.928518448 | CF78: 2.776426682 | CG78: 15.77815128 | CH78: n.d. | CI78: 41.57876338 | CJ78: 23.2411414 | CK78: 28.40892777 | CL78: 15.32614816 | CM78: 18.91679042 | CN78: 100.4186 | CO78: 98.36238 | CP78: 98.65811 | CQ78: 100.7362 | CR78: 100.4109 | CS78: n.d. | CT78: n.d. | CU78: n.d. | CV78: n.d. | CW78: 102.5451 | CX78: 101.6049 | CY78: 100 | CZ78: 98.52402 | DA78: 98.72649 | DB78: 99.16443 | DC78: 99.36383 | DD78: 100.1641 | DE78: 98.66682 | DF78: n.d. | DG78: 94.53986 | DH78: n.d. | DI78: 100.7362 | DJ78: 100.4109 | DK78: 5485.62 | DL78: 1100.05 | DM78: 640.43 | DN78: 5.5 | DO78: n.d. | DP78: n.d. | DQ78: n.d. | DR78: n.d. | DS78: n.d. | DT78: n.d. | DU78: n.d. | DV78: n.d. | DW78: n.d. | DX78: -0.1 | DY78: n.d. | DZ78: n.d. | EA78: n.d. | EB78: n.d. | EC78: n.d. | ED78: n.d. | EE78: n.d.
B79: marzo | C79: 2.84015852 | D79: 2.361396304 | E79: 1.468624833 | F79: 2.360629501 | G79: 2.702688336 | H79: -0.1026694045 | I79: 78.66458158 | J79: 20.54560714 | K79: 9.799993988 | L79: 8.873717879 | M79: 6.171099697 | N79: 43.75148024 | O79: 20.20909266 | P79: n.d | Q79: n.d | R79: n.d | S79: n.d | T79: n.d | U79: n.d | V79: n.d | W79: n.d | X79: n.d | Y79: n.d | Z79: n.d | AA79: n.d | AB79: n.d | AE79: 21.33 | AF79: 19.85 | AG79: -1.48 | AH79: 396.21 | AI79: 49.76 | AJ79: 83.21161924 | AK79: 120.841687 | AL79: 215.32 | AM79: 519 | AN79: 184.86 | AO79: 359.5 | AP79: n.d. | AQ79: n.d. | AR79: n.d. | AS79: n.d. | AT79: n.d. | AU79: n.d. | AV79: n.d. | AW79: n.d. | AX79: n.d. | AY79: n.d. | AZ79: n.d. | BA79: n.d. | BB79: 1.281337001 | BC79: 1.5271 | BD79: 105.94 | BE79: 1.3656 | BF79: n.d. | BG79: 0.9862 | BH79: 8.3495 | BI79: 34.4852 | BJ79: n.d. | BK79: 7.5682 | BL79: n.d. | BM79: =IF('Tipos de Cambio'!$M$9="EuroZona",LOOKUP(1,$BB$2:$BL$2,BB79:BL79),IF('Tipos de Cambio'!$M$9="Reino Unido",LOOKUP(2,$BB$2:$BL$2,BB79:BL79),IF('Tipos de Cambio'!$M$9="Japón",LOOKUP(3,$BB$2:$BL$2,BB79:BL79),IF('Tipos de Cambio'!$M$9="Canadá",LOOKUP(4,$BB$2:$BL$2,BB79:BL79),IF('Tipos de Cambio'!$M$9="Rusia",LOOKUP(5,$BB$2:$BL$2,BB79:BL79),IF('Tipos de Cambio'!$M$9="Brasil",LOOKUP(6,$BB$2:$BL$2,BB79:BL79),IF('Tipos de Cambio'!$M$9="China",LOOKUP(7,$BB$2:$BL$2,BB79:BL79),IF('Tipos de Cambio'!$M$9="India",LOOKUP(8,$BB$2:$BL$2,BB79:BL79),IF('Tipos de Cambio'!$M$9="Sudáfrica",LOOKUP(9,$BB$2:$BL$2,BB79:BL79),IF('Tipos de Cambio'!$M$9="México",LOOKUP(10,$BB$2:$BL$2,BB79:BL79),IF('Tipos de Cambio'!$M$9="Colombia",LOOKUP(11,$BB$2:$BL$2,BB79:BL79)))))))))))) -> n.d. | BN79: 5.40848 | BO79: 5.16 | BP79: 5.39416 | BQ79: n.d. | BR79: 0.62389 | BS79: 6.27 | BT79: n.d. | BU79: n.d. | BV79: 30.63762 | BW79: 69.05574 | BX79: 27.12505 | BY79: 0.6421829 | BZ79: 5.113463 | CA79: 6.006379 | CB79: 4.938909 | CC79: 5.44497 | CD79: 10.25181 | CE79: 5.611421811 | CF79: 3.026612076 | CG79: 15.28201009 | CH79: n.d. | CI79: 42.03815322 | CJ79: 23.95355523 | CK79: 28.19022129 | CL79: 14.29297702 | CM79: 19.92374898 | CN79: 100.5619 | CO79: 98.28671 | CP79: 98.59875 | CQ79: 100.8132 | CR79: 100.3807 | CS79: n.d. | CT79: n.d. | CU79: n.d. | CV79: n.d. | CW79: 102.5825 | CX79: 101.4008 | CY79: 100 | CZ79: 98.74979 | DA79: 98.5157 | DB79: 99.14919 | DC79: 99.43531 | DD79: 100.0321 | DE79: 98.86287 | DF79: n.d. | DG79: 94.7913 | DH79: n.d. | DI79: 100.8132 | DJ79: 100.3807 | DK79: 5587.14 | DL79: 1101.38 | DM79: 645.5 | DN79: 5.5 | DO79: n.d. | DP79: n.d. | DQ79: n.d. | DR79: n.d. | DS79: n.d. | DT79: n.d. | DU79: n.d. | DV79: n.d. | DW79: n.d. | DX79: 0 | DY79: n.d. | DZ79: n.d. | EA79: n.d. | EB79: n.d. | EC79: n.d. | ED79: n.d. | EE79: n.d.
B80: abril | C80: 2.896642528 | D80: 2.356557377 | E80: 1.333333333 | F80: 2.357799387 | G80: 2.537311483 | H80: 0.2047082907 | I80: 68.27118813 | J80: 19.16887612 | K80: 9.699994922 | L80: 9.830517646 | M80: 5.540196391 | N80: 36.92716356 | O80: 19.90341421 | P80: n.d | Q80: n.d | R80: n.d | S80: n.d | T80: n.d | U80: n.d | V80: n.d | W80: n.d | X80: n.d | Y80: n.d | Z80: n.d | AA80: n.d | AB80: n.d | AE80: 23.5 | AF80: 20.9 | AG80: -2.6 | AH80: 392.85 | AI80: 49.8 | AJ80: 82.78070597 | AK80: 123.4997415 | AL80: 257.61 | AM80: 562 | AN80: 190.37 | AO80: 327.2 | AP80: n.d. | AQ80: n.d. | AR80: n.d. | AS80: n.d. | AT80: n.d. | AU80: n.d. | AV80: n.d. | AW80: n.d. | AX80: n.d. | AY80: n.d. | AZ80: n.d. | BA80: n.d. | BB80: 1.263904999 | BC80: 1.516 | BD80: 107.1995 | BE80: 1.3592 | BF80: n.d. | BG80: 0.9898 | BH80: 8.3515 | BI80: 34.3195 | BJ80: n.d. | BK80: 7.4694 | BL80: n.d. | BM80: =IF('Tipos de Cambio'!$M$9="EuroZona",LOOKUP(1,$BB$2:$BL$2,BB80:BL80),IF('Tipos de Cambio'!$M$9="Reino Unido",LOOKUP(2,$BB$2:$BL$2,BB80:BL80),IF('Tipos de Cambio'!$M$9="Japón",LOOKUP(3,$BB$2:$BL$2,BB80:BL80),IF('Tipos de Cambio'!$M$9="Canadá",LOOKUP(4,$BB$2:$BL$2,BB80:BL80),IF('Tipos de Cambio'!$M$9="Rusia",LOOKUP(5,$BB$2:$BL$2,BB80:BL80),IF('Tipos de Cambio'!$M$9="Brasil",LOOKUP(6,$BB$2:$BL$2,BB80:BL80),IF('Tipos de Cambio'!$M$9="China",LOOKUP(7,$BB$2:$BL$2,BB80:BL80),IF('Tipos de Cambio'!$M$9="India",LOOKUP(8,$BB$2:$BL$2,BB80:BL80),IF('Tipos de Cambio'!$M$9="Sudáfrica",LOOKUP(9,$BB$2:$BL$2,BB80:BL80),IF('Tipos de Cambio'!$M$9="México",LOOKUP(10,$BB$2:$BL$2,BB80:BL80),IF('Tipos de Cambio'!$M$9="Colombia",LOOKUP(11,$BB$2:$BL$2,BB80:BL80)))))))))))) -> n.d. | BN80: 5.55996 | BO80: 5.27 | BP80: 5.49395 | BQ80: n.d. | BR80: 0.6211 | BS80: 6.51 | BT80: n.d. | BU80: n.d. | BV80: 30.72736 | BW80: 69.08028 | BX80: 27.37589 | BY80: 0.6560657 | BZ80: 5.229693 | CA80: 6.184158 | CB80: 5.044221 | CC80: 5.532153 | CD80: 10.39616 | CE80: 5.675571851 | CF80: 2.937598878 | CG80: 15.40607284 | CH80: n.d. | CI80: 43.48828142 | CJ80: 26.44988345 | CK80: 28.23975512 | CL80: 14.72502218 | CM80: 18.36219572 | CN80: 100.5902 | CO80: 98.21279 | CP80: 98.58237 | CQ80: 100.849 | CR80: 100.2979 | CS80: n.d. | CT80: n.d. | CU80: n.d. | CV80: n.d. | CW80: 102.5491 | CX80: 101.18 | CY80: 100 | CZ80: 99.06254 | DA80: 98.41387 | DB80: 99.12803 | DC80: 99.50942 | DD80: 99.89768 | DE80: 99.09538 | DF80: n.d. | DG80: 95.14547 | DH80: n.d. | DI80: 100.849 | DJ80: 100.2979 | DK80: 5569.07 | DL80: 1190.58 | DM80: 654.17 | DN80: 5.6 | DO80: n.d. | DP80: n.d. | DQ80: n.d. | DR80: n.d. | DS80: n.d. | DT80: n.d. | DU80: n.d. | DV80: n.d. | DW80: n.d. | DX80: 0.1 | DY80: n.d. | DZ80: n.d. | EA80: n.d. | EB80: n.d. | EC80: n.d. | ED80: n.d. | EE80: n.d.
B81: mayo | C81: 2.890932983 | D81: 2.456499488 | E81: 1.466666667 | F81: 2.420856611 | G81: 2.225512209 | H81: 0.2042900919 | I81: 58.40221292 | J81: 17.48592231 | K81: 8.900004927 | L81: 9.333338664 | M81: 5.793114133 | N81: 33.82945503 | O81: 19.78055912 | P81: n.d | Q81: n.d | R81: n.d | S81: n.d | T81: n.d | U81: n.d | V81: n.d | W81: n.d | X81: n.d | Y81: n.d | Z81: n.d | AA81: n.d | AB81: n.d | AE81: 21.17 | AF81: 19.15 | AG81: -2.02 | AH81: 391.93 | AI81: 49.8 | AJ81: 82.95307128 | AK81: 129.2694433 | AL81: 262.11 | AM81: 552 | AN81: 204.02 | AO81: 332.25 | AP81: n.d. | AQ81: n.d. | AR81: n.d. | AS81: n.d. | AT81: n.d. | AU81: n.d. | AV81: n.d. | AW81: n.d. | AX81: n.d. | AY81: n.d. | AZ81: n.d. | BA81: n.d. | BB81: 1.246680001 | BC81: 1.5152 | BD81: 106.3423 | BE81: 1.3693 | BF81: n.d. | BG81: 0.995 | BH81: 8.3479 | BI81: 35.025 | BJ81: n.d. | BK81: 7.4368 | BL81: n.d. | BM81: =IF('Tipos de Cambio'!$M$9="EuroZona",LOOKUP(1,$BB$2:$BL$2,BB81:BL81),IF('Tipos de Cambio'!$M$9="Reino Unido",LOOKUP(2,$BB$2:$BL$2,BB81:BL81),IF('Tipos de Cambio'!$M$9="Japón",LOOKUP(3,$BB$2:$BL$2,BB81:BL81),IF('Tipos de Cambio'!$M$9="Canadá",LOOKUP(4,$BB$2:$BL$2,BB81:BL81),IF('Tipos de Cambio'!$M$9="Rusia",LOOKUP(5,$BB$2:$BL$2,BB81:BL81),IF('Tipos de Cambio'!$M$9="Brasil",LOOKUP(6,$BB$2:$BL$2,BB81:BL81),IF('Tipos de Cambio'!$M$9="China",LOOKUP(7,$BB$2:$BL$2,BB81:BL81),IF('Tipos de Cambio'!$M$9="India",LOOKUP(8,$BB$2:$BL$2,BB81:BL81),IF('Tipos de Cambio'!$M$9="Sudáfrica",LOOKUP(9,$BB$2:$BL$2,BB81:BL81),IF('Tipos de Cambio'!$M$9="México",LOOKUP(10,$BB$2:$BL$2,BB81:BL81),IF('Tipos de Cambio'!$M$9="Colombia",LOOKUP(11,$BB$2:$BL$2,BB81:BL81)))))))))))) -> n.d. | BN81: 5.59989 | BO81: 5.33 | BP81: 5.49665 | BQ81: n.d. | BR81: 0.62203 | BS81: 6.74 | BT81: n.d. | BU81: n.d. | BV81: 30.82625 | BW81: 69.36658 | BX81: 27.53006 | BY81: 0.6733153 | BZ81: 5.350815 | CA81: 6.35308 | CB81: 5.149949 | CC81: 5.561161 | CD81: 10.5149 | CE81: 5.263616189 | CF81: 3.213249205 | CG81: 15.57239064 | CH81: n.d. | CI81: 43.34499653 | CJ81: 29.50489108 | CK81: 28.2846233 | CL81: 15.71141107 | CM81: 16.24807564 | CN81: 100.5698 | CO81: 98.14106 | CP81: 98.63749 | CQ81: 100.817 | CR81: 100.2002 | CS81: n.d. | CT81: n.d. | CU81: n.d. | CV81: n.d. | CW81: 102.4863 | CX81: 100.9795 | CY81: 100 | CZ81: 99.3413 | DA81: 98.37543 | DB81: 99.07581 | DC81: 99.5829 | DD81: 99.79019 | DE81: 99.37907 | DF81: n.d. | DG81: 95.52705 | DH81: n.d. | DI81: 100.817 | DJ81: 100.2002 | DK81: 5643.17 | DL81: 1243.44 | DM81: 669.12 | DN81: 5.6 | DO81: n.d. | DP81: n.d. | DQ81: n.d. | DR81: n.d. | DS81: n.d. | DT81: n.d. | DU81: n.d. | DV81: n.d. | DW81: n.d. | DX81: 0 | DY81: n.d. | DZ81: n.d. | EA81: n.d. | EB81: n.d. | EC81: n.d. | ED81: n.d. | EE81: n.d.
B82: junio | C82: 2.754098361 | D82: 2.142857143 | E82: 1.464713715 | F82: 2.301143921 | G82: 2.373868017 | H82: 0 | I82: 50.2489551 | J82: 16.25688331 | K82: 8.600004594 | L82: 8.823530742 | M82: 6.906081236 | N82: 31.82492454 | O82: 19.70617883 | P82: n.d | Q82: n.d | R82: n.d | S82: n.d | T82: n.d | U82: n.d | V82: n.d | W82: n.d | X82: n.d | Y82: n.d | Z82: n.d | AA82: n.d | AB82: n.d | AE82: 20.42 | AF82: 18.46 | AG82: -1.96 | AH82: 385.27 | AI82: 49.58 | AJ82: 82.97121499 | AK82: 125.4592628 | AL82: 227.34 | AM82: 508 | AN82: 197.55 | AO82: 341.5 | AP82: n.d. | AQ82: n.d. | AR82: n.d. | AS82: n.d. | AT82: n.d. | AU82: n.d. | AV82: n.d. | AW82: n.d. | AX82: n.d. | AY82: n.d. | AZ82: n.d. | BA82: n.d. | BB82: 1.252922 | BC82: 1.5416 | BD82: 108.96 | BE82: 1.3658 | BF82: n.d. | BG82: 1.0013 | BH82: 8.3424 | BI82: 35.0995 | BJ82: n.d. | BK82: 7.5648 | BL82: n.d. | BM82: =IF('Tipos de Cambio'!$M$9="EuroZona",LOOKUP(1,$BB$2:$BL$2,BB82:BL82),IF('Tipos de Cambio'!$M$9="Reino Unido",LOOKUP(2,$BB$2:$BL$2,BB82:BL82),IF('Tipos de Cambio'!$M$9="Japón",LOOKUP(3,$BB$2:$BL$2,BB82:BL82),IF('Tipos de Cambio'!$M$9="Canadá",LOOKUP(4,$BB$2:$BL$2,BB82:BL82),IF('Tipos de Cambio'!$M$9="Rusia",LOOKUP(5,$BB$2:$BL$2,BB82:BL82),IF('Tipos de Cambio'!$M$9="Brasil",LOOKUP(6,$BB$2:$BL$2,BB82:BL82),IF('Tipos de Cambio'!$M$9="China",LOOKUP(7,$BB$2:$BL$2,BB82:BL82),IF('Tipos de Cambio'!$M$9="India",LOOKUP(8,$BB$2:$BL$2,BB82:BL82),IF('Tipos de Cambio'!$M$9="Sudáfrica",LOOKUP(9,$BB$2:$BL$2,BB82:BL82),IF('Tipos de Cambio'!$M$9="México",LOOKUP(10,$BB$2:$BL$2,BB82:BL82),IF('Tipos de Cambio'!$M$9="Colombia",LOOKUP(11,$BB$2:$BL$2,BB82:BL82)))))))))))) -> n.d. | BN82: 5.75625 | BO82: 5.46 | BP82: 5.56973 | BQ82: n.d. | BR82: 0.57149 | BS82: 6.91 | BT82: n.d. | BU82: n.d. | BV82: 30.93427 | BW82: 69.67742 | BX82: 27.78292 | BY82: 0.6987754 | BZ82: 5.445518 | CA82: 6.474596 | CB82: 5.237608 | CC82: 5.631154 | CD82: 10.79649 | CE82: 4.897277252 | CF82: 3.499398484 | CG82: 15.78788123 | CH82: n.d. | CI82: 42.43921145 | CJ82: 29.91466231 | CK82: 28.03160989 | CL82: 15.8925717 | CM82: 17.08462114 | CN82: 100.6766 | CO82: 98.06561 | CP82: 98.65393 | CQ82: 100.747 | CR82: 100.2411 | CS82: n.d. | CT82: n.d. | CU82: n.d. | CV82: n.d. | CW82: 102.4164 | CX82: 100.8523 | CY82: 100 | CZ82: 99.57813 | DA82: 98.38215 | DB82: 99.0789 | DC82: 99.65224 | DD82: 99.86362 | DE82: 99.67916 | DF82: n.d. | DG82: 95.82539 | DH82: n.d. | DI82: 100.747 | DJ82: 100.2411 | DK82: 5654.62 | DL82: 1185.02 | DM82: 670.63 | DN82: 5.3 | DO82: n.d. | DP82: n.d. | DQ82: n.d. | DR82: n.d. | DS82: n.d. | DT82: n.d. | DU82: n.d. | DV82: n.d. | DW82: n.d. | DX82: -0.3 | DY82: n.d. | DZ82: n.d. | EA82: n.d. | EB82: n.d. | EC82: n.d. | ED82: n.d. | EE82: n.d.
B83: julio | C83: 2.950819672 | D83: 2.142857143 | E83: 1.328021248 | F83: 2.3054371 | G83: 2.388055276 | H83: 0.4110996917 | I83: 43.60481199 | J83: 14.83788067 | K83: 8.2999899 | L83: 8.306691794 | M83: 7.142843192 | N83: 31.02769758 | O83: 20.57503872 | P83: n.d | Q83: n.d | R83: n.d | S83: n.d | T83: n.d | U83: n.d | V83: n.d | W83: n.d | X83: n.d | Y83: n.d | Z83: n.d | AA83: n.d | AB83: n.d | AE83: 21.3 | AF83: 19.57 | AG83: -1.73 | AH83: 383.47 | AI83: 48.06 | AJ83: 79.74163348 | AK83: 122.4700855 | AL83: 202.6 | AM83: 476 | AN83: 197.8 | AO83: 358 | AP83: n.d. | AQ83: n.d. | AR83: n.d. | AS83: n.d. | AT83: n.d. | AU83: n.d. | AV83: n.d. | AW83: n.d. | AX83: n.d. | AY83: n.d. | AZ83: n.d. | BA83: n.d. | BB83: 1.270637999 | BC83: 1.553 | BD83: 109.1909 | BE83: 1.3697 | BF83: n.d. | BG83: 1.0069 | BH83: 8.3409 | BI83: 35.6673 | BJ83: n.d. | BK83: 7.6179 | BL83: n.d. | BM83: =IF('Tipos de Cambio'!$M$9="EuroZona",LOOKUP(1,$BB$2:$BL$2,BB83:BL83),IF('Tipos de Cambio'!$M$9="Reino Unido",LOOKUP(2,$BB$2:$BL$2,BB83:BL83),IF('Tipos de Cambio'!$M$9="Japón",LOOKUP(3,$BB$2:$BL$2,BB83:BL83),IF('Tipos de Cambio'!$M$9="Canadá",LOOKUP(4,$BB$2:$BL$2,BB83:BL83),IF('Tipos de Cambio'!$M$9="Rusia",LOOKUP(5,$BB$2:$BL$2,BB83:BL83),IF('Tipos de Cambio'!$M$9="Brasil",LOOKUP(6,$BB$2:$BL$2,BB83:BL83),IF('Tipos de Cambio'!$M$9="China",LOOKUP(7,$BB$2:$BL$2,BB83:BL83),IF('Tipos de Cambio'!$M$9="India",LOOKUP(8,$BB$2:$BL$2,BB83:BL83),IF('Tipos de Cambio'!$M$9="Sudáfrica",LOOKUP(9,$BB$2:$BL$2,BB83:BL83),IF('Tipos de Cambio'!$M$9="México",LOOKUP(10,$BB$2:$BL$2,BB83:BL83),IF('Tipos de Cambio'!$M$9="Colombia",LOOKUP(11,$BB$2:$BL$2,BB83:BL83)))))))))))) -> n.d. | BN83: 5.84902 | BO83: 5.52 | BP83: 5.64029 | BQ83: n.d. | BR83: 0.67986 | BS83: 6.87 | BT83: n.d. | BU83: n.d. | BV83: 31.05559 | BW83: 69.81648 | BX83: 28.16658 | BY83: 0.722323 | BZ83: 5.533557 | CA83: 6.601964 | CB83: 5.333181 | CC83: 5.713132 | CD83: 11.03579 | CE83: 4.762548918 | CF83: 3.617812358 | CG83: 16.23750821 | CH83: 51.88231987 | CI83: 39.51739354 | CJ83: 31.31479004 | CK83: 27.54168341 | CL83: 16.48966614 | CM83: 18.55510844 | CN83: 100.8335 | CO83: 98.06056 | CP83: 98.55694 | CQ83: 100.6646 | CR83: 100.4305 | CS83: n.d. | CT83: n.d. | CU83: n.d. | CV83: n.d. | CW83: 102.3655 | CX83: 100.8471 | CY83: 100 | CZ83: 99.55753 | DA83: 98.47085 | DB83: 99.11119 | DC83: 99.71463 | DD83: 100.0723 | DE83: 99.92258 | DF83: n.d. | DG83: 96.09637 | DH83: n.d. | DI83: 100.6646 | DJ83: 100.4305 | DK83: 5528.91 | DL83: 1080.6 | DM83: 639.95 | DN83: 5.5 | DO83: n.d. | DP83: n.d. | DQ83: n.d. | DR83: n.d. | DS83: n.d. | DT83: n.d. | DU83: n.d. | DV83: n.d. | DW83: n.d. | DX83: 0.2 | DY83: n.d. | DZ83: n.d. | EA83: n.d. | EB83: n.d. | EC83: n.d. | ED83: n.d. | EE83: n.d.
B84: agosto | C84: 2.877697842 | D84: 2.038735984 | E84: 1.328021248 | F84: 1.618037135 | G84: 2.225512209 | H84: 0.205338809 | I84: 37.05359023 | J84: 14.21228084 | K84: 8.099997443 | L84: 8.888893445 | M84: 7.39725974 | N84: 30.60292723 | O84: 21.13440119 | P84: n.d | Q84: n.d | R84: n.d | S84: n.d | T84: n.d | U84: n.d | V84: n.d | W84: n.d | X84: n.d | Y84: n.d | Z84: n.d | AA84: n.d | AB84: n.d | AE84: 21.9 | AF84: 20.51 | AG84: -1.39 | AH84: 387.35 | AI84: 49.27 | AJ84: 76.33968666 | AK84: 126.2212989 | AL84: 191.63 | AM84: 513 | AN84: 185.5 | AO84: 335.5 | AP84: n.d. | AQ84: n.d. | AR84: n.d. | AS84: n.d. | AT84: n.d. | AU84: n.d. | AV84: n.d. | AW84: n.d. | AX84: n.d. | AY84: n.d. | AZ84: n.d. | BA84: n.d. | BB84: 1.283248999 | BC84: 1.5499 | BD84: 107.8659 | BE84: 1.3722 | BF84: n.d. | BG84: 1.0147 | BH84: 8.3379 | BI84: 35.8 | BJ84: n.d. | BK84: 7.5143 | BL84: n.d. | BM84: =IF('Tipos de Cambio'!$M$9="EuroZona",LOOKUP(1,$BB$2:$BL$2,BB84:BL84),IF('Tipos de Cambio'!$M$9="Reino Unido",LOOKUP(2,$BB$2:$BL$2,BB84:BL84),IF('Tipos de Cambio'!$M$9="Japón",LOOKUP(3,$BB$2:$BL$2,BB84:BL84),IF('Tipos de Cambio'!$M$9="Canadá",LOOKUP(4,$BB$2:$BL$2,BB84:BL84),IF('Tipos de Cambio'!$M$9="Rusia",LOOKUP(5,$BB$2:$BL$2,BB84:BL84),IF('Tipos de Cambio'!$M$9="Brasil",LOOKUP(6,$BB$2:$BL$2,BB84:BL84),IF('Tipos de Cambio'!$M$9="China",LOOKUP(7,$BB$2:$BL$2,BB84:BL84),IF('Tipos de Cambio'!$M$9="India",LOOKUP(8,$BB$2:$BL$2,BB84:BL84),IF('Tipos de Cambio'!$M$9="Sudáfrica",LOOKUP(9,$BB$2:$BL$2,BB84:BL84),IF('Tipos de Cambio'!$M$9="México",LOOKUP(10,$BB$2:$BL$2,BB84:BL84),IF('Tipos de Cambio'!$M$9="Colombia",LOOKUP(11,$BB$2:$BL$2,BB84:BL84)))))))))))) -> n.d. | BN84: 5.70499 | BO84: 5.34 | BP84: 5.52734 | BQ84: n.d. | BR84: 0.60528 | BS84: 6.64 | BT84: n.d. | BU84: n.d. | BV84: 31.11376 | BW84: 69.96372 | BX84: 28.41086 | BY84: 0.7396725 | BZ84: 5.637239 | CA84: 6.739605 | CB84: 5.433381 | CC84: 5.774502 | CD84: 11.12465 | CE84: 4.327124423 | CF84: 3.559758841 | CG84: 15.84722493 | CH84: 46.70842832 | CI84: 35.1016107 | CJ84: 32.38530861 | CK84: 27.03212006 | CL84: 16.36102555 | CM84: 19.12211574 | CN84: 100.9517 | CO84: 98.07693 | CP84: 98.47224 | CQ84: 100.5693 | CR84: 100.6101 | CS84: n.d. | CT84: n.d. | CU84: n.d. | CV84: n.d. | CW84: 102.3128 | CX84: 100.9146 | CY84: 100 | CZ84: 99.56123 | DA84: 98.58696 | DB84: 99.20367 | DC84: 99.77317 | DD84: 100.2416 | DE84: 100.0194 | DF84: n.d. | DG84: 96.19086 | DH84: n.d. | DI84: 100.5693 | DJ84: 100.6101 | DK84: 5616.2 | DL84: 1141.5 | DM84: 651.99 | DN84: 5.1 | DO84: n.d. | DP84: n.d. | DQ84: n.d. | DR84: n.d. | DS84: n.d. | DT84: n.d. | DU84: n.d. | DV84: n.d. | DW84: n.d. | DX84: -0.4 | DY84: n.d. | DZ84: n.d. | EA84: n.d. | EB84: n.d. | EC84: n.d. | ED84: n.d. | EE84: n.d.
B85: septiembre | C85: 3.002610966 | D85: 2.034587996 | E85: 1.328021248 | F85: 1.559402669 | G85: 2.363363358 | H85: 0 | I85: 31.6349445 | J85: 13.26244351 | K85: 7.39999523 | L85: 8.517366639 | M85: 8.344752755 | N85: 30.00200425 | O85: 21.55199437 | P85: n.d | Q85: n.d | R85: n.d | S85: n.d | T85: n.d | U85: n.d | V85: n.d | W85: n.d | X85: n.d | Y85: n.d | Z85: n.d | AA85: n.d | AB85: n.d | AE85: 23.97 | AF85: 22.63 | AG85: -1.34 | AH85: 383.14 | AI85: 49.32 | AJ85: 75.35085412 | AK85: 118.7007285 | AL85: 178.71 | AM85: 545 | AN85: 145.39 | AO85: 328.4 | AP85: n.d. | AQ85: n.d. | AR85: n.d. | AS85: n.d. | AT85: n.d. | AU85: n.d. | AV85: n.d. | AW85: n.d. | AX85: n.d. | AY85: n.d. | AZ85: n.d. | BA85: n.d. | BB85: 1.269068001 | BC85: 1.5593 | BD85: 109.931 | BE85: 1.3694 | BF85: n.d. | BG85: 1.0194 | BH85: 8.3341 | BI85: 35.87 | BJ85: n.d. | BK85: 7.5441 | BL85: n.d. | BM85: =IF('Tipos de Cambio'!$M$9="EuroZona",LOOKUP(1,$BB$2:$BL$2,BB85:BL85),IF('Tipos de Cambio'!$M$9="Reino Unido",LOOKUP(2,$BB$2:$BL$2,BB85:BL85),IF('Tipos de Cambio'!$M$9="Japón",LOOKUP(3,$BB$2:$BL$2,BB85:BL85),IF('Tipos de Cambio'!$M$9="Canadá",LOOKUP(4,$BB$2:$BL$2,BB85:BL85),IF('Tipos de Cambio'!$M$9="Rusia",LOOKUP(5,$BB$2:$BL$2,BB85:BL85),IF('Tipos de Cambio'!$M$9="Brasil",LOOKUP(6,$BB$2:$BL$2,BB85:BL85),IF('Tipos de Cambio'!$M$9="China",LOOKUP(7,$BB$2:$BL$2,BB85:BL85),IF('Tipos de Cambio'!$M$9="India",LOOKUP(8,$BB$2:$BL$2,BB85:BL85),IF('Tipos de Cambio'!$M$9="Sudáfrica",LOOKUP(9,$BB$2:$BL$2,BB85:BL85),IF('Tipos de Cambio'!$M$9="México",LOOKUP(10,$BB$2:$BL$2,BB85:BL85),IF('Tipos de Cambio'!$M$9="Colombia",LOOKUP(11,$BB$2:$BL$2,BB85:BL85)))))))))))) -> n.d. | BN85: 5.83203 | BO85: 5.45 | BP85: 5.61775 | BQ85: n.d. | BR85: 0.51432 | BS85: 6.83 | BT85: n.d. | BU85: n.d. | BV85: 31.19187 | BW85: 70.11914 | BX85: 28.65874 | BY85: 0.7556944 | BZ85: 5.741098 | CA85: 6.893123 | CB85: 5.529379 | CC85: 5.842963 | CD85: 11.20199 | CE85: 4.208654713 | CF85: 3.414154285 | CG85: 15.86545109 | CH85: 42.85724548 | CI85: 32.85328629 | CJ85: 33.04413366 | CK85: 26.71430712 | CL85: 15.99157344 | CM85: 19.32817814 | CN85: 101.041 | CO85: 98.07961 | CP85: 98.4314 | CQ85: 100.4249 | CR85: 100.8215 | CS85: n.d. | CT85: n.d. | CU85: n.d. | CV85: n.d. | CW85: 102.2813 | CX85: 101.0012 | CY85: 100 | CZ85: 99.57276 | DA85: 98.71078 | DB85: 99.33438 | DC85: 99.83236 | DD85: 100.4861 | DE85: 100.0485 | DF85: n.d. | DG85: 96.15714 | DH85: n.d. | DI85: 100.4249 | DJ85: 100.8215 | DK85: 5882.16 | DL85: 1226.91 | DM85: 687.31 | DN85: 5.2 | DO85: n.d. | DP85: n.d. | DQ85: n.d. | DR85: n.d. | DS85: n.d. | DT85: n.d. | DU85: n.d. | DV85: n.d. | DW85: n.d. | DX85: 0.1 | DY85: n.d. | DZ85: n.d. | EA85: n.d. | EB85: n.d. | EC85: n.d. | ED85: n.d. | EE85: n.d.
B86: octubre | C86: 2.992843201 | D86: 2.032520325 | E86: 1.597869507 | F86: 1.716171617 | G86: 2.514790963 | H86: 0.5117707267 | I86: 27.21025414 | J86: 12.02282647 | K86: 6.999989139 | L86: 8.463951203 | M86: 9.004082316 | N86: 28.97101024 | O86: 21.87206634 | P86: n.d | Q86: n.d | R86: n.d | S86: n.d | T86: n.d | U86: n.d | V86: n.d | W86: n.d | X86: n.d | Y86: n.d | Z86: n.d | AA86: n.d | AB86: n.d | AE86: 24.88 | AF86: 24.16 | AG86: -0.72 | AH86: 381.07 | AI86: 49.3 | AJ86: 75.36899783 | AK86: 124.1982745 | AL86: 178 | AM86: 532 | AN86: 127.85 | AO86: 312.75 | AP86: n.d. | AQ86: n.d. | AR86: n.d. | AS86: n.d. | AT86: n.d. | AU86: n.d. | AV86: n.d. | AW86: n.d. | AX86: n.d. | AY86: n.d. | AZ86: n.d. | BA86: n.d. | BB86: 1.258411 | BC86: 1.5863 | BD86: 112.4123 | BE86: 1.3508 | BF86: n.d. | BG86: 1.0254 | BH86: 8.3299 | BI86: 35.8036 | BJ86: n.d. | BK86: 7.7345 | BL86: n.d. | BM86: =IF('Tipos de Cambio'!$M$9="EuroZona",LOOKUP(1,$BB$2:$BL$2,BB86:BL86),IF('Tipos de Cambio'!$M$9="Reino Unido",LOOKUP(2,$BB$2:$BL$2,BB86:BL86),IF('Tipos de Cambio'!$M$9="Japón",LOOKUP(3,$BB$2:$BL$2,BB86:BL86),IF('Tipos de Cambio'!$M$9="Canadá",LOOKUP(4,$BB$2:$BL$2,BB86:BL86),IF('Tipos de Cambio'!$M$9="Rusia",LOOKUP(5,$BB$2:$BL$2,BB86:BL86),IF('Tipos de Cambio'!$M$9="Brasil",LOOKUP(6,$BB$2:$BL$2,BB86:BL86),IF('Tipos de Cambio'!$M$9="China",LOOKUP(7,$BB$2:$BL$2,BB86:BL86),IF('Tipos de Cambio'!$M$9="India",LOOKUP(8,$BB$2:$BL$2,BB86:BL86),IF('Tipos de Cambio'!$M$9="Sudáfrica",LOOKUP(9,$BB$2:$BL$2,BB86:BL86),IF('Tipos de Cambio'!$M$9="México",LOOKUP(10,$BB$2:$BL$2,BB86:BL86),IF('Tipos de Cambio'!$M$9="Colombia",LOOKUP(11,$BB$2:$BL$2,BB86:BL86)))))))))))) -> n.d. | BN86: 5.63706 | BO86: 5.32 | BP86: 5.54484 | BQ86: n.d. | BR86: 0.49796 | BS86: 6.53 | BT86: n.d. | BU86: n.d. | BV86: 31.33563 | BW86: 70.38908 | BX86: 28.8687 | BY86: 0.7706959 | BZ86: 5.836198 | CA86: 7.074114 | CB86: 5.612128 | CC86: 5.897906 | CD86: 11.31463 | CE86: 4.361548963 | CF86: 3.687196725 | CG86: 15.76838863 | CH86: 40.92560105 | CI86: 31.45173333 | CJ86: 33.73460631 | CK86: 26.0686897 | CL86: 15.39857951 | CM86: 20.03254298 | CN86: 101.1613 | CO86: 98.08971 | CP86: 98.45647 | CQ86: 100.1633 | CR86: 101.003 | CS86: n.d. | CT86: n.d. | CU86: n.d. | CV86: n.d. | CW86: 102.2311 | CX86: 101.0699 | CY86: 100 | CZ86: 99.67129 | DA86: 98.81659 | DB86: 99.46545 | DC86: 99.8976 | DD86: 100.7835 | DE86: 100.0664 | DF86: n.d. | DG86: 96.24123 | DH86: n.d. | DI86: 100.1633 | DJ86: 101.003 | DK86: 6029.38 | DL86: 1221.51 | DM86: 705.27 | DN86: 5.2 | DO86: n.d. | DP86: n.d. | DQ86: n.d. | DR86: n.d. | DS86: n.d. | DT86: n.d. | DU86: n.d. | DV86: n.d. | DW86: n.d. | DX86: 0 | DY86: n.d. | DZ86: n.d. | EA86: n.d. | EB86: n.d. | EC86: n.d. | ED86: n.d. | EE86: n.d.
B87: noviembre | C87: 3.255208333 | D87: 1.92893401 | E87: 1.464713715 | F87: 1.543332014 | G87: 2.514790963 | H87: 0.5133470226 | I87: 23.94969043 | J87: 10.75323234 | K87: 6.899995999 | L87: 8.722746716 | M87: 9.115641696 | N87: 27.774316 | O87: 21.8832751 | P87: n.d | Q87: n.d | R87: n.d | S87: n.d | T87: n.d | U87: n.d | V87: n.d | W87: n.d | X87: n.d | Y87: n.d | Z87: n.d | AA87: n.d | AB87: n.d | AE87: 23.71 | AF87: 22.76 | AG87: -0.95 | AH87: 377.85 | AI87: 48.77 | AJ87: 76.06753091 | AK87: 124.0712685 | AL87: 176.41 | AM87: 550 | AN87: 117.74 | AO87: 315 | AP87: n.d. | AQ87: n.d. | AR87: n.d. | AS87: n.d. | AT87: n.d. | AU87: n.d. | AV87: n.d. | AW87: n.d. | AX87: n.d. | AY87: n.d. | AZ87: n.d. | BA87: n.d. | BB87: 1.276900001 | BC87: 1.6623 | BD87: 112.2958 | BE87: 1.3381 | BF87: n.d. | BG87: 1.0304 | BH87: 8.3294 | BI87: 35.8392 | BJ87: n.d. | BK87: 7.9119 | BL87: n.d. | BM87: =IF('Tipos de Cambio'!$M$9="EuroZona",LOOKUP(1,$BB$2:$BL$2,BB87:BL87),IF('Tipos de Cambio'!$M$9="Reino Unido",LOOKUP(2,$BB$2:$BL$2,BB87:BL87),IF('Tipos de Cambio'!$M$9="Japón",LOOKUP(3,$BB$2:$BL$2,BB87:BL87),IF('Tipos de Cambio'!$M$9="Canadá",LOOKUP(4,$BB$2:$BL$2,BB87:BL87),IF('Tipos de Cambio'!$M$9="Rusia",LOOKUP(5,$BB$2:$BL$2,BB87:BL87),IF('Tipos de Cambio'!$M$9="Brasil",LOOKUP(6,$BB$2:$BL$2,BB87:BL87),IF('Tipos de Cambio'!$M$9="China",LOOKUP(7,$BB$2:$BL$2,BB87:BL87),IF('Tipos de Cambio'!$M$9="India",LOOKUP(8,$BB$2:$BL$2,BB87:BL87),IF('Tipos de Cambio'!$M$9="Sudáfrica",LOOKUP(9,$BB$2:$BL$2,BB87:BL87),IF('Tipos de Cambio'!$M$9="México",LOOKUP(10,$BB$2:$BL$2,BB87:BL87),IF('Tipos de Cambio'!$M$9="Colombia",LOOKUP(11,$BB$2:$BL$2,BB87:BL87)))))))))))) -> n.d. | BN87: 5.54874 | BO87: 5.27 | BP87: 5.5 | BQ87: n.d. | BR87: 0.49777 | BS87: 6.2 | BT87: n.d. | BU87: n.d. | BV87: 31.49517 | BW87: 70.47088 | BX87: 29.27122 | BY87: 0.7817855 | BZ87: 5.956506 | CA87: 7.197897 | CB87: 5.692238 | CC87: 5.962363 | CD87: 11.34333 | CE87: 4.704548265 | CF87: 3.161289718 | CG87: 16.44860482 | CH87: 38.79071949 | CI87: 29.46016048 | CJ87: 32.22498261 | CK87: 25.33891507 | CL87: 15.57578709 | CM87: 20.15912279 | CN87: 101.2635 | CO87: 98.0792 | CP87: 98.56273 | CQ87: 99.73591 | CR87: 101.1188 | CS87: n.d. | CT87: n.d. | CU87: n.d. | CV87: n.d. | CW87: 102.0496 | CX87: 101.1016 | CY87: 100 | CZ87: 99.91547 | DA87: 98.89922 | DB87: 99.55043 | DC87: 99.97392 | DD87: 100.8945 | DE87: 100.1459 | DF87: n.d. | DG87: 96.64918 | DH87: n.d. | DI87: 99.73591 | DJ87: 101.1188 | DK87: 6521.7 | DL87: 1292.61 | DM87: 757.02 | DN87: 5.4 | DO87: n.d. | DP87: n.d. | DQ87: n.d. | DR87: n.d. | DS87: n.d. | DT87: n.d. | DU87: n.d. | DV87: n.d. | DW87: n.d. | DX87: 0.2 | DY87: n.d. | DZ87: n.d. | EA87: n.d. | EB87: n.d. | EC87: n.d. | ED87: n.d. | EE87: n.d.
B88: diciembre | C88: 3.32247557 | D88: 1.925025329 | E88: 1.593625498 | F88: 1.660516605 | G88: 2.205890115 | H88: 0.6160164271 | I88: 21.81181639 | J88: 9.564951818 | K88: 7.000003459 | L88: 10.41010185 | M88: 9.311752544 | N88: 27.70480862 | O88: 21.63907575 | P88: n.d | Q88: n.d | R88: n.d | S88: n.d | T88: n.d | U88: n.d | V88: n.d | W88: n.d | X88: n.d | Y88: n.d | Z88: n.d | AA88: n.d | AB88: n.d | AE88: 25.23 | AF88: 23.78 | AG88: -1.45 | AH88: 369 | AI88: 48.71 | AJ88: 79.22000163 | AK88: 117.0178988 | AL88: 175.7 | AM88: 561 | AN88: 117.69 | AO88: 319.2 | AP88: n.d. | AQ88: n.d. | AR88: n.d. | AS88: n.d. | AT88: n.d. | AU88: n.d. | AV88: n.d. | AW88: n.d. | AX88: n.d. | AY88: n.d. | AZ88: n.d. | BA88: n.d. | BB88: 1.250251999 | BC88: 1.6639 | BD88: 113.981 | BE88: 1.3622 | BF88: n.d. | BG88: 1.0372 | BH88: 8.329 | BI88: 35.8815 | BJ88: n.d. | BK88: 7.8769 | BL88: n.d. | BM88: =IF('Tipos de Cambio'!$M$9="EuroZona",LOOKUP(1,$BB$2:$BL$2,BB88:BL88),IF('Tipos de Cambio'!$M$9="Reino Unido",LOOKUP(2,$BB$2:$BL$2,BB88:BL88),IF('Tipos de Cambio'!$M$9="Japón",LOOKUP(3,$BB$2:$BL$2,BB88:BL88),IF('Tipos de Cambio'!$M$9="Canadá",LOOKUP(4,$BB$2:$BL$2,BB88:BL88),IF('Tipos de Cambio'!$M$9="Rusia",LOOKUP(5,$BB$2:$BL$2,BB88:BL88),IF('Tipos de Cambio'!$M$9="Brasil",LOOKUP(6,$BB$2:$BL$2,BB88:BL88),IF('Tipos de Cambio'!$M$9="China",LOOKUP(7,$BB$2:$BL$2,BB88:BL88),IF('Tipos de Cambio'!$M$9="India",LOOKUP(8,$BB$2:$BL$2,BB88:BL88),IF('Tipos de Cambio'!$M$9="Sudáfrica",LOOKUP(9,$BB$2:$BL$2,BB88:BL88),IF('Tipos de Cambio'!$M$9="México",LOOKUP(10,$BB$2:$BL$2,BB88:BL88),IF('Tipos de Cambio'!$M$9="Colombia",LOOKUP(11,$BB$2:$BL$2,BB88:BL88)))))))))))) -> n.d. | BN88: 5.59551 | BO88: 5.24 | BP88: 5.55176 | BQ88: n.d. | BR88: 0.46504 | BS88: 6.3 | BT88: n.d. | BU88: n.d. | BV88: 31.66386 | BW88: 70.5036 | BX88: 29.53672 | BY88: 0.7749473 | BZ88: 6.11346 | CA88: 7.31956 | CB88: 5.784771 | CC88: 6.050006 | CD88: 11.37834 | CE88: 4.986934599 | CF88: 2.950302804 | CG88: 15.28639399 | CH88: 33.54989419 | CI88: 28.02679544 | CJ88: 30.84250478 | CK88: 24.92427583 | CL88: 16.20327217 | CM88: 18.05374636 | CN88: 101.2785 | CO88: 98.04877 | CP88: 98.72396 | CQ88: 99.28413 | CR88: 101.133 | CS88: n.d. | CT88: n.d. | CU88: n.d. | CV88: n.d. | CW88: 101.5627 | CX88: 101.0709 | CY88: 100 | CZ88: 100.1194 | DA88: 99.02954 | DB88: 99.6189 | DC88: 100.0703 | DD88: 100.7341 | DE88: 100.2504 | DF88: n.d. | DG88: 97.23352 | DH88: n.d. | DI88: 99.28413 | DJ88: 101.133 | DK88: 6448.26 | DL88: 1291.03 | DM88: 740.74 | DN88: 5.4 | DO88: n.d. | DP88: n.d. | DQ88: n.d. | DR88: n.d. | DS88: n.d. | DT88: n.d. | DU88: n.d. | DV88: n.d. | DW88: n.d. | DX88: 0 | DY88: n.d. | DZ88: n.d. | EA88: n.d. | EB88: n.d. | EC88: n.d. | ED88: n.d. | EE88: n.d.
A89: 1997 | B89: enero | C89: 3.044041451 | D89: 2.04311681 | E89: 2.119205298 | F89: 1.763854153 | G89: 2.064902189 | H89: 0.6166495375 | I89: 19.74087125 | J89: 9.392497422 | K89: 5.900002436 | L89: 11.11110948 | M89: 9.33335187 | N89: 26.44323235 | O89: 20.62203934 | P89: n.d | Q89: n.d | R89: n.d | S89: n.d | T89: n.d | U89: n.d | V89: n.d | W89: n.d | X89: n.d | Y89: n.d | Z89: n.d | AA89: n.d | AB89: n.d | AE89: 25.13 | AF89: 23.54 | AG89: -1.59 | AH89: 355.11 | AI89: 48.24 | AJ89: 79.87771135 | AK89: 132.8618991 | AL89: 175.73 | AM89: 567 | AN89: 118.36 | AO89: 356 | AP89: n.d. | AQ89: n.d. | AR89: n.d. | AS89: n.d. | AT89: n.d. | AU89: n.d. | AV89: n.d. | AW89: n.d. | AX89: n.d. | AY89: n.d. | AZ89: n.d. | BA89: n.d. | BB89: 1.216206 | BC89: 1.6585 | BD89: 117.9124 | BE89: 1.3494 | BF89: n.d. | BG89: 1.0426 | BH89: 8.326 | BI89: 35.9037 | BJ89: n.d. | BK89: 7.8289 | BL89: n.d. | BM89: =IF('Tipos de Cambio'!$M$9="EuroZona",LOOKUP(1,$BB$2:$BL$2,BB89:BL89),IF('Tipos de Cambio'!$M$9="Reino Unido",LOOKUP(2,$BB$2:$BL$2,BB89:BL89),IF('Tipos de Cambio'!$M$9="Japón",LOOKUP(3,$BB$2:$BL$2,BB89:BL89),IF('Tipos de Cambio'!$M$9="Canadá",LOOKUP(4,$BB$2:$BL$2,BB89:BL89),IF('Tipos de Cambio'!$M$9="Rusia",LOOKUP(5,$BB$2:$BL$2,BB89:BL89),IF('Tipos de Cambio'!$M$9="Brasil",LOOKUP(6,$BB$2:$BL$2,BB89:BL89),IF('Tipos de Cambio'!$M$9="China",LOOKUP(7,$BB$2:$BL$2,BB89:BL89),IF('Tipos de Cambio'!$M$9="India",LOOKUP(8,$BB$2:$BL$2,BB89:BL89),IF('Tipos de Cambio'!$M$9="Sudáfrica",LOOKUP(9,$BB$2:$BL$2,BB89:BL89),IF('Tipos de Cambio'!$M$9="México",LOOKUP(10,$BB$2:$BL$2,BB89:BL89),IF('Tipos de Cambio'!$M$9="Colombia",LOOKUP(11,$BB$2:$BL$2,BB89:BL89)))))))))))) -> n.d. | BN89: 5.67951 | BO89: 5.31 | BP89: 5.56534 | BQ89: n.d. | BR89: 0.49734 | BS89: 6.58 | BT89: n.d. | BU89: n.d. | BV89: 31.78269 | BW89: 70.64266 | BX89: 29.82403 | BY89: 0.7827162 | BZ89: 6.282371 | CA89: 7.472809 | CB89: 5.889438 | CC89: 6.157489 | CD89: 11.65893 | CE89: 4.849384961 | CF89: 2.956596917 | CG89: 12.85968691 | CH89: 29.61441875 | CI89: 28.17958201 | CJ89: 30.26597041 | CK89: 24.29254123 | CL89: 16.76196635 | CM89: 18.23048095 | CN89: 101.3284 | CO89: 98.05306 | CP89: 98.80445 | CQ89: 99.01418 | CR89: 101.2497 | CS89: n.d. | CT89: n.d. | CU89: n.d. | CV89: n.d. | CW89: 100.7557 | CX89: 100.9585 | CY89: 100 | CZ89: 100.1314 | DA89: 99.22881 | DB89: 99.71748 | DC89: 100.1928 | DD89: 100.5786 | DE89: 100.3289 | DF89: n.d. | DG89: 97.6843 | DH89: n.d. | DI89: 99.01418 | DJ89: 101.2497 | DK89: 6813.08 | DL89: 1379.85 | DM89: 786.16 | DN89: 5.3 | DO89: n.d. | DP89: n.d. | DQ89: n.d. | DR89: n.d. | DS89: n.d. | DT89: n.d. | DU89: n.d. | DV89: n.d. | DW89: n.d. | DX89: -0.1 | DY89: n.d. | DZ89: n.d. | EA89: n.d. | EB89: n.d. | EC89: n.d. | ED89: n.d. | EE89: n.d.
B90: febrero | C90: 3.034215623 | D90: 1.823537663 | E90: 1.578947368 | F90: 1.586677157 | G90: 1.908960236 | H90: 0.6179196704 | I90: 18.28475435 | J90: 8.818657812 | K90: 5.600010973 | L90: 10.7594884 | M90: 9.853542998 | N90: 25.63572651 | O90: 19.58649658 | P90: n.d | Q90: n.d | R90: n.d | S90: n.d | T90: n.d | U90: n.d | V90: n.d | W90: n.d | X90: n.d | Y90: n.d | Z90: n.d | AA90: n.d | AB90: n.d | AE90: 22.18 | AF90: 20.85 | AG90: -1.33 | AH90: 346.58 | AI90: 48.24 | AJ90: 80.42655877 | AK90: 168.3691521 | AL90: 172.35 | AM90: 580 | AN90: 121.67 | AO90: 347 | AP90: n.d. | AQ90: n.d. | AR90: n.d. | AS90: n.d. | AT90: n.d. | AU90: n.d. | AV90: n.d. | AW90: n.d. | AX90: n.d. | AY90: n.d. | AZ90: n.d. | BA90: n.d. | BB90: 1.165761 | BC90: 1.6256 | BD90: 122.9621 | BE90: 1.3556 | BF90: n.d. | BG90: 1.0488 | BH90: 8.3227 | BI90: 35.8905 | BJ90: n.d. | BK90: 7.8023 | BL90: n.d. | BM90: =IF('Tipos de Cambio'!$M$9="EuroZona",LOOKUP(1,$BB$2:$BL$2,BB90:BL90),IF('Tipos de Cambio'!$M$9="Reino Unido",LOOKUP(2,$BB$2:$BL$2,BB90:BL90),IF('Tipos de Cambio'!$M$9="Japón",LOOKUP(3,$BB$2:$BL$2,BB90:BL90),IF('Tipos de Cambio'!$M$9="Canadá",LOOKUP(4,$BB$2:$BL$2,BB90:BL90),IF('Tipos de Cambio'!$M$9="Rusia",LOOKUP(5,$BB$2:$BL$2,BB90:BL90),IF('Tipos de Cambio'!$M$9="Brasil",LOOKUP(6,$BB$2:$BL$2,BB90:BL90),IF('Tipos de Cambio'!$M$9="China",LOOKUP(7,$BB$2:$BL$2,BB90:BL90),IF('Tipos de Cambio'!$M$9="India",LOOKUP(8,$BB$2:$BL$2,BB90:BL90),IF('Tipos de Cambio'!$M$9="Sudáfrica",LOOKUP(9,$BB$2:$BL$2,BB90:BL90),IF('Tipos de Cambio'!$M$9="México",LOOKUP(10,$BB$2:$BL$2,BB90:BL90),IF('Tipos de Cambio'!$M$9="Colombia",LOOKUP(11,$BB$2:$BL$2,BB90:BL90)))))))))))) -> n.d. | BN90: 5.60117 | BO90: 5.27 | BP90: 5.51016 | BQ90: n.d. | BR90: 0.50195 | BS90: 6.42 | BT90: n.d. | BU90: n.d. | BV90: 31.87908 | BW90: 70.69174 | BX90: 30.31119 | BY90: 0.8083279 | BZ90: 6.410391 | CA90: 7.637993 | CB90: 5.991261 | CC90: 6.260836 | CD90: 11.86963 | CE90: 4.765281861 | CF90: 2.844214853 | CG90: 12.59653539 | CH90: 29.13106087 | CI90: 28.2654625 | CJ90: 30.20077838 | CK90: 23.58736778 | CL90: 17.29762866 | CM90: 18.31508878 | CN90: 101.4444 | CO90: 98.05503 | CP90: 98.82757 | CQ90: 99.09702 | CR90: 101.4036 | CS90: n.d. | CT90: n.d. | CU90: n.d. | CV90: n.d. | CW90: 100.1801 | CX90: 100.8259 | CY90: 100 | CZ90: 100.0909 | DA90: 99.42427 | DB90: 99.79809 | DC90: 100.318 | DD90: 100.4555 | DE90: 100.3589 | DF90: n.d. | DG90: 98.19003 | DH90: n.d. | DI90: 99.09702 | DJ90: 101.4036 | DK90: 6877.73 | DL90: 1309 | DM90: 790.82 | DN90: 5.2 | DO90: n.d. | DP90: n.d. | DQ90: n.d. | DR90: n.d. | DS90: n.d. | DT90: n.d. | DU90: n.d. | DV90: n.d. | DW90: n.d. | DX90: -0.1 | DY90: n.d. | DZ90: n.d. | EA90: n.d. | EB90: n.d. | EC90: n.d. | ED90: n.d. | EE90: n.d.
B91: marzo | C91: 2.761721259 | D91: 1.551579536 | E91: 1.578947368 | F91: 1.016286645 | G91: 1.608199578 | H91: 0.5138746146 | I91: 16.70834207 | J91: 8.992060077 | K91: 4.000002317 | L91: 10.03135118 | M91: 9.643303911 | N91: 24.45943271 | O91: 18.93822726 | P91: n.d | Q91: n.d | R91: n.d | S91: n.d | T91: n.d | U91: n.d | V91: n.d | W91: n.d | X91: n.d | Y91: n.d | Z91: n.d | AA91: n.d | AB91: n.d | AE91: 20.97 | AF91: 19.13 | AG91: -1.84 | AH91: 351.81 | AI91: 48.08 | AJ91: 80.61253186 | AK91: 194.7002204 | AL91: 176.61 | AM91: 559 | AN91: 127.6 | AO91: 323.4 | AP91: n.d. | AQ91: n.d. | AR91: n.d. | AS91: n.d. | AT91: n.d. | AU91: n.d. | AV91: n.d. | AW91: n.d. | AX91: n.d. | AY91: n.d. | AZ91: n.d. | BA91: n.d. | BB91: 1.149755999 | BC91: 1.6096 | BD91: 122.7738 | BE91: 1.3725 | BF91: n.d. | BG91: 1.057 | BH91: 8.3258 | BI91: 35.8848 | BJ91: n.d. | BK91: 7.9562 | BL91: n.d. | BM91: =IF('Tipos de Cambio'!$M$9="EuroZona",LOOKUP(1,$BB$2:$BL$2,BB91:BL91),IF('Tipos de Cambio'!$M$9="Reino Unido",LOOKUP(2,$BB$2:$BL$2,BB91:BL91),IF('Tipos de Cambio'!$M$9="Japón",LOOKUP(3,$BB$2:$BL$2,BB91:BL91),IF('Tipos de Cambio'!$M$9="Canadá",LOOKUP(4,$BB$2:$BL$2,BB91:BL91),IF('Tipos de Cambio'!$M$9="Rusia",LOOKUP(5,$BB$2:$BL$2,BB91:BL91),IF('Tipos de Cambio'!$M$9="Brasil",LOOKUP(6,$BB$2:$BL$2,BB91:BL91),IF('Tipos de Cambio'!$M$9="China",LOOKUP(7,$BB$2:$BL$2,BB91:BL91),IF('Tipos de Cambio'!$M$9="India",LOOKUP(8,$BB$2:$BL$2,BB91:BL91),IF('Tipos de Cambio'!$M$9="Sudáfrica",LOOKUP(9,$BB$2:$BL$2,BB91:BL91),IF('Tipos de Cambio'!$M$9="México",LOOKUP(10,$BB$2:$BL$2,BB91:BL91),IF('Tipos de Cambio'!$M$9="Colombia",LOOKUP(11,$BB$2:$BL$2,BB91:BL91)))))))))))) -> n.d. | BN91: 5.78413 | BO91: 5.48 | BP91: 5.62459 | BQ91: n.d. | BR91: 0.54626 | BS91: 6.69 | BT91: n.d. | BU91: n.d. | BV91: 32.00289 | BW91: 70.91261 | BX91: 30.54414 | BY91: 0.824492 | BZ91: 6.501035 | CA91: 7.835818 | CB91: 6.080154 | CC91: 6.354182 | CD91: 12.01822 | CE91: 4.456188176 | CF91: 2.688943743 | CG91: 12.60491686 | CH91: 28.38896831 | CI91: 27.13566129 | CJ91: 30.45826778 | CK91: 23.10722874 | CL91: 16.69820036 | CM91: 17.23022569 | CN91: 101.575 | CO91: 98.14173 | CP91: 98.78069 | CQ91: 99.38606 | CR91: 101.5146 | CS91: n.d. | CT91: n.d. | CU91: n.d. | CV91: n.d. | CW91: 99.91667 | CX91: 100.7515 | CY91: 100 | CZ91: 100.1228 | DA91: 99.59387 | DB91: 99.84387 | DC91: 100.4103 | DD91: 100.4324 | DE91: 100.3483 | DF91: n.d. | DG91: 98.56818 | DH91: n.d. | DI91: 99.38606 | DJ91: 101.5146 | DK91: 6583.47 | DL91: 1221.7 | DM91: 757.12 | DN91: 5.2 | DO91: n.d. | DP91: n.d. | DQ91: n.d. | DR91: n.d. | DS91: n.d. | DT91: n.d. | DU91: n.d. | DV91: n.d. | DW91: n.d. | DX91: 0 | DY91: n.d. | DZ91: n.d. | EA91: n.d. | EB91: n.d. | EC91: n.d. | ED91: n.d. | EE91: n.d.
B92: abril | C92: 2.495201536 | D92: 1.31174993 | E92: 1.447368421 | F92: 0.9370119729 | G92: 1.601162441 | H92: 1.940755873 | I92: 15.33750537 | J92: 8.582729478 | K92: 3.19999943 | L92: 9.259255831 | M92: 9.842508298 | N92: 22.32662308 | O92: 18.52679408 | P92: n.d | Q92: n.d | R92: n.d | S92: n.d | T92: n.d | U92: n.d | V92: n.d | W92: n.d | X92: n.d | Y92: n.d | Z92: n.d | AA92: n.d | AB92: n.d | AE92: 19.7 | AF92: 17.56 | AG92: -2.14 | AH92: 344.47 | AI92: 47.91 | AJ92: 78.88887881 | AK92: 206.9880524 | AL92: 183.49 | AM92: 562 | AN92: 124.4 | AO92: 304.5 | AP92: n.d. | AQ92: n.d. | AR92: n.d. | AS92: n.d. | AT92: n.d. | AU92: n.d. | AV92: n.d. | AW92: n.d. | AX92: n.d. | AY92: n.d. | AZ92: n.d. | BA92: n.d. | BB92: 1.145015 | BC92: 1.6293 | BD92: 125.6377 | BE92: 1.3942 | BF92: n.d. | BG92: 1.061 | BH92: 8.3257 | BI92: 35.8281 | BJ92: n.d. | BK92: 7.9059 | BL92: n.d. | BM92: =IF('Tipos de Cambio'!$M$9="EuroZona",LOOKUP(1,$BB$2:$BL$2,BB92:BL92),IF('Tipos de Cambio'!$M$9="Reino Unido",LOOKUP(2,$BB$2:$BL$2,BB92:BL92),IF('Tipos de Cambio'!$M$9="Japón",LOOKUP(3,$BB$2:$BL$2,BB92:BL92),IF('Tipos de Cambio'!$M$9="Canadá",LOOKUP(4,$BB$2:$BL$2,BB92:BL92),IF('Tipos de Cambio'!$M$9="Rusia",LOOKUP(5,$BB$2:$BL$2,BB92:BL92),IF('Tipos de Cambio'!$M$9="Brasil",LOOKUP(6,$BB$2:$BL$2,BB92:BL92),IF('Tipos de Cambio'!$M$9="China",LOOKUP(7,$BB$2:$BL$2,BB92:BL92),IF('Tipos de Cambio'!$M$9="India",LOOKUP(8,$BB$2:$BL$2,BB92:BL92),IF('Tipos de Cambio'!$M$9="Sudáfrica",LOOKUP(9,$BB$2:$BL$2,BB92:BL92),IF('Tipos de Cambio'!$M$9="México",LOOKUP(10,$BB$2:$BL$2,BB92:BL92),IF('Tipos de Cambio'!$M$9="Colombia",LOOKUP(11,$BB$2:$BL$2,BB92:BL92)))))))))))) -> n.d. | BN92: 6.00746 | BO92: 5.6 | BP92: 5.83008 | BQ92: n.d. | BR92: 0.56321 | BS92: 6.89 | BT92: n.d. | BU92: n.d. | BV92: 32.13668 | BW92: 71.33797 | BX92: 30.64747 | BY92: 0.846446 | BZ92: 6.601151 | CA92: 8.051775 | CB92: 6.176091 | CC92: 6.42922 | CD92: 12.1566 | CE92: 4.586531352 | CF92: 3.268211999 | CG92: 11.95058864 | CH92: 29.01848092 | CI92: 26.22444568 | CJ92: 30.20002076 | CK92: 22.43894548 | CL92: 16.2155132 | CM92: 16.93356008 | CN92: 101.7371 | CO92: 98.28764 | CP92: 98.85949 | CQ92: 99.70255 | CR92: 101.7061 | CS92: n.d. | CT92: n.d. | CU92: n.d. | CV92: n.d. | CW92: 99.90987 | CX92: 100.7863 | CY92: 100 | CZ92: 100.2323 | DA92: 99.73195 | DB92: 99.86613 | DC92: 100.4379 | DD92: 100.3904 | DE92: 100.2917 | DF92: n.d. | DG92: 98.91593 | DH92: n.d. | DI92: 99.70255 | DJ92: 101.7061 | DK92: 7008.99 | DL92: 1260.76 | DM92: 801.34 | DN92: 5.1 | DO92: n.d. | DP92: n.d. | DQ92: n.d. | DR92: n.d. | DS92: n.d. | DT92: n.d. | DU92: n.d. | DV92: n.d. | DW92: n.d. | DX92: -0.1 | DY92: n.d. | DZ92: n.d. | EA92: n.d. | EB92: n.d. | EC92: n.d. | ED92: n.d. | EE92: n.d.
B93: mayo | C93: 2.234993614 | D93: 1.350410692 | E93: 1.576872536 | F93: 0.8701298701 | G93: 1.596514578 | H93: 1.936799185 | I93: 14.58824773 | J93: 7.713795077 | K93: 2.799994479 | L93: 7.317064937 | M93: 9.517575705 | N93: 21.23327452 | O93: 18.60844686 | P93: n.d | Q93: n.d | R93: n.d | S93: n.d | T93: n.d | U93: n.d | V93: n.d | W93: n.d | X93: n.d | Y93: n.d | Z93: n.d | AA93: n.d | AB93: n.d | AE93: 20.82 | AF93: 19.02 | AG93: -1.8 | AH93: 343.84 | AI93: 47.84 | AJ93: 79.34700765 | AK93: 267.27055 | AL93: 172.59 | AM93: 553 | AN93: 118.77 | AO93: 324.5 | AP93: n.d. | AQ93: n.d. | AR93: n.d. | AS93: n.d. | AT93: n.d. | AU93: n.d. | AV93: n.d. | AW93: n.d. | AX93: n.d. | AY93: n.d. | AZ93: n.d. | BA93: n.d. | BB93: 1.149341 | BC93: 1.6322 | BD93: 119.1924 | BE93: 1.3804 | BF93: n.d. | BG93: 1.068 | BH93: 8.3229 | BI93: 35.8248 | BJ93: n.d. | BK93: 7.9037 | BL93: n.d. | BM93: =IF('Tipos de Cambio'!$M$9="EuroZona",LOOKUP(1,$BB$2:$BL$2,BB93:BL93),IF('Tipos de Cambio'!$M$9="Reino Unido",LOOKUP(2,$BB$2:$BL$2,BB93:BL93),IF('Tipos de Cambio'!$M$9="Japón",LOOKUP(3,$BB$2:$BL$2,BB93:BL93),IF('Tipos de Cambio'!$M$9="Canadá",LOOKUP(4,$BB$2:$BL$2,BB93:BL93),IF('Tipos de Cambio'!$M$9="Rusia",LOOKUP(5,$BB$2:$BL$2,BB93:BL93),IF('Tipos de Cambio'!$M$9="Brasil",LOOKUP(6,$BB$2:$BL$2,BB93:BL93),IF('Tipos de Cambio'!$M$9="China",LOOKUP(7,$BB$2:$BL$2,BB93:BL93),IF('Tipos de Cambio'!$M$9="India",LOOKUP(8,$BB$2:$BL$2,BB93:BL93),IF('Tipos de Cambio'!$M$9="Sudáfrica",LOOKUP(9,$BB$2:$BL$2,BB93:BL93),IF('Tipos de Cambio'!$M$9="México",LOOKUP(10,$BB$2:$BL$2,BB93:BL93),IF('Tipos de Cambio'!$M$9="Colombia",LOOKUP(11,$BB$2:$BL$2,BB93:BL93)))))))))))) -> n.d. | BN93: 5.9957 | BO93: 5.53 | BP93: 5.81914 | BQ93: n.d. | BR93: 0.58555 | BS93: 6.71 | BT93: n.d. | BU93: n.d. | BV93: 32.23473 | BW93: 71.45248 | BX93: 30.79572 | BY93: 0.8707483 | BZ93: 6.701097 | CA93: 8.245315 | CB93: 6.271111 | CC93: 6.495253 | CD93: 12.23977 | CE93: 4.5690929 | CF93: 3.007067669 | CG93: 11.86216085 | CH93: 29.32251799 | CI93: 25.23507167 | CJ93: 29.78452971 | CK93: 21.77035151 | CL93: 16.79670846 | CM93: 16.4040552 | CN93: 101.9202 | CO93: 98.32666 | CP93: 99.15189 | CQ93: 99.91442 | CR93: 101.9928 | CS93: n.d. | CT93: n.d. | CU93: n.d. | CV93: n.d. | CW93: 100.0714 | CX93: 100.8517 | CY93: 100 | CZ93: 100.4187 | DA93: 99.84086 | DB93: 99.97081 | DC93: 100.4207 | DD93: 100.3972 | DE93: 100.1546 | DF93: n.d. | DG93: 99.04568 | DH93: n.d. | DI93: 99.91442 | DJ93: 101.9928 | DK93: 7331.04 | DL93: 1400.32 | DM93: 848.28 | DN93: 4.9 | DO93: n.d. | DP93: n.d. | DQ93: n.d. | DR93: n.d. | DS93: n.d. | DT93: n.d. | DU93: n.d. | DV93: n.d. | DW93: n.d. | DX93: -0.2 | DY93: n.d. | DZ93: n.d. | EA93: n.d. | EB93: n.d. | EC93: n.d. | ED93: n.d. | EE93: n.d.
B94: junio | C94: 2.297383535 | D94: 1.378062361 | E94: 1.57480315 | F94: 0.9621635678 | G94: 1.739130931 | H94: 2.249488753 | I94: 14.5089634 | J94: 7.021963435 | K94: 2.79999413 | L94: 6.606605983 | M94: 8.785533118 | N94: 20.34921381 | O94: 18.67485209 | P94: n.d | Q94: n.d | R94: n.d | S94: n.d | T94: n.d | U94: n.d | V94: n.d | W94: n.d | X94: n.d | Y94: n.d | Z94: n.d | AA94: n.d | AB94: n.d | AE94: 19.26 | AF94: 17.58 | AG94: -1.68 | AH94: 340.76 | AI94: 47.69 | AJ94: 80.58078036 | AK94: 222.0201214 | AL94: 148.39 | AM94: 533 | AN94: 112.05 | AO94: 323.2 | AP94: n.d. | AQ94: n.d. | AR94: n.d. | AS94: n.d. | AT94: n.d. | AU94: n.d. | AV94: n.d. | AW94: n.d. | AX94: n.d. | AY94: n.d. | AZ94: n.d. | BA94: n.d. | BB94: 1.136627001 | BC94: 1.6449 | BD94: 114.2857 | BE94: 1.3843 | BF94: n.d. | BG94: 1.0746 | BH94: 8.3224 | BI94: 35.8202 | BJ94: n.d. | BK94: 7.9498 | BL94: n.d. | BM94: =IF('Tipos de Cambio'!$M$9="EuroZona",LOOKUP(1,$BB$2:$BL$2,BB94:BL94),IF('Tipos de Cambio'!$M$9="Reino Unido",LOOKUP(2,$BB$2:$BL$2,BB94:BL94),IF('Tipos de Cambio'!$M$9="Japón",LOOKUP(3,$BB$2:$BL$2,BB94:BL94),IF('Tipos de Cambio'!$M$9="Canadá",LOOKUP(4,$BB$2:$BL$2,BB94:BL94),IF('Tipos de Cambio'!$M$9="Rusia",LOOKUP(5,$BB$2:$BL$2,BB94:BL94),IF('Tipos de Cambio'!$M$9="Brasil",LOOKUP(6,$BB$2:$BL$2,BB94:BL94),IF('Tipos de Cambio'!$M$9="China",LOOKUP(7,$BB$2:$BL$2,BB94:BL94),IF('Tipos de Cambio'!$M$9="India",LOOKUP(8,$BB$2:$BL$2,BB94:BL94),IF('Tipos de Cambio'!$M$9="Sudáfrica",LOOKUP(9,$BB$2:$BL$2,BB94:BL94),IF('Tipos de Cambio'!$M$9="México",LOOKUP(10,$BB$2:$BL$2,BB94:BL94),IF('Tipos de Cambio'!$M$9="Colombia",LOOKUP(11,$BB$2:$BL$2,BB94:BL94)))))))))))) -> n.d. | BN94: 5.63505 | BO94: 5.34 | BP94: 5.84189 | BQ94: n.d. | BR94: 0.60714 | BS94: 6.49 | BT94: n.d. | BU94: n.d. | BV94: 32.37433 | BW94: 71.72243 | BX94: 31.35602 | BY94: 0.8988394 | BZ94: 6.814373 | CA94: 8.458429 | CB94: 6.350216 | CC94: 6.591904 | CD94: 12.39816 | CE94: 4.655225418 | CF94: 2.934968028 | CG94: 12.86077921 | CH94: 28.63065872 | CI94: 25.13727803 | CJ94: 30.64025925 | CK94: 21.24267414 | CL94: 17.06133414 | CM94: 14.83509919 | CN94: 102.087 | CO94: 98.26079 | CP94: 99.54968 | CQ94: 99.98797 | CR94: 102.1666 | CS94: n.d. | CT94: n.d. | CU94: n.d. | CV94: n.d. | CW94: 100.287 | CX94: 100.8373 | CY94: 100 | CZ94: 100.5457 | DA94: 99.99704 | DB94: 100.1377 | DC94: 100.3753 | DD94: 100.4713 | DE94: 99.99699 | DF94: n.d. | DG94: 99.11396 | DH94: n.d. | DI94: 99.98797 | DJ94: 102.1666 | DK94: 7672.79 | DL94: 1442.07 | DM94: 885.14 | DN94: 5 | DO94: n.d. | DP94: n.d. | DQ94: n.d. | DR94: n.d. | DS94: n.d. | DT94: n.d. | DU94: n.d. | DV94: n.d. | DW94: n.d. | DX94: 0.1 | DY94: n.d. | DZ94: n.d. | EA94: n.d. | EB94: n.d. | EC94: n.d. | ED94: n.d. | EE94: n.d.
B95: julio | C95: 2.229299363 | D95: 1.475501114 | E95: 2.359108781 | F95: 1.016021884 | G95: 1.895046574 | H95: 1.944728762 | I95: 14.74768091 | J95: 6.079548845 | K95: 2.699991984 | L95: 5.604724059 | M95: 9.102589577 | N95: 19.69613491 | O95: 17.88556119 | P95: n.d | Q95: n.d | R95: n.d | S95: n.d | T95: n.d | U95: n.d | V95: n.d | W95: n.d | X95: n.d | Y95: n.d | Z95: n.d | AA95: n.d | AB95: n.d | AE95: 19.66 | AF95: 18.46 | AG95: -1.2 | AH95: 324.1 | AI95: 48.59 | AJ95: 81.35642424 | AK95: 190.4092315 | AL95: 136.21 | AM95: 498 | AN95: 106.06 | AO95: 320 | AP95: n.d. | AQ95: n.d. | AR95: n.d. | AS95: n.d. | AT95: n.d. | AU95: n.d. | AV95: n.d. | AW95: n.d. | AX95: n.d. | AY95: n.d. | AZ95: n.d. | BA95: n.d. | BB95: 1.104913 | BC95: 1.6694 | BD95: 115.3759 | BE95: 1.3775 | BF95: n.d. | BG95: 1.0805 | BH95: 8.3162 | BI95: 35.7474 | BJ95: n.d. | BK95: 7.8679 | BL95: n.d. | BM95: =IF('Tipos de Cambio'!$M$9="EuroZona",LOOKUP(1,$BB$2:$BL$2,BB95:BL95),IF('Tipos de Cambio'!$M$9="Reino Unido",LOOKUP(2,$BB$2:$BL$2,BB95:BL95),IF('Tipos de Cambio'!$M$9="Japón",LOOKUP(3,$BB$2:$BL$2,BB95:BL95),IF('Tipos de Cambio'!$M$9="Canadá",LOOKUP(4,$BB$2:$BL$2,BB95:BL95),IF('Tipos de Cambio'!$M$9="Rusia",LOOKUP(5,$BB$2:$BL$2,BB95:BL95),IF('Tipos de Cambio'!$M$9="Brasil",LOOKUP(6,$BB$2:$BL$2,BB95:BL95),IF('Tipos de Cambio'!$M$9="China",LOOKUP(7,$BB$2:$BL$2,BB95:BL95),IF('Tipos de Cambio'!$M$9="India",LOOKUP(8,$BB$2:$BL$2,BB95:BL95),IF('Tipos de Cambio'!$M$9="Sudáfrica",LOOKUP(9,$BB$2:$BL$2,BB95:BL95),IF('Tipos de Cambio'!$M$9="México",LOOKUP(10,$BB$2:$BL$2,BB95:BL95),IF('Tipos de Cambio'!$M$9="Colombia",LOOKUP(11,$BB$2:$BL$2,BB95:BL95)))))))))))) -> n.d. | BN95: 5.84324 | BO95: 5.33 | BP95: 5.74507 | BQ95: n.d. | BR95: 0.59613 | BS95: 6.22 | BT95: n.d. | BU95: n.d. | BV95: 32.52308 | BW95: 71.96783 | BX95: 32.03123 | BY95: 0.9302695 | BZ95: 6.925105 | CA95: 8.669617 | CB95: 6.417188 | CC95: 6.673553 | CD95: 12.54763 | CE95: 4.725365063 | CF95: 3.081435787 | CG95: 13.72069311 | CH95: 28.78857519 | CI95: 25.14744133 | CJ95: 31.31875606 | CK95: 20.3257118 | CL95: 16.81076159 | CM95: 13.69942705 | CN95: 102.1993 | CO95: 98.26511 | CP95: 99.75225 | CQ95: 99.8679 | CR95: 102.2072 | CS95: n.d. | CT95: n.d. | CU95: n.d. | CV95: n.d. | CW95: 100.4548 | CX95: 100.6678 | CY95: 100 | CZ95: 100.6565 | DA95: 100.1777 | DB95: 100.3229 | DC95: 100.305 | DD95: 100.5748 | DE95: 99.86869 | DF95: n.d. | DG95: 99.29863 | DH95: n.d. | DI95: 99.8679 | DJ95: 102.2072 | DK95: 8222.61 | DL95: 1593.81 | DM95: 954.29 | DN95: 4.9 | DO95: n.d. | DP95: n.d. | DQ95: n.d. | DR95: n.d. | DS95: n.d. | DT95: n.d. | DU95: n.d. | DV95: n.d. | DW95: n.d. | DX95: -0.1 | DY95: n.d. | DZ95: n.d. | EA95: n.d. | EB95: n.d. | EC95: n.d. | ED95: n.d. | EE95: n.d.
B96: agosto | C96: 2.22504768 | D96: 1.699164345 | E96: 2.359108781 | F96: 1.474810754 | G96: 2.03193543 | H96: 2.151639344 | I96: 14.82821738 | J96: 5.593927781 | K96: 1.899993621 | L96: 4.664717542 | M96: 8.673472164 | N96: 19.17640927 | O96: 17.93862587 | P96: n.d | Q96: n.d | R96: n.d | S96: n.d | T96: n.d | U96: n.d | V96: n.d | W96: n.d | X96: n.d | Y96: n.d | Z96: n.d | AA96: n.d | AB96: n.d | AE96: 19.95 | AF96: 18.6 | AG96: -1.35 | AH96: 324.01 | AI96: 49.07 | AJ96: 81.17045114 | AK96: 190.7993214 | AL96: 150.61 | AM96: 504 | AN96: 112.92 | AO96: 285 | AP96: n.d. | AQ96: n.d. | AR96: n.d. | AS96: n.d. | AT96: n.d. | AU96: n.d. | AV96: n.d. | AW96: n.d. | AX96: n.d. | AY96: n.d. | AZ96: n.d. | BA96: n.d. | BB96: 1.072733 | BC96: 1.6035 | BD96: 117.9295 | BE96: 1.3905 | BF96: n.d. | BG96: 1.0879 | BH96: 8.3187 | BI96: 36.0085 | BJ96: n.d. | BK96: 7.7818 | BL96: n.d. | BM96: =IF('Tipos de Cambio'!$M$9="EuroZona",LOOKUP(1,$BB$2:$BL$2,BB96:BL96),IF('Tipos de Cambio'!$M$9="Reino Unido",LOOKUP(2,$BB$2:$BL$2,BB96:BL96),IF('Tipos de Cambio'!$M$9="Japón",LOOKUP(3,$BB$2:$BL$2,BB96:BL96),IF('Tipos de Cambio'!$M$9="Canadá",LOOKUP(4,$BB$2:$BL$2,BB96:BL96),IF('Tipos de Cambio'!$M$9="Rusia",LOOKUP(5,$BB$2:$BL$2,BB96:BL96),IF('Tipos de Cambio'!$M$9="Brasil",LOOKUP(6,$BB$2:$BL$2,BB96:BL96),IF('Tipos de Cambio'!$M$9="China",LOOKUP(7,$BB$2:$BL$2,BB96:BL96),IF('Tipos de Cambio'!$M$9="India",LOOKUP(8,$BB$2:$BL$2,BB96:BL96),IF('Tipos de Cambio'!$M$9="Sudáfrica",LOOKUP(9,$BB$2:$BL$2,BB96:BL96),IF('Tipos de Cambio'!$M$9="México",LOOKUP(10,$BB$2:$BL$2,BB96:BL96),IF('Tipos de Cambio'!$M$9="Colombia",LOOKUP(11,$BB$2:$BL$2,BB96:BL96)))))))))))) -> n.d. | BN96: 5.83506 | BO96: 5.4 | BP96: 5.72539 | BQ96: n.d. | BR96: 0.58145 | BS96: 6.3 | BT96: n.d. | BU96: n.d. | BV96: 32.80228 | BW96: 72.20505 | BX96: 32.39418 | BY96: 0.9581823 | BZ96: 7.033722 | CA96: 8.861235 | CB96: 6.49408 | CC96: 6.733028 | CD96: 12.70568 | CE96: 5.426923651 | CF96: 3.20356036 | CG96: 14.02041332 | CH96: 29.54142543 | CI96: 24.77246397 | CJ96: 31.48003481 | CK96: 19.52189622 | CL96: 16.59928423 | CM96: 14.21195274 | CN96: 102.2019 | CO96: 98.3577 | CP96: 99.86217 | CQ96: 99.49589 | CR96: 102.1707 | CS96: n.d. | CT96: n.d. | CU96: n.d. | CV96: n.d. | CW96: 100.5111 | CX96: 100.4501 | CY96: 100 | CZ96: 100.5962 | DA96: 100.3302 | DB96: 100.5077 | DC96: 100.2178 | DD96: 100.5501 | DE96: 99.79336 | DF96: n.d. | DG96: 99.6091 | DH96: n.d. | DI96: 99.49589 | DJ96: 102.1707 | DK96: 7622.42 | DL96: 1587.32 | DM96: 899.47 | DN96: 4.8 | DO96: n.d. | DP96: n.d. | DQ96: n.d. | DR96: n.d. | DS96: n.d. | DT96: n.d. | DU96: n.d. | DV96: n.d. | DW96: n.d. | DX96: -0.1 | DY96: n.d. | DZ96: n.d. | EA96: n.d. | EB96: n.d. | EC96: n.d. | ED96: n.d. | EE96: n.d.
B97: septiembre | C97: 2.154626109 | D97: 1.584874183 | E97: 2.228047182 | F97: 1.353285621 | G97: 1.87590464 | H97: 2.448979592 | I97: 14.10716425 | J97: 5.498783816 | K97: 1.800013801 | L97: 4.941844442 | M97: 8.08081473 | N97: 18.76187403 | O97: 18.01943281 | P97: n.d | Q97: n.d | R97: n.d | S97: n.d | T97: n.d | U97: n.d | V97: n.d | W97: n.d | X97: n.d | Y97: n.d | Z97: n.d | AA97: n.d | AB97: n.d | AE97: 19.8 | AF97: 18.46 | AG97: -1.34 | AH97: 322.82 | AI97: 49.14 | AJ97: 79.64184304 | AK97: 189.869456 | AL97: 151.74 | AM97: 525 | AN97: 112.24 | AO97: 270.6 | AP97: n.d. | AQ97: n.d. | AR97: n.d. | AS97: n.d. | AT97: n.d. | AU97: n.d. | AV97: n.d. | AW97: n.d. | AX97: n.d. | AY97: n.d. | AZ97: n.d. | BA97: n.d. | BB97: 1.099915001 | BC97: 1.6013 | BD97: 120.89 | BE97: 1.3872 | BF97: n.d. | BG97: 1.0935 | BH97: 8.3171 | BI97: 36.4756 | BJ97: n.d. | BK97: 7.7809 | BL97: n.d. | BM97: =IF('Tipos de Cambio'!$M$9="EuroZona",LOOKUP(1,$BB$2:$BL$2,BB97:BL97),IF('Tipos de Cambio'!$M$9="Reino Unido",LOOKUP(2,$BB$2:$BL$2,BB97:BL97),IF('Tipos de Cambio'!$M$9="Japón",LOOKUP(3,$BB$2:$BL$2,BB97:BL97),IF('Tipos de Cambio'!$M$9="Canadá",LOOKUP(4,$BB$2:$BL$2,BB97:BL97),IF('Tipos de Cambio'!$M$9="Rusia",LOOKUP(5,$BB$2:$BL$2,BB97:BL97),IF('Tipos de Cambio'!$M$9="Brasil",LOOKUP(6,$BB$2:$BL$2,BB97:BL97),IF('Tipos de Cambio'!$M$9="China",LOOKUP(7,$BB$2:$BL$2,BB97:BL97),IF('Tipos de Cambio'!$M$9="India",LOOKUP(8,$BB$2:$BL$2,BB97:BL97),IF('Tipos de Cambio'!$M$9="Sudáfrica",LOOKUP(9,$BB$2:$BL$2,BB97:BL97),IF('Tipos de Cambio'!$M$9="México",LOOKUP(10,$BB$2:$BL$2,BB97:BL97),IF('Tipos de Cambio'!$M$9="Colombia",LOOKUP(11,$BB$2:$BL$2,BB97:BL97)))))))))))) -> n.d. | BN97: 5.83594 | BO97: 5.3 | BP97: 5.7239 | BQ97: n.d. | BR97: 0.57546 | BS97: 6.21 | BT97: n.d. | BU97: n.d. | BV97: 32.93274 | BW97: 72.34411 | BX97: 31.63342 | BY97: 0.9809868 | BZ97: 7.150209 | CA97: 9.031266 | CB97: 6.587339 | CC97: 6.807507 | CD97: 13.03506 | CE97: 5.581165861 | CF97: 3.173127908 | CG97: 10.37966079 | CH97: 29.81263325 | CI97: 24.54427707 | CJ97: 31.01849481 | CK97: 19.13343252 | CL97: 16.50778894 | CM97: 16.36378893 | CN97: 102.2126 | CO97: 98.49798 | CP97: 99.93432 | CQ97: 99.02257 | CR97: 102.1952 | CS97: n.d. | CT97: n.d. | CU97: n.d. | CV97: n.d. | CW97: 100.4627 | CX97: 100.3334 | CY97: 100 | CZ97: 100.4867 | DA97: 100.4495 | DB97: 100.6513 | DC97: 100.1102 | DD97: 100.6538 | DE97: 99.70887 | DF97: n.d. | DG97: 99.80003 | DH97: n.d. | DI97: 99.02257 | DJ97: 102.1952 | DK97: 7945.25 | DL97: 1685.69 | DM97: 947.28 | DN97: 4.9 | DO97: n.d. | DP97: n.d. | DQ97: n.d. | DR97: n.d. | DS97: n.d. | DT97: n.d. | DU97: n.d. | DV97: n.d. | DW97: n.d. | DX97: 0.1 | DY97: n.d. | DZ97: n.d. | EA97: n.d. | EB97: n.d. | EC97: n.d. | ED97: n.d. | EE97: n.d.
B98: octubre | C98: 2.0846494 | D98: 1.513888889 | E98: 2.096985583 | F98: 1.038286827 | G98: 1.87590464 | H98: 2.545824847 | I98: 12.94578386 | J98: 5.424648621 | K98: 1.500011419 | L98: 5.491333256 | M98: 7.634560663 | N98: 18.23517905 | O98: 17.8003907 | P98: n.d | Q98: n.d | R98: n.d | S98: n.d | T98: n.d | U98: n.d | V98: n.d | W98: n.d | X98: n.d | Y98: n.d | Z98: n.d | AA98: n.d | AB98: n.d | AE98: 21.33 | AF98: 19.87 | AG98: -1.46 | AH98: 324.87 | AI98: 49.05 | AJ98: 77.75036061 | AK98: 167.6615471 | AL98: 151.59 | AM98: 547 | AN98: 120.36 | AO98: 265.75 | AP98: n.d. | AQ98: n.d. | AR98: n.d. | AS98: n.d. | AT98: n.d. | AU98: n.d. | AV98: n.d. | AW98: n.d. | AX98: n.d. | AY98: n.d. | AZ98: n.d. | BA98: n.d. | BB98: 1.120318 | BC98: 1.633 | BD98: 121.0605 | BE98: 1.3869 | BF98: n.d. | BG98: 1.0999 | BH98: 8.3135 | BI98: 36.302 | BJ98: n.d. | BK98: 7.8708 | BL98: n.d. | BM98: =IF('Tipos de Cambio'!$M$9="EuroZona",LOOKUP(1,$BB$2:$BL$2,BB98:BL98),IF('Tipos de Cambio'!$M$9="Reino Unido",LOOKUP(2,$BB$2:$BL$2,BB98:BL98),IF('Tipos de Cambio'!$M$9="Japón",LOOKUP(3,$BB$2:$BL$2,BB98:BL98),IF('Tipos de Cambio'!$M$9="Canadá",LOOKUP(4,$BB$2:$BL$2,BB98:BL98),IF('Tipos de Cambio'!$M$9="Rusia",LOOKUP(5,$BB$2:$BL$2,BB98:BL98),IF('Tipos de Cambio'!$M$9="Brasil",LOOKUP(6,$BB$2:$BL$2,BB98:BL98),IF('Tipos de Cambio'!$M$9="China",LOOKUP(7,$BB$2:$BL$2,BB98:BL98),IF('Tipos de Cambio'!$M$9="India",LOOKUP(8,$BB$2:$BL$2,BB98:BL98),IF('Tipos de Cambio'!$M$9="Sudáfrica",LOOKUP(9,$BB$2:$BL$2,BB98:BL98),IF('Tipos de Cambio'!$M$9="México",LOOKUP(10,$BB$2:$BL$2,BB98:BL98),IF('Tipos de Cambio'!$M$9="Colombia",LOOKUP(11,$BB$2:$BL$2,BB98:BL98)))))))))))) -> n.d. | BN98: 5.83679 | BO98: 5.3 | BP98: 5.76647 | BQ98: n.d. | BR98: 0.53214 | BS98: 6.03 | BT98: n.d. | BU98: n.d. | BV98: 33.09145 | BW98: 72.55679 | BX98: 31.33243 | BY98: 1.007068 | BZ98: 7.269639 | CA98: 9.188931 | CB98: 6.707353 | CC98: 6.900248 | CD98: 13.35068 | CE98: 5.603270143 | CF98: 3.079611212 | CG98: 8.534260289 | CH98: 30.66995685 | CI98: 24.56121263 | CJ98: 29.89515012 | CK98: 19.51532467 | CL98: 16.9948792 | CM98: 17.99484384 | CN98: 102.2059 | CO98: 98.6701 | CP98: 99.90411 | CQ98: 98.62753 | CR98: 102.181 | CS98: n.d. | CT98: n.d. | CU98: n.d. | CV98: n.d. | CW98: 100.3703 | CX98: 100.418 | CY98: 100 | CZ98: 100.4941 | DA98: 100.5114 | DB98: 100.7305 | DC98: 99.96867 | DD98: 100.8101 | DE98: 99.50254 | DF98: n.d. | DG98: 99.69745 | DH98: n.d. | DI98: 98.62753 | DJ98: 102.181 | DK98: 7442.08 | DL98: 1593.61 | DM98: 914.62 | DN98: 4.7 | DO98: n.d. | DP98: n.d. | DQ98: n.d. | DR98: n.d. | DS98: n.d. | DT98: n.d. | DU98: n.d. | DV98: n.d. | DW98: n.d. | DX98: -0.2 | DY98: n.d. | DZ98: n.d. | EA98: n.d. | EB98: n.d. | EC98: n.d. | ED98: n.d. | EE98: n.d.
B99: noviembre | C99: 1.828499369 | D99: 1.624774337 | E99: 2.230971129 | F99: 1.299038711 | G99: 1.87590464 | H99: 2.145045965 | I99: 11.53783889 | J99: 5.266571349 | K99: 1.099997881 | L99: 4.871071383 | M99: 6.857831929 | N99: 17.77351628 | O99: 17.81202908 | P99: n.d | Q99: n.d | R99: n.d | S99: n.d | T99: n.d | U99: n.d | V99: n.d | W99: n.d | X99: n.d | Y99: n.d | Z99: n.d | AA99: n.d | AB99: n.d | AE99: 20.19 | AF99: 19.17 | AG99: -1.02 | AH99: 306.04 | AI99: 48.28 | AJ99: 77.22872876 | AK99: 160.2679827 | AL99: 149.88 | AM99: 556 | AN99: 117.22 | AO99: 252.5 | AP99: n.d. | AQ99: n.d. | AR99: n.d. | AS99: n.d. | AT99: n.d. | AU99: n.d. | AV99: n.d. | AW99: n.d. | AX99: n.d. | AY99: n.d. | AZ99: n.d. | BA99: n.d. | BB99: 1.139368 | BC99: 1.6889 | BD99: 125.3817 | BE99: 1.4128 | BF99: n.d. | BG99: 1.1072 | BH99: 8.3109 | BI99: 37.2889 | BJ99: n.d. | BK99: 8.2716 | BL99: n.d. | BM99: =IF('Tipos de Cambio'!$M$9="EuroZona",LOOKUP(1,$BB$2:$BL$2,BB99:BL99),IF('Tipos de Cambio'!$M$9="Reino Unido",LOOKUP(2,$BB$2:$BL$2,BB99:BL99),IF('Tipos de Cambio'!$M$9="Japón",LOOKUP(3,$BB$2:$BL$2,BB99:BL99),IF('Tipos de Cambio'!$M$9="Canadá",LOOKUP(4,$BB$2:$BL$2,BB99:BL99),IF('Tipos de Cambio'!$M$9="Rusia",LOOKUP(5,$BB$2:$BL$2,BB99:BL99),IF('Tipos de Cambio'!$M$9="Brasil",LOOKUP(6,$BB$2:$BL$2,BB99:BL99),IF('Tipos de Cambio'!$M$9="China",LOOKUP(7,$BB$2:$BL$2,BB99:BL99),IF('Tipos de Cambio'!$M$9="India",LOOKUP(8,$BB$2:$BL$2,BB99:BL99),IF('Tipos de Cambio'!$M$9="Sudáfrica",LOOKUP(9,$BB$2:$BL$2,BB99:BL99),IF('Tipos de Cambio'!$M$9="México",LOOKUP(10,$BB$2:$BL$2,BB99:BL99),IF('Tipos de Cambio'!$M$9="Colombia",LOOKUP(11,$BB$2:$BL$2,BB99:BL99)))))))))))) -> n.d. | BN99: 5.88164 | BO99: 5.38 | BP99: 5.84063 | BQ99: n.d. | BR99: 0.49531 | BS99: 5.88 | BT99: n.d. | BU99: n.d. | BV99: 33.27842 | BW99: 72.73675 | BX99: 32.00984 | BY99: 1.009086 | BZ99: 7.337827 | CA99: 9.380193 | CB99: 6.820851 | CC99: 7.008625 | CD99: 13.42824 | CE99: 5.661979281 | CF99: 3.21532809 | CG99: 9.356015909 | CH99: 29.07453515 | CI99: 23.19012186 | CJ99: 30.3185222 | CK99: 19.82722788 | CL99: 17.54777426 | CM99: 18.38005242 | CN99: 102.1878 | CO99: 98.77198 | CP99: 99.84971 | CQ99: 98.44054 | CR99: 102.0139 | CS99: n.d. | CT99: n.d. | CU99: n.d. | CV99: n.d. | CW99: 100.3174 | CX99: 100.5631 | CY99: 100 | CZ99: 100.4361 | DA99: 100.5792 | DB99: 100.8118 | DC99: 99.79047 | DD99: 100.8464 | DE99: 99.06877 | DF99: n.d. | DG99: 99.36017 | DH99: n.d. | DI99: 98.44054 | DJ99: 102.0139 | DK99: 7823.12 | DL99: 1600.55 | DM99: 955.4 | DN99: 4.6 | DO99: n.d. | DP99: n.d. | DQ99: n.d. | DR99: n.d. | DS99: n.d. | DT99: n.d. | DU99: n.d. | DV99: n.d. | DW99: n.d. | DX99: -0.1 | DY99: n.d. | DZ99: n.d. | EA99: n.d. | EB99: n.d. | EC99: n.d. | ED99: n.d. | EE99: n.d.
B100: diciembre | C100: 1.702395965 | D100: 1.482199751 | E100: 2.091503268 | F100: 1.140782992 | G100: 1.72661899 | H100: 1.836734694 | I100: 11.03191893 | J100: 5.224318535 | K100: 0.3999932536 | L100: 6.285713834 | M100: 6.172842757 | N100: 15.71847615 | O100: 17.6842031 | P100: n.d | Q100: n.d | R100: n.d | S100: n.d | T100: n.d | U100: n.d | V100: n.d | W100: n.d | X100: n.d | Y100: n.d | Z100: n.d | AA100: n.d | AB100: n.d | AE100: 18.33 | AF100: 17.18 | AG100: -1.15 | AH100: 288.74 | AI100: 48.24 | AJ100: 74.34841379 | AK100: 177.4410102 | AL100: 144.62 | AM100: 566 | AN100: 113.45 | AO100: 269.67 | AP100: n.d. | AQ100: n.d. | AR100: n.d. | AS100: n.d. | AT100: n.d. | AU100: n.d. | AV100: n.d. | AW100: n.d. | AX100: n.d. | AY100: n.d. | AZ100: n.d. | BA100: n.d. | BB100: 1.111581 | BC100: 1.6597 | BD100: 129.7341 | BE100: 1.4271 | BF100: n.d. | BG100: 1.1136 | BH100: 8.3099 | BI100: 39.4 | BJ100: n.d. | BK100: 8.1271 | BL100: n.d. | BM100: =IF('Tipos de Cambio'!$M$9="EuroZona",LOOKUP(1,$BB$2:$BL$2,BB100:BL100),IF('Tipos de Cambio'!$M$9="Reino Unido",LOOKUP(2,$BB$2:$BL$2,BB100:BL100),IF('Tipos de Cambio'!$M$9="Japón",LOOKUP(3,$BB$2:$BL$2,BB100:BL100),IF('Tipos de Cambio'!$M$9="Canadá",LOOKUP(4,$BB$2:$BL$2,BB100:BL100),IF('Tipos de Cambio'!$M$9="Rusia",LOOKUP(5,$BB$2:$BL$2,BB100:BL100),IF('Tipos de Cambio'!$M$9="Brasil",LOOKUP(6,$BB$2:$BL$2,BB100:BL100),IF('Tipos de Cambio'!$M$9="China",LOOKUP(7,$BB$2:$BL$2,BB100:BL100),IF('Tipos de Cambio'!$M$9="India",LOOKUP(8,$BB$2:$BL$2,BB100:BL100),IF('Tipos de Cambio'!$M$9="Sudáfrica",LOOKUP(9,$BB$2:$BL$2,BB100:BL100),IF('Tipos de Cambio'!$M$9="México",LOOKUP(10,$BB$2:$BL$2,BB100:BL100),IF('Tipos de Cambio'!$M$9="Colombia",LOOKUP(11,$BB$2:$BL$2,BB100:BL100)))))))))))) -> n.d. | BN100: 5.91853 | BO100: 5.45 | BP100: 5.90676 | BQ100: n.d. | BR100: 0.73438 | BS100: 5.81 | BT100: n.d. | BU100: n.d. | BV100: 33.42966 | BW100: 73.18665 | BX100: 32.38298 | BY100: 0.9894115 | BZ100: 7.361204 | CA100: 9.581866 | CB100: 6.896974 | CC100: 7.115165 | CD100: 13.42329 | CE100: 5.576704798 | CF100: 3.805550355 | CG100: 9.636344184 | CH100: 27.67468188 | CI100: 20.40978431 | CJ100: 30.90767751 | CK100: 19.22639634 | CL100: 17.60591642 | CM100: 17.97230527 | CN100: 102.1566 | CO100: 98.85381 | CP100: 99.82167 | CQ100: 98.38452 | CR100: 101.9049 | CS100: n.d. | CT100: n.d. | CU100: n.d. | CV100: n.d. | CW100: 100.3419 | CX100: 100.5667 | CY100: 100 | CZ100: 100.2974 | DA100: 100.6879 | DB100: 100.9292 | DC100: 99.55846 | DD100: 100.8715 | DE100: 98.55559 | DF100: n.d. | DG100: 99.1258 | DH100: n.d. | DI100: 98.38452 | DJ100: 101.9049 | DK100: 7908.24 | DL100: 1570.35 | DM100: 970.43 | DN100: 4.7 | DO100: n.d. | DP100: n.d. | DQ100: n.d. | DR100: n.d. | DS100: n.d. | DT100: n.d. | DU100: n.d. | DV100: n.d. | DW100: n.d. | DX100: 0.1 | DY100: n.d. | DZ100: n.d. | EA100: n.d. | EB100: n.d. | EC100: n.d. | ED100: n.d. | EE100: n.d.
A101: 1998 | B101: enero | C101: 1.571338781 | D101: 1.077050539 | E101: 1.297016861 | F101: 0.6079420515 | G101: 1.589607595 | H101: 1.838610827 | I101: 10.13141448 | J101: 4.734907528 | K101: 0.2999996096 | L101: 9.714281421 | M101: 5.731690893 | N101: 15.27189667 | O101: 17.84195541 | P101: n.d | Q101: n.d | R101: n.d | S101: n.d | T101: n.d | U101: n.d | V101: n.d | W101: n.d | X101: n.d | Y101: n.d | Z101: n.d | AA101: n.d | AB101: n.d | AE101: 16.72 | AF101: 15.19 | AG101: -1.53 | AH101: 289.1 | AI101: 48.17 | AJ101: 72.13941632 | AK101: 177.7993486 | AL101: 137.1 | AM101: 621 | AN101: 114.71 | AO101: 288 | AP101: n.d. | AQ101: n.d. | AR101: n.d. | AS101: n.d. | AT101: n.d. | AU101: n.d. | AV101: n.d. | AW101: n.d. | AX101: n.d. | AY101: n.d. | AZ101: n.d. | BA101: n.d. | BB101: 1.087724 | BC101: 1.635 | BD101: 129.5475 | BE101: 1.4409 | BF101: n.d. | BG101: 1.1199 | BH101: 8.3094 | BI101: 39.391 | BJ101: n.d. | BK101: 8.2272 | BL101: n.d. | BM101: =IF('Tipos de Cambio'!$M$9="EuroZona",LOOKUP(1,$BB$2:$BL$2,BB101:BL101),IF('Tipos de Cambio'!$M$9="Reino Unido",LOOKUP(2,$BB$2:$BL$2,BB101:BL101),IF('Tipos de Cambio'!$M$9="Japón",LOOKUP(3,$BB$2:$BL$2,BB101:BL101),IF('Tipos de Cambio'!$M$9="Canadá",LOOKUP(4,$BB$2:$BL$2,BB101:BL101),IF('Tipos de Cambio'!$M$9="Rusia",LOOKUP(5,$BB$2:$BL$2,BB101:BL101),IF('Tipos de Cambio'!$M$9="Brasil",LOOKUP(6,$BB$2:$BL$2,BB101:BL101),IF('Tipos de Cambio'!$M$9="China",LOOKUP(7,$BB$2:$BL$2,BB101:BL101),IF('Tipos de Cambio'!$M$9="India",LOOKUP(8,$BB$2:$BL$2,BB101:BL101),IF('Tipos de Cambio'!$M$9="Sudáfrica",LOOKUP(9,$BB$2:$BL$2,BB101:BL101),IF('Tipos de Cambio'!$M$9="México",LOOKUP(10,$BB$2:$BL$2,BB101:BL101),IF('Tipos de Cambio'!$M$9="Colombia",LOOKUP(11,$BB$2:$BL$2,BB101:BL101)))))))))))) -> n.d. | BN101: 5.65997 | BO101: 5.23 | BP101: 5.64955 | BQ101: n.d. | BR101: 0.75149 | BS101: 5.54 | BT101: n.d. | BU101: n.d. | BV101: 33.62327 | BW101: 73.60383 | BX101: 32.79558 | BY101: 0.9733101 | BZ101: 7.387067 | CA101: 9.809353 | CB101: 6.920873 | CC101: 7.197979 | CD101: 13.67108 | CE101: 5.791139768 | CF101: 4.191758917 | CG101: 9.963609881 | CH101: 24.35032008 | CI101: 17.58406181 | CJ101: 31.26727848 | CK101: 17.51330093 | CL101: 16.89795954 | CM101: 17.25844481 | CN101: 102.3068 | CO101: 98.95753 | CP101: 99.8113 | CQ101: 98.36251 | CR101: 101.8601 | CS101: n.d. | CT101: n.d. | CU101: n.d. | CV101: n.d. | CW101: 100.329 | CX101: 100.2856 | CY101: 100 | CZ101: 100.1418 | DA101: 100.7872 | DB101: 101.0026 | DC101: 99.25192 | DD101: 100.7874 | DE101: 98.16858 | DF101: 101.6799 | DG101: 98.89646 | DH101: n.d. | DI101: 98.36251 | DJ101: 101.8601 | DK101: 7906.5 | DL101: 1619.36 | DM101: 980.28 | DN101: 4.6 | DO101: n.d. | DP101: n.d. | DQ101: n.d. | DR101: n.d. | DS101: n.d. | DT101: n.d. | DU101: n.d. | DV101: n.d. | DW101: n.d. | DX101: -0.1 | DY101: n.d. | DZ101: n.d. | EA101: n.d. | EB101: n.d. | EC101: n.d. | ED101: n.d. | EE101: n.d.
B102: febrero | C102: 1.441102757 | D102: 1.115856179 | E102: 1.295336788 | F102: 0.7744933523 | G102: 1.585012347 | H102: 1.944728762 | I102: 9.42637512 | J102: 4.693304863 | K102: -0.09999687726 | L102: 9.14286008 | M102: 5.333326439 | N102: 15.35156328 | O102: 18.03065781 | P102: n.d | Q102: n.d | R102: n.d | S102: n.d | T102: n.d | U102: n.d | V102: n.d | W102: n.d | X102: n.d | Y102: n.d | Z102: n.d | AA102: n.d | AB102: n.d | AE102: 16.06 | AF102: 14.07 | AG102: -1.99 | AH102: 297.49 | AI102: 48.04 | AJ102: 68.83725994 | AK102: 178.1803667 | AL102: 140.05 | AM102: 659 | AN102: 113.38 | AO102: 297.25 | AP102: n.d. | AQ102: n.d. | AR102: n.d. | AS102: n.d. | AT102: n.d. | AU102: n.d. | AV102: n.d. | AW102: n.d. | AX102: n.d. | AY102: n.d. | AZ102: n.d. | BA102: n.d. | BB102: 1.088446 | BC102: 1.6408 | BD102: 125.8516 | BE102: 1.4334 | BF102: n.d. | BG102: 1.1273 | BH102: 8.3072 | BI102: 39.0079 | BJ102: n.d. | BK102: 8.5021 | BL102: n.d. | BM102: =IF('Tipos de Cambio'!$M$9="EuroZona",LOOKUP(1,$BB$2:$BL$2,BB102:BL102),IF('Tipos de Cambio'!$M$9="Reino Unido",LOOKUP(2,$BB$2:$BL$2,BB102:BL102),IF('Tipos de Cambio'!$M$9="Japón",LOOKUP(3,$BB$2:$BL$2,BB102:BL102),IF('Tipos de Cambio'!$M$9="Canadá",LOOKUP(4,$BB$2:$BL$2,BB102:BL102),IF('Tipos de Cambio'!$M$9="Rusia",LOOKUP(5,$BB$2:$BL$2,BB102:BL102),IF('Tipos de Cambio'!$M$9="Brasil",LOOKUP(6,$BB$2:$BL$2,BB102:BL102),IF('Tipos de Cambio'!$M$9="China",LOOKUP(7,$BB$2:$BL$2,BB102:BL102),IF('Tipos de Cambio'!$M$9="India",LOOKUP(8,$BB$2:$BL$2,BB102:BL102),IF('Tipos de Cambio'!$M$9="Sudáfrica",LOOKUP(9,$BB$2:$BL$2,BB102:BL102),IF('Tipos de Cambio'!$M$9="México",LOOKUP(10,$BB$2:$BL$2,BB102:BL102),IF('Tipos de Cambio'!$M$9="Colombia",LOOKUP(11,$BB$2:$BL$2,BB102:BL102)))))))))))) -> n.d. | BN102: 5.64121 | BO102: 5.27 | BP102: 5.63359 | BQ102: n.d. | BR102: 0.84199 | BS102: 5.57 | BT102: n.d. | BU102: n.d. | BV102: 33.895 | BW102: 73.96375 | BX102: 33.08163 | BY102: 0.9643791 | BZ102: 7.451105 | CA102: 10.03425 | CB102: 6.944488 | CC102: 7.301435 | CD102: 14.03724 | CE102: 6.323645475 | CF102: 4.628560565 | CG102: 9.139990875 | CH102: 19.30543286 | CI102: 16.23479753 | CJ102: 31.37286195 | CK102: 15.91029 | CL102: 16.62076758 | CM102: 18.26181608 | CN102: 102.4673 | CO102: 99.12291 | CP102: 99.89339 | CQ102: 98.31374 | CR102: 101.8977 | CS102: n.d. | CT102: n.d. | CU102: n.d. | CV102: n.d. | CW102: 99.94588 | CX102: 99.89675 | CY102: 100 | CZ102: 99.99912 | DA102: 100.8583 | DB102: 101.1002 | DC102: 98.91139 | DD102: 100.6648 | DE102: 98.13458 | DF102: 101.4791 | DG102: 98.69159 | DH102: n.d. | DI102: 98.31374 | DJ102: 101.8977 | DK102: 8545.71 | DL102: 1770.51 | DM102: 1049.34 | DN102: 4.6 | DO102: n.d. | DP102: n.d. | DQ102: n.d. | DR102: n.d. | DS102: n.d. | DT102: n.d. | DU102: n.d. | DV102: n.d. | DW102: n.d. | DX102: 0 | DY102: n.d. | DZ102: n.d. | EA102: n.d. | EB102: n.d. | EC102: n.d. | ED102: n.d. | EE102: n.d.
B103: marzo | C103: 1.375 | D103: 1.114934618 | E103: 1.165803109 | F103: 0.8641816071 | G103: 1.72661899 | H103: 2.249488753 | I103: 8.574161769 | J103: 4.51589751 | K103: 0.6999911145 | L103: 8.262102046 | M103: 5.421687607 | N103: 15.26823233 | O103: 19.24768806 | P103: n.d | Q103: n.d | R103: n.d | S103: n.d | T103: n.d | U103: n.d | V103: n.d | W103: n.d | X103: n.d | Y103: n.d | Z103: n.d | AA103: n.d | AB103: n.d | AE103: 15.12 | AF103: 13.1 | AG103: -2.02 | AH103: 295.94 | AI103: 47.93 | AJ103: 68.42902632 | AK103: 157.6507516 | AL103: 138.92 | AM103: 671 | AN103: 114.21 | AO103: 296 | AP103: n.d. | AQ103: n.d. | AR103: n.d. | AS103: n.d. | AT103: n.d. | AU103: n.d. | AV103: n.d. | AW103: n.d. | AX103: n.d. | AY103: n.d. | AZ103: n.d. | BA103: n.d. | BB103: 1.08433 | BC103: 1.6619 | BD103: 129.0823 | BE103: 1.4166 | BF103: n.d. | BG103: 1.1334 | BH103: 8.3076 | BI103: 39.5686 | BJ103: n.d. | BK103: 8.5681 | BL103: n.d. | BM103: =IF('Tipos de Cambio'!$M$9="EuroZona",LOOKUP(1,$BB$2:$BL$2,BB103:BL103),IF('Tipos de Cambio'!$M$9="Reino Unido",LOOKUP(2,$BB$2:$BL$2,BB103:BL103),IF('Tipos de Cambio'!$M$9="Japón",LOOKUP(3,$BB$2:$BL$2,BB103:BL103),IF('Tipos de Cambio'!$M$9="Canadá",LOOKUP(4,$BB$2:$BL$2,BB103:BL103),IF('Tipos de Cambio'!$M$9="Rusia",LOOKUP(5,$BB$2:$BL$2,BB103:BL103),IF('Tipos de Cambio'!$M$9="Brasil",LOOKUP(6,$BB$2:$BL$2,BB103:BL103),IF('Tipos de Cambio'!$M$9="China",LOOKUP(7,$BB$2:$BL$2,BB103:BL103),IF('Tipos de Cambio'!$M$9="India",LOOKUP(8,$BB$2:$BL$2,BB103:BL103),IF('Tipos de Cambio'!$M$9="Sudáfrica",LOOKUP(9,$BB$2:$BL$2,BB103:BL103),IF('Tipos de Cambio'!$M$9="México",LOOKUP(10,$BB$2:$BL$2,BB103:BL103),IF('Tipos de Cambio'!$M$9="Colombia",LOOKUP(11,$BB$2:$BL$2,BB103:BL103)))))))))))) -> n.d. | BN103: 5.71378 | BO103: 5.25 | BP103: 5.68803 | BQ103: n.d. | BR103: 0.72763 | BS103: 5.65 | BT103: n.d. | BU103: n.d. | BV103: 34.10772 | BW103: 74.06191 | BX103: 33.25846 | BY103: 0.9697381 | BZ103: 7.60801 | CA103: 10.24385 | CB103: 7.014352 | CC103: 7.467092 | CD103: 14.07536 | CE103: 6.576999765 | CF103: 4.441100109 | CG103: 8.886549106 | CH103: 17.61643533 | CI103: 17.02767329 | CJ103: 30.7310864 | CK103: =IFERROR((CB103/CB91-1)*100,"n.d.") -> 15.36470951 | CL103: 17.51460692 | CM103: 17.11684426 | CN103: 102.4747 | CO103: 99.38657 | CP103: 99.98815 | CQ103: 98.23558 | CR103: 102.0157 | CS103: n.d. | CT103: n.d. | CU103: n.d. | CV103: n.d. | CW103: 99.33696 | CX103: 99.64877 | CY103: 100 | CZ103: 99.87468 | DA103: 100.9223 | DB103: 101.2013 | DC103: 98.58482 | DD103: 100.4676 | DE103: 98.2847 | DF103: 101.2111 | DG103: 98.38896 | DH103: n.d. | DI103: 98.23558 | DJ103: 102.0157 | DK103: 8799.8 | DL103: 1835.68 | DM103: 1101.75 | DN103: 4.7 | DO103: n.d. | DP103: n.d. | DQ103: n.d. | DR103: n.d. | DS103: n.d. | DT103: n.d. | DU103: n.d. | DV103: n.d. | DW103: n.d. | DX103: 0.1 | DY103: n.d. | DZ103: n.d. | EA103: n.d. | EB103: n.d. | EC103: n.d. | ED103: n.d. | EE103: n.d.
B104: abril | C104: 1.435705368 | D104: 1.391184573 | E104: 1.426718547 | F104: 1.031459515 | G104: 1.862466969 | H104: 0.4008016032 | I104: 7.950419597 | J104: 3.852556988 | K104: -0.3000019596 | L104: 8.192084579 | M104: 5.017930585 | N104: 15.10318781 | O104: 20.74973126 | P104: n.d | Q104: n.d | R104: n.d | S104: n.d | T104: n.d | U104: n.d | V104: n.d | W104: n.d | X104: n.d | Y104: n.d | Z104: n.d | AA104: n.d | AB104: n.d | AE104: 15.35 | AF104: 13.53 | AG104: -1.82 | AH104: 308.29 | AI104: 48.81 | AJ104: 65.698397 | AK104: 150.3479058 | AL104: 130.15 | AM104: 688 | AN104: 107.12 | AO104: 311.5 | AP104: n.d. | AQ104: n.d. | AR104: n.d. | AS104: n.d. | AT104: n.d. | AU104: n.d. | AV104: n.d. | AW104: n.d. | AX104: n.d. | AY104: n.d. | AZ104: n.d. | BA104: n.d. | BB104: 1.091061 | BC104: 1.6723 | BD104: 131.7536 | BE104: 1.4298 | BF104: n.d. | BG104: 1.1409 | BH104: 8.3058 | BI104: 39.7029 | BJ104: n.d. | BK104: 8.5017 | BL104: n.d. | BM104: =IF('Tipos de Cambio'!$M$9="EuroZona",LOOKUP(1,$BB$2:$BL$2,BB104:BL104),IF('Tipos de Cambio'!$M$9="Reino Unido",LOOKUP(2,$BB$2:$BL$2,BB104:BL104),IF('Tipos de Cambio'!$M$9="Japón",LOOKUP(3,$BB$2:$BL$2,BB104:BL104),IF('Tipos de Cambio'!$M$9="Canadá",LOOKUP(4,$BB$2:$BL$2,BB104:BL104),IF('Tipos de Cambio'!$M$9="Rusia",LOOKUP(5,$BB$2:$BL$2,BB104:BL104),IF('Tipos de Cambio'!$M$9="Brasil",LOOKUP(6,$BB$2:$BL$2,BB104:BL104),IF('Tipos de Cambio'!$M$9="China",LOOKUP(7,$BB$2:$BL$2,BB104:BL104),IF('Tipos de Cambio'!$M$9="India",LOOKUP(8,$BB$2:$BL$2,BB104:BL104),IF('Tipos de Cambio'!$M$9="Sudáfrica",LOOKUP(9,$BB$2:$BL$2,BB104:BL104),IF('Tipos de Cambio'!$M$9="México",LOOKUP(10,$BB$2:$BL$2,BB104:BL104),IF('Tipos de Cambio'!$M$9="Colombia",LOOKUP(11,$BB$2:$BL$2,BB104:BL104)))))))))))) -> n.d. | BN104: 5.74082 | BO104: 5.26 | BP104: 5.68926 | BQ104: n.d. | BR104: 0.65703 | BS104: 5.64 | BT104: n.d. | BU104: n.d. | BV104: 34.32128 | BW104: 74.23369 | BX104: 33.40776 | BY104: 0.9795027 | BZ104: 7.760133 | CA104: 10.43664 | CB104: 7.097529 | CC104: 7.595877 | CD104: 14.14124 | CE104: 6.797839727 | CF104: 4.059156716 | CG104: 9.006583578 | CH104: 15.71945523 | CI104: 17.55727145 | CJ104: 29.61912125 | CK104: 14.91943691 | CL104: 18.14616703 | CM104: 16.32561736 | CN104: 102.4536 | CO104: 99.63124 | CP104: 100.0754 | CQ104: 98.14034 | CR104: 102.1233 | CS104: n.d. | CT104: n.d. | CU104: n.d. | CV104: n.d. | CW104: 98.82497 | CX104: 99.72049 | CY104: 100 | CZ104: 99.70361 | DA104: 100.9044 | DB104: 101.2194 | DC104: 98.30782 | DD104: 100.1646 | DE104: 98.47685 | DF104: 100.9832 | DG104: 98.01754 | DH104: n.d. | DI104: 98.14034 | DJ104: 102.1233 | DK104: 9063.36 | DL104: 1868.41 | DM104: 1111.75 | DN104: 4.3 | DO104: n.d. | DP104: n.d. | DQ104: n.d. | DR104: n.d. | DS104: n.d. | DT104: n.d. | DU104: n.d. | DV104: n.d. | DW104: n.d. | DX104: -0.4 | DY104: n.d. | DZ104: n.d. | EA104: n.d. | EB104: n.d. | EC104: n.d. | ED104: n.d. | EE104: n.d.
B105: mayo | C105: 1.686445971 | D105: 1.318681319 | E105: 1.293661061 | F105: 0.9141238573 | G105: 1.999991009 | H105: 0.5 | I105: 7.479888029 | J105: 3.945951308 | K105: -0.9999850517 | L105: 10.511369 | M105: 5.119063774 | N105: 14.97075812 | O105: 20.67798343 | P105: n.d | Q105: n.d | R105: n.d | S105: n.d | T105: n.d | U105: n.d | V105: n.d | W105: n.d | X105: n.d | Y105: n.d | Z105: n.d | AA105: n.d | AB105: n.d | AE105: 14.91 | AF105: 14.36 | AG105: -0.55 | AH105: 299.1 | AI105: 49.19 | AJ105: 64.36029792 | AK105: 137.7198792 | AL105: 128.92 | AM105: 705 | AN105: 106.1 | AO105: 318.25 | AP105: n.d. | AQ105: n.d. | AR105: n.d. | AS105: n.d. | AT105: n.d. | AU105: n.d. | AV105: n.d. | AW105: n.d. | AX105: n.d. | AY105: n.d. | AZ105: n.d. | BA105: n.d. | BB105: 1.109045 | BC105: 1.6382 | BD105: 134.896 | BE105: 1.4452 | BF105: n.d. | BG105: 1.1475 | BH105: 8.3084 | BI105: 40.4687 | BJ105: n.d. | BK105: 8.5848 | BL105: n.d. | BM105: =IF('Tipos de Cambio'!$M$9="EuroZona",LOOKUP(1,$BB$2:$BL$2,BB105:BL105),IF('Tipos de Cambio'!$M$9="Reino Unido",LOOKUP(2,$BB$2:$BL$2,BB105:BL105),IF('Tipos de Cambio'!$M$9="Japón",LOOKUP(3,$BB$2:$BL$2,BB105:BL105),IF('Tipos de Cambio'!$M$9="Canadá",LOOKUP(4,$BB$2:$BL$2,BB105:BL105),IF('Tipos de Cambio'!$M$9="Rusia",LOOKUP(5,$BB$2:$BL$2,BB105:BL105),IF('Tipos de Cambio'!$M$9="Brasil",LOOKUP(6,$BB$2:$BL$2,BB105:BL105),IF('Tipos de Cambio'!$M$9="China",LOOKUP(7,$BB$2:$BL$2,BB105:BL105),IF('Tipos de Cambio'!$M$9="India",LOOKUP(8,$BB$2:$BL$2,BB105:BL105),IF('Tipos de Cambio'!$M$9="Sudáfrica",LOOKUP(9,$BB$2:$BL$2,BB105:BL105),IF('Tipos de Cambio'!$M$9="México",LOOKUP(10,$BB$2:$BL$2,BB105:BL105),IF('Tipos de Cambio'!$M$9="Colombia",LOOKUP(11,$BB$2:$BL$2,BB105:BL105)))))))))))) -> n.d. | BN105: 5.76542 | BO105: 5.36 | BP105: 5.69223 | BQ105: n.d. | BR105: 0.56271 | BS105: 5.65 | BT105: n.d. | BU105: n.d. | BV105: 34.51988 | BW105: 74.54453 | BX105: 33.68927 | BY105: 0.9956691 | BZ105: 7.874351 | CA105: 10.65996 | CB105: 7.183857 | CC105: 7.678203 | CD105: 14.20739 | CE105: 7.089093037 | CF105: 4.327421525 | CG105: 9.395948528 | CH105: 14.34637311 | CI105: 17.50838706 | CJ105: 29.2850546 | CK105: 14.55477347 | CL105: 18.21253152 | CM105: 16.07562887 | CN105: 102.3562 | CO105: 99.90867 | CP105: 100.1854 | CQ105: 98.04141 | CR105: 101.9998 | CS105: n.d. | CT105: n.d. | CU105: n.d. | CV105: n.d. | CW105: 98.31722 | CX105: 99.93935 | CY105: 100 | CZ105: 99.4753 | DA105: 100.8284 | DB105: 101.2551 | DC105: 98.06971 | DD105: 99.77329 | DE105: 98.60651 | DF105: 100.8479 | DG105: 97.72766 | DH105: n.d. | DI105: 98.04141 | DJ105: 101.9998 | DK105: 8899.95 | DL105: 1778.87 | DM105: 1090.82 | DN105: 4.4 | DO105: n.d. | DP105: n.d. | DQ105: n.d. | DR105: n.d. | DS105: n.d. | DT105: n.d. | DU105: n.d. | DV105: n.d. | DW105: n.d. | DX105: 0.1 | DY105: n.d. | DZ105: n.d. | EA105: n.d. | EB105: n.d. | EC105: n.d. | ED105: n.d. | EE105: n.d.
B106: junio | C106: 1.684341859 | D106: 1.331868735 | E106: 1.291989664 | F106: 1.017385705 | G106: 1.56696368 | H106: 0.1 | I106: 6.395462709 | J106: 3.408177936 | K106: -1.300005234 | L106: 12.3943651 | M106: 5.225646789 | N106: 15.30660178 | O106: 20.6994157 | P106: n.d | Q106: n.d | R106: n.d | S106: n.d | T106: n.d | U106: n.d | V106: n.d | W106: n.d | X106: n.d | Y106: n.d | Z106: n.d | AA106: n.d | AB106: n.d | AE106: 13.72 | AF106: 12.21 | AG106: -1.51 | AH106: 292.32 | AI106: 49.45 | AJ106: 68.94158631 | AK106: 124.9285591 | AL106: 120.64 | AM106: 633 | AN106: 104.23 | AO106: 325.5 | AP106: n.d. | AQ106: n.d. | AR106: n.d. | AS106: n.d. | AT106: n.d. | AU106: n.d. | AV106: n.d. | AW106: n.d. | AX106: n.d. | AY106: n.d. | AZ106: n.d. | BA106: n.d. | BB106: 1.101406 | BC106: 1.6504 | BD106: 140.3305 | BE106: 1.4655 | BF106: n.d. | BG106: 1.1543 | BH106: 8.31 | BI106: 42.3668 | BJ106: n.d. | BK106: 8.92 | BL106: n.d. | BM106: =IF('Tipos de Cambio'!$M$9="EuroZona",LOOKUP(1,$BB$2:$BL$2,BB106:BL106),IF('Tipos de Cambio'!$M$9="Reino Unido",LOOKUP(2,$BB$2:$BL$2,BB106:BL106),IF('Tipos de Cambio'!$M$9="Japón",LOOKUP(3,$BB$2:$BL$2,BB106:BL106),IF('Tipos de Cambio'!$M$9="Canadá",LOOKUP(4,$BB$2:$BL$2,BB106:BL106),IF('Tipos de Cambio'!$M$9="Rusia",LOOKUP(5,$BB$2:$BL$2,BB106:BL106),IF('Tipos de Cambio'!$M$9="Brasil",LOOKUP(6,$BB$2:$BL$2,BB106:BL106),IF('Tipos de Cambio'!$M$9="China",LOOKUP(7,$BB$2:$BL$2,BB106:BL106),IF('Tipos de Cambio'!$M$9="India",LOOKUP(8,$BB$2:$BL$2,BB106:BL106),IF('Tipos de Cambio'!$M$9="Sudáfrica",LOOKUP(9,$BB$2:$BL$2,BB106:BL106),IF('Tipos de Cambio'!$M$9="México",LOOKUP(10,$BB$2:$BL$2,BB106:BL106),IF('Tipos de Cambio'!$M$9="Colombia",LOOKUP(11,$BB$2:$BL$2,BB106:BL106)))))))))))) -> n.d. | BN106: 5.74609 | BO106: 5.32 | BP106: 5.68945 | BQ106: n.d. | BR106: 0.56783 | BS106: 5.5 | BT106: n.d. | BU106: n.d. | BV106: 34.68524 | BW106: 74.60179 | BX106: 33.97401 | BY106: 0.9941018 | BZ106: 7.993677 | CA106: 10.89076 | CB106: 7.236238 | CC106: 7.781397 | CD106: 14.32232 | CE106: 7.138093669 | CF106: 4.014587905 | CG106: 8.349242028 | CH106: 10.59837831 | CI106: 17.30612633 | CJ106: 28.75629742 | CK106: 13.95262775 | CL106: 18.04475611 | CM106: 15.51972228 | CN106: 102.2392 | CO106: 100.239 | CP106: 100.2836 | CQ106: 97.95645 | CR106: 101.5911 | CS106: n.d. | CT106: n.d. | CU106: n.d. | CV106: n.d. | CW106: 97.81756 | CX106: 100.0628 | CY106: 100 | CZ106: 99.25793 | DA106: 100.7261 | DB106: 101.3359 | DC106: 97.86156 | DD106: 99.3952 | DE106: 98.62895 | DF106: 100.5114 | DG106: 97.16099 | DH106: n.d. | DI106: 97.95645 | DJ106: 101.5911 | DK106: 8952.01 | DL106: 1894.74 | DM106: 1133.84 | DN106: 4.5 | DO106: n.d. | DP106: n.d. | DQ106: n.d. | DR106: n.d. | DS106: n.d. | DT106: n.d. | DU106: n.d. | DV106: n.d. | DW106: n.d. | DX106: 0.1 | DY106: n.d. | DZ106: n.d. | EA106: n.d. | EB106: n.d. | EC106: n.d. | ED106: n.d. | EE106: n.d.
B107: julio | C107: 1.682242991 | D107: 1.275720165 | E107: 0.7682458387 | F107: 0.8123791103 | G107: 1.573674668 | H107: -0.1004016064 | I107: 5.594366548 | J107: 3.05753625 | K107: -1.400002833 | L107: 14.80446917 | M107: 6.580477863 | N107: 15.41299252 | O107: 20.27175304 | P107: n.d | Q107: n.d | R107: n.d | S107: n.d | T107: n.d | U107: n.d | V107: n.d | W107: n.d | X107: n.d | Y107: n.d | Z107: n.d | AA107: n.d | AB107: n.d | AE107: 14.17 | AF107: 12.08 | AG107: -2.09 | AH107: 292.87 | AI107: 49.98 | AJ107: 69.85784398 | AK107: 117.5984977 | AL107: 118.9 | AM107: 661 | AN107: 100.51 | AO107: 324.25 | AP107: n.d. | AQ107: n.d. | AR107: n.d. | AS107: n.d. | AT107: n.d. | AU107: n.d. | AV107: n.d. | AW107: n.d. | AX107: n.d. | AY107: n.d. | AZ107: n.d. | BA107: n.d. | BB107: 1.0975 | BC107: 1.6437 | BD107: 140.7874 | BE107: 1.4869 | BF107: n.d. | BG107: 1.1614 | BH107: 8.31 | BI107: 42.6118 | BJ107: n.d. | BK107: 8.899 | BL107: n.d. | BM107: =IF('Tipos de Cambio'!$M$9="EuroZona",LOOKUP(1,$BB$2:$BL$2,BB107:BL107),IF('Tipos de Cambio'!$M$9="Reino Unido",LOOKUP(2,$BB$2:$BL$2,BB107:BL107),IF('Tipos de Cambio'!$M$9="Japón",LOOKUP(3,$BB$2:$BL$2,BB107:BL107),IF('Tipos de Cambio'!$M$9="Canadá",LOOKUP(4,$BB$2:$BL$2,BB107:BL107),IF('Tipos de Cambio'!$M$9="Rusia",LOOKUP(5,$BB$2:$BL$2,BB107:BL107),IF('Tipos de Cambio'!$M$9="Brasil",LOOKUP(6,$BB$2:$BL$2,BB107:BL107),IF('Tipos de Cambio'!$M$9="China",LOOKUP(7,$BB$2:$BL$2,BB107:BL107),IF('Tipos de Cambio'!$M$9="India",LOOKUP(8,$BB$2:$BL$2,BB107:BL107),IF('Tipos de Cambio'!$M$9="Sudáfrica",LOOKUP(9,$BB$2:$BL$2,BB107:BL107),IF('Tipos de Cambio'!$M$9="México",LOOKUP(10,$BB$2:$BL$2,BB107:BL107),IF('Tipos de Cambio'!$M$9="Colombia",LOOKUP(11,$BB$2:$BL$2,BB107:BL107)))))))))))) -> n.d. | BN107: 5.75136 | BO107: 5.23 | BP107: 5.68886 | BQ107: n.d. | BR107: 0.64114 | BS107: 5.46 | BT107: n.d. | BU107: n.d. | BV107: 34.84894 | BW107: 74.96989 | BX107: 34.30099 | BY107: 0.9807155 | BZ107: 8.110134 | CA107: 11.09206 | CB107: 7.387268 | CC107: 7.901356 | CD107: 14.52445 | CE107: 7.151413704 | CF107: 4.171391579 | CG107: 7.086084424 | CH107: 5.42272965 | CI107: 17.11207267 | CJ107: 27.94175337 | CK107: 15.11690167 | CL107: 18.39804074 | CM107: 15.75452894 | CN107: 102.1053 | CO107: 100.5971 | CP107: 100.4084 | CQ107: 97.91438 | CR107: 100.9773 | CS107: n.d. | CT107: n.d. | CU107: n.d. | CV107: n.d. | CW107: 97.49306 | CX107: 99.91277 | CY107: 100 | CZ107: 99.15475 | DA107: 100.5853 | DB107: 101.3119 | DC107: 97.68504 | DD107: 99.00043 | DE107: 98.48324 | DF107: 99.76678 | DG107: 96.66464 | DH107: n.d. | DI107: 97.91438 | DJ107: 100.9773 | DK107: 8883.29 | DL107: 1872.39 | DM107: 1120.67 | DN107: 4.5 | DO107: n.d. | DP107: n.d. | DQ107: n.d. | DR107: n.d. | DS107: n.d. | DT107: n.d. | DU107: n.d. | DV107: n.d. | DW107: n.d. | DX107: 0 | DY107: n.d. | DZ107: n.d. | EA107: n.d. | EB107: n.d. | EC107: n.d. | ED107: n.d. | EE107: n.d.
B108: agosto | C108: 1.616915423 | D108: 1.136674884 | E108: 0.5121638924 | F108: 0.6173633441 | G108: 1.280220751 | H108: -0.3009027081 | I108: 9.623124905 | J108: 2.552434273 | K108: -1.399990321 | L108: 15.04178509 | M108: 7.629091821 | N108: 15.49555866 | O108: 18.94418298 | P108: n.d | Q108: n.d | R108: n.d | S108: n.d | T108: n.d | U108: n.d | V108: n.d | W108: n.d | X108: n.d | Y108: n.d | Z108: n.d | AA108: n.d | AB108: n.d | AE108: 13.47 | AF108: 11.91 | AG108: -1.56 | AH108: 284.11 | AI108: 48.98 | AJ108: 68.17955022 | AK108: 123.209442 | AL108: 107.95 | AM108: 674 | AN108: 87.86 | AO108: 321.4 | AP108: n.d. | AQ108: n.d. | AR108: n.d. | AS108: n.d. | AT108: n.d. | AU108: n.d. | AV108: n.d. | AW108: n.d. | AX108: n.d. | AY108: n.d. | AZ108: n.d. | BA108: n.d. | BB108: 1.101566 | BC108: 1.6342 | BD108: 144.68 | BE108: 1.5346 | BF108: n.d. | BG108: 1.1717 | BH108: 8.31 | BI108: 42.8429 | BJ108: n.d. | BK108: 9.3712 | BL108: n.d. | BM108: =IF('Tipos de Cambio'!$M$9="EuroZona",LOOKUP(1,$BB$2:$BL$2,BB108:BL108),IF('Tipos de Cambio'!$M$9="Reino Unido",LOOKUP(2,$BB$2:$BL$2,BB108:BL108),IF('Tipos de Cambio'!$M$9="Japón",LOOKUP(3,$BB$2:$BL$2,BB108:BL108),IF('Tipos de Cambio'!$M$9="Canadá",LOOKUP(4,$BB$2:$BL$2,BB108:BL108),IF('Tipos de Cambio'!$M$9="Rusia",LOOKUP(5,$BB$2:$BL$2,BB108:BL108),IF('Tipos de Cambio'!$M$9="Brasil",LOOKUP(6,$BB$2:$BL$2,BB108:BL108),IF('Tipos de Cambio'!$M$9="China",LOOKUP(7,$BB$2:$BL$2,BB108:BL108),IF('Tipos de Cambio'!$M$9="India",LOOKUP(8,$BB$2:$BL$2,BB108:BL108),IF('Tipos de Cambio'!$M$9="Sudáfrica",LOOKUP(9,$BB$2:$BL$2,BB108:BL108),IF('Tipos de Cambio'!$M$9="México",LOOKUP(10,$BB$2:$BL$2,BB108:BL108),IF('Tipos de Cambio'!$M$9="Colombia",LOOKUP(11,$BB$2:$BL$2,BB108:BL108)))))))))))) -> n.d. | BN108: 5.71406 | BO108: 5.15 | BP108: 5.68438 | BQ108: n.d. | BR108: 0.64707 | BS108: 5.34 | BT108: n.d. | BU108: n.d. | BV108: 35.05668 | BW108: 75.30527 | BX108: 34.56129 | BY108: 0.9847124 | BZ108: 8.196434 | CA108: 11.28262 | CB108: 7.561605 | CC108: 8.079919 | CD108: 14.65954 | CE108: 6.872692996 | CF108: 4.293633202 | CG108: 6.6898128 | CH108: 2.768794623 | CI108: 16.53053675 | CJ108: 27.32559288 | CK108: 16.43843316 | CL108: 20.00423881 | CM108: 15.37784676 | CN108: 101.9161 | CO108: 100.744 | CP108: 100.487 | CQ108: 97.94825 | CR108: 100.3785 | CS108: n.d. | CT108: n.d. | CU108: n.d. | CV108: n.d. | CW108: 97.57231 | CX108: 99.60529 | CY108: 100 | CZ108: 99.10299 | DA108: 100.3872 | DB108: 101.1805 | DC108: 97.53153 | DD108: 98.53856 | DE108: 98.06974 | DF108: 98.56731 | DG108: 96.46893 | DH108: n.d. | DI108: 97.94825 | DJ108: 100.3785 | DK108: 7539.06 | DL108: 1499.25 | DM108: 957.28 | DN108: 4.5 | DO108: n.d. | DP108: n.d. | DQ108: n.d. | DR108: n.d. | DS108: n.d. | DT108: n.d. | DU108: n.d. | DV108: n.d. | DW108: n.d. | DX108: 0 | DY108: n.d. | DZ108: n.d. | EA108: n.d. | EB108: n.d. | EC108: n.d. | ED108: n.d. | EE108: n.d.
B109: septiembre | C109: 1.488833747 | D109: 0.9853565075 | E109: 0.3846153846 | F109: 0.3979971755 | G109: 1.274794737 | H109: -0.1992031873 | I109: 52.20792665 | J109: 2.265522307 | K109: -1.500003935 | L109: 16.34349544 | M109: 8.995329625 | N109: 15.92494443 | O109: 17.80483123 | P109: n.d | Q109: n.d | R109: n.d | S109: n.d | T109: n.d | U109: n.d | V109: n.d | W109: n.d | X109: n.d | Y109: n.d | Z109: n.d | AA109: n.d | AB109: n.d | AE109: 15.03 | AF109: 13.34 | AG109: -1.69 | AH109: 288.98 | AI109: 48.35 | AJ109: 66.38785823 | AK109: 111.8514755 | AL109: 107.93 | AM109: 703 | AN109: 86.31 | AO109: 321.25 | AP109: n.d. | AQ109: n.d. | AR109: n.d. | AS109: n.d. | AT109: n.d. | AU109: n.d. | AV109: n.d. | AW109: n.d. | AX109: n.d. | AY109: n.d. | AZ109: n.d. | BA109: n.d. | BB109: 1.154125 | BC109: 1.6823 | BD109: 134.4805 | BE109: 1.5218 | BF109: n.d. | BG109: 1.1805 | BH109: 8.3055 | BI109: 42.579 | BJ109: n.d. | BK109: 10.2192 | BL109: n.d. | BM109: =IF('Tipos de Cambio'!$M$9="EuroZona",LOOKUP(1,$BB$2:$BL$2,BB109:BL109),IF('Tipos de Cambio'!$M$9="Reino Unido",LOOKUP(2,$BB$2:$BL$2,BB109:BL109),IF('Tipos de Cambio'!$M$9="Japón",LOOKUP(3,$BB$2:$BL$2,BB109:BL109),IF('Tipos de Cambio'!$M$9="Canadá",LOOKUP(4,$BB$2:$BL$2,BB109:BL109),IF('Tipos de Cambio'!$M$9="Rusia",LOOKUP(5,$BB$2:$BL$2,BB109:BL109),IF('Tipos de Cambio'!$M$9="Brasil",LOOKUP(6,$BB$2:$BL$2,BB109:BL109),IF('Tipos de Cambio'!$M$9="China",LOOKUP(7,$BB$2:$BL$2,BB109:BL109),IF('Tipos de Cambio'!$M$9="India",LOOKUP(8,$BB$2:$BL$2,BB109:BL109),IF('Tipos de Cambio'!$M$9="Sudáfrica",LOOKUP(9,$BB$2:$BL$2,BB109:BL109),IF('Tipos de Cambio'!$M$9="México",LOOKUP(10,$BB$2:$BL$2,BB109:BL109),IF('Tipos de Cambio'!$M$9="Colombia",LOOKUP(11,$BB$2:$BL$2,BB109:BL109)))))))))))) -> n.d. | BN109: 5.43288 | BO109: 4.81 | BP109: 5.49965 | BQ109: n.d. | BR109: 0.48349 | BS109: 4.81 | BT109: n.d. | BU109: n.d. | BV109: 35.37993 | BW109: 75.56703 | BX109: 34.7145 | BY109: 1.095618 | BZ109: 8.091496 | CA109: 11.45611 | CB109: 7.640779 | CC109: 8.246589 | CD109: 14.85731 | CE109: 7.430872742 | CF109: 4.454986038 | CG109: 9.73995224 | CH109: 11.68529485 | CI109: 13.16446834 | CJ109: 26.84943617 | CK109: 15.9918899 | CL109: 21.13963306 | CM109: 13.97960577 | CN109: 101.6795 | CO109: 100.8803 | CP109: 100.5167 | CQ109: 98.04536 | CR109: 100.0714 | CS109: n.d. | CT109: n.d. | CU109: n.d. | CV109: n.d. | CW109: 97.78786 | CX109: 99.30328 | CY109: 100 | CZ109: 99.03977 | DA109: 100.1183 | DB109: 100.9549 | DC109: 97.40404 | DD109: 98.13802 | DE109: 97.51647 | DF109: 97.48304 | DG109: 96.48966 | DH109: n.d. | DI109: 98.04536 | DJ109: 100.0714 | DK109: 7842.62 | DL109: 1693.84 | DM109: 1017.01 | DN109: 4.6 | DO109: n.d. | DP109: n.d. | DQ109: n.d. | DR109: n.d. | DS109: n.d. | DT109: n.d. | DU109: n.d. | DV109: n.d. | DW109: n.d. | DX109: 0.1 | DY109: n.d. | DZ109: n.d. | EA109: n.d. | EB109: n.d. | EC109: n.d. | ED109: n.d. | EE109: n.d.
B110: octubre | C110: 1.485148515 | D110: 0.9303598303 | E110: 0.3851091142 | F110: 0.3982016699 | G110: 1.274794737 | H110: 0.1986097319 | I110: 58.84815437 | J110: 2.051335998 | K110: -1.099996986 | L110: 18.63012784 | M110: 8.95349116 | N110: 16.65384969 | O110: 17.09411295 | P110: n.d | Q110: n.d | R110: n.d | S110: n.d | T110: n.d | U110: n.d | V110: n.d | W110: n.d | X110: n.d | Y110: n.d | Z110: n.d | AA110: n.d | AB110: n.d | AE110: 14.46 | AF110: 12.7 | AG110: -1.76 | AH110: 295.93 | AI110: 47.75 | AJ110: 61.46183923 | AK110: 109.7195889 | AL110: 126.54 | AM110: 694 | AN110: 95.53 | AO110: 298.75 | AP110: n.d. | AQ110: n.d. | AR110: n.d. | AS110: n.d. | AT110: n.d. | AU110: n.d. | AV110: n.d. | AW110: n.d. | AX110: n.d. | AY110: n.d. | AZ110: n.d. | BA110: n.d. | BB110: 1.193755001 | BC110: 1.6944 | BD110: 121.0486 | BE110: 1.5452 | BF110: n.d. | BG110: 1.1889 | BH110: 8.2778 | BI110: 42.3943 | BJ110: n.d. | BK110: 10.1594 | BL110: n.d. | BM110: =IF('Tipos de Cambio'!$M$9="EuroZona",LOOKUP(1,$BB$2:$BL$2,BB110:BL110),IF('Tipos de Cambio'!$M$9="Reino Unido",LOOKUP(2,$BB$2:$BL$2,BB110:BL110),IF('Tipos de Cambio'!$M$9="Japón",LOOKUP(3,$BB$2:$BL$2,BB110:BL110),IF('Tipos de Cambio'!$M$9="Canadá",LOOKUP(4,$BB$2:$BL$2,BB110:BL110),IF('Tipos de Cambio'!$M$9="Rusia",LOOKUP(5,$BB$2:$BL$2,BB110:BL110),IF('Tipos de Cambio'!$M$9="Brasil",LOOKUP(6,$BB$2:$BL$2,BB110:BL110),IF('Tipos de Cambio'!$M$9="China",LOOKUP(7,$BB$2:$BL$2,BB110:BL110),IF('Tipos de Cambio'!$M$9="India",LOOKUP(8,$BB$2:$BL$2,BB110:BL110),IF('Tipos de Cambio'!$M$9="Sudáfrica",LOOKUP(9,$BB$2:$BL$2,BB110:BL110),IF('Tipos de Cambio'!$M$9="México",LOOKUP(10,$BB$2:$BL$2,BB110:BL110),IF('Tipos de Cambio'!$M$9="Colombia",LOOKUP(11,$BB$2:$BL$2,BB110:BL110)))))))))))) -> n.d. | BN110: 5.05946 | BO110: 4.2 | BP110: 5.27314 | BQ110: n.d. | BR110: 0.41658 | BS110: 4.53 | BT110: n.d. | BU110: n.d. | BV110: 35.71314 | BW110: 75.69791 | BX110: 34.87973 | BY110: 1.204892 | BZ110: 7.957313 | CA110: 11.64597 | CB110: 7.760871 | CC110: 8.376475 | CD110: 14.90598 | CE110: 7.922560057 | CF110: 4.329188212 | CG110: 11.32149661 | CH110: 19.64355932 | CI110: 9.459534373 | CJ110: 26.73911688 | CK110: 15.7069115 | CL110: 21.39382527 | CM110: 11.64959388 | CN110: 101.5457 | CO110: 101.118 | CP110: 100.4858 | CQ110: 98.20538 | CR110: 99.90265 | CS110: n.d. | CT110: n.d. | CU110: n.d. | CV110: n.d. | CW110: 98.01862 | CX110: 99.1266 | CY110: 100 | CZ110: 98.97483 | DA110: 99.81797 | DB110: 100.6661 | DC110: 97.31614 | DD110: 97.77629 | DE110: 97.05654 | DF110: 97.04491 | DG110: 97.41338 | DH110: n.d. | DI110: 98.20538 | DJ110: 99.90265 | DK110: 8592.11 | DL110: 1771.39 | DM110: 1098.67 | DN110: 4.5 | DO110: n.d. | DP110: n.d. | DQ110: n.d. | DR110: n.d. | DS110: n.d. | DT110: n.d. | DU110: n.d. | DV110: n.d. | DW110: n.d. | DX110: -0.1 | DY110: n.d. | DZ110: n.d. | EA110: n.d. | EB110: n.d. | EC110: n.d. | ED110: n.d. | EE110: n.d.
B111: noviembre | C111: 1.547987616 | D111: 0.8062312107 | E111: 0.3851091142 | F111: 0.1667094127 | G111: 1.416426215 | H111: 0.8 | I111: 66.83707866 | J111: 1.75590904 | K111: -1.199995641 | L111: 19.6721202 | M111: 9.33491209 | N111: 17.40628592 | O111: 16.35581767 | P111: n.d | Q111: n.d | R111: n.d | S111: n.d | T111: n.d | U111: n.d | V111: n.d | W111: n.d | X111: n.d | Y111: n.d | Z111: n.d | AA111: n.d | AB111: n.d | AE111: 13 | AF111: 11.04 | AG111: -1.96 | AH111: 294.12 | AI111: 48.13 | AJ111: 56.08222732 | AK111: 116.3692609 | AL111: 130.21 | AM111: 681 | AN111: 98.12 | AO111: 270 | AP111: n.d. | AQ111: n.d. | AR111: n.d. | AS111: n.d. | AT111: n.d. | AU111: n.d. | AV111: n.d. | AW111: n.d. | AX111: n.d. | AY111: n.d. | AZ111: n.d. | BA111: n.d. | BB111: 1.164422999 | BC111: 1.6611 | BD111: 120.2895 | BE111: 1.5404 | BF111: n.d. | BG111: 1.1932 | BH111: 8.2778 | BI111: 42.4284 | BJ111: n.d. | BK111: 9.9685 | BL111: n.d. | BM111: =IF('Tipos de Cambio'!$M$9="EuroZona",LOOKUP(1,$BB$2:$BL$2,BB111:BL111),IF('Tipos de Cambio'!$M$9="Reino Unido",LOOKUP(2,$BB$2:$BL$2,BB111:BL111),IF('Tipos de Cambio'!$M$9="Japón",LOOKUP(3,$BB$2:$BL$2,BB111:BL111),IF('Tipos de Cambio'!$M$9="Canadá",LOOKUP(4,$BB$2:$BL$2,BB111:BL111),IF('Tipos de Cambio'!$M$9="Rusia",LOOKUP(5,$BB$2:$BL$2,BB111:BL111),IF('Tipos de Cambio'!$M$9="Brasil",LOOKUP(6,$BB$2:$BL$2,BB111:BL111),IF('Tipos de Cambio'!$M$9="China",LOOKUP(7,$BB$2:$BL$2,BB111:BL111),IF('Tipos de Cambio'!$M$9="India",LOOKUP(8,$BB$2:$BL$2,BB111:BL111),IF('Tipos de Cambio'!$M$9="Sudáfrica",LOOKUP(9,$BB$2:$BL$2,BB111:BL111),IF('Tipos de Cambio'!$M$9="México",LOOKUP(10,$BB$2:$BL$2,BB111:BL111),IF('Tipos de Cambio'!$M$9="Colombia",LOOKUP(11,$BB$2:$BL$2,BB111:BL111)))))))))))) -> n.d. | BN111: 5.15021 | BO111: 4.59 | BP111: 5.32325 | BQ111: n.d. | BR111: 0.40113 | BS111: 4.83 | BT111: n.d. | BU111: n.d. | BV111: 36.03722 | BW111: 76.17236 | BX111: 34.9482 | BY111: 1.244769 | BZ111: 8.025218 | CA111: 11.87411 | CB111: 7.871076 | CC111: 8.477225 | CD111: 15.02374 | CE111: 8.29005704 | CF111: 4.723348239 | CG111: 9.179552288 | CH111: 23.3560866 | CI111: 9.36777332 | CJ111: 26.58705423 | CK111: 15.39727228 | CL111: 20.95418145 | CM111: 11.88167623 | CN111: 101.6376 | CO111: 101.2855 | CP111: 100.478 | CQ111: 98.43523 | CR111: 99.96796 | CS111: n.d. | CT111: n.d. | CU111: 89.66551 | CV111: n.d. | CW111: 98.1545 | CX111: 99.05667 | CY111: 100 | CZ111: 98.92812 | DA111: 99.5897 | DB111: 100.4507 | DC111: 97.26491 | DD111: 97.62901 | DE111: 97.08556 | DF111: 96.98537 | DG111: 98.64391 | DH111: n.d. | DI111: 98.43523 | DJ111: 99.96796 | DK111: 9116.55 | DL111: 1949.54 | DM111: 1163.63 | DN111: 4.4 | DO111: n.d. | DP111: n.d. | DQ111: n.d. | DR111: n.d. | DS111: n.d. | DT111: n.d. | DU111: n.d. | DV111: n.d. | DW111: n.d. | DX111: -0.1 | DY111: n.d. | DZ111: n.d. | EA111: n.d. | EB111: n.d. | EC111: n.d. | ED111: n.d. | EE111: n.d.
